Workbook

Sheet SEM 33-2016 (hidden)
A1: SEM33/2016
B2: 2016-08-15 | E2: 5h30>6h | F2: 6h>6h30 | G2: 6h30>7h | H2: 7h>7h30 | I2: 7h30>8h | J2: 8h>8h30 | K2: 8h30>9h | L2: 9h>9h30 | M2: 9h30>10h | N2: 10h>10h30 | O2: 10h30>11h | P2: 11h>11h30 | Q2: 11h30>12h | R2: 12h>12h30 | S2: 12h30>13h | T2: 13h>13h30 | U2: 13h30>14h | V2: 14h>14h30 | W2: 14h30>15h | X2: 15h>15h30 | Y2: 15h30>16h | Z2: 16h>16h30 | AA2: 16h30>17h | AB2: 17h>17h30 | AC2: 17h30>18h | AD2: 18h>18h30 | AE2: 18h30>19h | AF2: 19h>19h30 | AG2: 19h30>20h | AH2: 20h>20h30 | AI2: 20h30>21h | AJ2: 21h>21h30 | AK2: TOTAL
B3: r = rayon | C3: Directeur | AK3: =COUNTA(E3:AJ3)*0.5 -> 0
B4: c = caisse | C4: Hassan | G4: r | H4: r | I4: r | J4: r | K4: r | L4: r | M4: r | N4: r | O4: r | P4: r | Q4: r | R4: r | S4: r | AK4: =COUNTA(E4:AJ4)*0.5 -> 6.5
B5: lundi | C5: Rodrigue | G5: r | H5: r | I5: r | J5: r | K5: r | L5: r | M5: r | N5: r | O5: r | P5: r | Q5: r | R5: r | S5: r | AK5: =COUNTA(E5:AJ5)*0.5 -> 6.5
C6: AKUVI SYLVIA | D6: AKUVI | R6: c | S6: c | T6: c | U6: c | V6: c | W6: c | Y6: c | Z6: c | AA6: c | AB6: c | AD6: c | AE6: c | AF6: c | AG6: c | AH6: c | AI6: C | AK6: 8 | AM6: SYLVIA DOIT PRENDRE SA PAUSE A 18H
C7: MOMO | D7: IDRISSA | X7: r | Y7: r | Z7: r | AA7: r | AB7: r | AC7: r | AD7: r | AE7: r | AF7: r | AG7: r | AH7: r | AI7: r | AK7: 6
C8: DIARRA FATOUMATA | D8: HANNE FATOUMATA | P8: cp | Q8: cp | R8: cp | S8: cp | T8: cp | U8: cp | V8: cp | W8: cp | X8: cp | Y8: cp | Z8: cp | AA8: cp | AK8: 6
C9: SHAM LATA | H9: x | I9: x | J9: x | K9: x | L9: x | M9: x | N9: x | O9: x | P9: x | Q9: x | R9: x | S9: x | T9: x | AK9: 6.5
C10: tacko | D10: PHUONG LINH | L10: C | M10: C | N10: C | O10: C | P10: c | Q10: c | AB10: C | AC10: C | AD10: C | AE10: C | AF10: c | AG10: c | AH10: c | AI10: C | AK10: 3 | AN10: Chanez doit recuperer 3h a prendre debut mai = Ok pris le 07/05
C11: AMINO FAISSOLATH | D11: FASSOLATH | L11: cp | M11: cp | N11: cp | O11: cp | P11: cp | Q11: cp | R11: cp | S11: cp | T11: cp | U11: cp | V11: cp | W11: cp | X11: cp | Y11: cp | AK11: 7
C12: JEYAN | I12: r | J12: r | K12: r | L12: r | M12: r | N12: r | O12: r | P12: r | Q12: r | R12: r | S12: r | T12: r | U12: r | AK12: 6.5
C13: Katia BOUSBA | AA13: c | AB13: c | AC13: c | AD13: c | AE13: c | AF13: c | AG13: c | AH13: c | AI13: C | AK13: 5
C14: Anta | L14: c | M14: c | N14: c | O14: c | P14: c | Q14: c | R14: c | S14: C | T14: C | U14: C | V14: C | W14: C | X14: C | Y14: C | AJ14: C
AK15: 0
C16: TOTAL | E16: =COUNTA(E3:E15)*0.5 -> 0 | F16: =COUNTA(F3:F15)*0.5 -> 0 | G16: =COUNTA(G3:G15)*0.5 -> 1 | H16: 1.5 | I16: 2 | J16: 2 | K16: 2 | L16: 3.5 | M16: 3.5 | N16: 3.5 | O16: 3.5 | P16: 4 | Q16: 4 | R16: 4 | S16: 4 | T16: 3 | U16: 2.5 | V16: 2 | W16: 2 | X16: 2 | Y16: 2.5 | Z16: =COUNTA(Z3:Z15)*0.5 -> 2 | AA16: =COUNTA(AA3:AA15)*0.5 -> 2 | AB16: =COUNTA(AB3:AB15)*0.5 -> 2 | AC16: =COUNTA(AC3:AC15)*0.5 -> 1.5 | AD16: =COUNTA(AD3:AD15)*0.5 -> 2 | AE16: =COUNTA(AE3:AE15)*0.5 -> 2 | AF16: =COUNTA(AF3:AF15)*0.5 -> 2 | AG16: =COUNTA(AG3:AG15)*0.5 -> 2 | AH16: =COUNTA(AH3:AH15)*0.5 -> 2 | AI16: =COUNTA(AI3:AI15)*0.5 -> 2 | AJ16: =COUNTA(AJ3:AJ15)*0.5 -> 0.5 | AK16: =SUM(AK3:AK15) -> 61
B18: 2016-08-16 | E18: 5h30>6h | F18: 6h>6h30 | G18: 6h30>7h | H18: 7h>7h30 | I18: 7h30>8h | J18: 8h>8h30 | K18: 8h30>9h | L18: 9h>9h30 | M18: 9h30>10h | N18: 10h>10h30 | O18: 10h30>11h | P18: 11h>11h30 | Q18: 11h30>12h | R18: 12h>12h30 | S18: 12h30>13h | T18: 13h>13h30 | U18: 13h30>14h | V18: 14h>14h30 | W18: 14h30>15h | X18: 15h>15h30 | Y18: 15h30>16h | Z18: 16h>16h30 | AA18: 16h30>17h | AB18: 17h>17h30 | AC18: 17h30>18h | AD18: 18h>18h30 | AE18: 18h30>19h | AF18: 19h>19h30 | AG18: 19h30>20h | AH18: 20h>20h30 | AI18: 20h30>21h | AJ18: 21h>21h30 | AK18: TOTAL
B19: r = rayon | C19: Directeur | AK19: =COUNTA(E19:AJ19)*0.5 -> 0
B20: c = caisse | C20: Hassan | G20: r | H20: r | I20: r | J20: r | K20: r | L20: r | M20: r | N20: r | O20: r | P20: r | Q20: r | R20: r | S20: r | AK20: =COUNTA(E20:AJ20)*0.5 -> 6.5
B21: mardi | C21: Rodrigue | AK21: =COUNTA(E21:AJ21)*0.5 -> 0
C22: AKUVI SYLVIA | D22: AKUVI | L22: c | M22: c | N22: c | O22: c | P22: c | R22: c | S22: c | T22: c | U22: c | V22: c | W22: c | AK22: 5.5
C23: MOMO | D23: IDRISSA | V23: r | W23: r | X23: r | Y23: r | Z23: r | AA23: r | AB23: r | AC23: r | AD23: r | AE23: r | AF23: r | AG23: r | AH23: r | AI23: r | AK23: 7
C24: DIARRA FATOUMATA | D24: HANNE FATOUMATA | Q24: cp | R24: cp | S24: cp | T24: cp | U24: cp | V24: cp | W24: cp | X24: cp | Y24: cp | AB24: cp | AC24: cp | AD24: cp | AE24: cp | AF24: cp | AG24: cp | AH24: cp | AI24: cp | AK24: 8.5 | AN24: Fatou partie à 12h35 le 3/05/16 = doit 7,5h à l'entp | AR24: Partie sans compter son caisson
C25: SHOP SERVICES | Q25: c | R25: c | S25: c | T25: c | U25: c | V25: c | W25: c | X25: C | Y25: C | AB25: c | AC25: c | AD25: c | AE25: c | AF25: c | AG25: c | AH25: c | AI25: C | AJ25: C
C26: SHAM LATA | H26: r | I26: r | J26: r | K26: c | L26: r | M26: r | N26: r | O26: r | P26: r | Q26: r | R26: r | S26: r | T26: r | AK26: 6.5
C27: TACKO | D27: PHUONG LINH | AD27: c | AE27: c | AF27: c | AG27: c | AH27: c | AI27: c | AK27: 3
C28: AMINO FAISSOLATH | D28: FASSOLATH | Y28: cp | Z28: cp | AA28: cp | AB28: cp | AC28: cp | AD28: cp | AE28: cp | AF28: cp | AG28: cp | AH28: cp | AI28: cp | AK28: 5.5
C29: JEYAN | P29: r | Q29: r | R29: r | S29: r | T29: r | U29: r | AD29: r | AE29: r | AF29: r | AG29: r | AH29: r | AI29: r | AK29: 6
C30: =+C13 -> Katia BOUSBA | AK30: 0
C31: Anta | Y31: c | Z31: c | AA31: c | AB31: c | AC31: c | AD31: c | AE31: c | AF31: c | AG31: c | AH31: c | AI31: C | AK31: 5.5
AK32: 0
C33: TOTAL | E33: =COUNTA(E19:E32)*0.5 -> 0 | F33: =COUNTA(F19:F32)*0.5 -> 0 | G33: =COUNTA(G19:G32)*0.5 -> 0.5 | H33: =COUNTA(H19:H32)*0.5 -> 1 | I33: =COUNTA(I19:I32)*0.5 -> 1 | J33: =COUNTA(J19:J32)*0.5 -> 1 | K33: =COUNTA(K19:K32)*0.5 -> 1 | L33: =COUNTA(L19:L32)*0.5 -> 1.5 | M33: =COUNTA(M19:M32)*0.5 -> 1.5 | N33: =COUNTA(N19:N32)*0.5 -> 1.5 | O33: =COUNTA(O19:O32)*0.5 -> 1.5 | P33: =COUNTA(P19:P32)*0.5 -> 2 | Q33: =COUNTA(Q19:Q32)*0.5 -> 2.5 | R33: =COUNTA(R19:R32)*0.5 -> 3 | S33: =COUNTA(S19:S32)*0.5 -> 3 | T33: =COUNTA(T19:T32)*0.5 -> 2.5 | U33: =COUNTA(U19:U32)*0.5 -> 2 | V33: =COUNTA(V19:V32)*0.5 -> 2 | W33: =COUNTA(W19:W32)*0.5 -> 2 | X33: =COUNTA(X19:X32)*0.5 -> 1.5 | Y33: =COUNTA(Y19:Y32)*0.5 -> 2.5 | Z33: =COUNTA(Z19:Z32)*0.5 -> 1.5 | AA33: =COUNTA(AA19:AA32)*0.5 -> 1.5 | AB33: =COUNTA(AB19:AB32)*0.5 -> 2.5 | AC33: =COUNTA(AC19:AC32)*0.5 -> 2.5 | AD33: =COUNTA(AD19:AD32)*0.5 -> 3.5 | AE33: =COUNTA(AE19:AE32)*0.5 -> 3.5 | AF33: =COUNTA(AF19:AF32)*0.5 -> 3.5 | AG33: =COUNTA(AG19:AG32)*0.5 -> 3.5 | AH33: =COUNTA(AH19:AH32)*0.5 -> 3.5 | AI33: =COUNTA(AI19:AI32)*0.5 -> 3.5 | AJ33: =COUNTA(AJ19:AJ32)*0.5 -> 0.5 | AK33: =SUM(AK19:AK32) -> 54
B35: 2016-08-17 | E35: 5h30>6h | F35: 6h>6h30 | G35: 6h30>7h | H35: 7h>7h30 | I35: 7h30>8h | J35: 8h>8h30 | K35: 8h30>9h | L35: 9h>9h30 | M35: 9h30>10h | N35: 10h>10h30 | O35: 10h30>11h | P35: 11h>11h30 | Q35: 11h30>12h | R35: 12h>12h30 | S35: 12h30>13h | T35: 13h>13h30 | U35: 13h30>14h | V35: 14h>14h30 | W35: 14h30>15h | X35: 15h>15h30 | Y35: 15h30>16h | Z35: 16h>16h30 | AA35: 16h30>17h | AB35: 17h>17h30 | AC35: 17h30>18h | AD35: 18h>18h30 | AE35: 18h30>19h | AF35: 19h>19h30 | AG35: 19h30>20h | AH35: 20h>20h30 | AI35: 20h30>21h | AJ35: 21h>21h30 | AK35: TOTAL
B36: r = rayon | C36: Directeur | AK36: =COUNTA(E36:AJ36)*0.5 -> 0
B37: c = caisse | C37: Hassan | G37: r | H37: r | I37: r | J37: r | K37: r | L37: r | M37: r | N37: r | O37: r | P37: r | Q37: r | R37: r | S37: r | AK37: =COUNTA(E37:AJ37)*0.5 -> 6.5 | AR37: Sylvia de 9 à 13 le 20/04 car absente le 23/04
B38: Mercredi | C38: Rodrigue | G38: r | H38: r | I38: r | J38: r | K38: r | L38: r | M38: r | N38: r | O38: r | P38: r | Q38: r | R38: r | S38: r | AK38: =COUNTA(E38:AJ38)*0.5 -> 6.5 | AR38: doit 2h solde en semaine 17
C39: AKUVI SYLVIA | X39: c | Y39: c | Z39: c | AA39: c | AB39: c | AD39: c | AE39: c | AF39: c | AG39: c | AH39: c | AI39: C | AK39: 5.5 | AM39: doit prendre sa pause entre 17h et 17h30
C40: MOMO | V40: r | W40: r | X40: r | Y40: r | Z40: r | AA40: r | AB40: r | AC40: r | AD40: r | AE40: r | AF40: r | AG40: r | AH40: r | AI40: r | AK40: 7
C41: DIARRA FAITOUMATA | D41: HANNE FATOUMATA | U41: cp | V41: cp | W41: cp | X41: cp | Y41: cp | Z41: cp | AA41: cp | AB41: cp | AC41: cp | AD41: cp | AE41: cp | AF41: cp | AG41: cp | AH41: cp | AI41: cp | AK41: 7.5 | AM41: doit prendre sa pause entre 16h30h et 17h
U42: c | V42: c | W42: c | X42: c | Y42: c | Z42: c | AA42: c | AB42: C | AC42: C | AD42: C | AE42: C | AF42: C | AG42: C | AH42: C | AI42: C
C43: SHAM LATA | H43: r | I43: r | J43: r | K43: c | L43: r | M43: r | N43: r | O43: r | P43: r | Q43: r | R43: r | S43: r | T43: r | AK43: 6.5
C44: CHAFA Chanez | D44: PHUONG LINH | AK44: 0
C45: AMINO FAISSOLATH | D45: FASSOLATH | L45: cp | M45: cp | N45: cp | O45: cp | P45: cp | Q45: cp | R45: cp | S45: cp | T45: cp | U45: cp | V45: cp | W45: cp | AK45: 6
C46: JEYAN | P46: r | Q46: r | R46: r | S46: r | T46: r | U46: r | AC46: r | AD46: r | AE46: r | AF46: r | AG46: r | AH46: r | AI46: r | AK46: 6.5
C47: =+C30 -> Katia BOUSBA | P47: c | Q47: c | R47: c | S47: c | T47: c | U47: c | AC47: c | AD47: c | AE47: c | AF47: c | AG47: c | AH47: c | AI47: c | AK47: 6.5
C48: Anta | L48: c | M48: c | N48: c | O48: c | P48: c | Q48: c | R48: c | S48: c | T48: c | U48: c | V48: c | W48: c
G49: r | H49: r | I49: r | J49: r | K49: r | L49: r | M49: r | N49: r | O49: r | P49: r | Q49: r | R49: r | S49: r | AJ49: c
C50: TOTAL | E50: =COUNTA(E36:E49)*0.5 -> 0 | F50: =COUNTA(F36:F49)*0.5 -> 0 | G50: =COUNTA(G36:G49)*0.5 -> 1.5 | H50: =COUNTA(H36:H49)*0.5 -> 2 | I50: =COUNTA(I36:I49)*0.5 -> 2 | J50: =COUNTA(J36:J49)*0.5 -> 2 | K50: =COUNTA(K36:K49)*0.5 -> 2 | L50: =COUNTA(L36:L49)*0.5 -> 3 | M50: =COUNTA(M36:M49)*0.5 -> 3 | N50: =COUNTA(N36:N49)*0.5 -> 3 | O50: =COUNTA(O36:O49)*0.5 -> 3 | P50: =COUNTA(P36:P49)*0.5 -> 4 | Q50: =COUNTA(Q36:Q49)*0.5 -> 4 | R50: =COUNTA(R36:R49)*0.5 -> 4 | S50: =COUNTA(S36:S49)*0.5 -> 4 | T50: =COUNTA(T36:T49)*0.5 -> 2.5 | U50: =COUNTA(U36:U49)*0.5 -> 3 | V50: =COUNTA(V36:V49)*0.5 -> 2.5 | W50: =COUNTA(W36:W49)*0.5 -> 2.5 | X50: =COUNTA(X36:X49)*0.5 -> 2 | Y50: =COUNTA(Y36:Y49)*0.5 -> 2 | Z50: =COUNTA(Z36:Z49)*0.5 -> 2 | AA50: =COUNTA(AA36:AA49)*0.5 -> 2 | AB50: =COUNTA(AB36:AB49)*0.5 -> 2 | AC50: =COUNTA(AC36:AC49)*0.5 -> 2.5 | AD50: =COUNTA(AD36:AD49)*0.5 -> 3 | AE50: =COUNTA(AE36:AE49)*0.5 -> 3 | AF50: =COUNTA(AF36:AF49)*0.5 -> 3 | AG50: =COUNTA(AG36:AG49)*0.5 -> 3 | AH50: =COUNTA(AH36:AH49)*0.5 -> 3 | AI50: =COUNTA(AI36:AI49)*0.5 -> 3 | AJ50: =COUNTA(AJ36:AJ49)*0.5 -> 0.5 | AK50: =SUM(AK36:AK49) -> 58.5
B52: 2016-08-18 | E52: 5h30>6h | F52: 6h>6h30 | G52: 6h30>7h | H52: 7h>7h30 | I52: 7h30>8h | J52: 8h>8h30 | K52: 8h30>9h | L52: 9h>9h30 | M52: 9h30>10h | N52: 10h>10h30 | O52: 10h30>11h | P52: 11h>11h30 | Q52: 11h30>12h | R52: 12h>12h30 | S52: 12h30>13h | T52: 13h>13h30 | U52: 13h30>14h | V52: 14h>14h30 | W52: 14h30>15h | X52: 15h>15h30 | Y52: 15h30>16h | Z52: 16h>16h30 | AA52: 16h30>17h | AB52: 17h>17h30 | AC52: 17h30>18h | AD52: 18h>18h30 | AE52: 18h30>19h | AF52: 19h>19h30 | AG52: 19h30>20h | AH52: 20h>20h30 | AI52: 20h30>21h | AJ52: 21h>21h30 | AK52: TOTAL
B53: r = rayon | C53: Directeur | AK53: =COUNTA(E53:AJ53)*0.5 -> 0
B54: c = caisse | C54: Hassan | G54: r | H54: r | I54: r | J54: r | K54: r | L54: r | M54: r | N54: r | O54: r | P54: r | Q54: r | R54: r | S54: r | AK54: =COUNTA(E54:AJ54)*0.5 -> 6.5
B55: Jeudi | C55: Rodrigue | G55: cp | H55: cp | I55: cp | J55: cp | K55: cp | L55: cp | M55: cp | N55: cp | O55: cp | P55: cp | Q55: cp | R55: cp | S55: cp | AK55: =COUNTA(E55:AJ55)*0.5 -> 6.5
C56: AKUVI SYLVIA | AK56: 0
C57: MOMO | X57: r | Y57: r | Z57: r | AA57: r | AB57: r | AC57: r | AD57: r | AE57: r | AF57: r | AG57: r | AH57: r | AI57: r | AK57: 6
C58: DIARRA FATOUMATA | D58: HANNE FATOUMATA | R58: cp | S58: cp | T58: cp | U58: cp | V58: cp | W58: cp | X58: cp | Y58: cp | Z58: cp | AA58: cp | AK58: 5 | AM58: Fatou absente 5h le 14/04 = à récupérer pendant absence Faisso =le18/04 (+2h de 9 à 11 & le 21/04 +3h de 9h à 12h). Au 07/05 = doit 30 min a l'entp
R59: c | S59: c | T59: c | U59: c | V59: c | W59: c | X59: c | Y59: c | Z59: c | AA59: c
C60: SHAM LATA | H60: r | I60: r | J60: r | K60: c | L60: r | M60: r | N60: r | O60: r | P60: c | Q60: c | R60: r | S60: r | T60: r | AK60: 6.5
C61: Tacko | D61: PHUONG LINH | AB61: c | AC61: c | AD61: c | AE61: c | AF61: c | AG61: c | AH61: c | AI61: C | AK61: 4
C62: AMINO FAISSOLATH | D62: FASSOLATH | L62: cp | M62: cp | N62: cp | O62: cp | P62: cp | Q62: cp | R62: cp | S62: cp | T62: cp | U62: cp | V62: cp | W62: cp | AK62: 6 | AT62: 0
C63: JEYAN | AD63: r | AE63: r | AF63: r | AG63: r | AH63: r | AI63: r | AK63: 3
C64: =+C47 -> Katia BOUSBA | Z64: c | AA64: c | AB64: c | AC64: c | AD64: c | AE64: c | AF64: c | AG64: c | AH64: c | AI64: C | AK64: 5
C65: Anta | L65: c | M65: c | N65: c | O65: c | P65: c | Q65: c | R65: c | S65: c | T65: c | U65: c | V65: c | W65: c | AK65: 6
G66: r | H66: r | I66: r | J66: r | K66: r | L66: r | M66: r | N66: r | O66: r | P66: r | Q66: r | R66: r | S66: r | AK66: 6.5
C67: TOTAL | E67: =COUNTA(E53:E66)*0.5 -> 0 | F67: =COUNTA(F53:F66)*0.5 -> 0 | G67: =COUNTA(G53:G66)*0.5 -> 1.5 | H67: =COUNTA(H53:H66)*0.5 -> 2 | I67: =COUNTA(I53:I66)*0.5 -> 2 | J67: =COUNTA(J53:J66)*0.5 -> 2 | K67: =COUNTA(K53:K66)*0.5 -> 2 | L67: =COUNTA(L53:L66)*0.5 -> 3 | M67: =COUNTA(M53:M66)*0.5 -> 3 | N67: =COUNTA(N53:N66)*0.5 -> 3 | O67: =COUNTA(O53:O66)*0.5 -> 3 | P67: =COUNTA(P53:P66)*0.5 -> 3 | Q67: =COUNTA(Q53:Q66)*0.5 -> 3 | R67: =COUNTA(R53:R66)*0.5 -> 4 | S67: =COUNTA(S53:S66)*0.5 -> 4.5 | T67: =COUNTA(T53:T66)*0.5 -> 2.5 | U67: =COUNTA(U53:U66)*0.5 -> 2 | V67: =COUNTA(V53:V66)*0.5 -> 2 | W67: =COUNTA(W53:W66)*0.5 -> 2 | X67: =COUNTA(X53:X66)*0.5 -> 1.5 | Y67: =COUNTA(Y53:Y66)*0.5 -> 1.5 | Z67: =COUNTA(Z53:Z66)*0.5 -> 2 | AA67: =COUNTA(AA53:AA66)*0.5 -> 2 | AB67: =COUNTA(AB53:AB66)*0.5 -> 1.5 | AC67: =COUNTA(AC53:AC66)*0.5 -> 1.5 | AD67: =COUNTA(AD53:AD66)*0.5 -> 2 | AE67: =COUNTA(AE53:AE66)*0.5 -> 2 | AF67: =COUNTA(AF53:AF66)*0.5 -> 2 | AG67: =COUNTA(AG53:AG66)*0.5 -> 2 | AH67: =COUNTA(AH53:AH66)*0.5 -> 2 | AI67: =COUNTA(AI53:AI66)*0.5 -> 2 | AJ67: =COUNTA(AJ53:AJ66)*0.5 -> 0 | AK67: =SUM(AK53:AK66) -> 61
B69: 2016-08-19 | E69: 5h30>6h | F69: 6h>6h30 | G69: 6h30>7h | H69: 7h>7h30 | I69: 7h30>8h | J69: 8h>8h30 | K69: 8h30>9h | L69: 9h>9h30 | M69: 9h30>10h | N69: 10h>10h30 | O69: 10h30>11h | P69: 11h>11h30 | Q69: 11h30>12h | R69: 12h>12h30 | S69: 12h30>13h | T69: 13h>13h30 | U69: 13h30>14h | V69: 14h>14h30 | W69: 14h30>15h | X69: 15h>15h30 | Y69: 15h30>16h | Z69: 16h>16h30 | AA69: 16h30>17h | AB69: 17h>17h30 | AC69: 17h30>18h | AD69: 18h>18h30 | AE69: 18h30>19h | AF69: 19h>19h30 | AG69: 19h30>20h | AH69: 20h>20h30 | AI69: 20h30>21h | AJ69: 21h>21h30 | AK69: TOTAL
B70: r = rayon | C70: Directeur | AK70: =COUNTA(E70:AJ70)*0.5 -> 0
B71: c = caisse | C71: Hassan | G71: r | H71: r | I71: r | J71: r | K71: r | L71: r | M71: r | N71: r | O71: r | P71: r | Q71: r | R71: r | S71: r | AK71: =COUNTA(E71:AJ71)*0.5 -> 6.5
B72: Vendredi | C72: Rodrigue | G72: cp | H72: cp | I72: cp | J72: cp | K72: cp | L72: cp | M72: cp | N72: cp | O72: cp | P72: cp | Q72: cp | R72: cp | S72: cp | AK72: =COUNTA(E72:AJ72)*0.5 -> 6.5
C73: AKUVI SYLVIA | D73: AKUVI | L73: c | M73: c | N73: c | O73: c | P73: c | R73: c | S73: c | T73: c | U73: c | V73: c | W73: c | AK73: 5.5
C74: MOMO | D74: IDRISSA | X74: r | Y74: r | Z74: r | AA74: r | AB74: r | AC74: r | AD74: r | AE74: r | AF74: r | AG74: r | AH74: r | AI74: r | AK74: 6
C75: DIARRA FATOUMATA | D75: HANNE FATOUMATA | W75: cp | X75: cp | Y75: cp | Z75: cp | AA75: cp | AB75: cp | AC75: cp | AF75: cp | AG75: cp | AH75: cp | AI75: cp | AK75: 5.5
W76: c | X76: c | Y76: c | Z76: c | AA76: c | AB76: c | AC76: c | AF76: c | AG76: c | AH76: c | AI76: c
C77: SHAM LATA | H77: r | I77: r | J77: r | K77: r | L77: r | M77: r | N77: r | O77: r | P77: r | Q77: r | R77: r | S77: r | T77: r | AK77: 6.5
C78: Tacko | D78: PHUONG LINH | K78: c | L78: c | M78: c | N78: c | O78: c | P78: c | Q78: c | R78: c | S78: c | T78: c | U78: c | V78: c | AK78: 6
C79: AMINO FAISSOLATH | D79: FASSOLATH | AA79: cp | AB79: cp | AC79: cp | AD79: cp | AE79: cp | AF79: cp | AG79: cp | AH79: cp | AI79: cp | AK79: 4.5
C80: JEYAN | P80: r | Q80: r | R80: r | S80: r | T80: r | U80: r | AB80: r | AC80: r | AD80: r | AE80: r | AF80: r | AG80: r | AH80: r | AI80: r | AK80: 7
C81: =+C64 -> Katia BOUSBA | AB81: c | AC81: C | AD81: C | AE81: c | AF81: c | AG81: c | AH81: c | AI81: C | AK81: 4 | AM81: Pause 15 min + 15 min
C82: Anta | AA82: c | AB82: c | AC82: c | AD82: c | AE82: c | AF82: c | AG82: c | AH82: c | AI82: c | AK82: 4.5 | AM82: Le 20/05, Katia doit rattraper 1 u du 18/05 = vient à 9h au lieu de 10h (restera solde 1h)
AK83: 0
C84: TOTAL | E84: =COUNTA(E70:E83)*0.5 -> 0 | F84: =COUNTA(F70:F83)*0.5 -> 0 | G84: =COUNTA(G70:G83)*0.5 -> 1 | H84: =COUNTA(H70:H83)*0.5 -> 1.5 | I84: =COUNTA(I70:I83)*0.5 -> 1.5 | J84: =COUNTA(J70:J83)*0.5 -> 1.5 | K84: =COUNTA(K70:K83)*0.5 -> 2 | L84: =COUNTA(L70:L83)*0.5 -> 2.5 | M84: =COUNTA(M70:M83)*0.5 -> 2.5 | N84: =COUNTA(N70:N83)*0.5 -> 2.5 | O84: =COUNTA(O70:O83)*0.5 -> 2.5 | P84: =COUNTA(P70:P83)*0.5 -> 3 | Q84: =COUNTA(Q70:Q83)*0.5 -> 2.5 | R84: =COUNTA(R70:R83)*0.5 -> 3 | S84: =COUNTA(S70:S83)*0.5 -> 3 | T84: =COUNTA(T70:T83)*0.5 -> 2 | U84: =COUNTA(U70:U83)*0.5 -> 1.5 | V84: =COUNTA(V70:V83)*0.5 -> 1 | W84: =COUNTA(W70:W83)*0.5 -> 1.5 | X84: =COUNTA(X70:X83)*0.5 -> 1.5 | Y84: =COUNTA(Y70:Y83)*0.5 -> 1.5 | Z84: =COUNTA(Z70:Z83)*0.5 -> 1.5 | AA84: =COUNTA(AA70:AA83)*0.5 -> 2.5 | AB84: =COUNTA(AB70:AB83)*0.5 -> 3.5 | AC84: =COUNTA(AC70:AC83)*0.5 -> 3.5 | AD84: =COUNTA(AD70:AD83)*0.5 -> 2.5 | AE84: =COUNTA(AE70:AE83)*0.5 -> 2.5 | AF84: =COUNTA(AF70:AF83)*0.5 -> 3.5 | AG84: =COUNTA(AG70:AG83)*0.5 -> 3.5 | AH84: =COUNTA(AH70:AH83)*0.5 -> 3.5 | AI84: =COUNTA(AI70:AI83)*0.5 -> 3.5 | AJ84: =COUNTA(AJ70:AJ83)*0.5 -> 0 | AK84: =SUM(AK70:AK83) -> 62.5
B86: 2016-08-20 | E86: 5h30>6h | F86: 6h>6h30 | G86: 6h30>7h | H86: 7h>7h30 | I86: 7h30>8h | J86: 8h>8h30 | K86: 8h30>9h | L86: 9h>9h30 | M86: 9h30>10h | N86: 10h>10h30 | O86: 10h30>11h | P86: 11h>11h30 | Q86: 11h30>12h | R86: 12h>12h30 | S86: 12h30>13h | T86: 13h>13h30 | U86: 13h30>14h | V86: 14h>14h30 | W86: 14h30>15h | X86: 15h>15h30 | Y86: 15h30>16h | Z86: 16h>16h30 | AA86: 16h30>17h | AB86: 17h>17h30 | AC86: 17h30>18h | AD86: 18h>18h30 | AE86: 18h30>19h | AF86: 19h>19h30 | AG86: 19h30>20h | AH86: 20h>20h30 | AI86: 20h30>21h | AJ86: 21h>21h30 | AK86: TOTAL
B87: r = rayon | C87: Directeur | AK87: =COUNTA(E87:AJ87)*0.5 -> 0
B88: c = caisse | C88: Hassan | G88: r | H88: r | I88: r | J88: r | K88: r | L88: r | M88: r | N88: r | O88: r | P88: r | Q88: r | R88: r | S88: r | AK88: =COUNTA(E88:AJ88)*0.5 -> 6.5
B89: Samedi | C89: Rodrigue | H89: cp | I89: cp | J89: cp | K89: cp | L89: cp | M89: cp | N89: cp | O89: cp | P89: cp | Q89: cp | R89: cp | S89: cp | T89: cp | AK89: =COUNTA(E89:AJ89)*0.5 -> 6.5
C90: AKUVI SYLVIA | D90: AKUVI | X90: c | Y90: c | Z90: c | AA90: c | AB90: c | AD90: c | AE90: c | AF90: c | AG90: c | AH90: c | AI90: C | AK90: 5.5
C91: MOMO | D91: IDRISSA | X91: r | Y91: r | Z91: r | AA91: r | AB91: r | AC91: r | AD91: r | AE91: r | AF91: r | AG91: r | AH91: r | AI91: r | AK91: 6
C92: DIARRA FATOUMATA | D92: HANNE FATOUMATA | R92: cp | S92: cp | T92: cp | U92: cp | V92: cp | W92: cp | X92: cp | Y92: cp | Z92: cp | AK92: 4.5 | AP92: 10 min retard le 23/04 = doit prendre sa pause de 15h à 15h20
C94: SHAM LATA | H94: r | I94: r | J94: r | K94: r | L94: r | M94: r | N94: r | O94: r | P94: c | Q94: c | R94: r | S94: r | T94: r | AK94: 6.5
C95: Tacko | D95: PHUONG LINH | AD95: c | AE95: c | AF95: c | AG95: c | AH95: c | AI95: C | AK95: 3
C96: AMINO FAISSOLATH | D96: FASSOLATH | L96: cp | M96: cp | N96: cp | O96: cp | P96: cp | Q96: cp | R96: cp | S96: cp | T96: cp | U96: cp | V96: cp | W96: cp | AK96: 6
C97: JEYAN | P97: r | Q97: r | R97: r | S97: r | T97: r | U97: r | AD97: r | AE97: r | AF97: r | AG97: r | AH97: r | AI97: r | AK97: 6
C98: =+C81 -> Katia BOUSBA | Z98: c | AA98: c | AB98: c | AC98: c | AD98: c | AE98: c | AF98: c | AG98: c | AH98: c | AI98: C | AK98: 5 | AM98: doit prendre sa pause de 18h à 18h20 | AR98: Le 30/04: Katia de 9h à 14h puis de 18h à 21h = 4h supp
C99: Anta | L99: c | M99: c | N99: c | O99: c | P99: c | Q99: c | R99: c | S99: c | T99: c | U99: c | V99: c | W99: c | AK99: 6
H100: r | I100: r | J100: r | K100: r | L100: r | M100: r | N100: r | O100: r | P100: r | Q100: r | R100: r | S100: r | AK100: 6
C101: TOTAL | E101: =COUNTA(E87:E100)*0.5 -> 0 | F101: =COUNTA(F87:F100)*0.5 -> 0 | G101: =COUNTA(G87:G100)*0.5 -> 0.5 | H101: =COUNTA(H87:H100)*0.5 -> 2 | I101: =COUNTA(I87:I100)*0.5 -> 2 | J101: =COUNTA(J87:J100)*0.5 -> 2 | K101: =COUNTA(K87:K100)*0.5 -> 2 | L101: =COUNTA(L87:L100)*0.5 -> 3 | M101: =COUNTA(M87:M100)*0.5 -> 3 | N101: =COUNTA(N87:N100)*0.5 -> 3 | O101: =COUNTA(O87:O100)*0.5 -> 3 | P101: =COUNTA(P87:P100)*0.5 -> 3.5 | Q101: =COUNTA(Q87:Q100)*0.5 -> 3.5 | R101: =COUNTA(R87:R100)*0.5 -> 4 | S101: =COUNTA(S87:S100)*0.5 -> 4 | T101: =COUNTA(T87:T100)*0.5 -> 3 | U101: =COUNTA(U87:U100)*0.5 -> 2 | V101: =COUNTA(V87:V100)*0.5 -> 1.5 | W101: =COUNTA(W87:W100)*0.5 -> 1.5 | X101: =COUNTA(X87:X100)*0.5 -> 1.5 | Y101: =COUNTA(Y87:Y100)*0.5 -> 1.5 | Z101: =COUNTA(Z87:Z100)*0.5 -> 2 | AA101: =COUNTA(AA87:AA100)*0.5 -> 1.5 | AB101: =COUNTA(AB87:AB100)*0.5 -> 1.5 | AC101: =COUNTA(AC87:AC100)*0.5 -> 1 | AD101: =COUNTA(AD87:AD100)*0.5 -> 2.5 | AE101: =COUNTA(AE87:AE100)*0.5 -> 2.5 | AF101: =COUNTA(AF87:AF100)*0.5 -> 2.5 | AG101: =COUNTA(AG87:AG100)*0.5 -> 2.5 | AH101: =COUNTA(AH87:AH100)*0.5 -> 2.5 | AI101: =COUNTA(AI87:AI100)*0.5 -> 2.5 | AJ101: =COUNTA(AJ87:AJ100)*0.5 -> 0 | AK101: =SUM(AK87:AK100) -> 67.5
B103: 2016-08-21 | E103: 5h30>6h | F103: 6h>6h30 | G103: 6h30>7h | H103: 7h>7h30 | I103: 7h30>8h | J103: 8h>8h30 | K103: 8h30>9h | L103: 9h>9h30 | M103: 9h30>10h | N103: 10h>10h30 | O103: 10h30>11h | P103: 11h>11h30 | Q103: 11h30>12h | R103: 12h>12h30 | S103: 12h30>13h | T103: 13h>13h30 | U103: 13h30>14h | V103: 14h>14h30 | W103: 14h30>15h | X103: 15h>15h30 | Y103: 15h30>16h | Z103: 16h>16h30 | AA103: 16h30>17h | AB103: 17h>17h30 | AC103: 17h30>18h | AD103: 18h>18h30 | AE103: 18h30>19h | AF103: 19h>19h30 | AG103: 19h30>20h | AH103: 20h>20h30 | AI103: 20h30>21h | AJ103: 21h>21h30 | AK103: TOTAL
B104: r = rayon | C104: Directeur | E104: c | AK104: =COUNTA(E104:AJ104)*0.5 -> 0.5
B105: c = caisse | C105: Hassan | AK105: =COUNTA(E105:AJ105)*0.5 -> 0
B106: Dimanche | C106: Rodrigue | H106: cp | I106: cp | J106: cp | K106: cp | L106: cp | M106: cp | N106: cp | O106: cp | P106: cp | Q106: cp | R106: cp | S106: cp | T106: cp | AK106: =COUNTA(E106:AJ106)*0.5 -> 6.5
C107: AKUVI SYLVIA | D107: AKUVI | AK107: 0
C108: MOMO | D108: IDRISSA | AK108: 0
C109: DIARRA FATOUMATA | D109: HANNE FATOUMATA | AK109: 0
C110: SHAM LATA | AK110: 0
C111: Tacko | D111: PHUONG LINH | N111: c | O111: c | P111: c | Q111: c | R111: c | S111: c | T111: C | U111: C | AK111: 4 | AM111: plus 1h tous les dimanche à la demande de Michel & Rodrigue pour contrer lidl | AS111: Doit prendre sa pause de 10h30 à 10h45
C112: AMINO FASSOLATH | D112: FASSOLATH | AK112: 0
C113: JEYAN | AK113: 0
C114: =+C98 -> Katia BOUSBA | K114: C | L114: C | M114: C | N114: C | O114: C | P114: C | Q114: C | R114: C | S114: C | T114: C | U114: C | AK114: 5.5 | AS114: Doit prendre sa pause de 10h45 à 11h
C115: Anta | AK115: 0
AK116: 0
C117: TOTAL | E117: =COUNTA(E104:E116)*0.5 -> 0.5 | F117: =COUNTA(F104:F116)*0.5 -> 0 | G117: =COUNTA(G104:G116)*0.5 -> 0 | H117: =COUNTA(H104:H116)*0.5 -> 0.5 | I117: =COUNTA(I104:I116)*0.5 -> 0.5 | J117: =COUNTA(J104:J116)*0.5 -> 0.5 | K117: =COUNTA(K104:K116)*0.5 -> 1 | L117: =COUNTA(L104:L116)*0.5 -> 1 | M117: =COUNTA(M104:M116)*0.5 -> 1 | N117: =COUNTA(N104:N116)*0.5 -> 1.5 | O117: =COUNTA(O104:O116)*0.5 -> 1.5 | P117: =COUNTA(P104:P116)*0.5 -> 1.5 | Q117: =COUNTA(Q104:Q116)*0.5 -> 1.5 | R117: =COUNTA(R104:R116)*0.5 -> 1.5 | S117: =COUNTA(S104:S116)*0.5 -> 1.5 | T117: =COUNTA(T104:T116)*0.5 -> 1.5 | U117: =COUNTA(U104:U116)*0.5 -> 1 | V117: =COUNTA(V104:V116)*0.5 -> 0 | W117: =COUNTA(W104:W116)*0.5 -> 0 | X117: =COUNTA(X104:X116)*0.5 -> 0 | Y117: =COUNTA(Y104:Y116)*0.5 -> 0 | Z117: =COUNTA(Z104:Z116)*0.5 -> 0 | AA117: =COUNTA(AA104:AA116)*0.5 -> 0 | AB117: =COUNTA(AB104:AB116)*0.5 -> 0 | AC117: =COUNTA(AC104:AC116)*0.5 -> 0 | AD117: =COUNTA(AD104:AD116)*0.5 -> 0 | AE117: =COUNTA(AE104:AE116)*0.5 -> 0 | AF117: =COUNTA(AF104:AF116)*0.5 -> 0 | AG117: =COUNTA(AG104:AG116)*0.5 -> 0 | AH117: =COUNTA(AH104:AH116)*0.5 -> 0 | AI117: =COUNTA(AI104:AI116)*0.5 -> 0 | AJ117: =COUNTA(AJ104:AJ116)*0.5 -> 0 | AK117: =SUM(AK104:AK116) -> 16.5
B119: Signatures OBLIGATOIRES | C119: Hassan OUAMOUH | J119: Rodrigue MOREIRA | P119: AKUVI SYLVIA | U119: MOMO | AA119: DIARRA HANNE FATOUMATA | AF119: SHAM LATA
C121: =+C111 -> Tacko | J121: =+C112 -> AMINO FASSOLATH
B124: Planning | E124: 5h30>6h | F124: 6h>6h30 | G124: 6h30>7h | H124: 7h>7h30 | I124: 7h30>8h | J124: 8h>8h30 | K124: 8h30>9h | L124: 9h>9h30 | M124: 9h30>10h | N124: 10h>10h30 | O124: 10h30>11h | P124: 11h>11h30 | Q124: 11h30>12h | R124: 12h>12h30 | S124: 12h30>13h | T124: 13h>13h30 | U124: 13h30>14h | V124: 14h>14h30 | W124: 14h30>15h | X124: 15h>15h30 | Y124: 15h30>16h | Z124: 16h>16h30 | AA124: 16h30>17h | AB124: 17h>17h30 | AC124: 17h30>18h | AD124: 18h>18h30 | AE124: 18h30>19h | AF124: 19h>19h30 | AG124: 19h30>20h | AH124: 20h>20h30 | AI124: 20h30>21h | AJ124: 21h>21h30 | AK124: SOUS-TOTAL | AM124: TOTAL | AN124: Contrat | AO124: Différence
B125: TOTAL Semaine | C125: Directeur | D125: R | E125: =IF(E3="r",1,0)+IF(E19="r",1,0)+IF(E36="r",1,0)+IF(E53="r",1,0)+IF(E70="r",1,0)+IF(E87="r",1,0)+IF(E104="r",1,0)/2 -> 0 | F125: =IF(F3="r",1,0)+IF(F19="r",1,0)+IF(F36="r",1,0)+IF(F53="r",1,0)+IF(F70="r",1,0)+IF(F87="r",1,0)+IF(F104="r",1,0)/2 -> 0 | G125: =(IF(G3="r",1,0)+IF(G19="r",1,0)+IF(G36="r",1,0)+IF(G53="r",1,0)+IF(G70="r",1,0)+IF(G87="r",1,0)+IF(G104="r",1,0))/2 -> 0 | H125: 0 | I125: 0 | J125: 0 | K125: 0 | L125: 0 | M125: 0 | N125: 0 | O125: 0 | P125: 0 | Q125: 0 | R125: 0 | S125: 0 | T125: 0 | U125: 0 | V125: 0 | W125: 0 | X125: 0 | Y125: 0 | Z125: 0 | AA125: 0 | AB125: 0 | AC125: 0 | AD125: 0 | AE125: 0 | AF125: 0 | AG125: 0 | AH125: 0 | AI125: 0 | AJ125: 0 | AK125: =+SUM(G125:AI125) -> 0 | AL125: R | AM125: =AK125+AK126 -> 0 | AN125: 51.5 | AO125: =AM125-AN125 -> -51.5 | AP125: Directeur
D126: C | E126: =IF(E3="c",1,0)+IF(E19="c",1,0)+IF(E36="c",1,0)+IF(E53="c",1,0)+IF(E70="c",1,0)+IF(E87="c",1,0)+IF(E104="c",1,0)/2 -> 0.5 | F126: =IF(F3="c",1,0)+IF(F19="c",1,0)+IF(F36="c",1,0)+IF(F53="c",1,0)+IF(F70="c",1,0)+IF(F87="c",1,0)+IF(F104="c",1,0)/2 -> 0 | G126: =(IF(G3="c",1,0)+IF(G19="c",1,0)+IF(G36="c",1,0)+IF(G53="c",1,0)+IF(G70="c",1,0)+IF(G87="c",1,0)+IF(G104="c",1,0))/2 -> 0 | H126: 0 | I126: 0 | J126: 0 | K126: 0 | L126: 0 | M126: 0 | N126: 0 | O126: 0 | P126: 0 | Q126: 0 | R126: 0 | S126: 0 | T126: 0 | U126: 0 | V126: 0 | W126: 0 | X126: 0 | Y126: 0 | Z126: 0 | AA126: 0 | AB126: 0 | AC126: 0 | AD126: 0 | AE126: 0 | AF126: 0 | AG126: 0 | AH126: 0 | AI126: 0 | AJ126: 0 | AK126: 0 | AL126: C
C127: Hassan | D127: R | E127: =IF(E4="r",1,0)+IF(E20="r",1,0)+IF(E37="r",1,0)+IF(E54="r",1,0)+IF(E71="r",1,0)+IF(E88="r",1,0)+IF(E105="r",1,0)/2 -> 0 | F127: =IF(F4="r",1,0)+IF(F20="r",1,0)+IF(F37="r",1,0)+IF(F54="r",1,0)+IF(F71="r",1,0)+IF(F88="r",1,0)+IF(F105="r",1,0)/2 -> 0 | G127: =(IF(G4="r",1,0)+IF(G20="r",1,0)+IF(G37="r",1,0)+IF(G54="r",1,0)+IF(G71="r",1,0)+IF(G88="r",1,0)+IF(G105="r",1,0))/2 -> 3 | H127: 3 | I127: 3 | J127: 3 | K127: 3 | L127: 3 | M127: 3 | N127: 3 | O127: 3 | P127: 3 | Q127: 3 | R127: 3 | S127: 3 | T127: 0 | U127: 0 | V127: 0 | W127: 0 | X127: 0 | Y127: 0 | Z127: 0 | AA127: 0 | AB127: 0 | AC127: 0 | AD127: 0 | AE127: 0 | AF127: 0 | AG127: 0 | AH127: 0 | AI127: 0 | AJ127: 0 | AK127: 39 | AL127: R | AM127: =AK127+AK128 -> 39 | AN127: 39 | AO127: =AM127-AN127 -> 0 | AP127: Hassan
C128: Hassan | D128: C | E128: =IF(E4="c",1,0)+IF(E20="c",1,0)+IF(E37="c",1,0)+IF(E54="c",1,0)+IF(E71="c",1,0)+IF(E88="c",1,0)+IF(E105="c",1,0)/2 -> 0 | F128: =IF(F4="c",1,0)+IF(F20="c",1,0)+IF(F37="c",1,0)+IF(F54="c",1,0)+IF(F71="c",1,0)+IF(F88="c",1,0)+IF(F105="c",1,0)/2 -> 0 | G128: =(IF(G4="c",1,0)+IF(G20="c",1,0)+IF(G37="c",1,0)+IF(G54="c",1,0)+IF(G71="c",1,0)+IF(G88="c",1,0)+IF(G105="c",1,0))/2 -> 0 | H128: 0 | I128: 0 | J128: 0 | K128: 0 | L128: 0 | M128: 0 | N128: 0 | O128: 0 | P128: 0 | Q128: 0 | R128: 0 | S128: 0 | T128: 0 | U128: 0 | V128: 0 | W128: 0 | X128: 0 | Y128: 0 | Z128: 0 | AA128: 0 | AB128: 0 | AC128: 0 | AD128: 0 | AE128: 0 | AF128: 0 | AG128: 0 | AH128: 0 | AI128: 0 | AJ128: 0 | AK128: 0 | AL128: C | AP128: Hassan
C129: Rodrigue | D129: R | E129: =IF(E5="r",1,0)+IF(E21="r",1,0)+IF(E38="r",1,0)+IF(E55="r",1,0)+IF(E72="r",1,0)+IF(E89="r",1,0)+IF(E106="r",1,0)/2 -> 0 | F129: =IF(F5="r",1,0)+IF(F21="r",1,0)+IF(F38="r",1,0)+IF(F55="r",1,0)+IF(F72="r",1,0)+IF(F89="r",1,0)+IF(F106="r",1,0)/2 -> 0 | G129: =(IF(G5="r",1,0)+IF(G21="r",1,0)+IF(G38="r",1,0)+IF(G55="r",1,0)+IF(G72="r",1,0)+IF(G89="r",1,0)+IF(G106="r",1,0))/2 -> 1 | H129: 1 | I129: 1 | J129: 1 | K129: 1 | L129: 1 | M129: 1 | N129: 1 | O129: 1 | P129: 1 | Q129: 1 | R129: 1 | S129: 1 | T129: 0 | U129: 0 | V129: 0 | W129: 0 | X129: 0 | Y129: 0 | Z129: 0 | AA129: 0 | AB129: 0 | AC129: 0 | AD129: 0 | AE129: 0 | AF129: 0 | AG129: 0 | AH129: 0 | AI129: 0 | AJ129: 0 | AK129: 13 | AL129: R | AM129: =AK129+AK130 -> 13 | AN129: 39 | AO129: =AM129-AN129 -> -26 | AP129: Rodrigue
C130: Rodrigue | D130: C | E130: =IF(E5="c",1,0)+IF(E21="c",1,0)+IF(E38="c",1,0)+IF(E55="c",1,0)+IF(E72="c",1,0)+IF(E89="c",1,0)+IF(E106="c",1,0)/2 -> 0 | F130: =IF(F5="c",1,0)+IF(F21="c",1,0)+IF(F38="c",1,0)+IF(F55="c",1,0)+IF(F72="c",1,0)+IF(F89="c",1,0)+IF(F106="c",1,0)/2 -> 0 | G130: =(IF(G5="c",1,0)+IF(G21="c",1,0)+IF(G38="c",1,0)+IF(G55="c",1,0)+IF(G72="c",1,0)+IF(G89="c",1,0)+IF(G106="c",1,0))/2 -> 0 | H130: 0 | I130: 0 | J130: 0 | K130: 0 | L130: 0 | M130: 0 | N130: 0 | O130: 0 | P130: 0 | Q130: 0 | R130: 0 | S130: 0 | T130: 0 | U130: 0 | V130: 0 | W130: 0 | X130: 0 | Y130: 0 | Z130: 0 | AA130: 0 | AB130: 0 | AC130: 0 | AD130: 0 | AE130: 0 | AF130: 0 | AG130: 0 | AH130: 0 | AI130: 0 | AJ130: 0 | AK130: 0 | AL130: C | AP130: Rodrigue
C131: =+C107 -> AKUVI SYLVIA | D131: R | E131: =IF(E6="r",1,0)+IF(E22="r",1,0)+IF(E39="r",1,0)+IF(E56="r",1,0)+IF(E73="r",1,0)+IF(E90="r",1,0)+IF(E107="r",1,0)/2 -> 0 | F131: =IF(F6="r",1,0)+IF(F22="r",1,0)+IF(F39="r",1,0)+IF(F56="r",1,0)+IF(F73="r",1,0)+IF(F90="r",1,0)+IF(F107="r",1,0)/2 -> 0 | G131: =(IF(G6="r",1,0)+IF(G22="r",1,0)+IF(G39="r",1,0)+IF(G56="r",1,0)+IF(G73="r",1,0)+IF(G90="r",1,0)+IF(G107="r",1,0))/2 -> 0 | H131: 0 | I131: 0 | J131: 0 | K131: 0 | L131: 0 | M131: 0 | N131: 0 | O131: 0 | P131: 0 | Q131: 0 | R131: 0 | S131: 0 | T131: 0 | U131: 0 | V131: 0 | W131: 0 | X131: 0 | Y131: 0 | Z131: 0 | AA131: 0 | AB131: 0 | AC131: 0 | AD131: 0 | AE131: 0 | AF131: 0 | AG131: 0 | AH131: 0 | AI131: 0 | AJ131: 0 | AK131: 0 | AL131: R | AM131: =AK131+AK132 -> 29.5 | AN131: 30 | AO131: =AM131-AN131 -> -0.5 | AP131: =+C131 -> AKUVI SYLVIA
C132: ELS 1 | D132: C | E132: =IF(E6="c",1,0)+IF(E22="c",1,0)+IF(E39="c",1,0)+IF(E56="c",1,0)+IF(E73="c",1,0)+IF(E90="c",1,0)+IF(E107="c",1,0) -> 0 | F132: =IF(F6="c",1,0)+IF(F22="c",1,0)+IF(F39="c",1,0)+IF(F56="c",1,0)+IF(F73="c",1,0)+IF(F90="c",1,0)+IF(F107="c",1,0) -> 0 | G132: =(IF(G6="c",1,0)+IF(G22="c",1,0)+IF(G39="c",1,0)+IF(G56="c",1,0)+IF(G73="c",1,0)+IF(G90="c",1,0)+IF(G107="c",1,0))/2 -> 0 | H132: 0 | I132: 0 | J132: 0 | K132: 0 | L132: 1 | M132: 1 | N132: 1 | O132: 1 | P132: 1 | Q132: 0 | R132: 1.5 | S132: 1.5 | T132: 1.5 | U132: 1.5 | V132: 1.5 | W132: 1.5 | X132: 1 | Y132: 1.5 | Z132: 1.5 | AA132: 1.5 | AB132: 1.5 | AC132: 0 | AD132: 1 | AE132: 1.5 | AF132: 1.5 | AG132: 1.5 | AH132: 1.5 | AI132: 1.5 | AJ132: 0 | AK132: 29.5 | AL132: C | AP132: ELS 1
C133: =+C108 -> MOMO | D133: R | E133: =IF(E7="r",1,0)+IF(E23="r",1,0)+IF(E40="r",1,0)+IF(E57="r",1,0)+IF(E74="r",1,0)+IF(E91="r",1,0)+IF(E108="r",1,0)/2 -> 0 | F133: =IF(F7="r",1,0)+IF(F23="r",1,0)+IF(F40="r",1,0)+IF(F57="r",1,0)+IF(F74="r",1,0)+IF(F91="r",1,0)+IF(F108="r",1,0)/2 -> 0 | G133: =(IF(G7="r",1,0)+IF(G23="r",1,0)+IF(G40="r",1,0)+IF(G57="r",1,0)+IF(G74="r",1,0)+IF(G91="r",1,0)+IF(G108="r",1,0))/2 -> 0 | H133: 0 | I133: 0 | J133: 0 | K133: 0 | L133: 0 | M133: 0 | N133: 0 | O133: 0 | P133: 0 | Q133: 0 | R133: 0 | S133: 0 | T133: 0 | U133: 0 | V133: 1 | W133: 1 | X133: 3 | Y133: 3 | Z133: 3 | AA133: 3 | AB133: 3 | AC133: 3 | AD133: 3 | AE133: 3 | AF133: 3 | AG133: 3 | AH133: 3 | AI133: 3 | AJ133: 0 | AK133: 38 | AL133: R | AM133: =AK133+AK134 -> 38 | AN133: 35 | AO133: =AM133-AN133 -> 3 | AP133: =+C133 -> MOMO
C134: ELS 2 | D134: C | E134: =IF(E7="c",1,0)+IF(E23="c",1,0)+IF(E40="c",1,0)+IF(E57="c",1,0)+IF(E74="c",1,0)+IF(E91="c",1,0)+IF(E108="c",1,0)/2 -> 0 | F134: =IF(F7="c",1,0)+IF(F23="c",1,0)+IF(F40="c",1,0)+IF(F57="c",1,0)+IF(F74="c",1,0)+IF(F91="c",1,0)+IF(F108="c",1,0)/2 -> 0 | G134: =(IF(G7="c",1,0)+IF(G23="c",1,0)+IF(G40="c",1,0)+IF(G57="c",1,0)+IF(G74="c",1,0)+IF(G91="c",1,0)+IF(G108="c",1,0))/2 -> 0 | H134: 0 | I134: 0 | J134: 0 | K134: 0 | L134: 0 | M134: 0 | N134: 0 | O134: 0 | P134: 0 | Q134: 0 | R134: 0 | S134: 0 | T134: 0 | U134: 0 | V134: 0 | W134: 0 | X134: 0 | Y134: 0 | Z134: 0 | AA134: 0 | AB134: 0 | AC134: 0 | AD134: 0 | AE134: 0 | AF134: 0 | AG134: 0 | AH134: 0 | AI134: 0 | AJ134: 0 | AK134: 0 | AL134: C | AP134: ELS 2
C135: =+C109 -> DIARRA FATOUMATA | D135: R | E135: =IF(E8="r",1,0)+IF(E24="r",1,0)+IF(E41="r",1,0)+IF(E58="r",1,0)+IF(E75="r",1,0)+IF(E92="r",1,0)+IF(E109="r",1,0)/2 -> 0 | F135: =IF(F8="r",1,0)+IF(F24="r",1,0)+IF(F41="r",1,0)+IF(F58="r",1,0)+IF(F75="r",1,0)+IF(F92="r",1,0)+IF(F109="r",1,0)/2 -> 0 | G135: =(IF(G8="r",1,0)+IF(G24="r",1,0)+IF(G41="r",1,0)+IF(G58="r",1,0)+IF(G75="r",1,0)+IF(G92="r",1,0)+IF(G109="r",1,0))/2 -> 0 | H135: 0 | I135: 0 | J135: 0 | K135: 0 | L135: 0 | M135: 0 | N135: 0 | O135: 0 | P135: 0 | Q135: 0 | R135: 0 | S135: 0 | T135: 0 | U135: 0 | V135: 0 | W135: 0 | X135: 0 | Y135: 0 | Z135: 0 | AA135: 0 | AB135: 0 | AC135: 0 | AD135: 0 | AE135: 0 | AF135: 0 | AG135: 0 | AH135: 0 | AI135: 0 | AJ135: 0 | AK135: 0 | AL135: R | AM135: =AK135+AK136 -> 0 | AN135: 35 | AO135: =AM135-AN135 -> -35 | AP135: =+C135 -> DIARRA FATOUMATA
C136: ELS 3 | D136: C | E136: =IF(E8="c",1,0)+IF(E24="c",1,0)+IF(E41="c",1,0)+IF(E58="c",1,0)+IF(E75="c",1,0)+IF(E92="c",1,0)+IF(E109="c",1,0)/2 -> 0 | F136: =IF(F8="c",1,0)+IF(F24="c",1,0)+IF(F41="c",1,0)+IF(F58="c",1,0)+IF(F75="c",1,0)+IF(F92="c",1,0)+IF(F109="c",1,0)/2 -> 0 | G136: =(IF(G8="c",1,0)+IF(G24="c",1,0)+IF(G41="c",1,0)+IF(G58="c",1,0)+IF(G75="c",1,0)+IF(G92="c",1,0)+IF(G109="c",1,0))/2 -> 0 | H136: 0 | I136: 0 | J136: 0 | K136: 0 | L136: 0 | M136: 0 | N136: 0 | O136: 0 | P136: 0 | Q136: 0 | R136: 0 | S136: 0 | T136: 0 | U136: 0 | V136: 0 | W136: 0 | X136: 0 | Y136: 0 | Z136: 0 | AA136: 0 | AB136: 0 | AC136: 0 | AD136: 0 | AE136: 0 | AF136: 0 | AG136: 0 | AH136: 0 | AI136: 0 | AJ136: 0 | AK136: 0 | AL136: C | AP136: ELS 3
C137: =+C110 -> SHAM LATA | D137: R | E137: =IF(E9="r",1,0)+IF(E26="r",1,0)+IF(E43="r",1,0)+IF(E60="r",1,0)+IF(E77="r",1,0)+IF(E94="r",1,0)+IF(E110="r",1,0)/2 -> 0 | F137: =IF(F9="r",1,0)+IF(F26="r",1,0)+IF(F43="r",1,0)+IF(F60="r",1,0)+IF(F77="r",1,0)+IF(F94="r",1,0)+IF(F110="r",1,0)/2 -> 0 | G137: =(IF(G9="r",1,0)+IF(G26="r",1,0)+IF(G43="r",1,0)+IF(G60="r",1,0)+IF(G77="r",1,0)+IF(G94="r",1,0)+IF(G110="r",1,0))/2 -> 0 | H137: 2.5 | I137: 2.5 | J137: 2.5 | K137: 1 | L137: 2.5 | M137: 2.5 | N137: 2.5 | O137: 2.5 | P137: 1.5 | Q137: 1.5 | R137: 2.5 | S137: 2.5 | T137: 2.5 | U137: 0 | V137: 0 | W137: 0 | X137: 0 | Y137: 0 | Z137: 0 | AA137: 0 | AB137: 0 | AC137: 0 | AD137: 0 | AE137: 0 | AF137: 0 | AG137: 0 | AH137: 0 | AI137: 0 | AJ137: 0 | AK137: 29 | AL137: R | AM137: =AK137+AK138 -> 32.5 | AN137: 39 | AO137: =AM137-AN137 -> -6.5 | AP137: =+C137 -> SHAM LATA
C138: ELS 4 | D138: C | E138: =IF(E9="c",1,0)+IF(E26="c",1,0)+IF(E43="c",1,0)+IF(E60="c",1,0)+IF(E77="c",1,0)+IF(E94="c",1,0)+IF(E110="c",1,0)/2 -> 0 | F138: =IF(F9="c",1,0)+IF(F26="c",1,0)+IF(F43="c",1,0)+IF(F60="c",1,0)+IF(F77="c",1,0)+IF(F94="c",1,0)+IF(F110="c",1,0)/2 -> 0 | G138: =(IF(G9="c",1,0)+IF(G26="c",1,0)+IF(G43="c",1,0)+IF(G60="c",1,0)+IF(G77="c",1,0)+IF(G94="c",1,0)+IF(G110="c",1,0))/2 -> 0 | H138: 0 | I138: 0 | J138: 0 | K138: 1.5 | L138: 0 | M138: 0 | N138: 0 | O138: 0 | P138: 1 | Q138: 1 | R138: 0 | S138: 0 | T138: 0 | U138: 0 | V138: 0 | W138: 0 | X138: 0 | Y138: 0 | Z138: 0 | AA138: 0 | AB138: 0 | AC138: 0 | AD138: 0 | AE138: 0 | AF138: 0 | AG138: 0 | AH138: 0 | AI138: 0 | AJ138: 0 | AK138: 3.5 | AL138: C | AP138: ELS 4
C139: =+C111 -> Tacko | D139: R | E139: =IF(E10="r",1,0)+IF(E27="r",1,0)+IF(E44="r",1,0)+IF(E61="r",1,0)+IF(E78="r",1,0)+IF(E95="r",1,0)+IF(E111="r",1,0)/2 -> 0 | F139: =IF(F10="r",1,0)+IF(F27="r",1,0)+IF(F44="r",1,0)+IF(F61="r",1,0)+IF(F78="r",1,0)+IF(F95="r",1,0)+IF(F111="r",1,0)/2 -> 0 | G139: =(IF(G10="r",1,0)+IF(G27="r",1,0)+IF(G44="r",1,0)+IF(G61="r",1,0)+IF(G78="r",1,0)+IF(G95="r",1,0)+IF(G111="r",1,0))/2 -> 0 | H139: 0 | I139: 0 | J139: 0 | K139: 0 | L139: 0 | M139: 0 | N139: 0 | O139: 0 | P139: 0 | Q139: 0 | R139: 0 | S139: 0 | T139: 0 | U139: 0 | V139: 0 | W139: 0 | X139: 0 | Y139: 0 | Z139: 0 | AA139: 0 | AB139: =(IF(AB10="r",1,0)+IF(#REF!="r",1,0)+IF(AB44="r",1,0)+IF(AB61="r",1,0)+IF(AB78="r",1,0)+IF(AB95="r",1,0)+IF(AB111="r",1,0))/2 ->  | AC139: =(IF(AC10="r",1,0)+IF(#REF!="r",1,0)+IF(AC44="r",1,0)+IF(AC61="r",1,0)+IF(AC78="r",1,0)+IF(AC95="r",1,0)+IF(AC111="r",1,0))/2 ->  | AD139: =(IF(#REF!="r",1,0)+IF(#REF!="r",1,0)+IF(AD44="r",1,0)+IF(AD61="r",1,0)+IF(AD78="r",1,0)+IF(AD95="r",1,0)+IF(AD111="r",1,0))/2 ->  | AE139: =(IF(#REF!="r",1,0)+IF(#REF!="r",1,0)+IF(AE44="r",1,0)+IF(AE61="r",1,0)+IF(AE78="r",1,0)+IF(AE95="r",1,0)+IF(AE111="r",1,0))/2 ->  | AF139: =(IF(#REF!="r",1,0)+IF(#REF!="r",1,0)+IF(AF44="r",1,0)+IF(AF61="r",1,0)+IF(AF78="r",1,0)+IF(AF95="r",1,0)+IF(AF111="r",1,0))/2 ->  | AG139: =(IF(#REF!="r",1,0)+IF(#REF!="r",1,0)+IF(AG44="r",1,0)+IF(AG61="r",1,0)+IF(AG78="r",1,0)+IF(AG95="r",1,0)+IF(AG111="r",1,0))/2 ->  | AH139: =(IF(#REF!="r",1,0)+IF(#REF!="r",1,0)+IF(AH44="r",1,0)+IF(AH61="r",1,0)+IF(AH78="r",1,0)+IF(AH95="r",1,0)+IF(AH111="r",1,0))/2 ->  | AI139: =(IF(#REF!="r",1,0)+IF(#REF!="r",1,0)+IF(AI44="r",1,0)+IF(AI61="r",1,0)+IF(AI78="r",1,0)+IF(AI95="r",1,0)+IF(AI111="r",1,0))/2 ->  | AJ139: =(IF(#REF!="r",1,0)+IF(AJ27="r",1,0)+IF(AJ44="r",1,0)+IF(AJ61="r",1,0)+IF(AJ78="r",1,0)+IF(AJ95="r",1,0)+IF(AJ111="r",1,0))/2 ->  | AL139: R | AM139: =AK139+AK140 ->  | AN139: 15 | AO139: =AM139-AN139 ->  | AP139: =+C139 -> Tacko
C140: ELS 5 | D140: C | E140: =IF(E10="C",1,0)+IF(E27="C",1,0)+IF(E44="C",1,0)+IF(E61="C",1,0)+IF(E78="C",1,0)+IF(E95="C",1,0)+IF(E111="C",1,0)/2 -> 0 | F140: =IF(F10="C",1,0)+IF(F27="C",1,0)+IF(F44="C",1,0)+IF(F61="C",1,0)+IF(F78="C",1,0)+IF(F95="C",1,0)+IF(F111="C",1,0)/2 -> 0 | G140: =(IF(G10="C",1,0)+IF(G27="C",1,0)+IF(G44="C",1,0)+IF(G61="C",1,0)+IF(G78="C",1,0)+IF(G95="C",1,0)+IF(G111="C",1,0))/2 -> 0 | H140: 0 | I140: 0 | J140: 0 | K140: 0.5 | L140: 1 | M140: 1 | N140: 1.5 | O140: 1.5 | P140: 1.5 | Q140: 1.5 | R140: 1 | S140: 1 | T140: 1 | U140: 1 | V140: 0.5 | W140: 0 | X140: 0 | Y140: 0 | Z140: 0 | AA140: 0 | AB140: =(IF(AB10="C",1,0)+IF(#REF!="C",1,0)+IF(AB44="C",1,0)+IF(AB61="C",1,0)+IF(AB78="C",1,0)+IF(AB95="C",1,0)+IF(AB111="C",1,0))/2 ->  | AC140: =(IF(AC10="C",1,0)+IF(#REF!="C",1,0)+IF(AC44="C",1,0)+IF(AC61="C",1,0)+IF(AC78="C",1,0)+IF(AC95="C",1,0)+IF(AC111="C",1,0))/2 ->  | AD140: =(IF(#REF!="C",1,0)+IF(#REF!="C",1,0)+IF(AD44="C",1,0)+IF(AD61="C",1,0)+IF(AD78="C",1,0)+IF(AD95="C",1,0)+IF(AD111="C",1,0))/2 ->  | AE140: =(IF(#REF!="C",1,0)+IF(#REF!="C",1,0)+IF(AE44="C",1,0)+IF(AE61="C",1,0)+IF(AE78="C",1,0)+IF(AE95="C",1,0)+IF(AE111="C",1,0))/2 ->  | AF140: =(IF(#REF!="C",1,0)+IF(#REF!="C",1,0)+IF(AF44="C",1,0)+IF(AF61="C",1,0)+IF(AF78="C",1,0)+IF(AF95="C",1,0)+IF(AF111="C",1,0))/2 ->  | AG140: =(IF(#REF!="C",1,0)+IF(#REF!="C",1,0)+IF(AG44="C",1,0)+IF(AG61="C",1,0)+IF(AG78="C",1,0)+IF(AG95="C",1,0)+IF(AG111="C",1,0))/2 ->  | AH140: =(IF(#REF!="C",1,0)+IF(#REF!="C",1,0)+IF(AH44="C",1,0)+IF(AH61="C",1,0)+IF(AH78="C",1,0)+IF(AH95="C",1,0)+IF(AH111="C",1,0))/2 ->  | AI140: =(IF(#REF!="C",1,0)+IF(#REF!="C",1,0)+IF(AI44="C",1,0)+IF(AI61="C",1,0)+IF(AI78="C",1,0)+IF(AI95="C",1,0)+IF(AI111="C",1,0))/2 ->  | AJ140: =(IF(#REF!="C",1,0)+IF(AJ27="C",1,0)+IF(AJ44="C",1,0)+IF(AJ61="C",1,0)+IF(AJ78="C",1,0)+IF(AJ95="C",1,0)+IF(AJ111="C",1,0))/2 ->  | AL140: C | AP140: ELS 5
C141: =+C112 -> AMINO FASSOLATH | D141: R | E141: =IF(E11="r",1,0)+IF(E28="r",1,0)+IF(E45="r",1,0)+IF(E62="r",1,0)+IF(E79="r",1,0)+IF(E96="r",1,0)+IF(E112="r",1,0)/2 -> 0 | F141: =IF(F11="r",1,0)+IF(F28="r",1,0)+IF(F45="r",1,0)+IF(F62="r",1,0)+IF(F79="r",1,0)+IF(F96="r",1,0)+IF(F112="r",1,0)/2 -> 0 | G141: =(IF(G11="r",1,0)+IF(G28="r",1,0)+IF(G45="r",1,0)+IF(G62="r",1,0)+IF(G79="r",1,0)+IF(G96="r",1,0)+IF(G112="r",1,0))/2 -> 0 | H141: 0 | I141: 0 | J141: 0 | K141: 0 | L141: 0 | M141: 0 | N141: 0 | O141: 0 | P141: 0 | Q141: 0 | R141: 0 | S141: =(IF(S11="r",1,0)+IF(S28="r",1,0)+IF(S45="r",1,0)+IF(#REF!="r",1,0)+IF(S79="r",1,0)+IF(S96="r",1,0)+IF(S112="r",1,0))/2 ->  | T141: =(IF(T11="r",1,0)+IF(T28="r",1,0)+IF(T45="r",1,0)+IF(T62="r",1,0)+IF(T79="r",1,0)+IF(T96="r",1,0)+IF(T112="r",1,0))/2 -> 0 | U141: =(IF(U11="r",1,0)+IF(U28="r",1,0)+IF(U45="r",1,0)+IF(U62="r",1,0)+IF(U79="r",1,0)+IF(U96="r",1,0)+IF(U112="r",1,0))/2 -> 0 | V141: =(IF(V11="r",1,0)+IF(V28="r",1,0)+IF(#REF!="r",1,0)+IF(V62="r",1,0)+IF(V79="r",1,0)+IF(V96="r",1,0)+IF(V112="r",1,0))/2 ->  | W141: =(IF(W11="r",1,0)+IF(W28="r",1,0)+IF(W45="r",1,0)+IF(W62="r",1,0)+IF(W79="r",1,0)+IF(W96="r",1,0)+IF(W112="r",1,0))/2 -> 0 | X141: =(IF(X11="r",1,0)+IF(X28="r",1,0)+IF(V45="r",1,0)+IF(S62="r",1,0)+IF(X79="r",1,0)+IF(X96="r",1,0)+IF(X112="r",1,0))/2 -> 0 | Y141: =(IF(Y11="r",1,0)+IF(Y28="r",1,0)+IF(Y45="r",1,0)+IF(Y62="r",1,0)+IF(Y79="r",1,0)+IF(Y96="r",1,0)+IF(Y112="r",1,0))/2 -> 0 | Z141: 0 | AA141: 0 | AB141: 0 | AC141: 0 | AD141: 0 | AE141: 0 | AF141: 0 | AG141: 0 | AH141: 0 | AI141: 0 | AJ141: 0 | AL141: R | AM141: =AK141+AK142 ->  | AN141: 30 | AO141: =AM141-AN141 ->  | AP141: =+C141 -> AMINO FASSOLATH
C142: ELS 6 | D142: C | E142: =IF(E11="c",1,0)+IF(E28="c",1,0)+IF(E45="c",1,0)+IF(E62="c",1,0)+IF(E79="c",1,0)+IF(E96="c",1,0)+IF(E112="c",1,0)/2 -> 0 | F142: =IF(F11="c",1,0)+IF(F28="c",1,0)+IF(F45="c",1,0)+IF(F62="c",1,0)+IF(F79="c",1,0)+IF(F96="c",1,0)+IF(F112="c",1,0)/2 -> 0 | G142: =(IF(G11="c",1,0)+IF(G28="c",1,0)+IF(G45="c",1,0)+IF(G62="c",1,0)+IF(G79="c",1,0)+IF(G96="c",1,0)+IF(G112="c",1,0))/2 -> 0 | H142: 0 | I142: 0 | J142: 0 | K142: 0 | L142: 0 | M142: 0 | N142: 0 | O142: 0 | P142: 0 | Q142: 0 | R142: 0 | S142: =(IF(S11="c",1,0)+IF(S28="c",1,0)+IF(S45="c",1,0)+IF(#REF!="c",1,0)+IF(S79="c",1,0)+IF(S96="c",1,0)+IF(S112="c",1,0))/2 ->  | T142: =(IF(T11="c",1,0)+IF(T28="c",1,0)+IF(T45="c",1,0)+IF(T62="c",1,0)+IF(T79="c",1,0)+IF(T96="c",1,0)+IF(T112="c",1,0))/2 -> 0 | U142: =(IF(U11="c",1,0)+IF(U28="c",1,0)+IF(U45="c",1,0)+IF(U62="c",1,0)+IF(U79="c",1,0)+IF(U96="c",1,0)+IF(U112="c",1,0))/2 -> 0 | V142: =(IF(V11="c",1,0)+IF(V28="c",1,0)+IF(#REF!="c",1,0)+IF(V62="c",1,0)+IF(V79="c",1,0)+IF(V96="c",1,0)+IF(V112="c",1,0))/2 ->  | W142: =(IF(W11="c",1,0)+IF(W28="c",1,0)+IF(W45="c",1,0)+IF(W62="c",1,0)+IF(W79="c",1,0)+IF(W96="c",1,0)+IF(W112="c",1,0))/2 -> 0 | X142: =(IF(X11="c",1,0)+IF(X28="c",1,0)+IF(V45="c",1,0)+IF(S62="c",1,0)+IF(X79="c",1,0)+IF(X96="c",1,0)+IF(X112="c",1,0))/2 -> 0 | Y142: =(IF(Y11="c",1,0)+IF(Y28="c",1,0)+IF(Y45="c",1,0)+IF(Y62="c",1,0)+IF(Y79="c",1,0)+IF(Y96="c",1,0)+IF(Y112="c",1,0))/2 -> 0 | Z142: 0 | AA142: 0 | AB142: 0 | AC142: 0 | AD142: 0 | AE142: 0 | AF142: 0 | AG142: 0 | AH142: 0 | AI142: 0 | AJ142: 0 | AL142: C | AP142: ELS 6
C143: PATHMAJEYANTH | D143: R | E143: =IF(E12="r",1,0)+IF(E29="r",1,0)+IF(E46="r",1,0)+IF(E63="r",1,0)+IF(E80="r",1,0)+IF(E97="r",1,0)+IF(E113="r",1,0)/2 -> 0 | F143: =IF(F12="r",1,0)+IF(F29="r",1,0)+IF(F46="r",1,0)+IF(F63="r",1,0)+IF(F80="r",1,0)+IF(F97="r",1,0)+IF(F113="r",1,0)/2 -> 0 | G143: =(IF(G12="r",1,0)+IF(G29="r",1,0)+IF(G46="r",1,0)+IF(G63="r",1,0)+IF(G80="r",1,0)+IF(G97="r",1,0)+IF(G113="r",1,0))/2 -> 0 | H143: 0 | I143: 0.5 | J143: 0.5 | K143: 0.5 | L143: 0.5 | M143: 0.5 | N143: 0.5 | O143: 0.5 | P143: 2.5 | Q143: 2.5 | R143: 2.5 | S143: 2.5 | T143: 2.5 | U143: 2.5 | V143: 0 | W143: 0 | X143: 0 | Y143: 0 | Z143: 0 | AA143: 0 | AB143: 0.5 | AC143: 1 | AD143: 2.5 | AE143: 2.5 | AF143: 2.5 | AG143: 2.5 | AH143: 2.5 | AI143: 2.5 | AJ143: 0 | AK143: 35 | AL143: R | AM143: =AK143+AK144 -> 35 | AN143: 36.5 | AO143: =AM143-AN143 -> -1.5 | AP143: Youcef OULD KADI
C144: ELS 7 | D144: C | E144: =IF(E12="c",1,0)+IF(E29="c",1,0)+IF(E46="c",1,0)+IF(E63="c",1,0)+IF(E80="c",1,0)+IF(E97="c",1,0)+IF(E113="c",1,0)/2 -> 0 | F144: =IF(F12="c",1,0)+IF(F29="c",1,0)+IF(F46="c",1,0)+IF(F63="c",1,0)+IF(F80="c",1,0)+IF(F97="c",1,0)+IF(F113="c",1,0)/2 -> 0 | G144: =(IF(G12="c",1,0)+IF(G29="c",1,0)+IF(G46="c",1,0)+IF(G63="c",1,0)+IF(G80="c",1,0)+IF(G97="c",1,0)+IF(G113="c",1,0))/2 -> 0 | H144: 0 | I144: 0 | J144: 0 | K144: 0 | L144: 0 | M144: 0 | N144: 0 | O144: 0 | P144: 0 | Q144: 0 | R144: 0 | S144: 0 | T144: 0 | U144: 0 | V144: 0 | W144: 0 | X144: 0 | Y144: 0 | Z144: 0 | AA144: 0 | AB144: 0 | AC144: 0 | AD144: 0 | AE144: 0 | AF144: 0 | AG144: 0 | AH144: 0 | AI144: 0 | AJ144: 0 | AK144: 0 | AL144: C | AP144: ELS 7
C145: =+C114 -> Katia BOUSBA | D145: R | E145: =IF(E13="r",1,0)+IF(E30="r",1,0)+IF(E47="r",1,0)+IF(E64="r",1,0)+IF(E81="r",1,0)+IF(E98="r",1,0)+IF(E114="r",1,0)/2 -> 0 | F145: =IF(F13="r",1,0)+IF(F30="r",1,0)+IF(F47="r",1,0)+IF(F64="r",1,0)+IF(F81="r",1,0)+IF(F98="r",1,0)+IF(F114="r",1,0)/2 -> 0 | G145: =(IF(G13="r",1,0)+IF(G30="r",1,0)+IF(G47="r",1,0)+IF(G64="r",1,0)+IF(G81="r",1,0)+IF(G98="r",1,0)+IF(G114="r",1,0))/2 -> 0 | H145: 0 | I145: 0 | J145: 0 | K145: 0 | L145: 0 | M145: 0 | N145: =(IF(N13="r",1,0)+IF(N30="r",1,0)+IF(#REF!="r",1,0)+IF(N64="r",1,0)+IF(#REF!="r",1,0)+IF(N98="r",1,0)+IF(N114="r",1,0))/2 ->  | O145: =(IF(O13="r",1,0)+IF(O30="r",1,0)+IF(#REF!="r",1,0)+IF(O64="r",1,0)+IF(#REF!="r",1,0)+IF(O98="r",1,0)+IF(O114="r",1,0))/2 ->  | P145: =(IF(P13="r",1,0)+IF(P30="r",1,0)+IF(#REF!="r",1,0)+IF(P64="r",1,0)+IF(#REF!="r",1,0)+IF(P98="r",1,0)+IF(P114="r",1,0))/2 ->  | Q145: =(IF(Q13="r",1,0)+IF(Q30="r",1,0)+IF(#REF!="r",1,0)+IF(Q64="r",1,0)+IF(#REF!="r",1,0)+IF(Q98="r",1,0)+IF(Q114="r",1,0))/2 ->  | R145: =(IF(R13="r",1,0)+IF(R30="r",1,0)+IF(#REF!="r",1,0)+IF(R64="r",1,0)+IF(#REF!="r",1,0)+IF(R98="r",1,0)+IF(R114="r",1,0))/2 ->  | S145: =(IF(S13="r",1,0)+IF(S30="r",1,0)+IF(#REF!="r",1,0)+IF(S64="r",1,0)+IF(#REF!="r",1,0)+IF(S98="r",1,0)+IF(S114="r",1,0))/2 ->  | T145: =(IF(T13="r",1,0)+IF(T30="r",1,0)+IF(#REF!="r",1,0)+IF(T64="r",1,0)+IF(#REF!="r",1,0)+IF(T98="r",1,0)+IF(T114="r",1,0))/2 ->  | U145: =(IF(U13="r",1,0)+IF(U30="r",1,0)+IF(#REF!="r",1,0)+IF(U64="r",1,0)+IF(#REF!="r",1,0)+IF(U98="r",1,0)+IF(U114="r",1,0))/2 ->  | V145: =(IF(V13="r",1,0)+IF(V30="r",1,0)+IF(#REF!="r",1,0)+IF(V64="r",1,0)+IF(V81="r",1,0)+IF(V98="r",1,0)+IF(V114="r",1,0))/2 ->  | W145: =(IF(W13="r",1,0)+IF(W30="r",1,0)+IF(#REF!="r",1,0)+IF(W64="r",1,0)+IF(W81="r",1,0)+IF(W98="r",1,0)+IF(W114="r",1,0))/2 ->  | X145: =(IF(X13="r",1,0)+IF(X30="r",1,0)+IF(#REF!="r",1,0)+IF(X64="r",1,0)+IF(X81="r",1,0)+IF(X98="r",1,0)+IF(X114="r",1,0))/2 ->  | Y145: =(IF(Y13="r",1,0)+IF(Y30="r",1,0)+IF(#REF!="r",1,0)+IF(Y64="r",1,0)+IF(Y81="r",1,0)+IF(Y98="r",1,0)+IF(Y114="r",1,0))/2 ->  | Z145: =(IF(Z13="r",1,0)+IF(Z30="r",1,0)+IF(#REF!="r",1,0)+IF(Z64="r",1,0)+IF(Z81="r",1,0)+IF(Z98="r",1,0)+IF(Z114="r",1,0))/2 ->  | AA145: =(IF(AA13="r",1,0)+IF(AA30="r",1,0)+IF(#REF!="r",1,0)+IF(AA64="r",1,0)+IF(AA81="r",1,0)+IF(AA98="r",1,0)+IF(AA114="r",1,0))/2 ->  | AB145: =(IF(#REF!="r",1,0)+IF(#REF!="r",1,0)+IF(#REF!="r",1,0)+IF(AB30="r",1,0)+IF(AB81="r",1,0)+IF(AB98="r",1,0)+IF(AB114="r",1,0))/2 ->  | AC145: =(IF(#REF!="r",1,0)+IF(#REF!="r",1,0)+IF(#REF!="r",1,0)+IF(AC30="r",1,0)+IF(AC81="r",1,0)+IF(AC98="r",1,0)+IF(AC114="r",1,0))/2 ->  | AD145: =(IF(AD10="r",1,0)+IF(#REF!="r",1,0)+IF(#REF!="r",1,0)+IF(AD30="r",1,0)+IF(AD81="r",1,0)+IF(AD98="r",1,0)+IF(AD114="r",1,0))/2 ->  | AE145: =(IF(AE10="r",1,0)+IF(#REF!="r",1,0)+IF(#REF!="r",1,0)+IF(AE30="r",1,0)+IF(AE81="r",1,0)+IF(AE98="r",1,0)+IF(AE114="r",1,0))/2 ->  | AF145: =(IF(AF10="r",1,0)+IF(#REF!="r",1,0)+IF(#REF!="r",1,0)+IF(AF30="r",1,0)+IF(AF81="r",1,0)+IF(AF98="r",1,0)+IF(AF114="r",1,0))/2 ->  | AG145: =(IF(AG10="r",1,0)+IF(#REF!="r",1,0)+IF(#REF!="r",1,0)+IF(AG30="r",1,0)+IF(AG81="r",1,0)+IF(AG98="r",1,0)+IF(AG114="r",1,0))/2 ->  | AH145: =(IF(AH10="r",1,0)+IF(#REF!="r",1,0)+IF(#REF!="r",1,0)+IF(AH30="r",1,0)+IF(AH81="r",1,0)+IF(AH98="r",1,0)+IF(AH114="r",1,0))/2 ->  | AI145: =(IF(AI10="r",1,0)+IF(#REF!="r",1,0)+IF(#REF!="r",1,0)+IF(AI30="r",1,0)+IF(AI81="r",1,0)+IF(AI98="r",1,0)+IF(AI114="r",1,0))/2 ->  | AJ145: =(IF(AJ10="r",1,0)+IF(AJ30="r",1,0)+IF(AJ47="r",1,0)+IF(AJ64="r",1,0)+IF(AJ81="r",1,0)+IF(AJ98="r",1,0)+IF(AJ114="r",1,0))/2 -> 0 | AL145: R | AM145: =AK145+AK146 ->  | AN145: 20 | AO145: =AM145-AN145 ->  | AP145: =+C145 -> Katia BOUSBA
C146: ELS 8 | D146: C | E146: =IF(E13="c",1,0)+IF(E30="c",1,0)+IF(E47="c",1,0)+IF(E64="c",1,0)+IF(E81="c",1,0)+IF(E98="c",1,0)+IF(E114="c",1,0)/2 -> 0 | F146: =IF(F13="c",1,0)+IF(F30="c",1,0)+IF(F47="c",1,0)+IF(F64="c",1,0)+IF(F81="c",1,0)+IF(F98="c",1,0)+IF(F114="c",1,0)/2 -> 0 | G146: =(IF(G13="c",1,0)+IF(G30="c",1,0)+IF(G47="c",1,0)+IF(G64="c",1,0)+IF(G81="c",1,0)+IF(G98="c",1,0)+IF(G114="c",1,0))/2 -> 0 | H146: 0 | I146: 0 | J146: 0 | K146: 0.5 | L146: 0.5 | M146: 0.5 | N146: =(IF(N13="c",1,0)+IF(N30="c",1,0)+IF(#REF!="c",1,0)+IF(N64="c",1,0)+IF(#REF!="c",1,0)+IF(N98="c",1,0)+IF(N114="c",1,0))/2 ->  | O146: =(IF(O13="c",1,0)+IF(O30="c",1,0)+IF(#REF!="c",1,0)+IF(O64="c",1,0)+IF(#REF!="c",1,0)+IF(O98="c",1,0)+IF(O114="c",1,0))/2 ->  | P146: =(IF(P13="c",1,0)+IF(P30="c",1,0)+IF(#REF!="c",1,0)+IF(P64="c",1,0)+IF(#REF!="c",1,0)+IF(P98="c",1,0)+IF(P114="c",1,0))/2 ->  | Q146: =(IF(Q13="c",1,0)+IF(Q30="c",1,0)+IF(#REF!="c",1,0)+IF(Q64="c",1,0)+IF(#REF!="c",1,0)+IF(Q98="c",1,0)+IF(Q114="c",1,0))/2 ->  | R146: =(IF(R13="c",1,0)+IF(R30="c",1,0)+IF(#REF!="c",1,0)+IF(R64="c",1,0)+IF(#REF!="c",1,0)+IF(R98="c",1,0)+IF(R114="c",1,0))/2 ->  | S146: =(IF(S13="c",1,0)+IF(S30="c",1,0)+IF(#REF!="c",1,0)+IF(S64="c",1,0)+IF(#REF!="c",1,0)+IF(S98="c",1,0)+IF(S114="c",1,0))/2 ->  | T146: =(IF(T13="c",1,0)+IF(T30="c",1,0)+IF(#REF!="c",1,0)+IF(T64="c",1,0)+IF(#REF!="c",1,0)+IF(T98="c",1,0)+IF(T114="c",1,0))/2 ->  | U146: =(IF(U13="c",1,0)+IF(U30="c",1,0)+IF(#REF!="c",1,0)+IF(U64="c",1,0)+IF(#REF!="c",1,0)+IF(U98="c",1,0)+IF(U114="c",1,0))/2 ->  | V146: =(IF(V13="c",1,0)+IF(V30="c",1,0)+IF(#REF!="c",1,0)+IF(V64="c",1,0)+IF(V81="c",1,0)+IF(V98="c",1,0)+IF(V114="c",1,0))/2 ->  | W146: =(IF(W13="c",1,0)+IF(W30="c",1,0)+IF(#REF!="c",1,0)+IF(W64="c",1,0)+IF(W81="c",1,0)+IF(W98="c",1,0)+IF(W114="c",1,0))/2 ->  | X146: =(IF(X13="c",1,0)+IF(X30="c",1,0)+IF(#REF!="c",1,0)+IF(X64="c",1,0)+IF(X81="c",1,0)+IF(X98="c",1,0)+IF(X114="c",1,0))/2 ->  | Y146: =(IF(Y13="c",1,0)+IF(Y30="c",1,0)+IF(#REF!="c",1,0)+IF(Y64="c",1,0)+IF(Y81="c",1,0)+IF(Y98="c",1,0)+IF(Y114="c",1,0))/2 ->  | Z146: =(IF(Z13="c",1,0)+IF(Z30="c",1,0)+IF(#REF!="c",1,0)+IF(Z64="c",1,0)+IF(Z81="c",1,0)+IF(Z98="c",1,0)+IF(Z114="c",1,0))/2 ->  | AA146: =(IF(AA13="c",1,0)+IF(AA30="c",1,0)+IF(#REF!="c",1,0)+IF(AA64="c",1,0)+IF(AA81="c",1,0)+IF(AA98="c",1,0)+IF(AA114="c",1,0))/2 ->  | AB146: =(IF(#REF!="c",1,0)+IF(#REF!="c",1,0)+IF(#REF!="c",1,0)+IF(AB30="c",1,0)+IF(AB81="c",1,0)+IF(AB98="c",1,0)+IF(AB114="c",1,0))/2 ->  | AC146: =(IF(#REF!="c",1,0)+IF(#REF!="c",1,0)+IF(#REF!="c",1,0)+IF(AC30="c",1,0)+IF(AC81="c",1,0)+IF(AC98="c",1,0)+IF(AC114="c",1,0))/2 ->  | AD146: =(IF(AD10="c",1,0)+IF(#REF!="c",1,0)+IF(#REF!="c",1,0)+IF(AD30="c",1,0)+IF(AD81="c",1,0)+IF(AD98="c",1,0)+IF(AD114="c",1,0))/2 ->  | AE146: =(IF(AE10="c",1,0)+IF(#REF!="c",1,0)+IF(#REF!="c",1,0)+IF(AE30="c",1,0)+IF(AE81="c",1,0)+IF(AE98="c",1,0)+IF(AE114="c",1,0))/2 ->  | AF146: =(IF(AF10="c",1,0)+IF(#REF!="c",1,0)+IF(#REF!="c",1,0)+IF(AF30="c",1,0)+IF(AF81="c",1,0)+IF(AF98="c",1,0)+IF(AF114="c",1,0))/2 ->  | AG146: =(IF(AG10="c",1,0)+IF(#REF!="c",1,0)+IF(#REF!="c",1,0)+IF(AG30="c",1,0)+IF(AG81="c",1,0)+IF(AG98="c",1,0)+IF(AG114="c",1,0))/2 ->  | AH146: =(IF(AH10="c",1,0)+IF(#REF!="c",1,0)+IF(#REF!="c",1,0)+IF(AH30="c",1,0)+IF(AH81="c",1,0)+IF(AH98="c",1,0)+IF(AH114="c",1,0))/2 ->  | AI146: =(IF(AI10="c",1,0)+IF(#REF!="c",1,0)+IF(#REF!="c",1,0)+IF(AI30="c",1,0)+IF(AI81="c",1,0)+IF(AI98="c",1,0)+IF(AI114="c",1,0))/2 ->  | AJ146: =(IF(AJ10="c",1,0)+IF(AJ30="c",1,0)+IF(AJ47="c",1,0)+IF(AJ64="c",1,0)+IF(AJ81="c",1,0)+IF(AJ98="c",1,0)+IF(AJ114="c",1,0))/2 -> 0 | AL146: C | AN146: 36.75 | AP146: ELS 8
C147: Anta | D147: R | G147: =(IF(G14="r",1,0)+IF(G31="r",1,0)+IF(G48="r",1,0)+IF(G65="r",1,0)+IF(G82="r",1,0)+IF(G99="r",1,0)+IF(G115="r",1,0))/2 -> 0 | H147: 0 | I147: 0 | J147: 0 | K147: 0 | L147: 0 | M147: 0 | N147: =(IF(N14="r",1,0)+IF(N31="r",1,0)+IF(#REF!="r",1,0)+IF(N65="r",1,0)+IF(N81="r",1,0)+IF(N99="r",1,0)+IF(N115="r",1,0))/2 ->  | O147: =(IF(O14="r",1,0)+IF(O31="r",1,0)+IF(#REF!="r",1,0)+IF(O65="r",1,0)+IF(O81="r",1,0)+IF(O99="r",1,0)+IF(O115="r",1,0))/2 ->  | P147: =(IF(P14="r",1,0)+IF(P31="r",1,0)+IF(#REF!="r",1,0)+IF(P65="r",1,0)+IF(P81="r",1,0)+IF(N47="r",1,0)+IF(P115="r",1,0))/2 ->  | Q147: =(IF(Q14="r",1,0)+IF(Q31="r",1,0)+IF(#REF!="r",1,0)+IF(Q65="r",1,0)+IF(Q81="r",1,0)+IF(O47="r",1,0)+IF(Q115="r",1,0))/2 ->  | R147: =(IF(R14="r",1,0)+IF(R31="r",1,0)+IF(#REF!="r",1,0)+IF(R65="r",1,0)+IF(R81="r",1,0)+IF(P47="r",1,0)+IF(R115="r",1,0))/2 ->  | S147: =(IF(S14="r",1,0)+IF(S31="r",1,0)+IF(#REF!="r",1,0)+IF(S65="r",1,0)+IF(S81="r",1,0)+IF(Q47="r",1,0)+IF(S115="r",1,0))/2 ->  | T147: =(IF(T14="r",1,0)+IF(T31="r",1,0)+IF(#REF!="r",1,0)+IF(T65="r",1,0)+IF(T81="r",1,0)+IF(R47="r",1,0)+IF(T115="r",1,0))/2 ->  | U147: =(IF(U14="r",1,0)+IF(U31="r",1,0)+IF(#REF!="r",1,0)+IF(U65="r",1,0)+IF(U81="r",1,0)+IF(S47="r",1,0)+IF(U115="r",1,0))/2 ->  | V147: =(IF(AB13="r",1,0)+IF(V31="r",1,0)+IF(V47="r",1,0)+IF(V65="r",1,0)+IF(V82="r",1,0)+IF(T47="r",1,0)+IF(V115="r",1,0))/2 -> 0 | W147: =(IF(#REF!="r",1,0)+IF(W31="r",1,0)+IF(W47="r",1,0)+IF(W65="r",1,0)+IF(W82="r",1,0)+IF(U47="r",1,0)+IF(W115="r",1,0))/2 ->  | X147: =(IF(#REF!="r",1,0)+IF(X31="r",1,0)+IF(X47="r",1,0)+IF(X65="r",1,0)+IF(#REF!="r",1,0)+IF(X99="r",1,0)+IF(X115="r",1,0))/2 ->  | Y147: =(IF(#REF!="r",1,0)+IF(Y31="r",1,0)+IF(Y47="r",1,0)+IF(Y65="r",1,0)+IF(X82="r",1,0)+IF(Y99="r",1,0)+IF(Y115="r",1,0))/2 ->  | Z147: =(IF(#REF!="r",1,0)+IF(Z31="r",1,0)+IF(Z47="r",1,0)+IF(Z65="r",1,0)+IF(Z82="r",1,0)+IF(Z99="r",1,0)+IF(Z115="r",1,0))/2 ->  | AA147: =(IF(#REF!="r",1,0)+IF(AA31="r",1,0)+IF(AA47="r",1,0)+IF(AA65="r",1,0)+IF(AA82="r",1,0)+IF(AA99="r",1,0)+IF(AA115="r",1,0))/2 ->  | AB147: =(IF(#REF!="r",1,0)+IF(AB31="r",1,0)+IF(AB47="r",1,0)+IF(AB65="r",1,0)+IF(AB82="r",1,0)+IF(AB99="r",1,0)+IF(AB115="r",1,0))/2 ->  | AC147: =(IF(AC13="r",1,0)+IF(AC31="r",1,0)+IF(AC47="r",1,0)+IF(AC65="r",1,0)+IF(AC82="r",1,0)+IF(AC99="r",1,0)+IF(AC115="r",1,0))/2 -> 0 | AD147: 0 | AE147: 0 | AF147: 0 | AG147: 0 | AH147: 0 | AI147: 0 | AL147: R | AM147: =AK147+AK148 ->  | AN147: 0 | AO147: =AM147-AN147 ->  | AP147: Sofia MAICHE
C148: ELS 8 | D148: C | G148: =(IF(G14="c",1,0)+IF(G31="c",1,0)+IF(G48="c",1,0)+IF(G65="c",1,0)+IF(G82="c",1,0)+IF(G99="c",1,0)+IF(G115="c",1,0))/2 -> 0 | H148: 0 | I148: 0 | J148: 0 | K148: 0 | L148: 2 | M148: 2 | N148: =(IF(N14="c",1,0)+IF(N31="c",1,0)+IF(#REF!="c",1,0)+IF(N65="c",1,0)+IF(N81="c",1,0)+IF(N99="c",1,0)+IF(N115="c",1,0))/2 ->  | O148: =(IF(O14="c",1,0)+IF(O31="c",1,0)+IF(#REF!="c",1,0)+IF(O65="c",1,0)+IF(O81="c",1,0)+IF(O99="c",1,0)+IF(O115="c",1,0))/2 ->  | P148: =(IF(P14="c",1,0)+IF(P31="c",1,0)+IF(#REF!="c",1,0)+IF(P65="c",1,0)+IF(P81="c",1,0)+IF(N47="c",1,0)+IF(P115="c",1,0))/2 ->  | Q148: =(IF(Q14="c",1,0)+IF(Q31="c",1,0)+IF(#REF!="c",1,0)+IF(Q65="c",1,0)+IF(Q81="c",1,0)+IF(O47="c",1,0)+IF(Q115="c",1,0))/2 ->  | R148: =(IF(R14="c",1,0)+IF(R31="c",1,0)+IF(#REF!="c",1,0)+IF(R65="c",1,0)+IF(R81="c",1,0)+IF(P47="c",1,0)+IF(R115="c",1,0))/2 ->  | S148: =(IF(S14="c",1,0)+IF(S31="c",1,0)+IF(#REF!="c",1,0)+IF(S65="c",1,0)+IF(S81="c",1,0)+IF(Q47="c",1,0)+IF(S115="c",1,0))/2 ->  | T148: =(IF(T14="c",1,0)+IF(T31="c",1,0)+IF(#REF!="c",1,0)+IF(T65="c",1,0)+IF(T81="c",1,0)+IF(R47="c",1,0)+IF(T115="c",1,0))/2 ->  | U148: =(IF(U14="c",1,0)+IF(U31="c",1,0)+IF(#REF!="c",1,0)+IF(U65="c",1,0)+IF(U81="c",1,0)+IF(S47="c",1,0)+IF(U115="c",1,0))/2 ->  | V148: =(IF(AB13="c",1,0)+IF(V31="c",1,0)+IF(V47="c",1,0)+IF(V65="c",1,0)+IF(V82="c",1,0)+IF(T47="c",1,0)+IF(V115="c",1,0))/2 -> 1.5 | W148: =(IF(#REF!="c",1,0)+IF(W31="c",1,0)+IF(W47="c",1,0)+IF(W65="c",1,0)+IF(W82="c",1,0)+IF(U47="c",1,0)+IF(W115="c",1,0))/2 ->  | X148: =(IF(#REF!="c",1,0)+IF(X31="c",1,0)+IF(X47="c",1,0)+IF(X65="c",1,0)+IF(#REF!="c",1,0)+IF(X99="c",1,0)+IF(X115="c",1,0))/2 ->  | Y148: =(IF(#REF!="c",1,0)+IF(Y31="c",1,0)+IF(Y47="c",1,0)+IF(Y65="c",1,0)+IF(X82="c",1,0)+IF(Y99="c",1,0)+IF(Y115="c",1,0))/2 ->  | Z148: =(IF(#REF!="c",1,0)+IF(Z31="c",1,0)+IF(Z47="c",1,0)+IF(Z65="c",1,0)+IF(Z82="c",1,0)+IF(Z99="c",1,0)+IF(Z115="c",1,0))/2 ->  | AA148: =(IF(#REF!="c",1,0)+IF(AA31="c",1,0)+IF(AA47="c",1,0)+IF(AA65="c",1,0)+IF(AA82="c",1,0)+IF(AA99="c",1,0)+IF(AA115="c",1,0))/2 ->  | AB148: =(IF(#REF!="c",1,0)+IF(AB31="c",1,0)+IF(AB47="c",1,0)+IF(AB65="c",1,0)+IF(AB82="c",1,0)+IF(AB99="c",1,0)+IF(AB115="c",1,0))/2 ->  | AC148: =(IF(AC13="c",1,0)+IF(AC31="c",1,0)+IF(AC47="c",1,0)+IF(AC65="c",1,0)+IF(AC82="c",1,0)+IF(AC99="c",1,0)+IF(AC115="c",1,0))/2 -> 2 | AD148: 2 | AE148: 2 | AF148: 2 | AG148: 2 | AH148: 2 | AI148: 2 | AL148: C | AN148: 36.75 | AP148: ELS 8
D149: R | E149: =IF(E15="r",1,0)+IF(E32="r",1,0)+IF(E49="r",1,0)+IF(E66="r",1,0)+IF(E83="r",1,0)+IF(E100="r",1,0)+IF(E116="r",1,0)/2 -> 0 | F149: =IF(F15="r",1,0)+IF(F32="r",1,0)+IF(F49="r",1,0)+IF(F66="r",1,0)+IF(F83="r",1,0)+IF(F100="r",1,0)+IF(F116="r",1,0)/2 -> 0 | G149: =(IF(G15="r",1,0)+IF(G32="r",1,0)+IF(G49="r",1,0)+IF(G66="r",1,0)+IF(G83="r",1,0)+IF(G100="r",1,0)+IF(G116="r",1,0))/2 -> 1 | H149: 1.5 | I149: 1.5 | J149: 1.5 | K149: 1.5 | L149: 1.5 | M149: 1.5 | N149: 1.5 | O149: 1.5 | P149: 1.5 | Q149: 1.5 | R149: 1.5 | S149: 1.5 | T149: 0 | U149: 0 | V149: 0 | W149: 0 | X149: 0 | Y149: 0 | Z149: 0 | AA149: 0 | AB149: 0 | AC149: 0 | AD149: 0 | AE149: 0 | AF149: 0 | AG149: 0 | AH149: 0 | AI149: 0 | AJ149: 0 | AK149: 19 | AL149: R | AM149: =AK149+AK150 -> 19 | AN149: 35 | AO149: =AM149-AN149 -> -16 | AP149: Elyess CHELBI
D150: C | E150: =IF(E15="c",1,0)+IF(E32="c",1,0)+IF(E49="c",1,0)+IF(E66="c",1,0)+IF(E83="c",1,0)+IF(E100="c",1,0)+IF(E116="c",1,0)/2 -> 0 | F150: =IF(F15="c",1,0)+IF(F32="c",1,0)+IF(F49="c",1,0)+IF(F66="c",1,0)+IF(F83="c",1,0)+IF(F100="c",1,0)+IF(F116="c",1,0)/2 -> 0 | G150: =(IF(G15="c",1,0)+IF(G32="c",1,0)+IF(G49="c",1,0)+IF(G66="c",1,0)+IF(G83="c",1,0)+IF(G100="c",1,0)+IF(G116="c",1,0))/2 -> 0 | H150: 0 | I150: 0 | J150: 0 | K150: 0 | L150: 0 | M150: 0 | N150: 0 | O150: 0 | P150: 0 | Q150: 0 | R150: 0 | S150: 0 | T150: 0 | U150: 0 | V150: 0 | W150: 0 | X150: 0 | Y150: 0 | Z150: 0 | AA150: 0 | AB150: 0 | AC150: 0 | AD150: 0 | AE150: 0 | AF150: 0 | AG150: 0 | AH150: 0 | AI150: 0 | AJ150: 0.5 | AK150: 0 | AL150: C | AN150: 32 | AP150: ELS 9
C151: SOUS-TOTAL | D151: R | E151: =E125+E127+E129+E131+E133+E135+E137+E139+E141+E143+E145+E149 -> 0 | F151: =F125+F127+F129+F131+F133+F135+F137+F139+F141+F143+F145+F149 -> 0 | G151: =G125+G127+G129+G131+G133+G135+G137+G139+G141+G143+G145+G149+G147 -> 5 | H151: =H125+H127+H129+H131+H133+H135+H137+H139+H141+H143+H145+H149+H147 -> 8 | I151: 8.5 | J151: 8.5 | K151: 7 | L151: 8.5 | M151: 8.5 | U151: =U125+U127+U129+U131+U133+U135+U137+U139+U141+U143+U145+U149+U147 ->  | AB151: =AB125+AB127+AB129+AB131+AB133+AB135+AB137+AB139+AB141+AB143+AB145+AB149+AB147 ->  | AH151: =AH125+AH127+AH129+AH131+AH133+AH135+AH137+AH139+AH141+AH143+AH145+AH149+AH147 ->  | AI151: =AI125+AI127+AI129+AI131+AI133+AI135+AI137+AI139+AI141+AI143+AI145+AI149+AI147 ->  | AK151: =+SUM(G151:AI151) ->  | AL151: R | AM151: =AK151+AK152 ->  | AN151: =AN125+AN127+AN129+AN131+AN133+AN135+AN137+AN139+AN141+AN143+AN145+AN149+AN147 -> 405 | AO151: =AM151-AN151 -> 
C152: ELS 9 | D152: C | E152: =E126+E128+E130+E132+E134+E136+E138+E140+E142+E144+E146+E150 -> 0.5 | F152: 0 | G152: =G126+G128+G130+G132+G134+G136+G138+G140+G142+G144+G146+G150+G148 -> 0 | H152: 0 | I152: 0 | J152: 0 | K152: 2.5 | L152: 4.5 | M152: 4.5 | T152: =T126+T128+T130+T132+T134+T136+T138+T140+T142+T144+T146+T150+T148 ->  | AK152: =+SUM(G152:AI152) ->  | AL152: C
C153: TOTAL | E153: =+E151+E152 -> 0.5 | F153: =+F151+F152 -> 0 | G153: =+G151+G152 -> 5 | H153: 8 | I153: 8.5 | J153: 8.5 | K153: 9.5 | L153: 13 | M153: 13 | S153: =+S151+S152 ->  | AH153: =+AH151+AH152 ->  | AK153: =SUM(AM125:AM150) ->  | AN153: =+AN151 -> 405 | AO153: =AK153-AN153 -> 
AE154: Equivalent ETP (Dir. Inclus) = | AK154: =+AK153/36.75 -> 
AN155: =+AN153-30 -> 375
B156: Signatures OBLIGATOIRES | C156: Hassan OUAMOUH | H156: Rodrigue MOREIRA | L156: AKUVI SYLVIA | O156: DIALO IDRISSA | R156: DIARRA HANNE FATOUMATA | V156: SHAM LATA | Y156: PHUONG LINH | AB156: AMINO FASSOLATH | AE156: Youcef OULD KADI | AH156: Emmanuel YAMB KAMEN

Sheet Magasins (2) (hidden)
E2: 5h30>6h | F2: 6h>6h30 | G2: 6h30>7h | H2: 7h>7h30 | I2: 7h30>8h | J2: 8h>8h30 | K2: 8h30>9h | L2: 9h>9h30 | M2: 9h30>10h | N2: 10h>10h30 | O2: 10h30>11h | P2: 11h>11h30 | Q2: 11h30>12h | R2: 12h>12h30 | S2: 12h30>13h | T2: 13h>13h30 | U2: 13h30>14h | V2: 14h>14h30 | W2: 14h30>15h | X2: 15h>15h30 | Y2: 15h30>16h | Z2: 16h>16h30 | AA2: 16h30>17h | AB2: 17h>17h30 | AC2: 17h30>18h | AD2: 18h>18h30 | AE2: 18h30>19h | AF2: 19h>19h30 | AG2: 19h30>20h | AH2: 20h>20h30 | AI2: 20h30>21h | AJ2: TOTAL
B3: r = rayon
B4: c = caisse
B5: lundi
C9: Katia Bousba | Z9: c | AA9: c | AB9: c | AC9: c | AD9: c | AE9: c | AF9: c | AG9: c | AH9: c | AI9: C | AJ9: 5
C16: TOTAL | E16: =COUNTA(E3:E15)*0.5 -> 0 | F16: =COUNTA(F3:F15)*0.5 -> 0 | G16: =COUNTA(G3:G15)*0.5 -> 0 | H16: 0 | I16: 0 | J16: 0 | K16: 0 | L16: 0 | M16: 0 | N16: 0 | O16: 0 | P16: 0 | Q16: 0 | R16: 0 | S16: 0 | T16: 0 | U16: 0 | V16: 0 | W16: 0 | X16: 0 | Y16: 0 | Z16: =COUNTA(Z3:Z15)*0.5 -> 0.5 | AA16: =COUNTA(AA3:AA15)*0.5 -> 0.5 | AB16: 0.5 | AC16: 0.5 | AD16: 0.5 | AE16: 0.5 | AF16: 0.5 | AG16: 0.5 | AH16: 0.5 | AI16: 0.5 | AJ16: =SUM(AJ3:AJ15) -> 5
B18: 2015-03-31 | E18: 5h30>6h | F18: 6h>6h30 | G18: 6h30>7h | H18: 7h>7h30 | I18: 7h30>8h | J18: 8h>8h30 | K18: 8h30>9h | L18: 9h>9h30 | M18: 9h30>10h | N18: 10h>10h30 | O18: 10h30>11h | P18: 11h>11h30 | Q18: 11h30>12h | R18: 12h>12h30 | S18: 12h30>13h | T18: 13h>13h30 | U18: 13h30>14h | V18: 14h>14h30 | W18: 14h30>15h | X18: 15h>15h30 | Y18: 15h30>16h | Z18: 16h>16h30 | AA18: 16h30>17h | AB18: 17h>17h30 | AC18: 17h30>18h | AD18: 18h>18h30 | AE18: 18h30>19h | AF18: 19h>19h30 | AG18: 19h30>20h | AH18: 20h>20h30 | AI18: 20h30>21h | AJ18: TOTAL
B19: r = rayon
B20: c = caisse
B21: mardi
C25: Katia Bousba
C32: TOTAL | E32: =COUNTA(E19:E31)*0.5 -> 0 | F32: =COUNTA(F19:F31)*0.5 -> 0 | G32: =COUNTA(G19:G31)*0.5 -> 0 | H32: 0 | I32: 0 | J32: 0 | K32: 0 | L32: 0 | M32: 0 | N32: 0 | O32: 0 | P32: 0 | Q32: 0 | R32: 0 | S32: 0 | T32: 0 | U32: 0 | V32: 0 | W32: 0 | X32: 0 | Y32: 0 | Z32: =COUNTA(Z19:Z31)*0.5 -> 0 | AA32: =COUNTA(AA19:AA31)*0.5 -> 0 | AB32: 0 | AC32: 0 | AD32: 0 | AE32: 0 | AF32: 0 | AG32: 0 | AH32: 0 | AI32: 0 | AJ32: =SUM(AJ19:AJ31) -> 0
B34: 2015-04-01 | E34: 5h30>6h | F34: 6h>6h30 | G34: 6h30>7h | H34: 7h>7h30 | I34: 7h30>8h | J34: 8h>8h30 | K34: 8h30>9h | L34: 9h>9h30 | M34: 9h30>10h | N34: 10h>10h30 | O34: 10h30>11h | P34: 11h>11h30 | Q34: 11h30>12h | R34: 12h>12h30 | S34: 12h30>13h | T34: 13h>13h30 | U34: 13h30>14h | V34: 14h>14h30 | W34: 14h30>15h | X34: 15h>15h30 | Y34: 15h30>16h | Z34: 16h>16h30 | AA34: 16h30>17h | AB34: 17h>17h30 | AC34: 17h30>18h | AD34: 18h>18h30 | AE34: 18h30>19h | AF34: 19h>19h30 | AG34: 19h30>20h | AH34: 20h>20h30 | AI34: 20h30>21h | AJ34: TOTAL
B35: r = rayon
B36: c = caisse
B37: Mercredi
C41: Katia Bousba | P41: c | Q41: c | R41: c | S41: c | T41: c | U41: c | AC41: c | AD41: c | AE41: c | AF41: c | AG41: c | AH41: c | AI41: c | AJ41: 6.5
C48: TOTAL | E48: =COUNTA(E35:E47)*0.5 -> 0 | F48: =COUNTA(F35:F47)*0.5 -> 0 | G48: =COUNTA(G35:G47)*0.5 -> 0 | H48: 0 | I48: 0 | J48: 0 | K48: 0 | L48: 0 | M48: 0 | N48: 0 | O48: 0 | P48: 0.5 | Q48: 0.5 | R48: 0.5 | S48: 0.5 | T48: 0.5 | U48: 0.5 | V48: 0 | W48: 0 | X48: 0 | Y48: 0 | Z48: =COUNTA(Z35:Z47)*0.5 -> 0 | AA48: =COUNTA(AA35:AA47)*0.5 -> 0 | AB48: 0 | AC48: 0.5 | AD48: 0.5 | AE48: 0.5 | AF48: 0.5 | AG48: 0.5 | AH48: 0.5 | AI48: 0.5 | AJ48: =SUM(AJ35:AJ47) -> 6.5
B50: 2015-04-02 | E50: 5h30>6h | F50: 6h>6h30 | G50: 6h30>7h | H50: 7h>7h30 | I50: 7h30>8h | J50: 8h>8h30 | K50: 8h30>9h | L50: 9h>9h30 | M50: 9h30>10h | N50: 10h>10h30 | O50: 10h30>11h | P50: 11h>11h30 | Q50: 11h30>12h | R50: 12h>12h30 | S50: 12h30>13h | T50: 13h>13h30 | U50: 13h30>14h | V50: 14h>14h30 | W50: 14h30>15h | X50: 15h>15h30 | Y50: 15h30>16h | Z50: 16h>16h30 | AA50: 16h30>17h | AB50: 17h>17h30 | AC50: 17h30>18h | AD50: 18h>18h30 | AE50: 18h30>19h | AF50: 19h>19h30 | AG50: 19h30>20h | AH50: 20h>20h30 | AI50: 20h30>21h | AJ50: TOTAL
B51: r = rayon
B52: c = caisse
B53: Jeudi
C57: Katia Bousba | Z57: c | AA57: c | AB57: c | AC57: c | AD57: c | AE57: c | AF57: c | AG57: c | AH57: c | AI57: C | AJ57: 5
C64: TOTAL | E64: =COUNTA(E51:E63)*0.5 -> 0 | F64: =COUNTA(F51:F63)*0.5 -> 0 | G64: =COUNTA(G51:G63)*0.5 -> 0 | H64: 0 | I64: 0 | J64: 0 | K64: 0 | L64: 0 | M64: 0 | N64: 0 | O64: 0 | P64: 0 | Q64: 0 | R64: 0 | S64: 0 | T64: 0 | U64: 0 | V64: 0 | W64: 0 | X64: 0 | Y64: 0 | Z64: =COUNTA(Z51:Z63)*0.5 -> 0.5 | AA64: =COUNTA(AA51:AA63)*0.5 -> 0.5 | AB64: 0.5 | AC64: 0.5 | AD64: 0.5 | AE64: 0.5 | AF64: 0.5 | AG64: 0.5 | AH64: 0.5 | AI64: 0.5 | AJ64: =SUM(AJ51:AJ63) -> 5
B66: 2015-04-03 | E66: 5h30>6h | F66: 6h>6h30 | G66: 6h30>7h | H66: 7h>7h30 | I66: 7h30>8h | J66: 8h>8h30 | K66: 8h30>9h | L66: 9h>9h30 | M66: 9h30>10h | N66: 10h>10h30 | O66: 10h30>11h | P66: 11h>11h30 | Q66: 11h30>12h | R66: 12h>12h30 | S66: 12h30>13h | T66: 13h>13h30 | U66: 13h30>14h | V66: 14h>14h30 | W66: 14h30>15h | X66: 15h>15h30 | Y66: 15h30>16h | Z66: 16h>16h30 | AA66: 16h30>17h | AB66: 17h>17h30 | AC66: 17h30>18h | AD66: 18h>18h30 | AE66: 18h30>19h | AF66: 19h>19h30 | AG66: 19h30>20h | AH66: 20h>20h30 | AI66: 20h30>21h | AJ66: TOTAL
B67: r = rayon
B68: c = caisse
B69: Vendredi
C73: Katia Bousba | P73: c | Q73: c | R73: c | S73: c | T73: C | U73: C | V73: C | W73: C | AB73: c | AC73: C | AD73: C | AE73: c | AF73: c | AG73: c | AH73: c | AI73: C | AJ73: 8
C80: TOTAL | E80: =COUNTA(E67:E79)*0.5 -> 0 | F80: =COUNTA(F67:F79)*0.5 -> 0 | G80: =COUNTA(G67:G79)*0.5 -> 0 | H80: 0 | I80: 0 | J80: 0 | K80: 0 | L80: 0 | M80: 0 | N80: 0 | O80: 0 | P80: 0.5 | Q80: 0.5 | R80: 0.5 | S80: 0.5 | T80: 0.5 | U80: 0.5 | V80: 0.5 | W80: 0.5 | X80: 0 | Y80: 0 | Z80: =COUNTA(Z67:Z79)*0.5 -> 0 | AA80: =COUNTA(AA67:AA79)*0.5 -> 0 | AB80: 0.5 | AC80: 0.5 | AD80: 0.5 | AE80: 0.5 | AF80: 0.5 | AG80: 0.5 | AH80: 0.5 | AI80: 0.5 | AJ80: =SUM(AJ67:AJ79) -> 8
B82: 2015-04-04 | E82: 5h30>6h | F82: 6h>6h30 | G82: 6h30>7h | H82: 7h>7h30 | I82: 7h30>8h | J82: 8h>8h30 | K82: 8h30>9h | L82: 9h>9h30 | M82: 9h30>10h | N82: 10h>10h30 | O82: 10h30>11h | P82: 11h>11h30 | Q82: 11h30>12h | R82: 12h>12h30 | S82: 12h30>13h | T82: 13h>13h30 | U82: 13h30>14h | V82: 14h>14h30 | W82: 14h30>15h | X82: 15h>15h30 | Y82: 15h30>16h | Z82: 16h>16h30 | AA82: 16h30>17h | AB82: 17h>17h30 | AC82: 17h30>18h | AD82: 18h>18h30 | AE82: 18h30>19h | AF82: 19h>19h30 | AG82: 19h30>20h | AH82: 20h>20h30 | AI82: 20h30>21h | AJ82: TOTAL
B83: r = rayon
B84: c = caisse
B85: Samedi
C89: Katia Bousba | Z89: c | AA89: c | AB89: c | AC89: c | AD89: c | AE89: c | AF89: c | AG89: c | AH89: c | AI89: C | AJ89: 5
C96: TOTAL | E96: =COUNTA(E83:E95)*0.5 -> 0 | F96: =COUNTA(F83:F95)*0.5 -> 0 | G96: =COUNTA(G83:G95)*0.5 -> 0 | H96: 0 | I96: 0 | J96: 0 | K96: 0 | L96: 0 | M96: 0 | N96: 0 | O96: 0 | P96: 0 | Q96: 0 | R96: 0 | S96: 0 | T96: 0 | U96: 0 | V96: 0 | W96: 0 | X96: 0 | Y96: 0 | Z96: =COUNTA(Z83:Z95)*0.5 -> 0.5 | AA96: =COUNTA(AA83:AA95)*0.5 -> 0.5 | AB96: 0.5 | AC96: 0.5 | AD96: 0.5 | AE96: 0.5 | AF96: 0.5 | AG96: 0.5 | AH96: 0.5 | AI96: 0.5 | AJ96: =SUM(AJ83:AJ95) -> 5
B98: 2015-04-05 | E98: 5h30>6h | F98: 6h>6h30 | G98: 6h30>7h | H98: 7h>7h30 | I98: 7h30>8h | J98: 8h>8h30 | K98: 8h30>9h | L98: 9h>9h30 | M98: 9h30>10h | N98: 10h>10h30 | O98: 10h30>11h | P98: 11h>11h30 | Q98: 11h30>12h | R98: 12h>12h30 | S98: 12h30>13h | T98: 13h>13h30 | U98: 13h30>14h | V98: 14h>14h30 | W98: 14h30>15h | X98: 15h>15h30 | Y98: 15h30>16h | Z98: 16h>16h30 | AA98: 16h30>17h | AB98: 17h>17h30 | AC98: 17h30>18h | AD98: 18h>18h30 | AE98: 18h30>19h | AF98: 19h>19h30 | AG98: 19h30>20h | AH98: 20h>20h30 | AI98: 20h30>21h | AJ98: TOTAL
B99: r = rayon | E99: c
B100: c = caisse
B101: Dimanche
C105: Katia Bousba | K105: C | L105: C | M105: C | N105: C | O105: C | P105: C | Q105: C | R105: C | S105: C | T105: C | U105: C | AJ105: 5.5
C112: TOTAL | E112: =COUNTA(E99:E111)*0.5 -> 0.5 | F112: =COUNTA(F99:F111)*0.5 -> 0 | G112: =COUNTA(G99:G111)*0.5 -> 0 | H112: 0 | I112: 0 | J112: 0 | K112: 0.5 | L112: 0.5 | M112: 0.5 | N112: 0.5 | O112: 0.5 | P112: 0.5 | Q112: 0.5 | R112: 0.5 | S112: 0.5 | T112: 0.5 | U112: 0.5 | V112: 0 | W112: 0 | X112: 0 | Y112: 0 | Z112: =COUNTA(Z99:Z111)*0.5 -> 0 | AA112: =COUNTA(AA99:AA111)*0.5 -> 0 | AB112: 0 | AC112: 0 | AD112: 0 | AE112: 0 | AF112: 0 | AG112: 0 | AH112: 0 | AI112: 0
B114: Signatures OBLIGATOIRES | C114: Hassan OUAMOUH | J114: Rodrigue MOREIRA | P114: AKUVI SYLVIA | U114: MOMO | AA114: DIARRA HANNE FATOUMATA | AF114: SHAM LATA
C116: =+C106 -> 0 | J116: =+C107 -> 0 | P116: Youcef OULD KADI | AF116: Elyess CHELBI
B119: Planning | E119: 5h30>6h | F119: 6h>6h30 | G119: 6h30>7h | H119: 7h>7h30 | I119: 7h30>8h | J119: 8h>8h30 | K119: 8h30>9h | L119: 9h>9h30 | M119: 9h30>10h | N119: 10h>10h30 | O119: 10h30>11h | P119: 11h>11h30 | Q119: 11h30>12h | R119: 12h>12h30 | S119: 12h30>13h | T119: 13h>13h30 | U119: 13h30>14h | V119: 14h>14h30 | W119: 14h30>15h | X119: 15h>15h30 | Y119: 15h30>16h | Z119: 16h>16h30 | AA119: 16h30>17h | AB119: 17h>17h30 | AC119: 17h30>18h | AD119: 18h>18h30 | AE119: 18h30>19h | AF119: 19h>19h30 | AG119: 19h30>20h | AH119: 20h>20h30 | AI119: 20h30>21h | AJ119: SOUS-TOTAL | AL119: TOTAL | AM119: Contrat | AN119: Différence
B120: TOTAL Semaine | C120: Directeur | D120: R | E120: =IF(E3="r",1,0)+IF(E19="r",1,0)+IF(E35="r",1,0)+IF(E51="r",1,0)+IF(E67="r",1,0)+IF(E83="r",1,0)+IF(E99="r",1,0)/2 -> 0 | F120: =IF(F3="r",1,0)+IF(F19="r",1,0)+IF(F35="r",1,0)+IF(F51="r",1,0)+IF(F67="r",1,0)+IF(F83="r",1,0)+IF(F99="r",1,0)/2 -> 0 | G120: =(IF(G3="r",1,0)+IF(G19="r",1,0)+IF(G35="r",1,0)+IF(G51="r",1,0)+IF(G67="r",1,0)+IF(G83="r",1,0)+IF(G99="r",1,0))/2 -> 0 | H120: =(IF(H3="r",1,0)+IF(H19="r",1,0)+IF(H35="r",1,0)+IF(H51="r",1,0)+IF(H67="r",1,0)+IF(H83="r",1,0)+IF(H99="r",1,0))/2 -> 0 | I120: 0 | J120: 0 | K120: 0 | L120: 0 | M120: 0 | N120: 0 | O120: 0 | P120: 0 | Q120: 0 | R120: 0 | S120: 0 | T120: 0 | U120: 0 | V120: 0 | W120: 0 | X120: 0 | Y120: 0 | Z120: 0 | AA120: 0 | AB120: 0 | AC120: 0 | AD120: 0 | AE120: 0 | AF120: 0 | AG120: 0 | AH120: 0 | AI120: 0 | AJ120: =+SUM(G120:AI120) -> 0 | AK120: R | AL120: =AJ120+AJ121 -> 0 | AM120: 51.5 | AN120: =AL120-AM120 -> -51.5 | AO120: Directeur
D121: C | E121: =IF(E3="c",1,0)+IF(E19="c",1,0)+IF(E35="c",1,0)+IF(E51="c",1,0)+IF(E67="c",1,0)+IF(E83="c",1,0)+IF(E99="c",1,0)/2 -> 0.5 | F121: =IF(F3="c",1,0)+IF(F19="c",1,0)+IF(F35="c",1,0)+IF(F51="c",1,0)+IF(F67="c",1,0)+IF(F83="c",1,0)+IF(F99="c",1,0)/2 -> 0 | G121: =(IF(G3="c",1,0)+IF(G19="c",1,0)+IF(G35="c",1,0)+IF(G51="c",1,0)+IF(G67="c",1,0)+IF(G83="c",1,0)+IF(G99="c",1,0))/2 -> 0 | H121: =(IF(H3="c",1,0)+IF(H19="c",1,0)+IF(H35="c",1,0)+IF(H51="c",1,0)+IF(H67="c",1,0)+IF(H83="c",1,0)+IF(H99="c",1,0))/2 -> 0 | I121: 0 | J121: 0 | K121: 0 | L121: 0 | M121: 0 | N121: 0 | O121: 0 | P121: 0 | Q121: 0 | R121: 0 | S121: 0 | T121: 0 | U121: 0 | V121: 0 | W121: 0 | X121: 0 | Y121: 0 | Z121: 0 | AA121: 0 | AB121: 0 | AC121: 0 | AD121: 0 | AE121: 0 | AF121: 0 | AG121: 0 | AH121: 0 | AI121: 0 | AJ121: 0 | AK121: C
C122: Hassan | D122: R | E122: =IF(E4="r",1,0)+IF(E20="r",1,0)+IF(E36="r",1,0)+IF(E52="r",1,0)+IF(E68="r",1,0)+IF(E84="r",1,0)+IF(E100="r",1,0)/2 -> 0 | F122: =IF(F4="r",1,0)+IF(F20="r",1,0)+IF(F36="r",1,0)+IF(F52="r",1,0)+IF(F68="r",1,0)+IF(F84="r",1,0)+IF(F100="r",1,0)/2 -> 0 | G122: =(IF(G4="r",1,0)+IF(G20="r",1,0)+IF(G36="r",1,0)+IF(G52="r",1,0)+IF(G68="r",1,0)+IF(G84="r",1,0)+IF(G100="r",1,0))/2 -> 0 | H122: =(IF(H4="r",1,0)+IF(H20="r",1,0)+IF(H36="r",1,0)+IF(H52="r",1,0)+IF(H68="r",1,0)+IF(H84="r",1,0)+IF(H100="r",1,0))/2 -> 0 | I122: 0 | J122: 0 | K122: 0 | L122: 0 | M122: 0 | N122: 0 | O122: 0 | P122: 0 | Q122: 0 | R122: 0 | S122: 0 | T122: 0 | U122: 0 | V122: 0 | W122: 0 | X122: 0 | Y122: 0 | Z122: 0 | AA122: 0 | AB122: 0 | AC122: 0 | AD122: 0 | AE122: 0 | AF122: 0 | AG122: 0 | AH122: 0 | AI122: 0 | AJ122: 0 | AK122: R | AL122: =AJ122+AJ123 -> 0 | AM122: 39 | AN122: =AL122-AM122 -> -39 | AO122: Hassan
C123: Hassan | D123: C | E123: =IF(E4="c",1,0)+IF(E20="c",1,0)+IF(E36="c",1,0)+IF(E52="c",1,0)+IF(E68="c",1,0)+IF(E84="c",1,0)+IF(E100="c",1,0)/2 -> 0 | F123: =IF(F4="c",1,0)+IF(F20="c",1,0)+IF(F36="c",1,0)+IF(F52="c",1,0)+IF(F68="c",1,0)+IF(F84="c",1,0)+IF(F100="c",1,0)/2 -> 0 | G123: =(IF(G4="c",1,0)+IF(G20="c",1,0)+IF(G36="c",1,0)+IF(G52="c",1,0)+IF(G68="c",1,0)+IF(G84="c",1,0)+IF(G100="c",1,0))/2 -> 0 | H123: =(IF(H4="c",1,0)+IF(H20="c",1,0)+IF(H36="c",1,0)+IF(H52="c",1,0)+IF(H68="c",1,0)+IF(H84="c",1,0)+IF(H100="c",1,0))/2 -> 0 | I123: 0 | J123: 0 | K123: 0 | L123: 0 | M123: 0 | N123: 0 | O123: 0 | P123: 0 | Q123: 0 | R123: 0 | S123: 0 | T123: 0 | U123: 0 | V123: 0 | W123: 0 | X123: 0 | Y123: 0 | Z123: 0 | AA123: 0 | AB123: 0 | AC123: 0 | AD123: 0 | AE123: 0 | AF123: 0 | AG123: 0 | AH123: 0 | AI123: 0 | AJ123: 0 | AK123: C | AO123: Hassan
C124: Rodrigue | D124: R | E124: =IF(E5="r",1,0)+IF(E21="r",1,0)+IF(E37="r",1,0)+IF(E53="r",1,0)+IF(E69="r",1,0)+IF(E85="r",1,0)+IF(E101="r",1,0)/2 -> 0 | F124: =IF(F5="r",1,0)+IF(F21="r",1,0)+IF(F37="r",1,0)+IF(F53="r",1,0)+IF(F69="r",1,0)+IF(F85="r",1,0)+IF(F101="r",1,0)/2 -> 0 | G124: =(IF(G5="r",1,0)+IF(G21="r",1,0)+IF(G37="r",1,0)+IF(G53="r",1,0)+IF(G69="r",1,0)+IF(G85="r",1,0)+IF(G101="r",1,0))/2 -> 0 | H124: =(IF(H5="r",1,0)+IF(H21="r",1,0)+IF(H37="r",1,0)+IF(H53="r",1,0)+IF(H69="r",1,0)+IF(H85="r",1,0)+IF(H101="r",1,0))/2 -> 0 | I124: 0 | J124: 0 | K124: 0 | L124: 0 | M124: 0 | N124: 0 | O124: 0 | P124: 0 | Q124: 0 | R124: 0 | S124: 0 | T124: 0 | U124: 0 | V124: 0 | W124: 0 | X124: 0 | Y124: 0 | Z124: 0 | AA124: 0 | AB124: 0 | AC124: 0 | AD124: 0 | AE124: 0 | AF124: 0 | AG124: 0 | AH124: 0 | AI124: 0 | AJ124: 0 | AK124: R | AL124: =AJ124+AJ125 -> 0 | AM124: 39 | AN124: =AL124-AM124 -> -39 | AO124: Rodrigue
C125: Rodrigue | D125: C | E125: =IF(E5="c",1,0)+IF(E21="c",1,0)+IF(E37="c",1,0)+IF(E53="c",1,0)+IF(E69="c",1,0)+IF(E85="c",1,0)+IF(E101="c",1,0)/2 -> 0 | F125: =IF(F5="c",1,0)+IF(F21="c",1,0)+IF(F37="c",1,0)+IF(F53="c",1,0)+IF(F69="c",1,0)+IF(F85="c",1,0)+IF(F101="c",1,0)/2 -> 0 | G125: =(IF(G5="c",1,0)+IF(G21="c",1,0)+IF(G37="c",1,0)+IF(G53="c",1,0)+IF(G69="c",1,0)+IF(G85="c",1,0)+IF(G101="c",1,0))/2 -> 0 | H125: =(IF(H5="c",1,0)+IF(H21="c",1,0)+IF(H37="c",1,0)+IF(H53="c",1,0)+IF(H69="c",1,0)+IF(H85="c",1,0)+IF(H101="c",1,0))/2 -> 0 | I125: 0 | J125: 0 | K125: 0 | L125: 0 | M125: 0 | N125: 0 | O125: 0 | P125: 0 | Q125: 0 | R125: 0 | S125: 0 | T125: 0 | U125: 0 | V125: 0 | W125: 0 | X125: 0 | Y125: 0 | Z125: 0 | AA125: 0 | AB125: 0 | AC125: 0 | AD125: 0 | AE125: 0 | AF125: 0 | AG125: 0 | AH125: 0 | AI125: 0 | AJ125: 0 | AK125: C | AO125: Rodrigue
C126: =+C102 -> 0 | D126: R | E126: =IF(E6="r",1,0)+IF(E22="r",1,0)+IF(E38="r",1,0)+IF(E54="r",1,0)+IF(E70="r",1,0)+IF(E86="r",1,0)+IF(E102="r",1,0)/2 -> 0 | F126: =IF(F6="r",1,0)+IF(F22="r",1,0)+IF(F38="r",1,0)+IF(F54="r",1,0)+IF(F70="r",1,0)+IF(F86="r",1,0)+IF(F102="r",1,0)/2 -> 0 | G126: =(IF(G6="r",1,0)+IF(G22="r",1,0)+IF(G38="r",1,0)+IF(G54="r",1,0)+IF(G70="r",1,0)+IF(G86="r",1,0)+IF(G102="r",1,0))/2 -> 0 | H126: =(IF(H6="r",1,0)+IF(H22="r",1,0)+IF(H38="r",1,0)+IF(H54="r",1,0)+IF(H70="r",1,0)+IF(H86="r",1,0)+IF(H102="r",1,0))/2 -> 0 | I126: 0 | J126: 0 | K126: 0 | L126: 0 | M126: 0 | N126: 0 | O126: 0 | P126: 0 | Q126: 0 | R126: 0 | S126: 0 | T126: 0 | U126: 0 | V126: 0 | W126: 0 | X126: 0 | Y126: 0 | Z126: 0 | AA126: 0 | AB126: 0 | AC126: 0 | AD126: 0 | AE126: 0 | AF126: 0 | AG126: 0 | AH126: 0 | AI126: 0 | AJ126: 0 | AK126: R | AL126: =AJ126+AJ127 -> 0 | AM126: 30 | AN126: =AL126-AM126 -> -30 | AO126: =+C126 -> 0
C127: ELS 1 | D127: C | E127: =IF(E6="c",1,0)+IF(E22="c",1,0)+IF(E38="c",1,0)+IF(E54="c",1,0)+IF(E70="c",1,0)+IF(E86="c",1,0)+IF(E102="c",1,0) -> 0 | F127: =IF(F6="c",1,0)+IF(F22="c",1,0)+IF(F38="c",1,0)+IF(F54="c",1,0)+IF(F70="c",1,0)+IF(F86="c",1,0)+IF(F102="c",1,0) -> 0 | G127: =(IF(G6="c",1,0)+IF(G22="c",1,0)+IF(G38="c",1,0)+IF(G54="c",1,0)+IF(G70="c",1,0)+IF(G86="c",1,0)+IF(G102="c",1,0))/2 -> 0 | H127: =(IF(H6="c",1,0)+IF(H22="c",1,0)+IF(H38="c",1,0)+IF(H54="c",1,0)+IF(H70="c",1,0)+IF(H86="c",1,0)+IF(H102="c",1,0))/2 -> 0 | I127: 0 | J127: 0 | K127: 0 | L127: 0 | M127: 0 | N127: 0 | O127: 0 | P127: 0 | Q127: 0 | R127: 0 | S127: 0 | T127: 0 | U127: 0 | V127: 0 | W127: 0 | X127: 0 | Y127: 0 | Z127: 0 | AA127: 0 | AB127: 0 | AC127: 0 | AD127: 0 | AE127: 0 | AF127: 0 | AG127: 0 | AH127: 0 | AI127: 0 | AJ127: 0 | AK127: C | AO127: ELS 1
C128: =+C103 -> 0 | D128: R | E128: =IF(E7="r",1,0)+IF(E23="r",1,0)+IF(E39="r",1,0)+IF(E55="r",1,0)+IF(E71="r",1,0)+IF(E87="r",1,0)+IF(E103="r",1,0)/2 -> 0 | F128: =IF(F7="r",1,0)+IF(F23="r",1,0)+IF(F39="r",1,0)+IF(F55="r",1,0)+IF(F71="r",1,0)+IF(F87="r",1,0)+IF(F103="r",1,0)/2 -> 0 | G128: =(IF(G7="r",1,0)+IF(G23="r",1,0)+IF(G39="r",1,0)+IF(G55="r",1,0)+IF(G71="r",1,0)+IF(G87="r",1,0)+IF(G103="r",1,0))/2 -> 0 | H128: =(IF(H7="r",1,0)+IF(H23="r",1,0)+IF(H39="r",1,0)+IF(H55="r",1,0)+IF(H71="r",1,0)+IF(H87="r",1,0)+IF(H103="r",1,0))/2 -> 0 | I128: 0 | J128: 0 | K128: 0 | L128: 0 | M128: 0 | N128: 0 | O128: 0 | P128: 0 | Q128: 0 | R128: 0 | S128: 0 | T128: 0 | U128: 0 | V128: 0 | W128: 0 | X128: 0 | Y128: 0 | Z128: 0 | AA128: 0 | AB128: 0 | AC128: 0 | AD128: 0 | AE128: 0 | AF128: 0 | AG128: 0 | AH128: 0 | AI128: 0 | AJ128: 0 | AK128: R | AL128: =AJ128+AJ129 -> 0 | AM128: 35 | AN128: =AL128-AM128 -> -35 | AO128: =+C128 -> 0
C129: ELS 2 | D129: C | E129: =IF(E7="c",1,0)+IF(E23="c",1,0)+IF(E39="c",1,0)+IF(E55="c",1,0)+IF(E71="c",1,0)+IF(E87="c",1,0)+IF(E103="c",1,0)/2 -> 0 | F129: =IF(F7="c",1,0)+IF(F23="c",1,0)+IF(F39="c",1,0)+IF(F55="c",1,0)+IF(F71="c",1,0)+IF(F87="c",1,0)+IF(F103="c",1,0)/2 -> 0 | G129: =(IF(G7="c",1,0)+IF(G23="c",1,0)+IF(G39="c",1,0)+IF(G55="c",1,0)+IF(G71="c",1,0)+IF(G87="c",1,0)+IF(G103="c",1,0))/2 -> 0 | H129: =(IF(H7="c",1,0)+IF(H23="c",1,0)+IF(H39="c",1,0)+IF(H55="c",1,0)+IF(H71="c",1,0)+IF(H87="c",1,0)+IF(H103="c",1,0))/2 -> 0 | I129: 0 | J129: 0 | K129: 0 | L129: 0 | M129: 0 | N129: 0 | O129: 0 | P129: 0 | Q129: 0 | R129: 0 | S129: 0 | T129: 0 | U129: 0 | V129: 0 | W129: 0 | X129: 0 | Y129: 0 | Z129: 0 | AA129: 0 | AB129: 0 | AC129: 0 | AD129: 0 | AE129: 0 | AF129: 0 | AG129: 0 | AH129: 0 | AI129: 0 | AJ129: 0 | AK129: C | AO129: ELS 2
C130: =+C104 -> 0 | D130: R | E130: =IF(E8="r",1,0)+IF(E24="r",1,0)+IF(E40="r",1,0)+IF(E56="r",1,0)+IF(E72="r",1,0)+IF(E88="r",1,0)+IF(E104="r",1,0)/2 -> 0 | F130: =IF(F8="r",1,0)+IF(F24="r",1,0)+IF(F40="r",1,0)+IF(F56="r",1,0)+IF(F72="r",1,0)+IF(F88="r",1,0)+IF(F104="r",1,0)/2 -> 0 | G130: =(IF(G8="r",1,0)+IF(G24="r",1,0)+IF(G40="r",1,0)+IF(G56="r",1,0)+IF(G72="r",1,0)+IF(G88="r",1,0)+IF(G104="r",1,0))/2 -> 0 | H130: =(IF(H8="r",1,0)+IF(H24="r",1,0)+IF(H40="r",1,0)+IF(H56="r",1,0)+IF(H72="r",1,0)+IF(H88="r",1,0)+IF(H104="r",1,0))/2 -> 0 | I130: 0 | J130: 0 | K130: 0 | L130: 0 | M130: 0 | N130: 0 | O130: 0 | P130: 0 | Q130: 0 | R130: 0 | S130: 0 | T130: 0 | U130: 0 | V130: 0 | W130: 0 | X130: 0 | Y130: 0 | Z130: 0 | AA130: 0 | AB130: 0 | AC130: 0 | AD130: 0 | AE130: 0 | AF130: 0 | AG130: 0 | AH130: 0 | AI130: 0 | AJ130: 0 | AK130: R | AL130: =AJ130+AJ131 -> 0 | AM130: 35 | AN130: =AL130-AM130 -> -35 | AO130: =+C130 -> 0
C131: ELS 3 | D131: C | E131: =IF(E8="c",1,0)+IF(E24="c",1,0)+IF(E40="c",1,0)+IF(E56="c",1,0)+IF(E72="c",1,0)+IF(E88="c",1,0)+IF(E104="c",1,0)/2 -> 0 | F131: =IF(F8="c",1,0)+IF(F24="c",1,0)+IF(F40="c",1,0)+IF(F56="c",1,0)+IF(F72="c",1,0)+IF(F88="c",1,0)+IF(F104="c",1,0)/2 -> 0 | G131: =(IF(G8="c",1,0)+IF(G24="c",1,0)+IF(G40="c",1,0)+IF(G56="c",1,0)+IF(G72="c",1,0)+IF(G88="c",1,0)+IF(G104="c",1,0))/2 -> 0 | H131: =(IF(H8="c",1,0)+IF(H24="c",1,0)+IF(H40="c",1,0)+IF(H56="c",1,0)+IF(H72="c",1,0)+IF(H88="c",1,0)+IF(H104="c",1,0))/2 -> 0 | I131: 0 | J131: 0 | K131: 0 | L131: 0 | M131: 0 | N131: 0 | O131: 0 | P131: 0 | Q131: 0 | R131: 0 | S131: 0 | T131: 0 | U131: 0 | V131: 0 | W131: 0 | X131: 0 | Y131: 0 | Z131: 0 | AA131: 0 | AB131: 0 | AC131: 0 | AD131: 0 | AE131: 0 | AF131: 0 | AG131: 0 | AH131: 0 | AI131: 0 | AJ131: 0 | AK131: C | AO131: ELS 3
C132: =+C105 -> Katia Bousba | D132: R | E132: =IF(E9="r",1,0)+IF(E25="r",1,0)+IF(E41="r",1,0)+IF(E57="r",1,0)+IF(E73="r",1,0)+IF(E89="r",1,0)+IF(E105="r",1,0)/2 -> 0 | F132: =IF(F9="r",1,0)+IF(F25="r",1,0)+IF(F41="r",1,0)+IF(F57="r",1,0)+IF(F73="r",1,0)+IF(F89="r",1,0)+IF(F105="r",1,0)/2 -> 0 | G132: =(IF(G9="r",1,0)+IF(G25="r",1,0)+IF(G41="r",1,0)+IF(G57="r",1,0)+IF(G73="r",1,0)+IF(G89="r",1,0)+IF(G105="r",1,0))/2 -> 0 | H132: =(IF(H9="r",1,0)+IF(H25="r",1,0)+IF(H41="r",1,0)+IF(H57="r",1,0)+IF(H73="r",1,0)+IF(H89="r",1,0)+IF(H105="r",1,0))/2 -> 0 | I132: 0 | J132: 0 | K132: 0 | L132: 0 | M132: 0 | N132: 0 | O132: 0 | P132: 0 | Q132: 0 | R132: 0 | S132: 0 | T132: 0 | U132: 0 | V132: 0 | W132: 0 | X132: 0 | Y132: 0 | Z132: 0 | AA132: 0 | AB132: 0 | AC132: 0 | AD132: 0 | AE132: 0 | AF132: 0 | AG132: 0 | AH132: 0 | AI132: 0 | AJ132: 0 | AK132: R | AL132: =AJ132+AJ133 -> 35 | AM132: 39 | AN132: =AL132-AM132 -> -4 | AO132: =+C132 -> Katia Bousba
C133: ELS 4 | D133: C | E133: =IF(E9="c",1,0)+IF(E25="c",1,0)+IF(E41="c",1,0)+IF(E57="c",1,0)+IF(E73="c",1,0)+IF(E89="c",1,0)+IF(E105="c",1,0)/2 -> 0 | F133: =IF(F9="c",1,0)+IF(F25="c",1,0)+IF(F41="c",1,0)+IF(F57="c",1,0)+IF(F73="c",1,0)+IF(F89="c",1,0)+IF(F105="c",1,0)/2 -> 0 | G133: =(IF(G9="c",1,0)+IF(G25="c",1,0)+IF(G41="c",1,0)+IF(G57="c",1,0)+IF(G73="c",1,0)+IF(G89="c",1,0)+IF(G105="c",1,0))/2 -> 0 | H133: =(IF(H9="c",1,0)+IF(H25="c",1,0)+IF(H41="c",1,0)+IF(H57="c",1,0)+IF(H73="c",1,0)+IF(H89="c",1,0)+IF(H105="c",1,0))/2 -> 0 | I133: 0 | J133: 0 | K133: 0.5 | L133: 0.5 | M133: 0.5 | N133: 0.5 | O133: 0.5 | P133: 1.5 | Q133: 1.5 | R133: 1.5 | S133: 1.5 | T133: 1.5 | U133: 1.5 | V133: 0.5 | W133: 0.5 | X133: 0 | Y133: 0 | Z133: 1.5 | AA133: 1.5 | AB133: 2 | AC133: 2.5 | AD133: 2.5 | AE133: 2.5 | AF133: 2.5 | AG133: 2.5 | AH133: 2.5 | AI133: 2.5 | AJ133: 35 | AK133: C | AO133: ELS 4
C134: =+C106 -> 0 | D134: R | E134: =IF(E10="r",1,0)+IF(E26="r",1,0)+IF(E42="r",1,0)+IF(E58="r",1,0)+IF(E74="r",1,0)+IF(E90="r",1,0)+IF(E106="r",1,0)/2 -> 0 | F134: =IF(F10="r",1,0)+IF(F26="r",1,0)+IF(F42="r",1,0)+IF(F58="r",1,0)+IF(F74="r",1,0)+IF(F90="r",1,0)+IF(F106="r",1,0)/2 -> 0 | G134: =(IF(G10="r",1,0)+IF(G26="r",1,0)+IF(G42="r",1,0)+IF(G58="r",1,0)+IF(G74="r",1,0)+IF(G90="r",1,0)+IF(G106="r",1,0))/2 -> 0 | H134: =(IF(H10="r",1,0)+IF(H26="r",1,0)+IF(H42="r",1,0)+IF(H58="r",1,0)+IF(H74="r",1,0)+IF(H90="r",1,0)+IF(H106="r",1,0))/2 -> 0 | I134: 0 | J134: 0 | K134: 0 | L134: 0 | M134: 0 | N134: 0 | O134: 0 | P134: 0 | Q134: 0 | R134: 0 | S134: 0 | T134: 0 | U134: 0 | V134: 0 | W134: 0 | X134: 0 | Y134: 0 | Z134: 0 | AA134: 0 | AB134: =(IF(AB10="r",1,0)+IF(#REF!="r",1,0)+IF(AB42="r",1,0)+IF(AB58="r",1,0)+IF(AB74="r",1,0)+IF(AB90="r",1,0)+IF(AB106="r",1,0))/2 ->  | AC134: =(IF(AC10="r",1,0)+IF(#REF!="r",1,0)+IF(AC42="r",1,0)+IF(AC58="r",1,0)+IF(AC74="r",1,0)+IF(AC90="r",1,0)+IF(AC106="r",1,0))/2 ->  | AD134: =(IF(#REF!="r",1,0)+IF(#REF!="r",1,0)+IF(AD42="r",1,0)+IF(AD58="r",1,0)+IF(AD74="r",1,0)+IF(AD90="r",1,0)+IF(AD106="r",1,0))/2 ->  | AE134: =(IF(#REF!="r",1,0)+IF(#REF!="r",1,0)+IF(AE42="r",1,0)+IF(AE58="r",1,0)+IF(AE74="r",1,0)+IF(AE90="r",1,0)+IF(AE106="r",1,0))/2 ->  | AF134: =(IF(#REF!="r",1,0)+IF(#REF!="r",1,0)+IF(AF42="r",1,0)+IF(AF58="r",1,0)+IF(AF74="r",1,0)+IF(AF90="r",1,0)+IF(AF106="r",1,0))/2 ->  | AG134: =(IF(#REF!="r",1,0)+IF(#REF!="r",1,0)+IF(AG42="r",1,0)+IF(AG58="r",1,0)+IF(AG74="r",1,0)+IF(AG90="r",1,0)+IF(AG106="r",1,0))/2 ->  | AH134: =(IF(#REF!="r",1,0)+IF(#REF!="r",1,0)+IF(AH42="r",1,0)+IF(AH58="r",1,0)+IF(AH74="r",1,0)+IF(AH90="r",1,0)+IF(AH106="r",1,0))/2 ->  | AI134: =(IF(#REF!="r",1,0)+IF(#REF!="r",1,0)+IF(AI42="r",1,0)+IF(AI58="r",1,0)+IF(AI74="r",1,0)+IF(AI90="r",1,0)+IF(AI106="r",1,0))/2 ->  | AK134: R | AL134: =AJ134+AJ135 ->  | AM134: 15 | AN134: =AL134-AM134 ->  | AO134: =+C134 -> 0
C135: ELS 5 | D135: C | E135: =IF(E10="C",1,0)+IF(E26="C",1,0)+IF(E42="C",1,0)+IF(E58="C",1,0)+IF(E74="C",1,0)+IF(E90="C",1,0)+IF(E106="C",1,0)/2 -> 0 | F135: =IF(F10="C",1,0)+IF(F26="C",1,0)+IF(F42="C",1,0)+IF(F58="C",1,0)+IF(F74="C",1,0)+IF(F90="C",1,0)+IF(F106="C",1,0)/2 -> 0 | G135: =(IF(G10="C",1,0)+IF(G26="C",1,0)+IF(G42="C",1,0)+IF(G58="C",1,0)+IF(G74="C",1,0)+IF(G90="C",1,0)+IF(G106="C",1,0))/2 -> 0 | H135: =(IF(H10="C",1,0)+IF(H26="C",1,0)+IF(H42="C",1,0)+IF(H58="C",1,0)+IF(H74="C",1,0)+IF(H90="C",1,0)+IF(H106="C",1,0))/2 -> 0 | I135: 0 | J135: 0 | K135: 0 | L135: 0 | M135: 0 | N135: 0 | O135: 0 | P135: 0 | Q135: 0 | R135: 0 | S135: 0 | T135: 0 | U135: 0 | V135: 0 | W135: 0 | X135: 0 | Y135: 0 | Z135: 0 | AA135: 0 | AB135: =(IF(AB10="C",1,0)+IF(#REF!="C",1,0)+IF(AB42="C",1,0)+IF(AB58="C",1,0)+IF(AB74="C",1,0)+IF(AB90="C",1,0)+IF(AB106="C",1,0))/2 ->  | AC135: =(IF(AC10="C",1,0)+IF(#REF!="C",1,0)+IF(AC42="C",1,0)+IF(AC58="C",1,0)+IF(AC74="C",1,0)+IF(AC90="C",1,0)+IF(AC106="C",1,0))/2 ->  | AD135: =(IF(#REF!="C",1,0)+IF(#REF!="C",1,0)+IF(AD42="C",1,0)+IF(AD58="C",1,0)+IF(AD74="C",1,0)+IF(AD90="C",1,0)+IF(AD106="C",1,0))/2 ->  | AE135: =(IF(#REF!="C",1,0)+IF(#REF!="C",1,0)+IF(AE42="C",1,0)+IF(AE58="C",1,0)+IF(AE74="C",1,0)+IF(AE90="C",1,0)+IF(AE106="C",1,0))/2 ->  | AF135: =(IF(#REF!="C",1,0)+IF(#REF!="C",1,0)+IF(AF42="C",1,0)+IF(AF58="C",1,0)+IF(AF74="C",1,0)+IF(AF90="C",1,0)+IF(AF106="C",1,0))/2 ->  | AG135: =(IF(#REF!="C",1,0)+IF(#REF!="C",1,0)+IF(AG42="C",1,0)+IF(AG58="C",1,0)+IF(AG74="C",1,0)+IF(AG90="C",1,0)+IF(AG106="C",1,0))/2 ->  | AH135: =(IF(#REF!="C",1,0)+IF(#REF!="C",1,0)+IF(AH42="C",1,0)+IF(AH58="C",1,0)+IF(AH74="C",1,0)+IF(AH90="C",1,0)+IF(AH106="C",1,0))/2 ->  | AI135: =(IF(#REF!="C",1,0)+IF(#REF!="C",1,0)+IF(AI42="C",1,0)+IF(AI58="C",1,0)+IF(AI74="C",1,0)+IF(AI90="C",1,0)+IF(AI106="C",1,0))/2 ->  | AK135: C | AO135: ELS 5
C136: =+C107 -> 0 | D136: R | E136: =IF(E11="r",1,0)+IF(E27="r",1,0)+IF(E43="r",1,0)+IF(E59="r",1,0)+IF(E75="r",1,0)+IF(E91="r",1,0)+IF(E107="r",1,0)/2 -> 0 | F136: =IF(F11="r",1,0)+IF(F27="r",1,0)+IF(F43="r",1,0)+IF(F59="r",1,0)+IF(F75="r",1,0)+IF(F91="r",1,0)+IF(F107="r",1,0)/2 -> 0 | G136: =(IF(G11="r",1,0)+IF(G27="r",1,0)+IF(G43="r",1,0)+IF(G59="r",1,0)+IF(G75="r",1,0)+IF(G91="r",1,0)+IF(G107="r",1,0))/2 -> 0 | H136: =(IF(H11="r",1,0)+IF(H27="r",1,0)+IF(H43="r",1,0)+IF(H59="r",1,0)+IF(H75="r",1,0)+IF(H91="r",1,0)+IF(H107="r",1,0))/2 -> 0 | I136: 0 | J136: 0 | K136: 0 | L136: 0 | M136: 0 | N136: 0 | O136: 0 | P136: 0 | Q136: 0 | R136: 0 | S136: =(IF(S11="r",1,0)+IF(S27="r",1,0)+IF(S43="r",1,0)+IF(#REF!="r",1,0)+IF(S75="r",1,0)+IF(S91="r",1,0)+IF(S107="r",1,0))/2 ->  | T136: 0 | U136: 0 | V136: =(IF(V11="r",1,0)+IF(V27="r",1,0)+IF(#REF!="r",1,0)+IF(V59="r",1,0)+IF(V75="r",1,0)+IF(V91="r",1,0)+IF(V107="r",1,0))/2 ->  | W136: 0 | X136: =(IF(X11="r",1,0)+IF(X27="r",1,0)+IF(V43="r",1,0)+IF(S59="r",1,0)+IF(X75="r",1,0)+IF(X91="r",1,0)+IF(X107="r",1,0))/2 -> 0 | Y136: 0 | Z136: 0 | AA136: 0 | AB136: 0 | AC136: 0 | AD136: 0 | AE136: 0 | AF136: 0 | AG136: 0 | AH136: 0 | AI136: 0 | AK136: R | AL136: =AJ136+AJ137 ->  | AM136: 30 | AN136: =AL136-AM136 ->  | AO136: =+C136 -> 0
C137: ELS 6 | D137: C | E137: =IF(E11="c",1,0)+IF(E27="c",1,0)+IF(E43="c",1,0)+IF(E59="c",1,0)+IF(E75="c",1,0)+IF(E91="c",1,0)+IF(E107="c",1,0)/2 -> 0 | F137: =IF(F11="c",1,0)+IF(F27="c",1,0)+IF(F43="c",1,0)+IF(F59="c",1,0)+IF(F75="c",1,0)+IF(F91="c",1,0)+IF(F107="c",1,0)/2 -> 0 | G137: =(IF(G11="c",1,0)+IF(G27="c",1,0)+IF(G43="c",1,0)+IF(G59="c",1,0)+IF(G75="c",1,0)+IF(G91="c",1,0)+IF(G107="c",1,0))/2 -> 0 | H137: =(IF(H11="c",1,0)+IF(H27="c",1,0)+IF(H43="c",1,0)+IF(H59="c",1,0)+IF(H75="c",1,0)+IF(H91="c",1,0)+IF(H107="c",1,0))/2 -> 0 | I137: 0 | J137: 0 | K137: =(IF(K11="c",1,0)+IF(K27="c",1,0)+IF(K43="c",1,0)+IF(K59="c",1,0)+IF(K75="c",1,0)+IF(K91="c",1,0)+IF(K107="c",1,0))/2 -> 0 | L137: 0 | M137: 0 | N137: 0 | O137: 0 | P137: 0 | Q137: 0 | R137: 0 | S137: =(IF(S11="c",1,0)+IF(S27="c",1,0)+IF(S43="c",1,0)+IF(#REF!="c",1,0)+IF(S75="c",1,0)+IF(S91="c",1,0)+IF(S107="c",1,0))/2 ->  | T137: 0 | U137: 0 | V137: =(IF(V11="c",1,0)+IF(V27="c",1,0)+IF(#REF!="c",1,0)+IF(V59="c",1,0)+IF(V75="c",1,0)+IF(V91="c",1,0)+IF(V107="c",1,0))/2 ->  | W137: 0 | X137: =(IF(X11="c",1,0)+IF(X27="c",1,0)+IF(V43="c",1,0)+IF(S59="c",1,0)+IF(X75="c",1,0)+IF(X91="c",1,0)+IF(X107="c",1,0))/2 -> 0 | Y137: 0 | Z137: 0 | AA137: 0 | AB137: 0 | AC137: 0 | AD137: 0 | AE137: 0 | AF137: 0 | AG137: 0 | AH137: 0 | AI137: 0 | AK137: C | AO137: ELS 6
C138: PATHMAJEYANTH | D138: R | E138: =IF(E12="r",1,0)+IF(E28="r",1,0)+IF(E44="r",1,0)+IF(E60="r",1,0)+IF(E76="r",1,0)+IF(E92="r",1,0)+IF(E108="r",1,0)/2 -> 0 | F138: =IF(F12="r",1,0)+IF(F28="r",1,0)+IF(F44="r",1,0)+IF(F60="r",1,0)+IF(F76="r",1,0)+IF(F92="r",1,0)+IF(F108="r",1,0)/2 -> 0 | G138: =(IF(G12="r",1,0)+IF(G28="r",1,0)+IF(G44="r",1,0)+IF(G60="r",1,0)+IF(G76="r",1,0)+IF(G92="r",1,0)+IF(G108="r",1,0))/2 -> 0 | H138: =(IF(H12="r",1,0)+IF(H28="r",1,0)+IF(H44="r",1,0)+IF(H60="r",1,0)+IF(H76="r",1,0)+IF(H92="r",1,0)+IF(H108="r",1,0))/2 -> 0 | I138: 0 | J138: 0 | K138: 0 | L138: 0 | M138: 0 | N138: 0 | O138: 0 | P138: 0 | Q138: 0 | R138: 0 | S138: 0 | T138: 0 | U138: 0 | V138: 0 | W138: 0 | X138: 0 | Y138: 0 | Z138: 0 | AA138: 0 | AB138: 0 | AC138: 0 | AD138: 0 | AE138: 0 | AF138: 0 | AG138: 0 | AH138: 0 | AI138: 0 | AJ138: 0 | AK138: R | AL138: =AJ138+AJ139 -> 0 | AM138: 36.5 | AN138: =AL138-AM138 -> -36.5 | AO138: Youcef OULD KADI
C139: ELS 7 | D139: C | E139: =IF(E12="c",1,0)+IF(E28="c",1,0)+IF(E44="c",1,0)+IF(E60="c",1,0)+IF(E76="c",1,0)+IF(E92="c",1,0)+IF(E108="c",1,0)/2 -> 0 | F139: =IF(F12="c",1,0)+IF(F28="c",1,0)+IF(F44="c",1,0)+IF(F60="c",1,0)+IF(F76="c",1,0)+IF(F92="c",1,0)+IF(F108="c",1,0)/2 -> 0 | G139: =(IF(G12="c",1,0)+IF(G28="c",1,0)+IF(G44="c",1,0)+IF(G60="c",1,0)+IF(G76="c",1,0)+IF(G92="c",1,0)+IF(G108="c",1,0))/2 -> 0 | H139: =(IF(H12="c",1,0)+IF(H28="c",1,0)+IF(H44="c",1,0)+IF(H60="c",1,0)+IF(H76="c",1,0)+IF(H92="c",1,0)+IF(H108="c",1,0))/2 -> 0 | I139: 0 | J139: 0 | K139: 0 | L139: 0 | M139: 0 | N139: 0 | O139: 0 | P139: 0 | Q139: 0 | R139: 0 | S139: 0 | T139: 0 | U139: 0 | V139: 0 | W139: 0 | X139: 0 | Y139: 0 | Z139: 0 | AA139: 0 | AB139: 0 | AC139: 0 | AD139: 0 | AE139: 0 | AF139: 0 | AG139: 0 | AH139: 0 | AI139: 0 | AJ139: 0 | AK139: C | AO139: ELS 7
C140: =+C109 -> 0 | D140: R | E140: =IF(E13="r",1,0)+IF(E29="r",1,0)+IF(E45="r",1,0)+IF(E61="r",1,0)+IF(E77="r",1,0)+IF(E93="r",1,0)+IF(E109="r",1,0)/2 -> 0 | F140: =IF(F13="r",1,0)+IF(F29="r",1,0)+IF(F45="r",1,0)+IF(F61="r",1,0)+IF(F77="r",1,0)+IF(F93="r",1,0)+IF(F109="r",1,0)/2 -> 0 | G140: =(IF(G13="r",1,0)+IF(G29="r",1,0)+IF(G45="r",1,0)+IF(G61="r",1,0)+IF(G77="r",1,0)+IF(G93="r",1,0)+IF(G109="r",1,0))/2 -> 0 | H140: =(IF(H13="r",1,0)+IF(H29="r",1,0)+IF(H45="r",1,0)+IF(H61="r",1,0)+IF(H77="r",1,0)+IF(H93="r",1,0)+IF(H109="r",1,0))/2 -> 0 | I140: 0 | J140: 0 | K140: 0 | L140: 0 | M140: 0 | N140: 0 | O140: 0 | P140: 0 | Q140: 0 | R140: 0 | S140: 0 | T140: 0 | U140: 0 | V140: 0 | W140: 0 | X140: 0 | Y140: 0 | Z140: 0 | AA140: 0 | AB140: =(IF(AB13="r",1,0)+IF(#REF!="r",1,0)+IF(AB45="r",1,0)+IF(AB29="r",1,0)+IF(AB77="r",1,0)+IF(AB93="r",1,0)+IF(AB109="r",1,0))/2 ->  | AC140: =(IF(AC13="r",1,0)+IF(#REF!="r",1,0)+IF(AC45="r",1,0)+IF(AC29="r",1,0)+IF(AC77="r",1,0)+IF(AC93="r",1,0)+IF(AC109="r",1,0))/2 ->  | AD140: =(IF(AD10="r",1,0)+IF(#REF!="r",1,0)+IF(AD45="r",1,0)+IF(AD29="r",1,0)+IF(AD77="r",1,0)+IF(AD93="r",1,0)+IF(AD109="r",1,0))/2 ->  | AE140: =(IF(AE10="r",1,0)+IF(#REF!="r",1,0)+IF(AE45="r",1,0)+IF(AE29="r",1,0)+IF(AE77="r",1,0)+IF(AE93="r",1,0)+IF(AE109="r",1,0))/2 ->  | AF140: =(IF(AF10="r",1,0)+IF(#REF!="r",1,0)+IF(AF45="r",1,0)+IF(AF29="r",1,0)+IF(AF77="r",1,0)+IF(AF93="r",1,0)+IF(AF109="r",1,0))/2 ->  | AG140: =(IF(AG10="r",1,0)+IF(#REF!="r",1,0)+IF(AG45="r",1,0)+IF(AG29="r",1,0)+IF(AG77="r",1,0)+IF(AG93="r",1,0)+IF(AG109="r",1,0))/2 ->  | AH140: =(IF(AH10="r",1,0)+IF(#REF!="r",1,0)+IF(AH45="r",1,0)+IF(AH29="r",1,0)+IF(AH77="r",1,0)+IF(AH93="r",1,0)+IF(AH109="r",1,0))/2 ->  | AI140: =(IF(AI10="r",1,0)+IF(#REF!="r",1,0)+IF(AI45="r",1,0)+IF(AI29="r",1,0)+IF(AI77="r",1,0)+IF(AI93="r",1,0)+IF(AI109="r",1,0))/2 ->  | AK140: R | AL140: =AJ140+AJ141 ->  | AM140: 20 | AN140: =AL140-AM140 ->  | AO140: =+C140 -> 0
C141: ELS 8 | D141: C | E141: =IF(E13="c",1,0)+IF(E29="c",1,0)+IF(E45="c",1,0)+IF(E61="c",1,0)+IF(E77="c",1,0)+IF(E93="c",1,0)+IF(E109="c",1,0)/2 -> 0 | F141: =IF(F13="c",1,0)+IF(F29="c",1,0)+IF(F45="c",1,0)+IF(F61="c",1,0)+IF(F77="c",1,0)+IF(F93="c",1,0)+IF(F109="c",1,0)/2 -> 0 | G141: =(IF(G13="c",1,0)+IF(G29="c",1,0)+IF(G45="c",1,0)+IF(G61="c",1,0)+IF(G77="c",1,0)+IF(G93="c",1,0)+IF(G109="c",1,0))/2 -> 0 | H141: =(IF(H13="c",1,0)+IF(H29="c",1,0)+IF(H45="c",1,0)+IF(H61="c",1,0)+IF(H77="c",1,0)+IF(H93="c",1,0)+IF(H109="c",1,0))/2 -> 0 | I141: 0 | J141: 0 | K141: 0 | L141: 0 | M141: 0 | N141: 0 | O141: 0 | P141: 0 | Q141: 0 | R141: 0 | S141: 0 | T141: 0 | U141: 0 | V141: 0 | W141: 0 | X141: 0 | Y141: 0 | Z141: 0 | AA141: 0 | AB141: =(IF(AB13="c",1,0)+IF(#REF!="c",1,0)+IF(AB45="c",1,0)+IF(AB29="c",1,0)+IF(AB77="c",1,0)+IF(AB93="c",1,0)+IF(AB109="c",1,0))/2 ->  | AC141: =(IF(AC13="c",1,0)+IF(#REF!="c",1,0)+IF(AC45="c",1,0)+IF(AC29="c",1,0)+IF(AC77="c",1,0)+IF(AC93="c",1,0)+IF(AC109="c",1,0))/2 ->  | AD141: =(IF(AD10="c",1,0)+IF(#REF!="c",1,0)+IF(AD45="c",1,0)+IF(AD29="c",1,0)+IF(AD77="c",1,0)+IF(AD93="c",1,0)+IF(AD109="c",1,0))/2 ->  | AE141: =(IF(AE10="c",1,0)+IF(#REF!="c",1,0)+IF(AE45="c",1,0)+IF(AE29="c",1,0)+IF(AE77="c",1,0)+IF(AE93="c",1,0)+IF(AE109="c",1,0))/2 ->  | AF141: =(IF(AF10="c",1,0)+IF(#REF!="c",1,0)+IF(AF45="c",1,0)+IF(AF29="c",1,0)+IF(AF77="c",1,0)+IF(AF93="c",1,0)+IF(AF109="c",1,0))/2 ->  | AG141: =(IF(AG10="c",1,0)+IF(#REF!="c",1,0)+IF(AG45="c",1,0)+IF(AG29="c",1,0)+IF(AG77="c",1,0)+IF(AG93="c",1,0)+IF(AG109="c",1,0))/2 ->  | AH141: =(IF(AH10="c",1,0)+IF(#REF!="c",1,0)+IF(AH45="c",1,0)+IF(AH29="c",1,0)+IF(AH77="c",1,0)+IF(AH93="c",1,0)+IF(AH109="c",1,0))/2 ->  | AI141: =(IF(AI10="c",1,0)+IF(#REF!="c",1,0)+IF(AI45="c",1,0)+IF(AI29="c",1,0)+IF(AI77="c",1,0)+IF(AI93="c",1,0)+IF(AI109="c",1,0))/2 ->  | AK141: C | AM141: 36.75 | AO141: ELS 8
C142: Sofia MAICHE | D142: R | G142: =(IF(G14="r",1,0)+IF(G30="r",1,0)+IF(G46="r",1,0)+IF(G62="r",1,0)+IF(G78="r",1,0)+IF(G94="r",1,0)+IF(G110="r",1,0))/2 -> 0 | H142: =(IF(H14="r",1,0)+IF(H30="r",1,0)+IF(H46="r",1,0)+IF(H62="r",1,0)+IF(H78="r",1,0)+IF(H94="r",1,0)+IF(H110="r",1,0))/2 -> 0 | I142: 0 | J142: 0 | K142: 0 | L142: 0 | M142: 0 | N142: 0 | O142: 0 | P142: 0 | Q142: 0 | R142: 0 | S142: 0 | T142: 0 | U142: 0 | V142: 0 | W142: 0 | X142: =(IF(X14="r",1,0)+IF(X30="r",1,0)+IF(X46="r",1,0)+IF(X62="r",1,0)+IF(#REF!="r",1,0)+IF(X94="r",1,0)+IF(X110="r",1,0))/2 ->  | Y142: =(IF(Y14="r",1,0)+IF(Y30="r",1,0)+IF(Y46="r",1,0)+IF(Y62="r",1,0)+IF(X78="r",1,0)+IF(Y94="r",1,0)+IF(Y110="r",1,0))/2 -> 0 | Z142: 0 | AA142: 0 | AB142: 0 | AC142: 0 | AD142: 0 | AE142: 0 | AF142: 0 | AG142: 0 | AH142: 0 | AI142: 0 | AK142: R | AL142: =AJ142+AJ143 ->  | AM142: 0 | AN142: =AL142-AM142 ->  | AO142: Sofia MAICHE
C143: ELS 8 | D143: C | G143: =(IF(G14="c",1,0)+IF(G30="c",1,0)+IF(G46="c",1,0)+IF(G62="c",1,0)+IF(G78="c",1,0)+IF(G94="c",1,0)+IF(G110="c",1,0))/2 -> 0 | H143: =(IF(H14="c",1,0)+IF(H30="c",1,0)+IF(H46="c",1,0)+IF(H62="c",1,0)+IF(H78="c",1,0)+IF(H94="c",1,0)+IF(H110="c",1,0))/2 -> 0 | I143: 0 | J143: 0 | K143: 0 | L143: 0 | M143: 0 | N143: 0 | O143: 0 | P143: 0 | Q143: 0 | R143: 0 | S143: 0 | T143: 0 | U143: 0 | V143: 0 | W143: 0 | X143: =(IF(X14="c",1,0)+IF(X30="c",1,0)+IF(X46="c",1,0)+IF(X62="c",1,0)+IF(#REF!="c",1,0)+IF(X94="c",1,0)+IF(X110="c",1,0))/2 ->  | Y143: =(IF(Y14="c",1,0)+IF(Y30="c",1,0)+IF(Y46="c",1,0)+IF(Y62="c",1,0)+IF(X78="c",1,0)+IF(Y94="c",1,0)+IF(Y110="c",1,0))/2 -> 0 | Z143: 0 | AA143: 0 | AB143: 0 | AC143: 0 | AD143: 0 | AE143: 0 | AF143: 0 | AG143: 0 | AH143: 0 | AI143: 0 | AK143: C | AM143: 36.75 | AO143: ELS 8
C144: Elyess CHELBI | D144: R | E144: =IF(E15="r",1,0)+IF(E31="r",1,0)+IF(E47="r",1,0)+IF(E63="r",1,0)+IF(E79="r",1,0)+IF(E95="r",1,0)+IF(E111="r",1,0)/2 -> 0 | F144: =IF(F15="r",1,0)+IF(F31="r",1,0)+IF(F47="r",1,0)+IF(F63="r",1,0)+IF(F79="r",1,0)+IF(F95="r",1,0)+IF(F111="r",1,0)/2 -> 0 | G144: =(IF(G15="r",1,0)+IF(G31="r",1,0)+IF(G47="r",1,0)+IF(G63="r",1,0)+IF(G79="r",1,0)+IF(G95="r",1,0)+IF(G111="r",1,0))/2 -> 0 | H144: =(IF(H15="r",1,0)+IF(H31="r",1,0)+IF(H47="r",1,0)+IF(H63="r",1,0)+IF(H79="r",1,0)+IF(H95="r",1,0)+IF(H111="r",1,0))/2 -> 0 | I144: 0 | J144: 0 | K144: 0 | L144: 0 | M144: 0 | N144: 0 | O144: 0 | P144: 0 | Q144: 0 | R144: 0 | S144: 0 | T144: 0 | U144: 0 | V144: 0 | W144: 0 | X144: 0 | Y144: 0 | Z144: 0 | AA144: 0 | AB144: 0 | AC144: 0 | AD144: 0 | AE144: 0 | AF144: 0 | AG144: 0 | AH144: 0 | AI144: 0 | AJ144: 0 | AK144: R | AL144: =AJ144+AJ145 -> 0 | AM144: 35 | AN144: =AL144-AM144 -> -35 | AO144: Elyess CHELBI
C145: ELS 8 | D145: C | E145: =IF(E15="c",1,0)+IF(E31="c",1,0)+IF(E47="c",1,0)+IF(E63="c",1,0)+IF(E79="c",1,0)+IF(E95="c",1,0)+IF(E111="c",1,0)/2 -> 0 | F145: =IF(F15="c",1,0)+IF(F31="c",1,0)+IF(F47="c",1,0)+IF(F63="c",1,0)+IF(F79="c",1,0)+IF(F95="c",1,0)+IF(F111="c",1,0)/2 -> 0 | G145: =(IF(G15="c",1,0)+IF(G31="c",1,0)+IF(G47="c",1,0)+IF(G63="c",1,0)+IF(G79="c",1,0)+IF(G95="c",1,0)+IF(G111="c",1,0))/2 -> 0 | H145: =(IF(H15="c",1,0)+IF(H31="c",1,0)+IF(H47="c",1,0)+IF(H63="c",1,0)+IF(H79="c",1,0)+IF(H95="c",1,0)+IF(H111="c",1,0))/2 -> 0 | I145: 0 | J145: 0 | K145: 0 | L145: 0 | M145: 0 | N145: 0 | O145: 0 | P145: 0 | Q145: 0 | R145: 0 | S145: 0 | T145: 0 | U145: 0 | V145: 0 | W145: 0 | X145: 0 | Y145: 0 | Z145: 0 | AA145: 0 | AB145: 0 | AC145: 0 | AD145: 0 | AE145: 0 | AF145: 0 | AG145: 0 | AH145: 0 | AI145: 0 | AJ145: 0 | AK145: C | AM145: 32 | AO145: ELS 9
C146: SOUS-TOTAL | D146: R | E146: =E120+E122+E124+E126+E128+E130+E132+E134+E136+E138+E140+E144 -> 0 | F146: =F120+F122+F124+F126+F128+F130+F132+F134+F136+F138+F140+F144 -> 0 | G146: =G120+G122+G124+G126+G128+G130+G132+G134+G136+G138+G140+G144+G142 -> 0 | H146: =H120+H122+H124+H126+H128+H130+H132+H134+H136+H138+H140+H144+H142 -> 0 | I146: 0 | J146: 0 | K146: 0 | L146: 0 | M146: 0 | N146: 0 | O146: 0 | P146: 0 | Q146: 0 | R146: 0 | T146: 0 | U146: =U120+U122+U124+U126+U128+U130+U132+U134+U136+U138+U140+U144+U142 -> 0 | W146: 0 | Y146: 0 | Z146: 0 | AA146: 0 | AB146: =AB120+AB122+AB124+AB126+AB128+AB130+AB132+AB134+AB136+AB138+AB140+AB144+AB142 ->  | AH146: =AH120+AH122+AH124+AH126+AH128+AH130+AH132+AH134+AH136+AH138+AH140+AH144+AH142 ->  | AI146: =AI120+AI122+AI124+AI126+AI128+AI130+AI132+AI134+AI136+AI138+AI140+AI144+AI142 ->  | AJ146: =+SUM(G146:AI146) ->  | AK146: R | AL146: =AJ146+AJ147 ->  | AM146: =AM120+AM122+AM124+AM126+AM128+AM130+AM132+AM134+AM136+AM138+AM140+AM144+AM142 -> 405 | AN146: =AL146-AM146 -> 
C147: ELS 9 | D147: C | E147: =E121+E123+E125+E127+E129+E131+E133+E135+E137+E139+E141+E145 -> 0.5 | F147: 0 | G147: =G121+G123+G125+G127+G129+G131+G133+G135+G137+G139+G141+G145+G143 -> 0 | H147: 0 | I147: 0 | J147: 0 | K147: 0.5 | L147: 0.5 | M147: 0.5 | N147: 0.5 | O147: 0.5 | P147: 1.5 | Q147: 1.5 | R147: 1.5 | T147: =T121+T123+T125+T127+T129+T131+T133+T135+T137+T139+T141+T145+T143 -> 1.5 | U147: 1.5 | W147: 0.5 | Y147: 0 | Z147: 1.5 | AA147: 1.5 | AJ147: =+SUM(G147:AI147) ->  | AK147: C
C148: TOTAL | E148: =+E146+E147 -> 0.5 | F148: =+F146+F147 -> 0 | G148: =+G146+G147 -> 0 | H148: 0 | I148: 0 | J148: 0 | K148: 0.5 | L148: 0.5 | M148: 0.5 | N148: 0.5 | O148: 0.5 | P148: 1.5 | Q148: 1.5 | R148: 1.5 | S148: =+S146+S147 ->  | T148: 1.5 | U148: 1.5 | W148: 0.5 | Y148: 0 | Z148: 1.5 | AA148: 1.5 | AH148: =+AH146+AH147 ->  | AJ148: =SUM(AL120:AL145) ->  | AM148: =+AM146 -> 405 | AN148: =AJ148-AM148 -> 
AE149: Equivalent ETP (Dir. Inclus) = | AJ149: =+AJ148/36.75 -> 
AM150: =+AM148-30 -> 375
B151: Signatures OBLIGATOIRES | C151: Hassan OUAMOUH | H151: Rodrigue MOREIRA | L151: AKUVI SYLVIA | O151: DIALO IDRISSA | R151: DIARRA HANNE FATOUMATA | V151: SHAM LATA | Y151: PHUONG LINH | AB151: AMINO FASSOLATH | AE151: Youcef OULD KADI | AH151: Emmanuel YAMB KAMEN

Sheet semaine impaire (hidden)
B2: LUNDI | E2: 7h-7h15 | F2: 7h15-7h30 | G2: 7h30-7h45 | H2: 7h45-8h | I2: 8h-8h15 | J2: 8h15-8h30 | K2: 8h30-8h45 | L2: 8h45-9h | M2: 9h-9h15 | N2: 9h15-9H30 | O2: 9h30-9H45 | P2: 9h45-10H | Q2: 10h-10H15 | R2: 10h15-10H30 | S2: 10h30-10h45 | T2: 10h45-11H | U2: 11h-11H15 | V2: 11h15-11H30 | W2: 11h30-11H45 | X2: 11h45-12H | Y2: 12h-12H15 | Z2: 12h15-12H30 | AA2: 12h30-12H45 | AB2: 12h45-13H | AC2: 13h-13H15 | AD2: 13h15-13H30 | AE2: 13h30-13H45 | AF2: 13H45-14H | AG2: 14H-14H15 | AH2: 14h15-14H30 | AI2: 14h30-14H45 | AJ2: 14H45-15H | AK2: 15H-15H15 | AL2: 15h15-15h30 | AM2: 15h30-15h45 | AN2: 15h45-16h | AO2: 16h-16h15 | AP2: 16h15-16h30 | AQ2: 16h30-16h45 | AR2: 16h45-17h | AS2: 17h-17h15 | AT2: 17h15-17h30 | AU2: 17h30-17h45 | AV2: 17h45-18h | AW2: 18h-18h15 | AX2: 18h15-18h30 | AY2: 18h30-18h45 | AZ2: 18h45-19h | BA2: 19h-19h15 | BB2: 19h15-19h30 | BC2: 19h30-19h45 | BD2: total
B3: r = rayon | C3: Angélique | BD3: =COUNTA(E3:BC3)*0.5 -> 0
B4: c = caisse | C4: Danielle | AC4: c | AD4: c | AE4: c | AF4: c | AG4: c | AH4: c | AI4: c | AJ4: c | AK4: c | AL4: c | AM4: c | AN4: c | AO4: c | AP4: c | AQ4: c | AR4: c | AS4: c | AT4: c | AU4: c | AV4: c | AW4: c | AX4: c | AY4: c | AZ4: c | BA4: c | BB4: c | BC4: c | BD4: =COUNTA(E4:BC4)*0.25 -> 6.75
B5: lundi | C5: Sylvina | D5: AKUVI | G5: c | H5: c | I5: c | J5: c | K5: c | L5: c | M5: c | N5: c | O5: c | P5: c | Q5: c | R5: c | S5: c | T5: c | U5: c | V5: c | W5: c | X5: c | Y5: c | Z5: c | AA5: c | AB5: c | AC5: c | AD5: c | AE5: c | AF5: c | BD5: =COUNTA(E5:BC5)*0.25 -> 6.5
C6: Laura | D6: AKUVI | G6: c | H6: c | I6: c | J6: c | K6: c | L6: c | M6: c | N6: c | O6: c | P6: c | Q6: c | R6: c | S6: c | T6: c | U6: c | V6: c | W6: c | X6: c | Y6: c | Z6: c | AA6: c | AB6: c | AC6: c | AD6: c | AE6: c | AF6: c | BD6: =COUNTA(E6:BC6)*0.25 -> 6.5
C7: Sabrina | D7: IDRISSA | AM7: c | AN7: c | AO7: c | AP7: c | AQ7: c | AR7: c | AS7: c | AT7: c | AU7: c | AV7: c | AW7: c | AX7: c | AY7: c | AZ7: c | BA7: c | BB7: c | BC7: c | BD7: =COUNTA(E7:BC7)*0.25 -> 4.25
C8: Brigitte | M8: c | N8: c | O8: c | P8: c | Q8: c | R8: c | S8: c | T8: c | U8: c | V8: c | W8: c | X8: c | Y8: c | Z8: c | AA8: c | AB8: c | AC8: c | AD8: c | BD8: 4.5
C9: Pauline | D9: HANNE FATOUMATA | BD9: 0
C10: Tristan | BD10: 0
C11: Valentin | BD11: 0
C12: Guénael | D12: FASSOLATH | BD12: 0
C13: Marie | BD13: 0
C14: Valérie | I14: c | J14: c | K14: c | L14: c | M14: c | N14: c | O14: c | P14: c | Q14: c | R14: c | S14: c | T14: c | U14: c | V14: c | W14: c | X14: c | AG14: c | AH14: c | AI14: c | AJ14: c | AK14: c | AL14: c | AM14: c | AN14: c | AO14: c | AP14: c | AQ14: c | AR14: c | AS14: c | AT14: c | AU14: c | AV14: c | AW14: c | AX14: c | AY14: c | AZ14: c | BA14: c | BB14: c | BC14: c | BD14: 9.75
C15: Nathalie | BD15: 0
C16: Ophélie | BD16: 0
C17: TOTAL | E17: =COUNTA(E3:E15)*0.25 -> 0 | F17: =COUNTA(F3:F15)*0.25 -> 0 | G17: 0.5 | H17: 0.5 | I17: 0.75 | J17: 0.75 | K17: 0.75 | L17: 0.75 | M17: 1 | N17: 1 | O17: 1 | P17: 1 | Q17: 1 | R17: 1 | S17: 1 | T17: 1 | U17: 1 | V17: 1 | W17: 1 | X17: 1 | Y17: 0.75 | Z17: 0.75 | AA17: 0.75 | AB17: 0.75 | AC17: 1 | AD17: 1 | AE17: 0.75 | AF17: 0.75 | AG17: 0.5 | AH17: 0.5 | AI17: 0.5 | AJ17: 0.5 | AK17: 0.5 | AL17: 0.5 | AM17: 0.75 | AN17: 0.75 | AO17: 0.75 | AP17: 0.75 | AQ17: 0.75 | AR17: 0.75 | AS17: 0.75 | AT17: 0.75 | AU17: 0.75 | AV17: 0.75 | AW17: 0.75 | AX17: 0.75 | AY17: 0.75 | AZ17: 0.75 | BA17: 0.75 | BB17: 0.75 | BC17: 0.75 | BD17: =SUM(E17:BC17) -> 38.25
B19: MARDI | E19: 7h-7h15 | F19: 7h15-7h30 | G19: 7h30-7h45 | H19: 7h45-8h | I19: 8h-8h15 | J19: 8h15-8h30 | K19: 8h30-8h45 | L19: 8h45-9h | M19: 9h-9h15 | N19: 9h15-9H30 | O19: 9h30-9H45 | P19: 9h45-10H | Q19: 10h-10H15 | R19: 10h15-10H30 | S19: 10h30-10h45 | T19: 10h45-11H | U19: 11h-11H15 | V19: 11h15-11H30 | W19: 11h30-11H45 | X19: 11h45-12H | Y19: 12h-12H15 | Z19: 12h15-12H30 | AA19: 12h30-12H45 | AB19: 12h45-13H | AC19: 13h-13H15 | AD19: 13h15-13H30 | AE19: 13h30-13H45 | AF19: 13H45-14H | AG19: 14H-14H15 | AH19: 14h15-14H30 | AI19: 14h30-14H45 | AJ19: 14H45-15H | AK19: 15H-15H15 | AL19: 15h15-15h30 | AM19: 15h30-15h45 | AN19: 15h45-16h | AO19: 16h-16h15 | AP19: 16h15-16h30 | AQ19: 16h30-16h45 | AR19: 16h45-17h | AS19: 17h-17h15 | AT19: 17h15-17h30 | AU19: 17h30-17h45 | AV19: 17h45-18h | AW19: 18h-18h15 | AX19: 18h15-18h30 | AY19: 18h30-18h45 | AZ19: 18h45-19h | BA19: 19h-19h15 | BB19: 19h15-19h30 | BC19: 19h30-19h45 | BD19: total
B20: r = rayon | C20: Angélique | M20: c | N20: c | O20: c | P20: c | Q20: c | R20: c | S20: c | T20: c | U20: c | V20: c | W20: c | X20: c | Y20: c | Z20: c | AA20: c | AB20: c | AC20: c | AD20: c | AE20: c | AF20: c | AG20: c | AH20: c | AI20: c | AJ20: c | BD20: =COUNTA(E20:BC20)*0.25 -> 6
B21: c = caisse | C21: Danielle | M21: c | N21: c | O21: c | P21: c | Q21: c | R21: c | S21: c | T21: c | U21: c | V21: c | W21: c | X21: c | Y21: c | Z21: c | AA21: c | AB21: c | AC21: c | AD21: c | AE21: c | AF21: c | BD21: 5
B22: mardi | C22: Sylvina | D22: AKUVI | G22: c | H22: c | I22: c | J22: c | K22: c | L22: c | M22: c | N22: c | O22: c | P22: c | Q22: c | R22: c | S22: c | T22: c | U22: c | V22: c | W22: c | X22: c | Y22: c | Z22: c | AA22: c | AB22: c | AC22: c | AD22: c | AE22: c | BD22: 6.25
C23: Laura | D23: AKUVI | AK23: c | AL23: c | AM23: c | AN23: c | AO23: c | AP23: c | AQ23: c | AR23: c | AS23: c | AT23: c | AU23: c | AV23: c | AW23: c | AX23: c | AY23: c | AZ23: c | BD23: 4
C24: Sabrina | D24: IDRISSA | AK24: c | AL24: c | AM24: c | AN24: c | AO24: c | AP24: c | AQ24: c | AR24: c | AS24: c | AT24: c | AU24: c | AV24: c | AW24: c | AX24: c | AY24: c | AZ24: c | BA24: c | BB24: c | BC24: c | BD24: 4.75
C25: Brigitte | M25: c | N25: c | O25: c | P25: c | Q25: c | R25: c | S25: c | T25: c | U25: c | V25: c | W25: c | X25: c | Y25: c | AO25: c | AP25: c | AQ25: c | AR25: c | AS25: c | AT25: c | AU25: c | AV25: c | AW25: c | AX25: c | AY25: c | AZ25: c | BA25: c | BB25: c | BD25: 6.75
C26: Pauline | D26: HANNE FATOUMATA | BD26: 0
C27: Tristan | BD27: 0
C28: Valentin | BD28: 0
C29: Guénael | D29: FASSOLATH | BD29: 0
C30: Marie | BD30: 0
C31: Valérie | I31: c | J31: c | K31: c | L31: c | M31: c | N31: c | O31: c | P31: c | Q31: c | R31: c | S31: c | T31: c | U31: c | V31: c | W31: c | X31: c | Y31: c | Z31: c | AA31: c | AB31: c | BD31: 5
C32: Nathalie | AB32: c | AC32: c | AD32: c | AE32: c | AF32: c | AG32: c | AH32: c | AI32: c | AJ32: c | AK32: c | AL32: c | AM32: c | AN32: c | AO32: c | AP32: c | AQ32: c | AR32: c | AS32: c | AT32: c | AU32: c | AV32: c | AW32: c | AX32: c | AY32: c | AZ32: c | BA32: c | BB32: c | BC32: c | BD32: 7
C33: Ophélie | BD33: 0
C34: TOTAL | E34: =COUNTA(E20:E33)*0.25 -> 0 | F34: =COUNTA(F20:F33)*0.25 -> 0 | G34: 0.25 | H34: 0.25 | I34: 0.5 | J34: 0.5 | K34: 0.5 | L34: 0.5 | M34: 1.25 | N34: 1.25 | O34: 1.25 | P34: 1.25 | Q34: 1.25 | R34: 1.25 | S34: 1.25 | T34: 1.25 | U34: 1.25 | V34: 1.25 | W34: 1.25 | X34: 1.25 | Y34: 1.25 | Z34: 1 | AA34: 1 | AB34: 1.25 | AC34: 1 | AD34: 1 | AE34: 1 | AF34: 0.75 | AG34: 0.5 | AH34: 0.5 | AI34: 0.5 | AJ34: 0.5 | AK34: 0.75 | AL34: 0.75 | AM34: 0.75 | AN34: 0.75 | AO34: 1 | AP34: 1 | AQ34: 1 | AR34: 1 | AS34: 1 | AT34: 1 | AU34: 1 | AV34: 1 | AW34: 1 | AX34: 1 | AY34: 1 | AZ34: 1 | BA34: 0.75 | BB34: 0.75 | BC34: 0.5 | BD34: =SUM(E34:BC34) -> 44.75
B36: MERCREDI | E36: 7h-7h15 | F36: 7h15-7h30 | G36: 7h30-7h45 | H36: 7h45-8h | I36: 8h-8h15 | J36: 8h15-8h30 | K36: 8h30-8h45 | L36: 8h45-9h | M36: 9h-9h15 | N36: 9h15-9H30 | O36: 9h30-9H45 | P36: 9h45-10H | Q36: 10h-10H15 | R36: 10h15-10H30 | S36: 10h30-10h45 | T36: 10h45-11H | U36: 11h-11H15 | V36: 11h15-11H30 | W36: 11h30-11H45 | X36: 11h45-12H | Y36: 12h-12H15 | Z36: 12h15-12H30 | AA36: 12h30-12H45 | AB36: 12h45-13H | AC36: 13h-13H15 | AD36: 13h15-13H30 | AE36: 13h30-13H45 | AF36: 13H45-14H | AG36: 14H-14H15 | AH36: 14h15-14H30 | AI36: 14h30-14H45 | AJ36: 14H45-15H | AK36: 15H-15H15 | AL36: 15h15-15h30 | AM36: 15h30-15h45 | AN36: 15h45-16h | AO36: 16h-16h15 | AP36: 16h15-16h30 | AQ36: 16h30-16h45 | AR36: 16h45-17h | AS36: 17h-17h15 | AT36: 17h15-17h30 | AU36: 17h30-17h45 | AV36: 17h45-18h | AW36: 18h-18h15 | AX36: 18h15-18h30 | AY36: 18h30-18h45 | AZ36: 18h45-19h | BA36: 19h-19h15 | BB36: 19h15-19h30 | BC36: 19h30-19h45 | BD36: total
B37: r = rayon | C37: Angélique | BD37: =COUNTA(E37:BC37)*0.25 -> 0
B38: c = caisse | C38: Danielle | M38: c | N38: c | O38: c | P38: c | Q38: c | R38: c | S38: c | T38: c | U38: c | V38: c | W38: c | X38: c | Y38: c | Z38: c | AG38: c | AH38: c | AI38: c | AJ38: c | AK38: c | AL38: c | AM38: c | AN38: c | AO38: c | AP38: c | AQ38: c | AR38: c | AS38: c | AT38: c | AU38: c | AV38: c | AW38: c | AX38: c | AY38: c | AZ38: c | BA38: c | BB38: c | BC38: c | BD38: 9.25
B39: Mercredi | C39: Sylvina | D39: AKUVI | G39: c | H39: c | I39: c | J39: c | K39: c | L39: c | M39: c | N39: c | O39: c | P39: c | Q39: c | R39: c | S39: c | T39: c | U39: c | V39: c | W39: c | X39: c | Y39: c | Z39: c | AA39: c | AB39: c | AC39: c | AD39: c | AE39: c | AF39: c | BD39: 6.5
C40: Laura | D40: AKUVI | M40: c | N40: c | O40: c | P40: c | Q40: c | R40: c | S40: c | T40: c | U40: c | V40: c | W40: c | X40: c | AK40: c | AL40: c | AM40: c | AN40: c | AO40: c | AP40: c | AQ40: c | AR40: c | AS40: c | AT40: c | AU40: c | AV40: c | AW40: c | AX40: c | AY40: c | AZ40: c | BD40: 7
C41: Sabrina | D41: IDRISSA | BD41: 0
C42: Brigitte | M42: c | N42: c | O42: c | P42: c | Q42: c | R42: c | S42: c | T42: c | U42: c | V42: c | W42: c | X42: c | Y42: c | Z42: c | AA42: c | AB42: c | AC42: c | AD42: c | AE42: c | AF42: c | AO42: c | AP42: c | AQ42: c | AR42: c | AS42: c | AT42: c | AU42: c | AV42: c | AW42: c | AX42: c | AY42: c | AZ42: c | BA42: c | BB42: c | BC42: c | BD42: 8.75
C43: Pauline | D43: HANNE FATOUMATA | BD43: 0
C44: Tristan | BD44: 0
C45: Valentin | BD45: 0
C46: Guénael | D46: FASSOLATH | BD46: 0
C47: Marie | BD47: 0
C48: Valérie | I48: c | J48: c | K48: c | L48: c | M48: c | N48: c | O48: c | P48: c | Q48: c | R48: c | S48: c | T48: c | U48: c | V48: c | W48: c | X48: c | Y48: c | Z48: c | AA48: c | AB48: c | BD48: 5
C49: Nathalie | AB49: c | AC49: c | AD49: c | AE49: c | AF49: c | AG49: c | AH49: c | AI49: c | AJ49: c | AK49: c | AL49: c | AM49: c | AN49: c | AO49: c | AP49: c | AQ49: c | AR49: c | AS49: c | AT49: c | AU49: c | AV49: c | AW49: c | AX49: c | AY49: c | AZ49: c | BA49: c | BB49: c | BC49: c | BD49: 7
C50: Ophélie | BD50: 0
C51: TOTAL | E51: =COUNTA(E37:E50)*0.25 -> 0 | F51: =COUNTA(F37:F50)*0.25 -> 0 | G51: 0.25 | H51: 0.25 | I51: 0.5 | J51: 0.5 | K51: 0.5 | L51: 0.5 | M51: 1.25 | N51: 1.25 | O51: 1.25 | P51: 1.25 | Q51: 1.25 | R51: 1.25 | S51: 1.25 | T51: 1.25 | U51: 1.25 | V51: 1.25 | W51: 1.25 | X51: 1.25 | Y51: 1 | Z51: 1 | AA51: 0.75 | AB51: 1 | AC51: 0.75 | AD51: 0.75 | AE51: 0.75 | AF51: 0.75 | AG51: 0.5 | AH51: 0.5 | AI51: 0.5 | AJ51: 0.5 | AK51: 0.75 | AL51: 0.75 | AM51: 0.75 | AN51: 0.75 | AO51: 1 | AP51: 1 | AQ51: 1 | AR51: 1 | AS51: 1 | AT51: 1 | AU51: 1 | AV51: 1 | AW51: 1 | AX51: 1 | AY51: 1 | AZ51: 1 | BA51: 0.75 | BB51: 0.75 | BC51: 0.75 | BD51: =SUM(E51:BC51) -> 43.5
B53: JEUDI | E53: 7h-7h15 | F53: 7h15-7h30 | G53: 7h30-7h45 | H53: 7h45-8h | I53: 8h-8h15 | J53: 8h15-8h30 | K53: 8h30-8h45 | L53: 8h45-9h | M53: 9h-9h15 | N53: 9h15-9H30 | O53: 9h30-9H45 | P53: 9h45-10H | Q53: 10h-10H15 | R53: 10h15-10H30 | S53: 10h30-10h45 | T53: 10h45-11H | U53: 11h-11H15 | V53: 11h15-11H30 | W53: 11h30-11H45 | X53: 11h45-12H | Y53: 12h-12H15 | Z53: 12h15-12H30 | AA53: 12h30-12H45 | AB53: 12h45-13H | AC53: 13h-13H15 | AD53: 13h15-13H30 | AE53: 13h30-13H45 | AF53: 13H45-14H | AG53: 14H-14H15 | AH53: 14h15-14H30 | AI53: 14h30-14H45 | AJ53: 14H45-15H | AK53: 15H-15H15 | AL53: 15h15-15h30 | AM53: 15h30-15h45 | AN53: 15h45-16h | AO53: 16h-16h15 | AP53: 16h15-16h30 | AQ53: 16h30-16h45 | AR53: 16h45-17h | AS53: 17h-17h15 | AT53: 17h15-17h30 | AU53: 17h30-17h45 | AV53: 17h45-18h | AW53: 18h-18h15 | AX53: 18h15-18h30 | AY53: 18h30-18h45 | AZ53: 18h45-19h | BA53: 19h-19h15 | BB53: 19h15-19h30 | BC53: 19h30-19h45 | BD53: total
B54: r = rayon | C54: Angélique | AC54: c | AD54: c | AE54: c | AF54: c | AG54: c | AH54: c | AI54: c | AJ54: c | AK54: c | AL54: c | AM54: c | AN54: c | AO54: c | AP54: c | AQ54: c | AR54: c | AS54: c | AT54: c | AU54: c | AV54: c | AW54: c | AX54: c | AY54: c | AZ54: c | BA54: c | BB54: c | BC54: c | BD54: =COUNTA(E54:BC54)*0.25 -> 6.75
B55: c = caisse | C55: Danielle | M55: C | N55: C | O55: C | P55: C | Q55: C | R55: C | S55: C | T55: C | U55: C | V55: C | W55: C | X55: C | Y55: C | Z55: C | AA55: C | AB55: C | AC55: C | AD55: C | AE55: C | AF55: C | BD55: 5
C56: Sylvina | D56: AKUVI | G56: c | H56: c | I56: c | J56: c | K56: c | L56: c | M56: c | N56: c | O56: c | P56: c | Q56: c | R56: c | S56: c | T56: c | U56: c | V56: C | W56: C | X56: C | Y56: C | Z56: C | AA56: C | AB56: C | BD56: 5.5
B57: Jeudi | C57: Laura | D57: AKUVI | G57: C | H57: C | I57: C | J57: C | K57: C | L57: C | M57: C | N57: c | O57: c | P57: c | Q57: c | R57: c | S57: c | T57: c | U57: c | V57: C | W57: C | X57: C | Y57: c | Z57: c | AK57: C | AL57: c | AM57: c | AN57: c | AO57: c | AP57: c | AQ57: c | AR57: c | AS57: c | AT57: c | AU57: c | AV57: c | AW57: c | AX57: c | AY57: c | AZ57: c | BA57: c | BB57: c | BC57: c | BD57: 9.75
C58: Sabrina | D58: IDRISSA | O58: C | P58: C | Q58: C | R58: C | S58: C | T58: C | U58: C | V58: C | W58: C | X58: C | AG58: C | AH58: C | AI58: C | AJ58: C | AK58: C | AL58: C | AM58: C | AN58: C | AO58: C | AP58: C | AQ58: C | AR58: C | AS58: C | AT58: C | AU58: C | AV58: C | AW58: C | AX58: C | AY58: C | AZ58: C | BA58: C | BB58: C | BC58: C | BD58: 8.25
C59: Brigitte | BD59: 0
C60: Pauline | D60: HANNE FATOUMATA | BD60: 0
C61: Tristan | BD61: 0
C62: Valentin | BD62: 0
C63: Guénael | D63: FASSOLATH | BD63: 0
C64: Marie | BD64: 0
C65: Valérie | BD65: 0
C66: Nathalie | I66: C | J66: C | K66: C | L66: C | M66: C | N66: C | O66: C | P66: C | Q66: C | R66: C | S66: C | T66: C | U66: C | V66: C | W66: C | X66: C | AG66: C | AH66: C | AI66: C | AJ66: C | AK66: C | AL66: C | AM66: C | AN66: C | AO66: C | AP66: C | AQ66: C | AR66: C | AS66: C | AT66: C | AU66: C | AV66: C | AW66: C | AX66: C | AY66: C | AZ66: C | BA66: C | BB66: C | BC66: C | BD66: 9.75
C67: Ophélie | BD67: 0
C68: TOTAL | E68: =COUNTA(E54:E67)*0.25 -> 0 | F68: =COUNTA(F54:F67)*0.25 -> 0 | G68: 0.5 | H68: 0.5 | I68: 0.75 | J68: 0.75 | K68: 0.75 | L68: 0.75 | M68: 1 | N68: 1 | O68: 1.25 | P68: 1.25 | Q68: 1.25 | R68: 1.25 | S68: 1.25 | T68: 1.25 | U68: 1.25 | V68: 1.25 | W68: 1.25 | X68: 1.25 | Y68: 0.75 | Z68: 0.75 | AA68: 0.5 | AB68: 0.5 | AC68: 0.5 | AD68: 0.5 | AE68: 0.5 | AF68: 0.5 | AG68: 0.75 | AH68: 0.75 | AI68: 0.75 | AJ68: 0.75 | AK68: 1 | AL68: 1 | AM68: 1 | AN68: 1 | AO68: 1 | AP68: 1 | AQ68: 1 | AR68: 1 | AS68: 1 | AT68: 1 | AU68: 1 | AV68: 1 | AW68: 1 | AX68: 1 | AY68: 1 | AZ68: 1 | BA68: 1 | BB68: 1 | BC68: 1 | BD68: =SUM(E68:BC68) -> 45
B70: VENDREDI | E70: 7h-7h15 | F70: 7h15-7h30 | G70: 7h30-7h45 | H70: 7h45-8h | I70: 8h-8h15 | J70: 8h15-8h30 | K70: 8h30-8h45 | L70: 8h45-9h | M70: 9h-9h15 | N70: 9h15-9H30 | O70: 9h30-9H45 | P70: 9h45-10H | Q70: 10h-10H15 | R70: 10h15-10H30 | S70: 10h30-10h45 | T70: 10h45-11H | U70: 11h-11H15 | V70: 11h15-11H30 | W70: 11h30-11H45 | X70: 11h45-12H | Y70: 12h-12H15 | Z70: 12h15-12H30 | AA70: 12h30-12H45 | AB70: 12h45-13H | AC70: 13h-13H15 | AD70: 13h15-13H30 | AE70: 13h30-13H45 | AF70: 13H45-14H | AG70: 14H-14H15 | AH70: 14h15-14H30 | AI70: 14h30-14H45 | AJ70: 14H45-15H | AK70: 15H-15H15 | AL70: 15h15-15h30 | AM70: 15h30-15h45 | AN70: 15h45-16h | AO70: 16h-16h15 | AP70: 16h15-16h30 | AQ70: 16h30-16h45 | AR70: 16h45-17h | AS70: 17h-17h15 | AT70: 17h15-17h30 | AU70: 17h30-17h45 | AV70: 17h45-18h | AW70: 18h-18h15 | AX70: 18h15-18h30 | AY70: 18h30-18h45 | AZ70: 18h45-19h | BA70: 19h-19h15 | BB70: 19h15-19h30 | BC70: 19h30-19h45 | BD70: total
B71: r = rayon | C71: Angélique | M71: c | N71: c | O71: c | P71: c | Q71: C | R71: C | S71: C | T71: C | U71: C | V71: c | W71: c | X71: c | AG71: c | AH71: c | AI71: c | AJ71: c | AK71: c | AL71: c | AM71: c | AN71: c | AO71: c | AP71: c | AQ71: c | AR71: c | AS71: c | AT71: c | AU71: c | AV71: c | AW71: c | AX71: c | AY71: c | AZ71: c | BA71: c | BB71: c | BC71: c | BD71: =COUNTA(E71:BC71)*0.25 -> 8.75
B72: c = caisse | C72: Danielle | AG72: c | AH72: c | AI72: c | AJ72: c | AK72: c | AL72: c | AM72: c | AN72: c | AO72: c | AP72: c | AQ72: c | AR72: c | AS72: c | AT72: c | AU72: c | AV72: c | AW72: c | AX72: c | AY72: c | AZ72: c | BA72: c | BB72: c | BC72: c | BD72: =COUNTA(E72:BC72)*0.25 -> 5.75
C73: Sylvina | D73: AKUVI | G73: c | H73: c | I73: c | J73: c | K73: c | L73: c | M73: c | N73: c | O73: c | P73: c | Q73: c | R73: c | S73: c | T73: c | U73: c | V73: C | W73: C | X73: C | Y73: C | Z73: C | AA73: C | AB73: C | AC73: C | AD73: C | AE73: C | AF73: C | BD73: 6.5
B74: Vendredi | C74: Laura | D74: AKUVI | M74: c | N74: C | O74: C | P74: C | Q74: C | R74: C | S74: C | T74: C | U74: C | V74: C | W74: C | X74: C | Y74: c | Z74: c | AA74: c | AB74: c | AC74: c | AD74: c | AE74: c | AF74: c | BD74: 5
C75: Sabrina | D75: IDRISSA | M75: C | N75: C | O75: C | P75: C | Q75: C | R75: C | S75: C | T75: C | U75: C | V75: C | W75: C | X75: C | Y75: C | Z75: C | AK75: C | AL75: C | AM75: C | AN75: C | AO75: C | AP75: C | AQ75: C | AR75: C | AS75: C | AT75: C | AU75: C | AV75: C | AW75: C | AX75: C | AY75: C | AZ75: C | BA75: C | BB75: C | BC75: C | BD75: 8.25
C76: Brigitte | AL76: c | AM76: c | AN76: c | AO76: c | AP76: c | AQ76: c | AR76: c | AS76: c | AT76: c | AU76: c | AV76: c | AW76: c | AX76: c | AY76: c | AZ76: c | BA76: c | BB76: c | BC76: c | BD76: 4.5
C77: Pauline | D77: HANNE FATOUMATA | BD77: 0
C78: Tristan | BD78: 0
C79: Valentin | BD79: 0
C80: Guénael | D80: FASSOLATH | BD80: 0
C81: Marie | BD81: 0
C82: Valérie | AG82: C | AH82: C | AI82: C | AJ82: C | AK82: C | AL82: C | AM82: C | AN82: C | AO82: C | AP82: C | AQ82: C | AR82: C | AS82: C | AT82: C | AU82: C | AV82: C | AW82: C | AX82: C | AY82: C | AZ82: C | BA82: C | BB82: C | BC82: C | BD82: 5.75
C83: Nathalie | I83: C | J83: C | K83: C | L83: C | M83: C | N83: C | O83: C | P83: C | Q83: C | R83: C | S83: C | T83: C | U83: C | V83: C | W83: c | X83: c | Y83: c | Z83: c | AA83: c | AB83: c | AC83: c | AD83: c | AE83: c | AF83: c | AG83: c | BD83: 6.25
C84: Ophélie | BD84: 0
C85: TOTAL | E85: =COUNTA(E71:E84)*0.25 -> 0 | F85: =COUNTA(F71:F84)*0.25 -> 0 | G85: 0.25 | H85: 0.25 | I85: 0.5 | J85: 0.5 | K85: 0.5 | L85: 0.5 | M85: 1.25 | N85: 1.25 | O85: 1.25 | P85: 1.25 | Q85: 1.25 | R85: 1.25 | S85: 1.25 | T85: 1.25 | U85: 1.25 | V85: 1.25 | W85: 1.25 | X85: 1.25 | Y85: 1 | Z85: 1 | AA85: 0.75 | AB85: 0.75 | AC85: 0.75 | AD85: 0.75 | AE85: 0.75 | AF85: 0.75 | AG85: 1 | AH85: 0.75 | AI85: 0.75 | AJ85: 0.75 | AK85: 1 | AL85: 1.25 | AM85: 1.25 | AN85: 1.25 | AO85: 1.25 | AP85: 1.25 | AQ85: 1.25 | AR85: 1.25 | AS85: 1.25 | AT85: 1.25 | AU85: 1.25 | AV85: 1.25 | AW85: 1.25 | AX85: 1.25 | AY85: 1.25 | AZ85: 1.25 | BA85: 1.25 | BB85: 1.25 | BC85: 1.25 | BD85: =SUM(E85:BC85) -> 50.75
B87: SAMEDI | E87: 7h-7h15 | F87: 7h15-7h30 | G87: 7h30-7h45 | H87: 7h45-8h | I87: 8h-8h15 | J87: 8h15-8h30 | K87: 8h30-8h45 | L87: 8h45-9h | M87: 9h-9h15 | N87: 9h15-9H30 | O87: 9h30-9H45 | P87: 9h45-10H | Q87: 10h-10H15 | R87: 10h15-10H30 | S87: 10h30-10h45 | T87: 10h45-11H | U87: 11h-11H15 | V87: 11h15-11H30 | W87: 11h30-11H45 | X87: 11h45-12H | Y87: 12h-12H15 | Z87: 12h15-12H30 | AA87: 12h30-12H45 | AB87: 12h45-13H | AC87: 13h-13H15 | AD87: 13h15-13H30 | AE87: 13h30-13H45 | AF87: 13H45-14H | AG87: 14H-14H15 | AH87: 14h15-14H30 | AI87: 14h30-14H45 | AJ87: 14H45-15H | AK87: 15H-15H15 | AL87: 15h15-15h30 | AM87: 15h30-15h45 | AN87: 15h45-16h | AO87: 16h-16h15 | AP87: 16h15-16h30 | AQ87: 16h30-16h45 | AR87: 16h45-17h | AS87: 17h-17h15 | AT87: 17h15-17h30 | AU87: 17h30-17h45 | AV87: 17h45-18h | AW87: 18h-18h15 | AX87: 18h15-18h30 | AY87: 18h30-18h45 | AZ87: 18h45-19h | BA87: 19h-19h15 | BB87: 19h15-19h30 | BC87: 19h30-19h45 | BD87: total
B88: r = rayon | C88: Angélique | M88: C | N88: C | O88: c | P88: c | Q88: c | R88: C | S88: C | T88: C | U88: C | V88: C | W88: C | X88: C | Y88: C | Z88: C | BD88: =COUNTA(E88:BC88)*0.25 -> 3.5
B89: c = caisse | C89: Danielle | M89: c | N89: c | O89: c | P89: c | Q89: C | R89: C | S89: C | T89: C | U89: C | V89: C | W89: C | X89: c | Y89: c | Z89: c | AA89: c | AB89: c | AC89: c | AD89: c | AE89: c | AF89: C | BD89: =COUNTA(E89:BC89)*0.25 -> 5
B90: Samedi | C90: Sylvina | D90: AKUVI | G90: c | H90: c | I90: c | J90: c | K90: c | L90: c | M90: c | N90: c | O90: c | P90: c | Q90: c | R90: c | S90: c | T90: c | U90: c | V90: C | W90: C | X90: C | Y90: C | Z90: C | AA90: C | AB90: C | BD90: 5.5
C91: Laura | D91: AKUVI | M91: c | N91: c | O91: c | P91: c | Q91: c | R91: c | S91: c | T91: C | U91: C | V91: C | W91: C | X91: C | Y91: C | Z91: C | AA91: C | AB91: C | AC91: C | AD91: C | BD91: 4.5
C92: Sabrina | D92: IDRISSA | O92: c | P92: c | Q92: c | R92: c | S92: c | T92: C | U92: C | V92: C | W92: C | X92: C | Y92: C | Z92: C | AA92: C | AB92: C | AC92: C | AD92: C | AE92: C | AF92: C | BD92: 4.5
C93: Brigitte | M93: C | N93: c | O93: c | P93: c | Q93: C | R93: C | S93: C | T93: C | U93: C | V93: C | W93: C | X93: C | Y93: C | Z93: C | AA93: C | AB93: C | AC93: C | AD93: C | AM93: c | AN93: c | AO93: c | AP93: c | AQ93: c | AR93: c | AS93: c | AT93: c | AU93: c | AV93: c | AW93: c | AX93: c | AY93: c | AZ93: c | BA93: c | BB93: c | BD93: 8.5
C94: Pauline | D94: HANNE FATOUMATA | M94: C | N94: C | O94: C | P94: C | Q94: C | R94: C | S94: C | T94: C | U94: C | V94: c | W94: c | X94: c | AJ94: C | AK94: c | AL94: c | AM94: c | AN94: c | AO94: c | AP94: c | AQ94: c | AR94: c | AS94: c | AT94: c | AU94: c | AV94: c | AW94: c | AX94: c | AY94: c | AZ94: c | BA94: c | BB94: c | BC94: c | BD94: 8
C95: Tristan | BD95: 0
C96: Valentin | AM96: c | AN96: c | AO96: c | AP96: c | AQ96: c | AR96: c | AS96: c | AT96: c | AU96: c | AV96: c | AW96: c | AX96: c | AY96: c | AZ96: c | BA96: c | BB96: c | BC96: c | BD96: 4.25
C97: Guénael | D97: FASSOLATH | AN97: c | AO97: c | AP97: c | AQ97: c | AR97: c | AS97: c | AT97: c | AU97: c | AV97: c | AW97: c | AX97: c | AY97: c | AZ97: c | BA97: c | BB97: c | BC97: c | BD97: 4
C98: Marie | AE98: c | AF98: c | AG98: c | AH98: c | AI98: c | AJ98: c | AK98: c | AL98: c | AM98: c | AN98: c | AO98: c | AP98: c | AQ98: c | AR98: c | AS98: c | AT98: c | AU98: c | AV98: c | AW98: c | AX98: c | AY98: c | AZ98: c | BA98: c | BB98: c | BC98: c | BD98: 6.25
C99: Valérie | AG99: C | AH99: C | AI99: C | AJ99: C | AK99: C | AL99: C | AM99: C | AN99: C | AO99: C | AP99: C | AQ99: C | AR99: C | AS99: C | AT99: C | AU99: C | AV99: C | AW99: C | AX99: C | AY99: C | AZ99: C | BA99: C | BB99: C | BC99: C | BD99: 5.75
C100: Nathalie | G100: C | H100: C | I100: C | J100: C | K100: C | L100: C | M100: C | N100: C | O100: C | P100: C | Q100: C | R100: C | S100: C | T100: C | U100: C | V100: c | W100: c | X100: c | Y100: c | Z100: c | AA100: c | AB100: c | AC100: c | AD100: c | AE100: c | AF100: c | AG100: c | BD100: 6.75
C101: Ophélie | AF101: C | AG101: C | AH101: C | AI101: C | AJ101: C | AK101: C | AL101: C | AM101: C | AN101: C | AO101: C | AP101: C | AQ101: C | AR101: C | AS101: C | AT101: C | AU101: C | AV101: C | AW101: C | AX101: C | AY101: C | AZ101: C | BA101: C | BB101: C | BC101: C | BD101: 6
C102: TOTAL | E102: =COUNTA(E88:E101)*0.25 -> 0 | F102: =COUNTA(F88:F101)*0.25 -> 0 | G102: 0.5 | H102: 0.5 | I102: 0.5 | J102: 0.5 | K102: 0.5 | L102: 0.5 | M102: 1.75 | N102: 1.75 | O102: 2 | P102: 2 | Q102: 2 | R102: 2 | S102: 2 | T102: 2 | U102: 2 | V102: 2 | W102: 2 | X102: 2 | Y102: 1.75 | Z102: 1.75 | AA102: 1.5 | AB102: 1.5 | AC102: 1.25 | AD102: 1.25 | AE102: 1 | AF102: 1.25 | AG102: 1 | AH102: 0.75 | AI102: 0.75 | AJ102: 1 | AK102: 1 | AL102: 1 | AM102: 1.5 | AN102: 1.75 | AO102: 1.75 | AP102: 1.75 | AQ102: 1.75 | AR102: 1.75 | AS102: 1.75 | AT102: 1.75 | AU102: 1.75 | AV102: 1.75 | AW102: 1.75 | AX102: 1.75 | AY102: 1.75 | AZ102: 1.75 | BA102: 1.75 | BB102: 1.75 | BC102: 1.5 | BD102: =SUM(BD88:BD101) -> 72.5
B104: Dimanche | E104: 7h-7h15 | F104: 7h15-7h30 | G104: 7h30-7h45 | H104: 7h45-8h | I104: 8h-8h15 | J104: 8h15-8h30 | K104: 8h30-8h45 | L104: 8h45-9h | M104: 9h-9h15 | N104: 9h15-9H30 | O104: 9h30-9H45 | P104: 9h45-10H | Q104: 10h-10H15 | R104: 10h15-10H30 | S104: 10h30-10h45 | T104: 10h45-11H | U104: 11h-11H15 | V104: 11h15-11H30 | W104: 11h30-11H45 | X104: 11h45-12H | Y104: 12h-12H15 | Z104: 12h15-12H30 | AA104: 12h30-12H45 | AB104: 12h45-13H | AC104: 13h-13H15 | AD104: 13h15-13H30 | AE104: 13h30-13H45 | AF104: 13H45-14H | AG104: 14H-14H15 | AH104: 14h15-14H30 | AI104: 14h30-14H45 | AJ104: 14H45-15H | AK104: 15H-15H15 | AL104: 15h15-15h30 | AM104: 15h30-15h45 | AN104: 15h45-16h | AO104: 16h-16h15 | AP104: 16h15-16h30 | AQ104: 16h30-16h45 | AR104: 16h45-17h | AS104: 17h-17h15 | AT104: 17h15-17h30 | AU104: 17h30-17h45 | AV104: 17h45-18h | AW104: 18h-18h15 | AX104: 18h15-18h30 | AY104: 18h30-18h45 | AZ104: 18h45-19h | BA104: 19h-19h15 | BB104: 19h15-19h30 | BC104: 19h30-19h45 | BD104: total
B105: r = rayon | C105: Angélique | BD105: =COUNTA(E105:BC105)*0.25 -> 0
B106: c = caisse | C106: Danielle | BD106: =COUNTA(E106:BC106)*0.25 -> 0
B107: Dimanche | C107: Sylvina | D107: AKUVI | BD107: 0
C108: Laura | D108: AKUVI | BD108: 0
C109: Sabrina | D109: IDRISSA | BD109: 0
C110: Brigitte | M110: C | N110: C | O110: C | P110: C | Q110: C | R110: C | S110: C | T110: C | U110: C | V110: C | W110: C | X110: C | Y110: C | Z110: C | AA110: C | AB110: C | BD110: 4
C111: Pauline | D111: HANNE FATOUMATA | M111: c | N111: c | O111: c | P111: c | Q111: c | R111: c | S111: c | T111: c | U111: c | V111: c | W111: c | X111: c | Y111: c | Z111: c | AA111: c | AB111: c | BD111: 4
C112: Tristan | BD112: 0
C113: Valentin | F113: R | G113: R | H113: R | I113: R | J113: R | K113: R | L113: R | M113: R | N113: R | O113: c | P113: c | Q113: c | R113: c | S113: c | T113: C | U113: C | V113: C | W113: C | X113: C | Y113: C | Z113: C | AA113: C | AB113: C | BD113: 5.75
C114: Guénael | D114: FASSOLATH | E114: R | F114: R | G114: R | H114: R | I114: R | J114: R | K114: R | L114: R | M114: R | N114: R | O114: R | P114: R | Q114: c | R114: c | S114: c | T114: C | U114: C | V114: C | W114: C | X114: C | Y114: C | Z114: C | AA114: C | AB114: C | BD114: 6
C115: Marie | N115: c | O115: c | P115: c | Q115: c | R115: c | S115: c | T115: c | U115: c | V115: c | W115: c | X115: c | Y115: c | Z115: c | AA115: c | AB115: c | BD115: 3.75
C116: Valérie | G116: C | H116: C | I116: C | J116: C | K116: C | L116: C | M116: C | N116: C | O116: C | P116: C | Q116: C | R116: C | S116: C | T116: C | U116: C | V116: C | W116: C | X116: C | Y116: C | Z116: C | AA116: C | AB116: C | BD116: 5.5
C117: Nathalie | BD117: 0
C118: Ophélie | M118: C | N118: C | O118: C | P118: C | Q118: C | R118: C | S118: C | T118: C | U118: C | V118: C | W118: C | X118: C | Y118: C | Z118: C | AA118: C | AB118: C | BD118: 4
C119: TOTAL | E119: =COUNTA(E105:E118)*0.25 -> 0.25 | F119: =COUNTA(F105:F118)*0.25 -> 0.5 | G119: 0.75 | H119: 0.75 | I119: 0.75 | J119: 0.75 | K119: 0.75 | L119: 0.75 | M119: 1.5 | N119: 1.75 | O119: 1.75 | P119: 1.75 | Q119: 1.75 | R119: 1.75 | S119: 1.75 | T119: 1.75 | U119: 1.75 | V119: 1.75 | W119: 1.75 | X119: 1.75 | Y119: 1.75 | Z119: 1.75 | AA119: 1.75 | AB119: 1.75 | AC119: 0 | AD119: 0 | AE119: 0 | AF119: 0 | AG119: 0 | AH119: 0 | AI119: 0 | AJ119: 0 | AK119: 0 | AL119: 0 | AM119: 0 | AN119: 0 | AO119: 0 | AP119: 0 | AQ119: 0 | AR119: 0 | AS119: 0 | AT119: 0 | AU119: 0 | AV119: 0 | AW119: 0 | AX119: 0 | AY119: 0 | AZ119: 0 | BA119: 0 | BB119: 0 | BC119: 0 | BD119: =SUM(E119:BC119) -> 33
B121: Signatures OBLIGATOIRES
B126: Planning | E126: 7h-7h15 | F126: 7h15-7h30 | G126: 7h30-7h45 | H126: 7h45-8h | I126: 8h-8h15 | J126: 8h15-8h30 | K126: 8h30-8h45 | L126: 8h45-9h | M126: 9h-9h15 | N126: 9h15-9H30 | O126: 9h30-9H45 | P126: 9h45-10H | Q126: 10h-10H15 | R126: 10h15-10H30 | S126: 10h30-10h45 | T126: 10h45-11H | U126: 11h-11H15 | V126: 11h15-11H30 | W126: 11h30-11H45 | X126: 11h45-12H | Y126: 12h-12H15 | Z126: 12h15-12H30 | AA126: 12h30-12H45 | AB126: 12h45-13H | AC126: 13h-13H15 | AD126: 13h15-13H30 | AE126: 13h30-13H45 | AF126: 13H45-14H | AG126: 14H-14H15 | AH126: 14h15-14H30 | AI126: 14h30-14H45 | AJ126: 14H45-15H | AK126: 15H-15H15 | AL126: 15h15-15h30 | AM126: 15h30-15h45 | AN126: 15h45-16h | AO126: 16h-16h15 | AP126: 16h15-16h30 | AQ126: 16h30-16h45 | AR126: 16h45-17h | AS126: 17h-17h15 | AT126: 17h15-17h30 | AU126: 17h30-17h45 | AV126: 17h45-18h | AW126: 18h-18h15 | AX126: 18h15-18h30 | AY126: 18h30-18h45 | AZ126: 18h45-19h | BA126: 19h-19h15 | BB126: 19h15-19h30 | BC126: 19h30-19h45
B127: TOTAL Semaine | C127: =+C105 -> Angélique | D127: R | E127: =(IF(E3="r",1,0)+IF(E20="r",1,0)+IF(E37="r",1,0)+IF(E54="r",1,0)+IF(E71="r",1,0)+IF(E88="r",1,0)+IF(E105="r",1,0))/4 -> 0 | F127: =(IF(F3="r",1,0)+IF(F20="r",1,0)+IF(F37="r",1,0)+IF(F54="r",1,0)+IF(F71="r",1,0)+IF(F88="r",1,0)+IF(F105="r",1,0))/4 -> 0 | G127: 0 | H127: 0 | I127: 0 | J127: 0 | K127: 0 | L127: 0 | M127: 0 | N127: 0 | O127: 0 | P127: 0 | Q127: 0 | R127: 0 | S127: 0 | T127: 0 | U127: 0 | V127: 0 | W127: 0 | X127: 0 | Y127: 0 | Z127: 0 | AA127: 0 | AB127: 0 | AC127: 0 | AD127: 0 | AE127: 0 | AF127: 0 | AG127: 0 | AH127: 0 | AI127: 0 | AJ127: 0 | AK127: 0 | AL127: 0 | AM127: 0 | AN127: 0 | AO127: 0 | AP127: 0 | AQ127: 0 | AR127: 0 | AS127: 0 | AT127: 0 | AU127: 0 | AV127: 0 | AW127: 0 | AX127: 0 | AY127: 0 | AZ127: 0 | BA127: 0 | BB127: 0 | BC127: 0 | BD127: =SUM(E131:BC131) -> 0 | BE127: =SUM(BD127+BD128) -> 25
D128: C | E128: =(IF(E3="c",1,0)+IF(E20="c",1,0)+IF(E37="c",1,0)+IF(E54="c",1,0)+IF(E71="c",1,0)+IF(E88="c",1,0)+IF(E105="c",1,0))/4 -> 0 | F128: =(IF(F3="c",1,0)+IF(F20="c",1,0)+IF(F37="c",1,0)+IF(F54="c",1,0)+IF(F71="c",1,0)+IF(F88="c",1,0)+IF(F105="c",1,0))/4 -> 0 | G128: 0 | H128: 0 | I128: 0 | J128: 0 | K128: 0 | L128: 0 | M128: 0.75 | N128: 0.75 | O128: 0.75 | P128: 0.75 | Q128: 0.75 | R128: 0.75 | S128: 0.75 | T128: 0.75 | U128: 0.75 | V128: 0.75 | W128: 0.75 | X128: 0.75 | Y128: 0.5 | Z128: 0.5 | AA128: 0.25 | AB128: 0.25 | AC128: 0.5 | AD128: 0.5 | AE128: 0.5 | AF128: 0.5 | AG128: 0.75 | AH128: 0.75 | AI128: 0.75 | AJ128: 0.75 | AK128: 0.5 | AL128: 0.5 | AM128: 0.5 | AN128: 0.5 | AO128: 0.5 | AP128: 0.5 | AQ128: 0.5 | AR128: 0.5 | AS128: 0.5 | AT128: 0.5 | AU128: 0.5 | AV128: 0.5 | AW128: 0.5 | AX128: 0.5 | AY128: 0.5 | AZ128: 0.5 | BA128: 0.5 | BB128: 0.5 | BC128: 0.5 | BD128: =SUM(E128:BC128) -> 25
C129: =+C106 -> Danielle | D129: R | E129: =(IF(E4="r",1,0)+IF(E21="r",1,0)+IF(E38="r",1,0)+IF(E55="r",1,0)+IF(E72="r",1,0)+IF(E89="r",1,0)+IF(E106="r",1,0))/4 -> 0 | F129: =(IF(F4="r",1,0)+IF(F21="r",1,0)+IF(F38="r",1,0)+IF(F55="r",1,0)+IF(F72="r",1,0)+IF(F89="r",1,0)+IF(F106="r",1,0))/4 -> 0 | G129: 0 | H129: 0 | I129: 0 | J129: 0 | K129: 0 | L129: 0 | M129: 0 | N129: 0 | O129: 0 | P129: 0 | Q129: 0 | R129: 0 | S129: 0 | T129: 0 | U129: 0 | V129: 0 | W129: 0 | X129: 0 | Y129: 0 | Z129: 0 | AA129: 0 | AB129: 0 | AC129: 0 | AD129: 0 | AE129: 0 | AF129: 0 | AG129: 0 | AH129: 0 | AI129: 0 | AJ129: 0 | AK129: 0 | AL129: 0 | AM129: 0 | AN129: 0 | AO129: 0 | AP129: 0 | AQ129: 0 | AR129: 0 | AS129: 0 | AT129: 0 | AU129: 0 | AV129: 0 | AW129: 0 | AX129: 0 | AY129: 0 | AZ129: 0 | BA129: 0 | BB129: 0 | BC129: 0 | BD129: 0 | BE129: =SUM(BD129+BD130) -> 36.75
D130: C | E130: =(IF(E4="c",1,0)+IF(E21="c",1,0)+IF(E38="c",1,0)+IF(E55="c",1,0)+IF(E72="c",1,0)+IF(E89="c",1,0)+IF(E106="c",1,0))/4 -> 0 | F130: =(IF(F4="c",1,0)+IF(F21="c",1,0)+IF(F38="c",1,0)+IF(F55="c",1,0)+IF(F72="c",1,0)+IF(F89="c",1,0)+IF(F106="c",1,0))/4 -> 0 | G130: 0 | H130: 0 | I130: 0 | J130: 0 | K130: 0 | L130: 0 | M130: 1 | N130: 1 | O130: 1 | P130: 1 | Q130: 1 | R130: 1 | S130: 1 | T130: 1 | U130: 1 | V130: 1 | W130: 1 | X130: 1 | Y130: 1 | Z130: 1 | AA130: 0.75 | AB130: 0.75 | AC130: 1 | AD130: 1 | AE130: 1 | AF130: 1 | AG130: 0.75 | AH130: 0.75 | AI130: 0.75 | AJ130: 0.75 | AK130: 0.75 | AL130: 0.75 | AM130: 0.75 | AN130: 0.75 | AO130: 0.75 | AP130: 0.75 | AQ130: 0.75 | AR130: 0.75 | AS130: 0.75 | AT130: 0.75 | AU130: 0.75 | AV130: 0.75 | AW130: 0.75 | AX130: 0.75 | AY130: 0.75 | AZ130: 0.75 | BA130: 0.75 | BB130: 0.75 | BC130: 0.75 | BD130: 36.75
C131: =+C107 -> Sylvina | D131: R | E131: =(IF(E5="r",1,0)+IF(E22="r",1,0)+IF(E39="r",1,0)+IF(E56="r",1,0)+IF(E73="r",1,0)+IF(E90="r",1,0)+IF(E107="r",1,0))/4 -> 0 | F131: =(IF(F5="r",1,0)+IF(F22="r",1,0)+IF(F39="r",1,0)+IF(F56="r",1,0)+IF(F73="r",1,0)+IF(F90="r",1,0)+IF(F107="r",1,0))/4 -> 0 | G131: 0 | H131: 0 | I131: 0 | J131: 0 | K131: 0 | L131: 0 | M131: 0 | N131: 0 | O131: 0 | P131: 0 | Q131: 0 | R131: 0 | S131: 0 | T131: 0 | U131: 0 | V131: 0 | W131: 0 | X131: 0 | Y131: 0 | Z131: 0 | AA131: 0 | AB131: 0 | AC131: 0 | AD131: 0 | AE131: 0 | AF131: 0 | AG131: 0 | AH131: 0 | AI131: 0 | AJ131: 0 | AK131: 0 | AL131: 0 | AM131: 0 | AN131: 0 | AO131: 0 | AP131: 0 | AQ131: 0 | AR131: 0 | AS131: 0 | AT131: 0 | AU131: 0 | AV131: 0 | AW131: 0 | AX131: 0 | AY131: 0 | AZ131: 0 | BA131: 0 | BB131: 0 | BC131: 0 | BD131: 0 | BE131: =SUM(BD131+BD132) -> 36.75
D132: C | E132: =(IF(E5="c",1,0)+IF(E22="c",1,0)+IF(E49="c",1,0)+IF(E56="c",1,0)+IF(E73="c",1,0)+IF(E90="c",1,0)+IF(E107="c",1,0))/4 -> 0 | F132: =(IF(F6="c",1,0)+IF(F23="c",1,0)+IF(F40="c",1,0)+IF(F57="c",1,0)+IF(F74="c",1,0)+IF(F91="c",1,0)+IF(F108="c",1,0))/4 -> 0 | G132: 0.5 | H132: 0.5 | I132: 0.5 | J132: 0.5 | K132: 0.5 | L132: 0.5 | M132: 1.25 | N132: 1.25 | O132: 1.25 | P132: 1.25 | Q132: 1.25 | R132: 1.25 | S132: 1.25 | T132: 1.25 | U132: 1.25 | V132: 1.25 | W132: 1.25 | X132: 1.25 | Y132: 1 | Z132: 1 | AA132: 0.75 | AB132: 0.75 | AC132: 0.75 | AD132: 0.75 | AE132: 0.5 | AF132: 0.5 | AG132: 0 | AH132: 0 | AI132: 0 | AJ132: 0 | AK132: 0.75 | AL132: 0.75 | AM132: 0.75 | AN132: 0.75 | AO132: 0.75 | AP132: 0.75 | AQ132: 0.75 | AR132: 0.75 | AS132: 0.75 | AT132: 0.75 | AU132: 0.75 | AV132: 0.75 | AW132: 0.75 | AX132: 0.75 | AY132: 0.75 | AZ132: 0.75 | BA132: 0.25 | BB132: 0.25 | BC132: 0.25 | BD132: 36.75
C133: =+C108 -> Laura | D133: R | E133: =(IF(E6="r",1,0)+IF(E23="r",1,0)+IF(E40="r",1,0)+IF(E57="r",1,0)+IF(E74="r",1,0)+IF(E91="r",1,0)+IF(E108="r",1,0))/4 -> 0 | F133: =(IF(F6="r",1,0)+IF(F23="r",1,0)+IF(F40="r",1,0)+IF(F57="r",1,0)+IF(F74="r",1,0)+IF(F91="r",1,0)+IF(F108="r",1,0))/4 -> 0 | G133: 0 | H133: 0 | I133: 0 | J133: 0 | K133: 0 | L133: 0 | M133: 0 | N133: 0 | O133: 0 | P133: 0 | Q133: 0 | R133: 0 | S133: 0 | T133: 0 | U133: 0 | V133: 0 | W133: 0 | X133: 0 | Y133: 0 | Z133: 0 | AA133: 0 | AB133: 0 | AC133: 0 | AD133: 0 | AE133: 0 | AF133: 0 | AG133: 0 | AH133: 0 | AI133: 0 | AJ133: 0 | AK133: 0 | AL133: 0 | AM133: 0 | AN133: 0 | AO133: 0 | AP133: 0 | AQ133: 0 | AR133: 0 | AS133: 0 | AT133: 0 | AU133: 0 | AV133: 0 | AW133: 0 | AX133: 0 | AY133: 0 | AZ133: 0 | BA133: 0 | BB133: 0 | BC133: 0 | BD133: 0 | BE133: =SUM(BD133+BD134) -> 36.75
D134: C | E134: =(IF(E6="c",1,0)+IF(E23="c",1,0)+IF(E40="c",1,0)+IF(E57="c",1,0)+IF(E74="c",1,0)+IF(E91="c",1,0)+IF(E108="c",1,0))/4 -> 0 | F134: =(IF(F6="c",1,0)+IF(F23="c",1,0)+IF(F40="c",1,0)+IF(F57="c",1,0)+IF(F74="c",1,0)+IF(F91="c",1,0)+IF(F108="c",1,0))/4 -> 0 | G134: 0.5 | H134: 0.5 | I134: 0.5 | J134: 0.5 | K134: 0.5 | L134: 0.5 | M134: 1.25 | N134: 1.25 | O134: 1.25 | P134: 1.25 | Q134: 1.25 | R134: 1.25 | S134: 1.25 | T134: 1.25 | U134: 1.25 | V134: 1.25 | W134: 1.25 | X134: 1.25 | Y134: 1 | Z134: 1 | AA134: 0.75 | AB134: 0.75 | AC134: 0.75 | AD134: 0.75 | AE134: 0.5 | AF134: 0.5 | AG134: 0 | AH134: 0 | AI134: 0 | AJ134: 0 | AK134: 0.75 | AL134: 0.75 | AM134: 0.75 | AN134: 0.75 | AO134: 0.75 | AP134: 0.75 | AQ134: 0.75 | AR134: 0.75 | AS134: 0.75 | AT134: 0.75 | AU134: 0.75 | AV134: 0.75 | AW134: 0.75 | AX134: 0.75 | AY134: 0.75 | AZ134: 0.75 | BA134: 0.25 | BB134: 0.25 | BC134: 0.25 | BD134: 36.75
C135: =+C109 -> Sabrina | D135: R | E135: =(IF(E7="r",1,0)+IF(E24="r",1,0)+IF(E41="r",1,0)+IF(E58="r",1,0)+IF(E75="r",1,0)+IF(E92="r",1,0)+IF(E109="r",1,0))/4 -> 0 | F135: =(IF(F7="r",1,0)+IF(F24="r",1,0)+IF(F41="r",1,0)+IF(F58="r",1,0)+IF(F75="r",1,0)+IF(F92="r",1,0)+IF(F109="r",1,0))/4 -> 0 | G135: 0 | H135: 0 | I135: 0 | J135: 0 | K135: 0 | L135: 0 | M135: 0 | N135: 0 | O135: 0 | P135: 0 | Q135: 0 | R135: 0 | S135: 0 | T135: 0 | U135: 0 | V135: 0 | W135: 0 | X135: 0 | Y135: 0 | Z135: 0 | AA135: 0 | AB135: 0 | AC135: 0 | AD135: 0 | AE135: 0 | AF135: 0 | AG135: 0 | AH135: 0 | AI135: 0 | AJ135: 0 | AK135: 0 | AL135: 0 | AM135: 0 | AN135: 0 | AO135: 0 | AP135: 0 | AQ135: 0 | AR135: 0 | AS135: 0 | AT135: 0 | AU135: 0 | AV135: 0 | AW135: 0 | AX135: 0 | AY135: 0 | AZ135: 0 | BA135: 0 | BB135: 0 | BC135: 0 | BD135: 0 | BE135: =SUM(BD135+BD136) -> 30
D136: C | E136: =(IF(E7="c",1,0)+IF(E24="c",1,0)+IF(E41="c",1,0)+IF(E58="c",1,0)+IF(E75="c",1,0)+IF(E92="c",1,0)+IF(E109="c",1,0))/4 -> 0 | F136: =(IF(F7="c",1,0)+IF(F24="c",1,0)+IF(F41="c",1,0)+IF(F58="c",1,0)+IF(F75="c",1,0)+IF(F92="c",1,0)+IF(F109="c",1,0))/4 -> 0 | G136: 0 | H136: 0 | I136: 0 | J136: 0 | K136: 0 | L136: 0 | M136: 0.25 | N136: 0.25 | O136: 0.75 | P136: 0.75 | Q136: 0.75 | R136: 0.75 | S136: 0.75 | T136: 0.75 | U136: 0.75 | V136: 0.75 | W136: 0.75 | X136: 0.75 | Y136: 0.5 | Z136: 0.5 | AA136: 0.25 | AB136: 0.25 | AC136: 0.25 | AD136: 0.25 | AE136: 0.25 | AF136: 0.25 | AG136: 0.25 | AH136: 0.25 | AI136: 0.25 | AJ136: 0.25 | AK136: 0.75 | AL136: 0.75 | AM136: 1 | AN136: 1 | AO136: 1 | AP136: 1 | AQ136: 1 | AR136: 1 | AS136: 1 | AT136: 1 | AU136: 1 | AV136: 1 | AW136: 1 | AX136: 1 | AY136: 1 | AZ136: 1 | BA136: 1 | BB136: 1 | BC136: 1 | BD136: 30
C137: =+C110 -> Brigitte | D137: R | E137: =(IF(E8="r",1,0)+IF(E25="r",1,0)+IF(E42="r",1,0)+IF(E59="r",1,0)+IF(E76="r",1,0)+IF(E93="r",1,0)+IF(E110="r",1,0))/4 -> 0 | F137: =(IF(F8="r",1,0)+IF(F25="r",1,0)+IF(F42="r",1,0)+IF(F59="r",1,0)+IF(F76="r",1,0)+IF(F93="r",1,0)+IF(F110="r",1,0))/4 -> 0 | G137: 0 | H137: 0 | I137: 0 | J137: 0 | K137: 0 | L137: 0 | M137: 0 | N137: 0 | O137: 0 | P137: 0 | Q137: 0 | R137: 0 | S137: 0 | T137: 0 | U137: 0 | V137: 0 | W137: 0 | X137: 0 | Y137: 0 | Z137: 0 | AA137: 0 | AB137: 0 | AC137: 0 | AD137: 0 | AE137: 0 | AF137: 0 | AG137: 0 | AH137: 0 | AI137: 0 | AJ137: 0 | AK137: 0 | AL137: 0 | AM137: 0 | AN137: 0 | AO137: 0 | AP137: 0 | AQ137: 0 | AR137: 0 | AS137: 0 | AT137: 0 | AU137: 0 | AV137: 0 | AW137: 0 | AX137: 0 | AY137: 0 | AZ137: 0 | BA137: 0 | BB137: 0 | BC137: 0 | BD137: 0 | BE137: =SUM(BD137+BD138) -> 37
D138: C | E138: =(IF(E8="c",1,0)+IF(E25="c",1,0)+IF(E42="c",1,0)+IF(E59="c",1,0)+IF(E76="c",1,0)+IF(E93="c",1,0)+IF(E110="c",1,0))/4 -> 0 | F138: =(IF(F8="c",1,0)+IF(F25="c",1,0)+IF(F42="c",1,0)+IF(F59="c",1,0)+IF(F76="c",1,0)+IF(F93="c",1,0)+IF(F110="c",1,0))/4 -> 0 | G138: 0 | H138: 0 | I138: 0 | J138: 0 | K138: 0 | L138: 0 | M138: 1.25 | N138: 1.25 | O138: 1.25 | P138: 1.25 | Q138: 1.25 | R138: 1.25 | S138: 1.25 | T138: 1.25 | U138: 1.25 | V138: 1.25 | W138: 1.25 | X138: 1.25 | Y138: 1.25 | Z138: 1 | AA138: 1 | AB138: 1 | AC138: 0.75 | AD138: 0.75 | AE138: 0.25 | AF138: 0.25 | AG138: 0 | AH138: 0 | AI138: 0 | AJ138: 0 | AK138: 0 | AL138: 0.25 | AM138: 0.5 | AN138: 0.5 | AO138: 1 | AP138: 1 | AQ138: 1 | AR138: 1 | AS138: 1 | AT138: 1 | AU138: 1 | AV138: 1 | AW138: 1 | AX138: 1 | AY138: 1 | AZ138: 1 | BA138: 1 | BB138: 1 | BC138: 0.5 | BD138: 37
C139: =+C111 -> Pauline | D139: R | E139: =(IF(E9="r",1,0)+IF(E26="r",1,0)+IF(E43="r",1,0)+IF(E60="r",1,0)+IF(E77="r",1,0)+IF(E94="r",1,0)+IF(E111="r",1,0))/4 -> 0 | F139: =(IF(F9="r",1,0)+IF(F26="r",1,0)+IF(F43="r",1,0)+IF(F60="r",1,0)+IF(F77="r",1,0)+IF(F94="r",1,0)+IF(F111="r",1,0))/4 -> 0 | G139: 0 | H139: 0 | I139: 0 | J139: 0 | K139: 0 | L139: 0 | M139: 0 | N139: 0 | O139: 0 | P139: 0 | Q139: 0 | R139: 0 | S139: 0 | T139: 0 | U139: 0 | V139: 0 | W139: 0 | X139: 0 | Y139: 0 | Z139: 0 | AA139: 0 | AB139: 0 | AC139: 0 | AD139: 0 | AE139: 0 | AF139: 0 | AG139: 0 | AH139: 0 | AI139: 0 | AJ139: 0 | AK139: 0 | AL139: 0 | AM139: 0 | AN139: 0 | AO139: 0 | AP139: 0 | AQ139: 0 | AR139: 0 | AS139: 0 | AT139: 0 | AU139: 0 | AV139: 0 | AW139: 0 | AX139: 0 | AY139: 0 | AZ139: 0 | BA139: 0 | BB139: 0 | BC139: 0 | BD139: 0 | BE139: =SUM(BD139+BD140) -> 12
D140: C | E140: =(IF(E9="c",1,0)+IF(E26="c",1,0)+IF(E43="c",1,0)+IF(E60="c",1,0)+IF(E77="c",1,0)+IF(E94="c",1,0)+IF(E111="c",1,0))/4 -> 0 | F140: =(IF(F9="c",1,0)+IF(F26="c",1,0)+IF(F43="c",1,0)+IF(F60="c",1,0)+IF(F77="c",1,0)+IF(F94="c",1,0)+IF(F111="c",1,0))/4 -> 0 | G140: 0 | H140: 0 | I140: 0 | J140: 0 | K140: 0 | L140: 0 | M140: 0.5 | N140: 0.5 | O140: 0.5 | P140: 0.5 | Q140: 0.5 | R140: 0.5 | S140: 0.5 | T140: 0.5 | U140: 0.5 | V140: 0.5 | W140: 0.5 | X140: 0.5 | Y140: 0.25 | Z140: 0.25 | AA140: 0.25 | AB140: 0.25 | AC140: 0 | AD140: 0 | AE140: 0 | AF140: 0 | AG140: 0 | AH140: 0 | AI140: 0 | AJ140: 0.25 | AK140: 0.25 | AL140: 0.25 | AM140: 0.25 | AN140: 0.25 | AO140: 0.25 | AP140: 0.25 | AQ140: 0.25 | AR140: 0.25 | AS140: 0.25 | AT140: 0.25 | AU140: 0.25 | AV140: 0.25 | AW140: 0.25 | AX140: 0.25 | AY140: 0.25 | AZ140: 0.25 | BA140: 0.25 | BB140: 0.25 | BC140: 0.25 | BD140: 12
C141: =+C112 -> Tristan | D141: R | E141: =(IF(E10="c",1,0)+IF(E27="c",1,0)+IF(E44="c",1,0)+IF(E61="c",1,0)+IF(E78="c",1,0)+IF(E95="c",1,0)+IF(E112="c",1,0))/4 -> 0 | F141: =(IF(F10="c",1,0)+IF(F27="c",1,0)+IF(F44="c",1,0)+IF(F61="c",1,0)+IF(F78="c",1,0)+IF(F95="c",1,0)+IF(F112="c",1,0))/4 -> 0 | G141: 0 | H141: 0 | I141: 0 | J141: 0 | K141: 0 | L141: 0 | M141: 0 | N141: 0 | O141: 0 | P141: 0 | Q141: 0 | R141: 0 | S141: 0 | T141: 0 | U141: 0 | V141: 0 | W141: 0 | X141: 0 | Y141: 0 | Z141: 0 | AA141: 0 | AB141: 0 | AC141: 0 | AD141: 0 | AE141: 0 | AF141: 0 | AG141: 0 | AH141: 0 | AI141: 0 | AJ141: 0 | AK141: 0 | AL141: 0 | AM141: 0 | AN141: 0 | AO141: 0 | AP141: 0 | AQ141: 0 | AR141: 0 | AS141: 0 | AT141: 0 | AU141: 0 | AV141: 0 | AW141: 0 | AX141: 0 | AY141: 0 | AZ141: 0 | BA141: 0 | BB141: 0 | BC141: 0 | BD141: 0 | BE141: =SUM(BD141+BD142) -> 0
D142: C | E142: =(IF(E10="c",1,0)+IF(E27="c",1,0)+IF(E44="c",1,0)+IF(E61="c",1,0)+IF(E78="c",1,0)+IF(E95="c",1,0)+IF(E112="c",1,0))/4 -> 0 | F142: =(IF(F10="c",1,0)+IF(F27="c",1,0)+IF(F44="c",1,0)+IF(F61="c",1,0)+IF(F78="c",1,0)+IF(F95="c",1,0)+IF(F112="c",1,0))/4 -> 0 | G142: 0 | H142: 0 | I142: 0 | J142: 0 | K142: 0 | L142: 0 | M142: 0 | N142: 0 | O142: 0 | P142: 0 | Q142: 0 | R142: 0 | S142: 0 | T142: 0 | U142: 0 | V142: 0 | W142: 0 | X142: 0 | Y142: 0 | Z142: 0 | AA142: 0 | AB142: 0 | AC142: 0 | AD142: 0 | AE142: 0 | AF142: 0 | AG142: 0 | AH142: 0 | AI142: 0 | AJ142: 0 | AK142: 0 | AL142: 0 | AM142: 0 | AN142: 0 | AO142: 0 | AP142: 0 | AQ142: 0 | AR142: 0 | AS142: 0 | AT142: 0 | AU142: 0 | AV142: 0 | AW142: 0 | AX142: 0 | AY142: 0 | AZ142: 0 | BA142: 0 | BB142: 0 | BC142: 0 | BD142: 0
C143: =+C113 -> Valentin | D143: R | E143: =(IF(E11="r",1,0)+IF(E28="r",1,0)+IF(E45="r",1,0)+IF(E62="r",1,0)+IF(E79="r",1,0)+IF(E96="r",1,0)+IF(E113="r",1,0))/4 -> 0 | F143: =(IF(F11="r",1,0)+IF(F28="r",1,0)+IF(F45="r",1,0)+IF(F62="r",1,0)+IF(F79="r",1,0)+IF(F96="r",1,0)+IF(F113="r",1,0))/4 -> 0.25 | G143: 0.25 | H143: 0.25 | I143: 0.25 | J143: 0.25 | K143: 0.25 | L143: 0.25 | M143: 0.25 | N143: 0.25 | O143: 0 | P143: 0 | Q143: 0 | R143: 0 | S143: 0 | T143: 0 | U143: 0 | V143: 0 | W143: 0 | X143: 0 | Y143: 0 | Z143: 0 | AA143: 0 | AB143: 0 | AC143: 0 | AD143: 0 | AE143: 0 | AF143: 0 | AG143: 0 | AH143: 0 | AI143: 0 | AJ143: 0 | AK143: 0 | AL143: 0 | AM143: 0 | AN143: 0 | AO143: 0 | AP143: 0 | AQ143: 0 | AR143: 0 | AS143: 0 | AT143: 0 | AU143: 0 | AV143: 0 | AW143: 0 | AX143: 0 | AY143: 0 | AZ143: 0 | BA143: 0 | BB143: 0 | BC143: 0 | BD143: 2.25 | BE143: =SUM(BD143+BD144) -> 10
D144: C | E144: =(IF(E11="c",1,0)+IF(E28="c",1,0)+IF(E45="c",1,0)+IF(E62="c",1,0)+IF(E79="c",1,0)+IF(E96="c",1,0)+IF(E113="c",1,0))/4 -> 0 | F144: =(IF(F11="c",1,0)+IF(F28="c",1,0)+IF(F45="c",1,0)+IF(F62="c",1,0)+IF(F79="c",1,0)+IF(F96="c",1,0)+IF(F113="c",1,0))/4 -> 0 | G144: 0 | H144: 0 | I144: 0 | J144: 0 | K144: 0 | L144: 0 | M144: 0 | N144: 0 | O144: 0.25 | P144: 0.25 | Q144: 0.25 | R144: 0.25 | S144: 0.25 | T144: 0.25 | U144: 0.25 | V144: 0.25 | W144: 0.25 | X144: 0.25 | Y144: 0.25 | Z144: 0.25 | AA144: 0.25 | AB144: 0.25 | AC144: 0 | AD144: 0 | AE144: 0 | AF144: 0 | AG144: 0 | AH144: 0 | AI144: 0 | AJ144: 0 | AK144: 0 | AL144: 0 | AM144: 0.25 | AN144: 0.25 | AO144: 0.25 | AP144: 0.25 | AQ144: 0.25 | AR144: 0.25 | AS144: 0.25 | AT144: 0.25 | AU144: 0.25 | AV144: 0.25 | AW144: 0.25 | AX144: 0.25 | AY144: 0.25 | AZ144: 0.25 | BA144: 0.25 | BB144: 0.25 | BC144: 0.25 | BD144: 7.75
C145: =+C114 -> Guénael | D145: R | E145: =(IF(E12="r",1,0)+IF(E29="r",1,0)+IF(E46="r",1,0)+IF(E63="r",1,0)+IF(E80="r",1,0)+IF(E97="r",1,0)+IF(E114="r",1,0))/4 -> 0.25 | F145: =(IF(F12="r",1,0)+IF(F29="r",1,0)+IF(F46="r",1,0)+IF(F63="r",1,0)+IF(F80="r",1,0)+IF(F97="r",1,0)+IF(F114="r",1,0))/4 -> 0.25 | G145: 0.25 | H145: 0.25 | I145: 0.25 | J145: 0.25 | K145: 0.25 | L145: 0.25 | M145: 0.25 | N145: 0.25 | O145: 0.25 | P145: 0.25 | Q145: 0 | R145: 0 | S145: 0 | T145: 0 | U145: 0 | V145: 0 | W145: 0 | X145: 0 | Y145: 0 | Z145: 0 | AA145: 0 | AB145: 0 | AC145: 0 | AD145: 0 | AE145: 0 | AF145: 0 | AG145: 0 | AH145: 0 | AI145: 0 | AJ145: 0 | AK145: 0 | AL145: 0 | AM145: 0 | AN145: 0 | AO145: 0 | AP145: 0 | AQ145: 0 | AR145: 0 | AS145: 0 | AT145: 0 | AU145: 0 | AV145: 0 | AW145: 0 | AX145: 0 | AY145: 0 | AZ145: 0 | BA145: 0 | BB145: 0 | BC145: 0 | BD145: 3 | BE145: =SUM(BD145+BD146) -> 10
D146: C | E146: =(IF(E12="c",1,0)+IF(E29="c",1,0)+IF(E46="c",1,0)+IF(E63="c",1,0)+IF(E80="c",1,0)+IF(E97="c",1,0)+IF(E114="c",1,0))/4 -> 0 | F146: =(IF(F12="c",1,0)+IF(F29="c",1,0)+IF(F46="c",1,0)+IF(F63="c",1,0)+IF(F80="c",1,0)+IF(F97="c",1,0)+IF(F114="c",1,0))/4 -> 0 | G146: 0 | H146: 0 | I146: 0 | J146: 0 | K146: 0 | L146: 0 | M146: 0 | N146: 0 | O146: 0 | P146: 0 | Q146: 0.25 | R146: 0.25 | S146: 0.25 | T146: 0.25 | U146: 0.25 | V146: 0.25 | W146: 0.25 | X146: 0.25 | Y146: 0.25 | Z146: 0.25 | AA146: 0.25 | AB146: 0.25 | AC146: 0 | AD146: 0 | AE146: 0 | AF146: 0 | AG146: 0 | AH146: 0 | AI146: 0 | AJ146: 0 | AK146: 0 | AL146: 0 | AM146: 0 | AN146: 0.25 | AO146: 0.25 | AP146: 0.25 | AQ146: 0.25 | AR146: 0.25 | AS146: 0.25 | AT146: 0.25 | AU146: 0.25 | AV146: 0.25 | AW146: 0.25 | AX146: 0.25 | AY146: 0.25 | AZ146: 0.25 | BA146: 0.25 | BB146: 0.25 | BC146: 0.25 | BD146: 7
C147: =+C115 -> Marie | D147: R | E147: =(IF(E13="r",1,0)+IF(E30="r",1,0)+IF(E47="r",1,0)+IF(E64="r",1,0)+IF(E81="r",1,0)+IF(E98="r",1,0)+IF(E115="r",1,0))/4 -> 0 | F147: =(IF(F13="r",1,0)+IF(F30="r",1,0)+IF(F47="r",1,0)+IF(F64="r",1,0)+IF(F81="r",1,0)+IF(F98="r",1,0)+IF(F115="r",1,0))/4 -> 0 | G147: 0 | H147: 0 | I147: 0 | J147: 0 | K147: 0 | L147: 0 | M147: 0 | N147: 0 | O147: 0 | P147: 0 | Q147: 0 | R147: 0 | S147: 0 | T147: 0 | U147: 0 | V147: 0 | W147: 0 | X147: 0 | Y147: 0 | Z147: 0 | AA147: 0 | AB147: 0 | AC147: 0 | AD147: 0 | AE147: 0 | AF147: 0 | AG147: 0 | AH147: 0 | AI147: 0 | AJ147: 0 | AK147: 0 | AL147: 0 | AM147: 0 | AN147: 0 | AO147: 0 | AP147: 0 | AQ147: 0 | AR147: 0 | AS147: 0 | AT147: 0 | AU147: 0 | AV147: 0 | AW147: 0 | AX147: 0 | AY147: 0 | AZ147: 0 | BA147: 0 | BB147: 0 | BC147: 0 | BD147: 0 | BE147: =SUM(BD147+BD148) -> 10
D148: C | E148: =(IF(E13="c",1,0)+IF(E30="c",1,0)+IF(E47="c",1,0)+IF(E64="c",1,0)+IF(E81="c",1,0)+IF(E98="c",1,0)+IF(E115="c",1,0))/4 -> 0 | F148: =(IF(F13="c",1,0)+IF(F30="c",1,0)+IF(F47="c",1,0)+IF(F64="c",1,0)+IF(F81="c",1,0)+IF(F98="c",1,0)+IF(F115="c",1,0))/4 -> 0 | G148: 0 | H148: 0 | I148: 0 | J148: 0 | K148: 0 | L148: 0 | M148: 0 | N148: 0.25 | O148: 0.25 | P148: 0.25 | Q148: 0.25 | R148: 0.25 | S148: 0.25 | T148: 0.25 | U148: 0.25 | V148: 0.25 | W148: 0.25 | X148: 0.25 | Y148: 0.25 | Z148: 0.25 | AA148: 0.25 | AB148: 0.25 | AC148: 0 | AD148: 0 | AE148: 0.25 | AF148: 0.25 | AG148: 0.25 | AH148: 0.25 | AI148: 0.25 | AJ148: 0.25 | AK148: 0.25 | AL148: 0.25 | AM148: 0.25 | AN148: 0.25 | AO148: 0.25 | AP148: 0.25 | AQ148: 0.25 | AR148: 0.25 | AS148: 0.25 | AT148: 0.25 | AU148: 0.25 | AV148: 0.25 | AW148: 0.25 | AX148: 0.25 | AY148: 0.25 | AZ148: 0.25 | BA148: 0.25 | BB148: 0.25 | BC148: 0.25 | BD148: 10
C149: =+C116 -> Valérie | D149: R | E149: =(IF(E14="r",1,0)+IF(E31="r",1,0)+IF(E48="r",1,0)+IF(E65="r",1,0)+IF(E82="r",1,0)+IF(E99="r",1,0)+IF(E116="r",1,0))/4 -> 0 | F149: =(IF(F14="r",1,0)+IF(F31="r",1,0)+IF(F48="r",1,0)+IF(F65="r",1,0)+IF(F82="r",1,0)+IF(F99="r",1,0)+IF(F116="r",1,0))/4 -> 0 | G149: 0 | H149: 0 | I149: 0 | J149: 0 | K149: 0 | L149: 0 | M149: 0 | N149: 0 | O149: 0 | P149: 0 | Q149: 0 | R149: 0 | S149: 0 | T149: 0 | U149: 0 | V149: 0 | W149: 0 | X149: 0 | Y149: 0 | Z149: 0 | AA149: 0 | AB149: 0 | AC149: 0 | AD149: 0 | AE149: 0 | AF149: 0 | AG149: 0 | AH149: 0 | AI149: 0 | AJ149: 0 | AK149: 0 | AL149: 0 | AM149: 0 | AN149: 0 | AO149: 0 | AP149: 0 | AQ149: 0 | AR149: 0 | AS149: 0 | AT149: 0 | AU149: 0 | AV149: 0 | AW149: 0 | AX149: 0 | AY149: 0 | AZ149: 0 | BA149: 0 | BB149: 0 | BC149: 0 | BD149: 0 | BE149: =SUM(BD149+BD150) -> 36.75
D150: C | E150: =(IF(E14="c",1,0)+IF(E31="c",1,0)+IF(E48="c",1,0)+IF(E65="c",1,0)+IF(E82="c",1,0)+IF(E99="c",1,0)+IF(E116="c",1,0))/4 -> 0 | F150: =(IF(F14="c",1,0)+IF(F31="c",1,0)+IF(F48="c",1,0)+IF(F65="c",1,0)+IF(F82="c",1,0)+IF(F99="c",1,0)+IF(F116="c",1,0))/4 -> 0 | G150: 0.25 | H150: 0.25 | I150: 1 | J150: 1 | K150: 1 | L150: 1 | M150: 1 | N150: 1 | O150: 1 | P150: 1 | Q150: 1 | R150: 1 | S150: 1 | T150: 1 | U150: 1 | V150: 1 | W150: 1 | X150: 1 | Y150: 0.75 | Z150: 0.75 | AA150: 0.75 | AB150: 0.75 | AC150: 0 | AD150: 0 | AE150: 0 | AF150: 0 | AG150: 0.75 | AH150: 0.75 | AI150: 0.75 | AJ150: 0.75 | AK150: 0.75 | AL150: 0.75 | AM150: 0.75 | AN150: 0.75 | AO150: 0.75 | AP150: 0.75 | AQ150: 0.75 | AR150: 0.75 | AS150: 0.75 | AT150: 0.75 | AU150: 0.75 | AV150: 0.75 | AW150: 0.75 | AX150: 0.75 | AY150: 0.75 | AZ150: 0.75 | BA150: 0.75 | BB150: 0.75 | BC150: 0.75 | BD150: 36.75
C151: =+C117 -> Nathalie | D151: R | E151: =(IF(E15="r",1,0)+IF(E32="r",1,0)+IF(E49="r",1,0)+IF(E66="r",1,0)+IF(E83="r",1,0)+IF(E100="r",1,0)+IF(E117="r",1,0))/4 -> 0 | F151: =(IF(F15="r",1,0)+IF(F32="r",1,0)+IF(F49="r",1,0)+IF(F66="r",1,0)+IF(F83="r",1,0)+IF(F100="r",1,0)+IF(F117="r",1,0))/4 -> 0 | G151: 0 | H151: 0 | I151: 0 | J151: 0 | K151: 0 | L151: 0 | M151: 0 | N151: 0 | O151: 0 | P151: 0 | Q151: 0 | R151: 0 | S151: 0 | T151: 0 | U151: 0 | V151: 0 | W151: 0 | X151: 0 | Y151: 0 | Z151: 0 | AA151: 0 | AB151: 0 | AC151: 0 | AD151: 0 | AE151: 0 | AF151: 0 | AG151: 0 | AH151: 0 | AI151: 0 | AJ151: 0 | AK151: 0 | AL151: 0 | AM151: 0 | AN151: 0 | AO151: 0 | AP151: 0 | AQ151: 0 | AR151: 0 | AS151: 0 | AT151: 0 | AU151: 0 | AV151: 0 | AW151: 0 | AX151: 0 | AY151: 0 | AZ151: 0 | BA151: 0 | BB151: 0 | BC151: 0 | BD151: 0 | BE151: =SUM(BD151+BD152) -> 36.75
D152: C | E152: =(IF(E15="c",1,0)+IF(E32="c",1,0)+IF(E49="c",1,0)+IF(E66="c",1,0)+IF(E83="c",1,0)+IF(E100="c",1,0)+IF(E117="c",1,0))/4 -> 0 | F152: =(IF(F15="c",1,0)+IF(F32="c",1,0)+IF(F49="c",1,0)+IF(F66="c",1,0)+IF(F83="c",1,0)+IF(F100="c",1,0)+IF(F117="c",1,0))/4 -> 0 | G152: 0.25 | H152: 0.25 | I152: 0.75 | J152: 0.75 | K152: 0.75 | L152: 0.75 | M152: 0.75 | N152: 0.75 | O152: 0.75 | P152: 0.75 | Q152: 0.75 | R152: 0.75 | S152: 0.75 | T152: 0.75 | U152: 0.75 | V152: 0.75 | W152: 0.75 | X152: 0.75 | Y152: 0.5 | Z152: 0.5 | AA152: 0.5 | AB152: 1 | AC152: 1 | AD152: 1 | AE152: 1 | AF152: 1 | AG152: 1.25 | AH152: 0.75 | AI152: 0.75 | AJ152: 0.75 | AK152: 0.75 | AL152: 0.75 | AM152: 0.75 | AN152: 0.75 | AO152: 0.75 | AP152: 0.75 | AQ152: 0.75 | AR152: 0.75 | AS152: 0.75 | AT152: 0.75 | AU152: 0.75 | AV152: 0.75 | AW152: 0.75 | AX152: 0.75 | AY152: 0.75 | AZ152: 0.75 | BA152: 0.75 | BB152: 0.75 | BC152: 0.75 | BD152: 36.75
C153: =+C118 -> Ophélie | D153: R | E153: =(IF(E16="r",1,0)+IF(E33="r",1,0)+IF(E50="r",1,0)+IF(E67="r",1,0)+IF(E84="r",1,0)+IF(E101="r",1,0)+IF(E118="r",1,0))/4 -> 0 | F153: =(IF(F16="r",1,0)+IF(F33="r",1,0)+IF(F50="r",1,0)+IF(F67="r",1,0)+IF(F84="r",1,0)+IF(F101="r",1,0)+IF(F118="r",1,0))/4 -> 0 | G153: 0 | H153: 0 | I153: 0 | J153: 0 | K153: 0 | L153: 0 | M153: 0 | N153: 0 | O153: 0 | P153: 0 | Q153: 0 | R153: 0 | S153: 0 | T153: 0 | U153: 0 | V153: 0 | W153: 0 | X153: 0 | Y153: 0 | Z153: 0 | AA153: 0 | AB153: 0 | AC153: 0 | AD153: 0 | AE153: 0 | AF153: 0 | AG153: 0 | AH153: 0 | AI153: 0 | AJ153: 0 | AK153: 0 | AL153: 0 | AM153: 0 | AN153: 0 | AO153: 0 | AP153: 0 | AQ153: 0 | AR153: 0 | AS153: 0 | AT153: 0 | AU153: 0 | AV153: 0 | AW153: 0 | AX153: 0 | AY153: 0 | AZ153: 0 | BA153: 0 | BB153: 0 | BC153: 0 | BD153: 0 | BE153: 10
D154: C | E154: =(IF(E16="c",1,0)+IF(E33="c",1,0)+IF(E50="c",1,0)+IF(E67="c",1,0)+IF(E84="c",1,0)+IF(E101="c",1,0)+IF(E118="c",1,0))/4 -> 0 | F154: =(IF(F16="c",1,0)+IF(F33="c",1,0)+IF(F50="c",1,0)+IF(F67="c",1,0)+IF(F84="c",1,0)+IF(F101="c",1,0)+IF(F118="c",1,0))/4 -> 0 | G154: 0 | H154: 0 | I154: 0 | J154: 0 | K154: 0 | L154: 0 | M154: 0.25 | N154: 0.25 | O154: 0.25 | P154: 0.25 | Q154: 0.25 | R154: 0.25 | S154: 0.25 | T154: 0.25 | U154: 0.25 | V154: 0.25 | W154: 0.25 | X154: 0.25 | Y154: 0.25 | Z154: 0.25 | AA154: 0.25 | AB154: 0.25 | AC154: 0 | AD154: 0 | AE154: 0 | AF154: 0.25 | AG154: 0.25 | AH154: 0.25 | AI154: 0.25 | AJ154: 0.25 | AK154: 0.25 | AL154: 0.25 | AM154: 0.25 | AN154: 0.25 | AO154: 0.25 | AP154: 0.25 | AQ154: 0.25 | AR154: 0.25 | AS154: 0.25 | AT154: 0.25 | AU154: 0.25 | AV154: 0.25 | AW154: 0.25 | AX154: 0.25 | AY154: 0.25 | AZ154: 0.25 | BA154: 0.25 | BB154: 0.25 | BC154: 0.25 | BD154: 10
C155: SOUS-TOTAL | D155: R | E155: =E127+E129+E131+E133+E135+E137+E139+E141+E143+E145+E147+E151+E153 -> 0.25 | F155: =F127+F129+F131+F133+F135+F137+F139+F141+F143+F145+F147+F151+F153 -> 0.5 | G155: 0.5 | H155: 0.5 | I155: 0.5 | J155: 0.5 | K155: 0.5 | L155: 0.5 | M155: 0.5 | N155: 0.5 | O155: 0.25 | P155: 0.25 | Q155: 0 | R155: 0 | S155: 0 | T155: 0 | U155: 0 | V155: 0 | W155: 0 | X155: 0 | Y155: 0 | Z155: 0 | AA155: 0 | AB155: 0 | AC155: 0 | AD155: 0 | AE155: 0 | AF155: 0 | AG155: 0 | AH155: 0 | AI155: 0 | AJ155: 0 | AK155: 0 | AL155: 0 | AM155: 0 | AN155: 0 | AO155: 0 | AP155: 0 | AQ155: 0 | AR155: 0 | AS155: 0 | AT155: 0 | AU155: 0 | AV155: 0 | AW155: 0 | AX155: 0 | AY155: 0 | AZ155: 0 | BA155: 0 | BB155: 0 | BC155: 0 | BD155: 5.25 | BE155: 327.75
C156: ELS 9 | D156: C | E156: =E128+E130+E132+E134+E136+E138+E140+E142+E144+E146+E148+E152+E150+E154 -> 0 | F156: =F128+F130+F132+F134+F136+F138+F140+F142+F144+F146+F148+F152+F150+F154 -> 0 | G156: 1.5 | H156: 1.5 | I156: 2.75 | J156: 2.75 | K156: 2.75 | L156: 2.75 | M156: 8.25 | N156: 8.5 | O156: 9.25 | P156: 9.25 | Q156: 9.5 | R156: 9.5 | S156: 9.5 | T156: 9.5 | U156: 9.5 | V156: 9.5 | W156: 9.5 | X156: 9.5 | Y156: 7.75 | Z156: 7.5 | AA156: 6.25 | AB156: 6.75 | AC156: 5 | AD156: 5 | AE156: 4.25 | AF156: 4.5 | AG156: 4.25 | AH156: 3.75 | AI156: 3.75 | AJ156: 4 | AK156: 5.75 | AL156: 6 | AM156: 6.75 | AN156: 7 | AO156: 7.5 | AP156: 7.5 | AQ156: 7.5 | AR156: 7.5 | AS156: 7.5 | AT156: 7.5 | AU156: 7.5 | AV156: 7.5 | AW156: 7.5 | AX156: 7.5 | AY156: 7.5 | AZ156: 7.5 | BA156: 6.5 | BB156: 6.5 | BC156: 6 | BD156: 322.5
C157: TOTAL | E157: =+E155+E156 -> 0.25 | F157: =+F155+F156 -> 0.5 | G157: 2 | H157: 2 | I157: 3.25 | J157: 3.25 | K157: 3.25 | L157: 3.25 | M157: 8.75 | N157: 9 | O157: 9.5 | P157: 9.5 | Q157: 9.5 | R157: 9.5 | S157: 9.5 | T157: 9.5 | U157: 9.5 | V157: 9.5 | W157: 9.5 | X157: 9.5 | Y157: 7.75 | Z157: 7.5 | AA157: 6.25 | AB157: 6.75 | AC157: 5 | AD157: 5 | AE157: 4.25 | AF157: 4.5 | AG157: 4.25 | AH157: 3.75 | AI157: 3.75 | AJ157: 4 | AK157: 5.75 | AL157: 6 | AM157: 6.75 | AN157: 7 | AO157: 7.5 | AP157: 7.5 | AQ157: 7.5 | AR157: 7.5 | AS157: 7.5 | AT157: 7.5 | AU157: 7.5 | AV157: 7.5 | AW157: 7.5 | AX157: 7.5 | AY157: 7.5 | AZ157: 7.5 | BA157: 6.5 | BB157: 6.5 | BC157: 6 | BD157: 327.75 | BE157: 327.75
B160: Signatures OBLIGATOIRES

Sheet semaine paire (sans samedi pm)
B2: LUNDI | E2: 6h30-6h45 | F2: 6h45-7h | G2: 7h-7h15 | H2: 7h15-7h30 | I2: 7h30-7h45 | J2: 7h45-8h | K2: 8h-8h15 | L2: 8h15-8h30 | M2: 8h30-8h45 | N2: 8h45-9h | O2: 9h-9h15 | P2: 9h15-9H30 | Q2: 9h30-9H45 | R2: 9h45-10H | S2: 10h-10H15 | T2: 10h15-10H30 | U2: 10h30-10h45 | V2: 10h45-11H | W2: 11h-11H15 | X2: 11h15-11H30 | Y2: 11h30-11H45 | Z2: 11h45-12H | AA2: 12h-12H15 | AB2: 12h15-12H30 | AC2: 12h30-12H45 | AD2: 12h45-13H | AE2: 13h-13H15 | AF2: 13h15-13H30 | AG2: 13h30-13H45 | AH2: 13H45-14H | AI2: 14H-14H15 | AJ2: 14h15-14H30 | AK2: 14h30-14H45 | AL2: 14H45-15H | AM2: 15H-15H15 | AN2: 15h15-15h30 | AO2: 15h30-15h45 | AP2: 15h45-16h | AQ2: 16h-16h15 | AR2: 16h15-16h30 | AS2: 16h30-16h45 | AT2: 16h45-17h | AU2: 17h-17h15 | AV2: 17h15-17h30 | AW2: 17h30-17h45 | AX2: 17h45-18H | AY2: 18h-18h15 | AZ2: 18h15-18h30 | BA2: 18h30-18h45 | BB2: 18h45-19h | BC2: 19h-19h15 | BD2: 19h15-19h30 | BE2: total
B3: sec | C3: Aurore | G3: S | H3: S | I3: S | J3: S | K3: S | L3: S | M3: S | N3: S | O3: S | P3: S | Q3: S | R3: S | S3: S | T3: S | U3: S | V3: S | W3: S | X3: S | Y3: S | Z3: S | AA3: S | AB3: S | AC3: S | AD3: S | BE3: =COUNTA(E3:BD3)*0.25 -> 6
B4: frais | C4: Bertrand | Q4: S | R4: S | S4: S | T4: S | U4: S | V4: S | W4: S | X4: S | Y4: S | Z4: S | AA4: S | AB4: S | AC4: S | AD4: S | AE4: S | AF4: S | AG4: S | AH4: S | BE4: 4.5
B5: LIQUIDE | C5: Corinne | G5: S | H5: S | I5: S | J5: S | K5: S | L5: S | M5: S | N5: S | O5: S | P5: S | Q5: S | R5: S | S5: S | T5: S | U5: S | V5: S | W5: S | X5: S | Y5: S | Z5: S | AA5: S | AB5: S | AC5: S | AD5: S | AE5: S | AF5: S | BE5: 6.5
C6: Laura | E6: S | F6: S | G6: S | H6: S | I6: S | J6: S | K6: S | L6: S | M6: S | N6: S | O6: S | P6: S | Q6: S | R6: S | S6: S | T6: S | U6: S | V6: S | W6: S | X6: S | Y6: S | Z6: S | AA6: S | AB6: S | AK6: S | AL6: S | AM6: S | AN6: S | AO6: S | AP6: S | AQ6: S | AR6: S | AS6: S | AT6: S | AU6: S | AV6: S | AW6: S | AX6: S | BE6: =COUNTA(E6:BD6)*0.25 -> 9.5
B7: DPH | C7: Ghislaine | E7: DPH | F7: DPH | G7: DPH | H7: DPH | I7: DPH | J7: DPH | K7: DPH | L7: DPH | M7: DPH | N7: DPH | O7: DPH | P7: DPH | Q7: DPH | R7: DPH | S7: DPH | T7: DPH | U7: DPH | V7: DPH | W7: DPH | X7: DPH | Y7: DPH | Z7: DPH | AA7: DPH | AB7: DPH | BE7: 6
C8: Thibaut | E8: L | F8: L | G8: L | H8: L | I8: L | J8: L | K8: L | L8: L | M8: L | N8: L | O8: L | P8: L | Q8: L | R8: L | S8: L | T8: L | U8: L | V8: L | W8: L | X8: L | Y8: L | Z8: L | AA8: L | AB8: L | AC8: L | AD8: L | BE8: 6.5
C9: Said | G9: L | H9: L | I9: L | J9: L | K9: L | L9: L | M9: L | N9: L | O9: L | P9: L | Q9: L | R9: L | S9: L | T9: L | U9: L | V9: L | W9: L | X9: L | Y9: L | Z9: L | AA9: L | AB9: L | AC9: L | AD9: L | AE9: L | AF9: L | BE9: 6.5
C10: Assiya | E10: F | F10: F | G10: F | H10: F | I10: F | J10: F | K10: F | L10: F | M10: F | N10: F | O10: F | P10: F | Q10: F | R10: F | S10: F | T10: F | U10: F | V10: F | W10: F | X10: F | Y10: F | Z10: F | AA10: F | AB10: F | AC10: F | BE10: 6.25
C11: Francoise | F11: F | G11: F | H11: F | I11: F | J11: F | K11: F | L11: F | M11: F | N11: F | O11: F | P11: F | Q11: F | R11: F | S11: F | T11: F | U11: F | V11: F | W11: F | X11: F | Y11: F | Z11: F | AA11: F | AB11: F | AC11: F | AD11: F | BE11: 6.25
C12: Vanessa | Q12: D/MG | R12: D/MG | S12: D/MG | T12: D/MG | U12: D/MG | V12: D/MG | W12: D/MG | X12: D/MG | Y12: D/MG | Z12: D/MG | AA12: D/MG | AB12: D/MG | AC12: D/MG | AD12: D/MG | AE12: D/MG | AF12: D/MG | AG12: D/MG | AH12: D/MG | BE12: 4.5
BE13: 0
BE14: 0
BE15: 0
BE16: 0
C17: TOTAL | E17: =COUNTA(E3:E15)*0.25 -> 1 | F17: 1.25 | G17: =COUNTA(G3:G15)*0.25 -> 2 | H17: =COUNTA(H3:H15)*0.25 -> 2 | I17: 2 | J17: 2 | K17: 2 | L17: 2 | M17: 2 | N17: 2 | O17: 2 | P17: 2 | Q17: 2.5 | R17: 2.5 | S17: 2.5 | T17: 2.5 | U17: 2.5 | V17: 2.5 | W17: 2.5 | X17: 2.5 | Y17: 2.5 | Z17: 2.5 | AA17: 2.5 | AB17: 2.5 | AC17: 2 | AD17: 1.75 | AE17: 1 | AF17: 1 | AG17: 0.5 | AH17: 0.5 | AI17: 0 | AJ17: 0 | AK17: 0.25 | AL17: 0.25 | AM17: 0.25 | AN17: 0.25 | AO17: 0.25 | AP17: 0.25 | AQ17: 0.25 | AR17: 0.25 | AS17: 0.25 | AT17: 0.25 | AU17: 0.25 | AV17: 0.25 | AW17: 0.25 | AX17: 0.25 | AY17: 0 | AZ17: 0 | BA17: 0 | BB17: 0 | BC17: 0 | BD17: 0 | BE17: =SUM(E17:BD17) -> 62.5
B19: MARDI | E19: 6h30-6h45 | F19: 6h45-7h | G19: 7h-7h15 | H19: 7h15-7h30 | I19: 7h30-7h45 | J19: 7h45-8h | K19: 8h-8h15 | L19: 8h15-8h30 | M19: 8h30-8h45 | N19: 8h45-9h | O19: 9h-9h15 | P19: 9h15-9H30 | Q19: 9h30-9H45 | R19: 9h45-10H | S19: 10h-10H15 | T19: 10h15-10H30 | U19: 10h30-10h45 | V19: 10h45-11H | W19: 11h-11H15 | X19: 11h15-11H30 | Y19: 11h30-11H45 | Z19: 11h45-12H | AA19: 12h-12H15 | AB19: 12h15-12H30 | AC19: 12h30-12H45 | AD19: 12h45-13H | AE19: 13h-13H15 | AF19: 13h15-13H30 | AG19: 13h30-13H45 | AH19: 13H45-14H | AI19: 14H-14H15 | AJ19: 14h15-14H30 | AK19: 14h30-14H45 | AL19: 14H45-15H | AM19: 15H-15H15 | AN19: 15h15-15h30 | AO19: 15h30-15h45 | AP19: 15h45-16h | AQ19: 16h-16h15 | AR19: 16h15-16h30 | AS19: 16h30-16h45 | AT19: 16h45-17h | AU19: 17h-17h15 | AV19: 17h15-17h30 | AW19: 17h30-17h45 | AX19: 17h45-18h | AY19: 18h-18h15 | AZ19: 18h15-18h30 | BA19: 18h30-18h45 | BB19: 18h45-19h | BC19: 19h-19h15 | BD19: 19h15-19h30 | BE19: total
B20: sec | C20: Aurore | G20: S | H20: S | I20: S | J20: S | K20: S | L20: S | M20: S | N20: S | O20: S | P20: S | Q20: S | R20: S | S20: S | T20: S | U20: S | V20: S | W20: S | X20: S | Y20: S | Z20: S | BE20: =COUNTA(E20:BD20)*0.25 -> 5
B21: frais | C21: Bertrand | BE21: 0
B22: LIQUIDE | C22: Corinne | G22: S | H22: S | I22: S | J22: S | K22: S | L22: S | M22: S | N22: S | O22: S | P22: S | Q22: S | R22: S | S22: S | T22: S | U22: S | V22: S | W22: S | X22: S | Y22: S | Z22: S | AA22: S | AB22: S | AK22: S | AL22: S | AM22: S | AN22: S | AO22: S | AP22: S | AQ22: S | AR22: S | AS22: S | AT22: S | AU22: S | AV22: S | AW22: S | AX22: S | BE22: 9
B23: DPH | C23: Laura | E23: S | F23: S | G23: S | H23: S | I23: S | J23: S | K23: S | L23: S | M23: S | N23: S | O23: S | P23: S | Q23: S | R23: S | S23: S | T23: S | U23: S | V23: S | W23: S | X23: S | Y23: S | Z23: S | AA23: S | AB23: S | BE23: 6
C24: Ghislaine | E24: DPH | F24: DPH | G24: DPH | H24: DPH | I24: DPH | J24: DPH | K24: DPH | L24: DPH | M24: DPH | N24: DPH | O24: DPH | P24: DPH | Q24: DPH | R24: DPH | S24: DPH | T24: DPH | U24: DPH | V24: DPH | W24: DPH | X24: DPH | Y24: DPH | Z24: DPH | AA24: DPH | AB24: DPH | BE24: 6
C25: Thibaut | E25: L | F25: L | G25: L | H25: L | I25: L | J25: L | K25: L | L25: L | M25: L | N25: L | O25: L | P25: L | Q25: L | R25: L | S25: L | T25: L | U25: L | V25: L | W25: L | X25: L | Y25: L | Z25: L | BE25: 5.5
C26: Said | G26: L | H26: L | I26: L | J26: L | K26: L | L26: L | M26: L | N26: L | O26: L | P26: L | Q26: L | R26: L | S26: L | T26: L | U26: L | V26: L | W26: L | X26: L | Y26: L | Z26: L | AA26: L | AB26: L | AC26: L | AD26: L | BE26: 6
C27: Assiya | E27: F | F27: F | G27: F | H27: F | I27: F | J27: F | K27: F | L27: F | M27: F | N27: F | O27: F | P27: F | Q27: F | R27: F | S27: F | T27: F | U27: F | V27: F | W27: F | X27: F | Y27: F | Z27: F | BE27: 5.5
C28: Francoise | F28: F | G28: F | H28: F | I28: F | J28: F | K28: F | L28: F | M28: F | N28: F | O28: F | P28: F | Q28: F | R28: F | S28: F | T28: F | U28: F | V28: F | W28: F | X28: F | Y28: F | Z28: F | AA28: F | AB28: F | BE28: 5.75
C29: Vanessa | I29: D/MG | J29: D/MG | K29: D/MG | L29: D/MG | M29: D/MG | N29: D/MG | O29: D/MG | P29: D/MG | Q29: D/MG | R29: D/MG | S29: D/MG | T29: D/MG | U29: D/MG | V29: D/MG | W29: D/MG | X29: D/MG | Y29: D/MG | Z29: D/MG | AA29: D/MG | AB29: D/MG | AK29: D/MG | AL29: D/MG | AM29: D/MG | AN29: D/MG | AO29: D/MG | AP29: D/MG | AQ29: D/MG | AR29: D/MG | AS29: D/MG | AT29: D/MG | AU29: D/MG | AV29: D/MG | AW29: D/MG | BE29: 8.25
BE30: 0
BE31: 0
BE32: 0
BE33: 0
C34: TOTAL | E34: =COUNTA(E20:E33)*0.25 -> 1 | F34: 1.25 | G34: =COUNTA(G20:G33)*0.25 -> 2 | H34: =COUNTA(H20:H33)*0.25 -> 2 | I34: 2.25 | J34: 2.25 | K34: 2.25 | L34: 2.25 | M34: 2.25 | N34: 2.25 | O34: 2.25 | P34: 2.25 | Q34: 2.25 | R34: 2.25 | S34: 2.25 | T34: 2.25 | U34: 2.25 | V34: 2.25 | W34: 2.25 | X34: 2.25 | Y34: 2.25 | Z34: 2.25 | AA34: 1.5 | AB34: 1.5 | AC34: 0.25 | AD34: 0.25 | AE34: 0 | AF34: 0 | AG34: 0 | AH34: 0 | AI34: 0 | AJ34: 0 | AK34: 0.5 | AL34: 0.5 | AM34: 0.5 | AN34: 0.5 | AO34: 0.5 | AP34: 0.5 | AQ34: 0.5 | AR34: 0.5 | AS34: 0.5 | AT34: 0.5 | AU34: 0.5 | AV34: 0.5 | AW34: 0.5 | AX34: 0.25 | AY34: 0 | AZ34: 0 | BA34: 0 | BB34: 0 | BC34: 0 | BD34: 0 | BE34: =SUM(E34:BD34) -> 57
B36: MERCREDI | E36: 6h30-6h45 | F36: 6h45-7h | G36: 7h-7h15 | H36: 7h15-7h30 | I36: 7h30-7h45 | J36: 7h45-8h | K36: 8h-8h15 | L36: 8h15-8h30 | M36: 8h30-8h45 | N36: 8h45-9h | O36: 9h-9h15 | P36: 9h15-9H30 | Q36: 9h30-9H45 | R36: 9h45-10H | S36: 10h-10H15 | T36: 10h15-10H30 | U36: 10h30-10h45 | V36: 10h45-11H | W36: 11h-11H15 | X36: 11h15-11H30 | Y36: 11h30-11H45 | Z36: 11h45-12H | AA36: 12h-12H15 | AB36: 12h15-12H30 | AC36: 12h30-12H45 | AD36: 12h45-13H | AE36: 13h-13H15 | AF36: 13h15-13H30 | AG36: 13h30-13H45 | AH36: 13H45-14H | AI36: 14H-14H15 | AJ36: 14h15-14H30 | AK36: 14h30-14H45 | AL36: 14H45-15H | AM36: 15H-15H15 | AN36: 15h15-15h30 | AO36: 15h30-15h45 | AP36: 15h45-16h | AQ36: 16h-16h15 | AR36: 16h15-16h30 | AS36: 16h30-16h45 | AT36: 16h45-17h | AU36: 17h-17h15 | AV36: 17h15-17h30 | AW36: 17h30-17h45 | AX36: 17h45-18h | AY36: 18h-18h15 | AZ36: 18h15-18h30 | BA36: 18h30-18h45 | BB36: 18h45-19h | BC36: 19h-19h15 | BD36: 19h15-19h30 | BE36: total
B37: sec | C37: Aurore | G37: S | H37: S | I37: S | J37: S | K37: S | L37: S | M37: S | N37: S | O37: S | P37: S | Q37: S | R37: S | BE37: =COUNTA(G37:BD37)*0.25 -> 3
B38: frais | C38: Bertrand | AI38: S | AJ38: S | AK38: S | AL38: S | AM38: S | AN38: S | AO38: S | AP38: S | AQ38: S | AR38: S | AS38: S | AT38: S | AU38: S | AV38: S | BE38: =COUNTA(E38:BD38)*0.25 -> 3.5
B39: LIQUIDE | C39: Corinne | I39: S | J39: S | K39: S | L39: S | M39: S | N39: S | O39: S | P39: S | Q39: S | R39: S | S39: S | T39: S | U39: S | V39: S | W39: S | X39: S | Y39: S | Z39: S | BE39: =COUNTA(G39:BD39)*0.25 -> 4.5
B40: DPH | C40: Laura | I40: S | J40: S | K40: S | L40: S | M40: S | N40: S | O40: S | P40: S | Q40: S | R40: S | S40: S | T40: S | U40: S | V40: S | W40: S | X40: S | Y40: S | Z40: S | AA40: S | BE40: =COUNTA(E40:BD40)*0.25 -> 4.75
C41: Ghislaine | I41: DPH | J41: DPH | K41: DPH | L41: DPH | M41: DPH | N41: DPH | O41: DPH | P41: DPH | Q41: DPH | R41: DPH | S41: DPH | T41: DPH | U41: DPH | V41: DPH | W41: DPH | X41: DPH | Y41: DPH | Z41: DPH | AA41: DPH | BE41: =COUNTA(G41:BD41)*0.25 -> 4.75
C42: Thibaut | I42: L | J42: L | K42: L | L42: L | M42: L | N42: L | O42: L | P42: L | Q42: L | R42: L | S42: L | T42: L | U42: L | V42: L | W42: L | X42: L | Y42: L | Z42: L | BE42: 4.5
C43: Said | G43: L | H43: L | I43: L | J43: L | K43: L | L43: L | M43: L | N43: L | O43: L | P43: L | Q43: L | R43: L | S43: L | T43: L | U43: L | V43: L | W43: L | X43: L | Y43: L | Z43: L | AA43: L | AB43: L | BE43: 5.5
C44: Assiya | E44: F | F44: F | G44: F | H44: F | I44: F | J44: F | K44: F | L44: F | M44: F | N44: F | O44: F | P44: F | Q44: F | R44: F | S44: F | T44: F | U44: F | V44: F | W44: F | X44: F | BE44: 4.5
C45: Francoise | F45: F | G45: F | H45: F | I45: F | J45: F | K45: F | L45: F | M45: F | N45: F | O45: F | P45: F | Q45: F | R45: F | S45: F | T45: F | U45: F | V45: F | W45: F | BE45: 4.25
C46: Vanessa | BE46: 0
BE47: 0
BE48: 0
BE49: 0
BE50: 0
C51: TOTAL | E51: =COUNTA(E37:E50)*0.25 -> 0.25 | F51: 0.5 | G51: =COUNTA(G37:G50)*0.25 -> 1 | H51: =COUNTA(H37:H50)*0.25 -> 1 | I51: 2 | J51: 2 | K51: 2 | L51: 2 | M51: 2 | N51: 2 | O51: 2 | P51: 2 | Q51: 2 | R51: 2 | S51: 1.75 | T51: 1.75 | U51: 1.75 | V51: 1.75 | W51: 1.75 | X51: 1.5 | Y51: 1.25 | Z51: 1.25 | AA51: 0.75 | AB51: 0.25 | AC51: 0 | AD51: 0 | AE51: 0 | AF51: 0 | AG51: 0 | AH51: 0 | AI51: 0.25 | AJ51: 0.25 | AK51: 0.25 | AL51: 0.25 | AM51: 0.25 | AN51: 0.25 | AO51: 0.25 | AP51: 0.25 | AQ51: 0.25 | AR51: 0.25 | AS51: 0.25 | AT51: 0.25 | AU51: 0.25 | AV51: 0.25 | AW51: 0 | AX51: 0 | AY51: 0 | AZ51: 0 | BA51: 0 | BB51: 0 | BC51: 0 | BD51: 0 | BE51: =SUM(E51:BD51) -> 40
B53: JEUDI | E53: 6h30-6h45 | F53: 6h45-7h | G53: 7h-7h15 | H53: 7h15-7h30 | I53: 7h30-7h45 | J53: 7h45-8h | K53: 8h-8h15 | L53: 8h15-8h30 | M53: 8h30-8h45 | N53: 8h45-9h | O53: 9h-9h15 | P53: 9h15-9H30 | Q53: 9h30-9H45 | R53: 9h45-10H | S53: 10h-10H15 | T53: 10h15-10H30 | U53: 10h30-10h45 | V53: 10h45-11H | W53: 11h-11H15 | X53: 11h15-11H30 | Y53: 11h30-11H45 | Z53: 11h45-12H | AA53: 12h-12H15 | AB53: 12h15-12H30 | AC53: 12h30-12H45 | AD53: 12h45-13H | AE53: 13h-13H15 | AF53: 13h15-13H30 | AG53: 13h30-13H45 | AH53: 13H45-14H | AI53: 14H-14H15 | AJ53: 14h15-14H30 | AK53: 14h30-14H45 | AL53: 14H45-15H | AM53: 15H-15H15 | AN53: 15h15-15h30 | AO53: 15h30-15h45 | AP53: 15h45-16h | AQ53: 16h-16h15 | AR53: 16h15-16h30 | AS53: 16h30-16h45 | AT53: 16h45-17h | AU53: 17h-17h15 | AV53: 17h15-17h30 | AW53: 17h30-17h45 | AX53: 17h45-18h | AY53: 18h-18h15 | AZ53: 18h15-18h30 | BA53: 18h30-18h45 | BB53: 18h45-19h | BC53: 19h-19h15 | BD53: 19h15-19h30 | BE53: total
B54: sec | C54: Aurore | G54: S | H54: S | I54: S | J54: S | K54: S | L54: S | M54: S | N54: S | O54: S | P54: S | Q54: S | R54: S | S54: S | T54: S | U54: S | V54: S | W54: S | X54: S | Y54: S | Z54: S | AA54: S | AB54: S | AC54: S | AD54: S | BE54: =COUNTA(E54:BD54)*0.25 -> 6
B55: frais | C55: Bertrand | Q55: S | R55: S | S55: S | T55: S | U55: S | V55: S | W55: S | X55: S | Y55: S | Z55: S | AA55: S | AB55: S | AC55: S | AD55: S | AE55: S | AF55: S | AG55: S | AH55: S | BE55: =COUNTA(G55:BD55)*0.25 -> 4.5
B56: LIQUIDE | C56: Corinne | G56: S | H56: S | I56: S | J56: S | K56: S | L56: S | M56: S | N56: S | O56: S | P56: S | Q56: S | R56: S | S56: S | T56: S | U56: S | V56: S | W56: S | X56: S | Y56: S | Z56: S | AA56: S | AB56: S | AC56: S | AD56: S | AE56: S | AF56: S | BE56: 6.5
B57: DPH | C57: Laura | E57: S | F57: S | G57: S | H57: S | I57: S | J57: S | K57: S | L57: S | M57: S | N57: S | O57: S | P57: S | Q57: S | R57: S | S57: S | T57: S | U57: S | V57: S | W57: S | X57: S | Y57: S | Z57: S | AA57: S | AB57: S | AC57: S | AD57: S | BE57: =COUNTA(E57:BD57)*0.25 -> 6.5
C58: Ghislaine | E58: DPH | F58: DPH | G58: DPH | H58: DPH | I58: DPH | J58: DPH | K58: DPH | L58: DPH | M58: DPH | N58: DPH | O58: DPH | P58: DPH | Q58: DPH | R58: DPH | S58: DPH | T58: DPH | U58: DPH | V58: DPH | W58: DPH | X58: DPH | Y58: DPH | Z58: DPH | AI58: DPH | AJ58: DPH | AK58: DPH | AL58: DPH | AM58: DPH | AN58: DPH | AO58: DPH | AP58: DPH | AQ58: DPH | AR58: DPH | AS58: DPH | AT58: DPH | AU58: DPH | AV58: DPH | AW58: DPH | AX58: DPH | BE58: =COUNTA(E58:BD58)*0.25 -> 9.5
C59: Thibaut | E59: L | F59: L | G59: L | H59: L | I59: L | J59: L | K59: L | L59: L | M59: L | N59: L | O59: L | P59: L | Q59: L | R59: L | S59: L | T59: L | U59: L | V59: L | W59: L | X59: L | Y59: L | Z59: L | AA59: L | AB59: L | AC59: L | BE59: 6.25
C60: Said | G60: L | H60: L | I60: L | J60: L | K60: L | L60: L | M60: L | N60: L | O60: L | P60: L | Q60: L | R60: L | S60: L | T60: L | U60: L | V60: L | W60: L | X60: L | Y60: L | Z60: L | AA60: L | AB60: L | AC60: L | AD60: L | AE60: L | AF60: L | AG60: L | AH60: L | BE60: 7
C61: Assiya | E61: F | F61: F | G61: F | H61: F | I61: F | J61: F | K61: F | L61: F | M61: F | N61: F | O61: F | P61: F | Q61: F | R61: F | S61: F | T61: F | U61: F | V61: F | W61: F | X61: F | Y61: F | Z61: F | AA61: F | AB61: F | AC61: F | AD61: F | BE61: 6.5
C62: Francoise | F62: F | G62: F | H62: F | I62: F | J62: F | K62: F | L62: F | M62: F | N62: F | O62: F | P62: F | Q62: F | R62: F | S62: F | T62: F | U62: F | V62: F | W62: F | X62: F | Y62: F | Z62: F | AA62: F | AB62: F | AC62: F | BE62: 6
C63: Vanessa | Q63: D/MG | R63: D/MG | S63: D/MG | T63: D/MG | U63: D/MG | V63: D/MG | W63: D/MG | X63: D/MG | Y63: D/MG | Z63: D/MG | AA63: D/MG | AB63: D/MG | AK63: D/MG | AL63: D/MG | AM63: D/MG | AN63: D/MG | AO63: D/MG | AP63: D/MG | AQ63: D/MG | AR63: D/MG | AS63: D/MG | AT63: D/MG | AU63: D/MG | AV63: D/MG | BE63: 6
BE64: 0
BE65: 0
BE66: 0
BE67: 0
C68: TOTAL | E68: =COUNTA(E54:E67)*0.25 -> 1 | F68: 1.25 | G68: =COUNTA(G54:G67)*0.25 -> 2 | H68: =COUNTA(H54:H67)*0.25 -> 2 | I68: 2 | J68: 2 | K68: 2 | L68: 2 | M68: 2 | N68: 2 | O68: 2 | P68: 2 | Q68: 2.5 | R68: 2.5 | S68: 2.5 | T68: 2.5 | U68: 2.5 | V68: 2.5 | W68: 2.5 | X68: 2.5 | Y68: 2.5 | Z68: 2.5 | AA68: 2.25 | AB68: 2.25 | AC68: 2 | AD68: 1.5 | AE68: 0.75 | AF68: 0.75 | AG68: 0.5 | AH68: 0.5 | AI68: 0.25 | AJ68: 0.25 | AK68: 0.5 | AL68: 0.5 | AM68: 0.5 | AN68: 0.5 | AO68: 0.5 | AP68: 0.5 | AQ68: 0.5 | AR68: 0.5 | AS68: 0.5 | AT68: 0.5 | AU68: 0.5 | AV68: 0.5 | AW68: 0.25 | AX68: 0.25 | AY68: 0 | AZ68: 0 | BA68: 0 | BB68: 0 | BC68: 0 | BD68: 0 | BE68: =SUM(E68:BD68) -> 64.75
B70: VENDREDI | E70: 6h30-6h45 | F70: 6h45-7h | G70: 7h-7h15 | H70: 7h15-7h30 | I70: 7h30-7h45 | J70: 7h45-8h | K70: 8h-8h15 | L70: 8h15-8h30 | M70: 8h30-8h45 | N70: 8h45-9h | O70: 9h-9h15 | P70: 9h15-9H30 | Q70: 9h30-9H45 | R70: 9h45-10H | S70: 10h-10H15 | T70: 10h15-10H30 | U70: 10h30-10h45 | V70: 10h45-11H | W70: 11h-11H15 | X70: 11h15-11H30 | Y70: 11h30-11H45 | Z70: 11h45-12H | AA70: 12h-12H15 | AB70: 12h15-12H30 | AC70: 12h30-12H45 | AD70: 12h45-13H | AE70: 13h-13H15 | AF70: 13h15-13H30 | AG70: 13h30-13H45 | AH70: 13H45-14H | AI70: 14H-14H15 | AJ70: 14h15-14H30 | AK70: 14h30-14H45 | AL70: 14H45-15H | AM70: 15H-15H15 | AN70: 15h15-15h30 | AO70: 15h30-15h45 | AP70: 15h45-16h | AQ70: 16h-16h15 | AR70: 16h15-16h30 | AS70: 16h30-16h45 | AT70: 16h45-17h | AU70: 17h-17h15 | AV70: 17h15-17h30 | AW70: 17h30-17h45 | AX70: 17h45-18h | AY70: 18h-18h15 | AZ70: 18h15-18h30 | BA70: 18h30-18h45 | BB70: 18h45-19h | BC70: 19h-19h15 | BD70: 19h15-19h30 | BE70: total
B71: sec | C71: Aurore | G71: S | H71: S | I71: S | J71: S | K71: S | L71: S | M71: S | N71: S | O71: S | P71: S | Q71: S | R71: S | S71: S | T71: S | U71: S | V71: S | W71: S | X71: S | Y71: S | Z71: S | BE71: =COUNTA(E71:BD71)*0.25 -> 5
B72: frais | C72: Bertrand | AE72: S | AF72: S | AG72: S | AH72: S | AI72: S | AJ72: S | AK72: S | AL72: S | AM72: S | AN72: S | AO72: S | AP72: S | AQ72: S | AR72: S | AS72: S | AT72: S | AU72: S | AV72: S | BE72: =COUNTA(G72:BD72)*0.25 -> 4.5
B73: LIQUIDE | C73: Corinne | I73: S | J73: S | K73: S | L73: S | M73: S | N73: S | O73: S | P73: S | Q73: S | R73: S | S73: S | T73: S | U73: S | V73: S | W73: S | X73: S | Y73: S | Z73: S | AA73: S | BE73: =COUNTA(G73:BD73)*0.25 -> 4.75
B74: DPH | C74: Laura | I74: S | J74: S | K74: S | L74: S | M74: S | N74: S | O74: S | P74: S | Q74: S | R74: S | S74: S | T74: S | U74: S | V74: S | W74: S | X74: S | Y74: S | Z74: S | BE74: =COUNTA(E74:BD74)*0.25 -> 4.5
C75: Ghislaine | I75: DPH | J75: DPH | K75: DPH | L75: DPH | M75: DPH | N75: DPH | O75: DPH | P75: DPH | Q75: DPH | R75: DPH | S75: DPH | T75: DPH | U75: DPH | V75: DPH | W75: DPH | X75: DPH | Y75: DPH | Z75: DPH | AA75: DPH | AB75: DPH | BE75: =COUNTA(G75:BD75)*0.25 -> 5
C76: Thibaut | I76: L | J76: L | K76: L | L76: L | M76: L | N76: L | O76: L | P76: L | Q76: L | R76: L | S76: L | T76: L | U76: L | V76: L | W76: l | X76: l | AI76: L | AJ76: L | AK76: L | AL76: L | AM76: L | AN76: L | AO76: L | AP76: L | AQ76: L | AR76: L | AS76: L | AT76: L | AU76: L | AV76: L | AW76: L | AX76: L | BE76: 8
C77: Said | G77: L | H77: L | I77: L | J77: L | K77: L | L77: L | M77: L | N77: L | O77: L | P77: L | Q77: L | R77: L | S77: L | T77: L | U77: L | V77: L | W77: L | X77: L | Y77: L | Z77: L | AA77: L | AB77: L | AC77: L | AD77: L | AE77: L | BE77: 6.25
C78: Assiya | E78: F | F78: F | G78: F | H78: F | I78: F | J78: F | K78: F | L78: F | M78: F | N78: F | O78: F | P78: F | Q78: F | R78: F | S78: F | T78: F | U78: F | V78: F | AI78: F | AJ78: F | AK78: F | AL78: F | AM78: F | AN78: F | AO78: F | AP78: F | AQ78: F | AR78: F | AS78: F | AT78: F | BE78: 7
C79: Francoise | F79: F | G79: F | H79: F | I79: F | J79: F | K79: F | L79: F | M79: F | N79: F | O79: F | P79: F | Q79: F | R79: F | S79: F | T79: F | U79: F | V79: F | W79: F | X79: F | Y79: F | Z79: F | AI79: F | AJ79: F | AK79: F | AL79: F | AM79: F | AN79: F | AO79: F | AP79: F | AQ79: F | AR79: F | AS79: F | AT79: F | BE79: 8
C80: Vanessa | Q80: D/MG | R80: D/MG | S80: D/MG | T80: D/MG | U80: D/MG | V80: D/MG | W80: D/MG | X80: D/MG | Y80: D/MG | Z80: D/MG | AA80: D/MG | AB80: D/MG | AC80: D/MG | AD80: D/MG | AE80: D/MG | AF80: D/MG | AG80: D/MG | AH80: D/MG | AI80: D/MG | AJ80: D/MG | AK80: D/MG | AL80: D/MG | AM80: D/MG | BE80: 5.75
BE81: 0
BE82: 0
BE83: 0
BE84: 0
C85: TOTAL | E85: =COUNTA(E71:E84)*0.25 -> 0.25 | F85: 0.5 | G85: =COUNTA(G71:G84)*0.25 -> 1 | H85: =COUNTA(H71:H84)*0.25 -> 1 | I85: 2 | J85: 2 | K85: 2 | L85: 2 | M85: 2 | N85: 2 | O85: 2 | P85: 2 | Q85: 2.25 | R85: 2.25 | S85: 2.25 | T85: 2.25 | U85: 2.25 | V85: 2.25 | W85: 2 | X85: 2 | Y85: 1.75 | Z85: 1.75 | AA85: 1 | AB85: 0.75 | AC85: 0.5 | AD85: 0.5 | AE85: 0.75 | AF85: 0.5 | AG85: 0.5 | AH85: 0.5 | AI85: 1.25 | AJ85: 1.25 | AK85: 1.25 | AL85: 1.25 | AM85: 1.25 | AN85: 1 | AO85: 1 | AP85: 1 | AQ85: 1 | AR85: 1 | AS85: 1 | AT85: 1 | AU85: 0.5 | AV85: 0.5 | AW85: 0.25 | AX85: 0.25 | AY85: 0 | AZ85: 0 | BA85: 0 | BB85: 0 | BC85: 0 | BD85: 0 | BE85: =SUM(E85:BD85) -> 59.5
B87: SAMEDI | E87: 6h30-6h45 | F87: 6h45-7h | G87: 7h-7h15 | H87: 7h15-7h30 | I87: 7h30-7h45 | J87: 7h45-8h | K87: 8h-8h15 | L87: 8h15-8h30 | M87: 8h30-8h45 | N87: 8h45-9h | O87: 9h-9h15 | P87: 9h15-9H30 | Q87: 9h30-9H45 | R87: 9h45-10H | S87: 10h-10H15 | T87: 10h15-10H30 | U87: 10h30-10h45 | V87: 10h45-11H | W87: 11h-11H15 | X87: 11h15-11H30 | Y87: 11h30-11H45 | Z87: 11h45-12H | AA87: 12h-12H15 | AB87: 12h15-12H30 | AC87: 12h30-12H45 | AD87: 12h45-13H | AE87: 13h-13H15 | AF87: 13h15-13H30 | AG87: 13h30-13H45 | AH87: 13H45-14H | AI87: 14H-14H15 | AJ87: 14h15-14H30 | AK87: 14h30-14H45 | AL87: 14H45-15H | AM87: 15H-15H15 | AN87: 15h15-15h30 | AO87: 15h30-15h45 | AP87: 15h45-16h | AQ87: 16h-16h15 | AR87: 16h15-16h30 | AS87: 16h30-16h45 | AT87: 16h45-17h | AU87: 17h-17h15 | AV87: 17h15-17h30 | AW87: 17h30-17h45 | AX87: 17h45-18h | AY87: 18h-18h15 | AZ87: 18h15-18h30 | BA87: 18h30-18h45 | BB87: 18h45-19h | BC87: 19h-19h15 | BD87: 19h15-19h30 | BE87: total
B88: sec | C88: Aurore | G88: S | H88: S | I88: S | J88: S | K88: S | L88: S | M88: S | N88: S | O88: S | P88: S | Q88: S | R88: S | S88: S | T88: S | U88: S | V88: S | W88: S | X88: S | Y88: S | Z88: S | AM88: B | AN88: B | AO88: B | AP88: B | AQ88: B | AR88: B | AS88: B | AT88: B | AU88: B | AV88: B | AW88: B | AX88: B | BE88: =COUNTA(E88:BD88)*0.25 -> 8
B89: frais | C89: Bertrand | Q89: S | R89: S | S89: S | T89: S | U89: S | V89: S | W89: S | X89: S | Y89: S | Z89: S | AA89: S | AB89: S | BE89: 3
B90: LIQUIDE | C90: Corinne | G90: S | H90: S | I90: S | J90: S | K90: S | L90: S | M90: S | N90: S | O90: S | P90: S | Q90: S | R90: S | S90: S | T90: S | U90: S | V90: S | W90: S | X90: S | Y90: S | Z90: S | AA90: S | AB90: S | BE90: 5.5
B91: DPH | C91: Laura | G91: S | H91: S | I91: S | J91: S | K91: S | L91: S | M91: S | N91: S | O91: S | P91: S | Q91: S | R91: S | S91: S | T91: S | U91: S | V91: S | W91: S | X91: S | Y91: S | Z91: S | AA91: S | AB91: S | BE91: 5.5
C92: Ghislaine | G92: DPH | H92: DPH | I92: DPH | J92: DPH | K92: DPH | L92: DPH | M92: DPH | N92: DPH | O92: DPH | P92: DPH | Q92: DPH | R92: DPH | S92: DPH | T92: DPH | U92: DPH | V92: DPH | W92: DPH | X92: DPH | Y92: DPH | Z92: DPH | AA92: DPH | AB92: DPH | BE92: 5.5
C93: Thibaut | G93: L | H93: L | I93: L | J93: L | K93: L | L93: L | M93: L | N93: L | O93: L | P93: L | Q93: L | R93: L | S93: L | T93: L | U93: L | V93: L | W93: L | X93: L | Y93: L | Z93: L | AA93: L | AB93: L | AC93: L | AD93: L | BE93: 6
C94: Said | G94: L | H94: L | I94: L | J94: L | K94: L | L94: L | M94: L | N94: L | O94: L | P94: L | Q94: L | R94: L | S94: L | T94: L | U94: L | V94: L | W94: L | X94: L | Y94: L | Z94: L | AA94: L | AB94: L | BE94: 5.5
C95: Assiya | E95: F | F95: F | G95: F | H95: F | I95: F | J95: F | K95: F | L95: F | M95: F | N95: F | O95: F | P95: F | Q95: F | R95: F | S95: F | T95: F | U95: F | V95: F | W95: F | X95: F | Y95: F | Z95: F | AA95: F | AB95: F | BE95: 6
C96: Francoise | E96: F | F96: F | G96: F | H96: F | I96: F | J96: F | K96: F | L96: F | M96: F | N96: F | O96: F | P96: F | Q96: F | R96: F | S96: F | T96: F | U96: F | V96: F | W96: F | X96: F | Y96: F | Z96: F | AA96: F | AB96: F | BE96: 6
C97: Vanessa | Q97: D/MG | R97: D/MG | S97: D/MG | T97: D/MG | U97: D/MG | V97: D/MG | W97: D/MG | X97: D/MG | Y97: D/MG | Z97: D/MG | AA97: D/MG | AB97: D/MG | AC97: D/MG | AD97: D/MG | BE97: 3.5
BE98: 0
BE99: 0
BE100: 0
BE101: 0
C102: TOTAL | E102: =COUNTA(E88:E101)*0.25 -> 0.5 | F102: 0.5 | G102: =COUNTA(G88:G101)*0.25 -> 2 | H102: =COUNTA(H88:H101)*0.25 -> 2 | I102: 2 | J102: 2 | K102: 2 | L102: 2 | M102: 2 | N102: 2 | O102: 2 | P102: 2 | Q102: 2.5 | R102: 2.5 | S102: 2.5 | T102: 2.5 | U102: 2.5 | V102: 2.5 | W102: 2.5 | X102: 2.5 | Y102: 2.5 | Z102: 2.5 | AA102: 2.25 | AB102: 2.25 | AC102: 0.5 | AD102: 0.5 | AE102: 0 | AF102: 0 | AG102: 0 | AH102: 0 | AI102: 0 | AJ102: 0 | AK102: 0 | AL102: 0 | AM102: 0.25 | AN102: 0.25 | AO102: 0.25 | AP102: 0.25 | AQ102: 0.25 | AR102: 0.25 | AS102: 0.25 | AT102: 0.25 | AU102: 0.25 | AV102: 0.25 | AW102: 0.25 | AX102: 0.25 | AY102: 0 | AZ102: 0 | BA102: 0 | BB102: 0 | BC102: 0 | BD102: 0 | BE102: =SUM(BE88:BE101) -> 54.5
B104: Dimanche | E104: 6h30-6h45 | F104: 6h45-7h | G104: 7h-7h15 | H104: 7h15-7h30 | I104: 7h30-7h45 | J104: 7h45-8h | K104: 8h-8h15 | L104: 8h15-8h30 | M104: 8h30-8h45 | N104: 8h45-9h | O104: 9h-9h15 | P104: 9h15-9H30 | Q104: 9h30-9H45 | R104: 9h45-10H | S104: 10h-10H15 | T104: 10h15-10H30 | U104: 10h30-10h45 | V104: 10h45-11H | W104: 11h-11H15 | X104: 11h15-11H30 | Y104: 11h30-11H45 | Z104: 11h45-12H | AA104: 12h-12H15 | AB104: 12h15-12H30 | AC104: 12h30-12H45 | AD104: 12h45-13H | AE104: 13h-13H15 | AF104: 13h15-13H30 | AG104: 13h30-13H45 | AH104: 13H45-14H | AI104: 14H-14H15 | AJ104: 14h15-14H30 | AK104: 14h30-14H45 | AL104: 14H45-15H | AM104: 15H-15H15 | AN104: 15h15-15h30 | AO104: 15h30-15h45 | AP104: 15h45-16h | AQ104: 16h-16h15 | AR104: 16h15-16h30 | AS104: 16h30-16h45 | AT104: 16h45-17h | AU104: 17h-17h15 | AV104: 17h15-17h30 | AW104: 17h30-17h45 | AX104: 17h45-18h | AY104: 18h-18h15 | AZ104: 18h15-18h30 | BA104: 18h30-18h45 | BB104: 18h45-19h | BC104: 19h-19h15 | BD104: 19h15-19h30 | BE104: total
B105: sec | C105: Aurore | BE105: =COUNTA(G105:BD105)*0.25 -> 0
B106: frais | C106: Bertrand | BE106: 0
B107: LIQUIDE | C107: Corinne | BE107: 0
B108: DPH | C108: Laura | BE108: 0
C109: Ghislaine | BE109: 0
C110: Thibaut | BE110: 0
C111: Said | BE111: 0
C112: Assiya | BE112: 0
C113: Francoise | BE113: 0
C114: Vanessa | BE114: 0
BE115: 0
BE116: 0
BE117: 0
BE118: 0
C119: TOTAL | G119: =COUNTA(G105:G118)*0.25 -> 0 | H119: =COUNTA(H105:H118)*0.25 -> 0 | I119: 0 | J119: 0 | K119: 0 | L119: 0 | M119: 0 | N119: 0 | O119: 0 | P119: 0 | Q119: 0 | R119: 0 | S119: 0 | T119: 0 | U119: 0 | V119: 0 | W119: 0 | X119: 0 | Y119: 0 | Z119: 0 | AA119: 0 | AB119: 0 | AC119: 0 | AD119: 0 | AE119: 0 | AF119: 0 | AG119: 0 | AH119: 0 | AI119: 0 | AJ119: 0 | AK119: 0 | AL119: 0 | AM119: 0 | AN119: 0 | AO119: 0 | AP119: 0 | AQ119: 0 | AR119: 0 | AS119: 0 | AT119: 0 | AU119: 0 | AV119: 0 | AW119: 0 | AX119: 0 | AY119: 0 | AZ119: 0 | BA119: 0 | BB119: 0 | BC119: 0 | BD119: 0 | BE119: =SUM(G119:BD119) -> 0
B121: Signatures OBLIGATOIRES
B126: Planning | E126: 6h30-6h45 | F126: 6h45-7h | G126: 7h-7h15 | H126: 7h15-7h30 | I126: 7h30-7h45 | J126: 7h45-8h | K126: 8h-8h15 | L126: 8h15-8h30 | M126: 8h30-8h45 | N126: 8h45-9h | O126: 9h-9h15 | P126: 9h15-9H30 | Q126: 9h30-9H45 | R126: 9h45-10H | S126: 10h-10H15 | T126: 10h15-10H30 | U126: 10h30-10h45 | V126: 10h45-11H | W126: 11h-11H15 | X126: 11h15-11H30 | Y126: 11h30-11H45 | Z126: 11h45-12H | AA126: 12h-12H15 | AB126: 12h15-12H30 | AC126: 12h30-12H45 | AD126: 12h45-13H | AE126: 13h-13H15 | AF126: 13h15-13H30 | AG126: 13h30-13H45 | AH126: 13H45-14H | AI126: 14H-14H15 | AJ126: 14h15-14H30 | AK126: 14h30-14H45 | AL126: 14H45-15H | AM126: 15H-15H15 | AN126: 15h15-15h30 | AO126: 15h30-15h45 | AP126: 15h45-16h | AQ126: 16h-16h15 | AR126: 16h15-16h30 | AS126: 16h30-16h45 | AT126: 16h45-17h | AU126: 17h-17h15 | AV126: 17h15-17h30 | AW126: 17h30-17h45 | AX126: 17h45-18h | AY126: 18h-18h15 | AZ126: 18h15-18h30 | BA126: 18h30-18h45 | BB126: 18h45-19h | BC126: 19h-19h15 | BD126: 19h15-19h30
B127: TOTAL Semaine | C127: =+C105 -> Aurore | D127: S | E127: =(IF(E3="S",1,0)+IF(E20="S",1,0)+IF(E37="S",1,0)+IF(E54="S",1,0)+IF(E71="S",1,0)+IF(E88="S",1,0)+IF(E105="S",1,0))/4 -> 0 | F127: =(IF(F3="S",1,0)+IF(F20="S",1,0)+IF(F37="S",1,0)+IF(F54="S",1,0)+IF(F71="S",1,0)+IF(F88="S",1,0)+IF(F105="S",1,0))/4 -> 0 | G127: 1.5 | H127: 1.5 | I127: 1.5 | J127: 1.5 | K127: 1.5 | L127: 1.5 | M127: 1.5 | N127: 1.5 | O127: 1.5 | P127: 1.5 | Q127: 1.5 | R127: 1.5 | S127: 1.25 | T127: 1.25 | U127: 1.25 | V127: 1.25 | W127: 1.25 | X127: 1.25 | Y127: 1.25 | Z127: 1.25 | AA127: 0.5 | AB127: 0.5 | AC127: 0.5 | AD127: 0.5 | AE127: 0 | AF127: 0 | AG127: 0 | AH127: 0 | AI127: 0 | AJ127: 0 | AK127: 0 | AL127: 0 | AM127: 0 | AN127: 0 | AO127: 0 | AP127: 0 | AQ127: 0 | AR127: 0 | AS127: 0 | AT127: 0 | AU127: 0 | AV127: 0 | AW127: 0 | AX127: 0 | AY127: 0 | AZ127: 0 | BA127: 0 | BB127: 0 | BC127: 0 | BD127: 0 | BE127: =SUM(E127:BD127) -> 30 | BF127: =SUM(BE127+BE128) -> 30
E128: =(IF(E3="c",1,0)+IF(E20="c",1,0)+IF(E37="c",1,0)+IF(E54="c",1,0)+IF(E71="c",1,0)+IF(E88="c",1,0)+IF(E105="c",1,0))/4 -> 0 | F128: 0 | G128: 0 | H128: 0 | I128: 0 | J128: 0 | K128: 0 | L128: 0 | M128: 0 | N128: 0 | O128: 0 | P128: 0 | Q128: 0 | R128: 0 | S128: 0 | T128: 0 | U128: 0 | V128: 0 | W128: 0 | X128: 0 | Y128: 0 | Z128: 0 | AA128: 0 | AB128: 0 | AC128: 0 | AD128: 0 | AE128: 0 | AF128: 0 | AG128: 0 | AH128: 0 | AI128: 0 | AJ128: 0 | AK128: =(IF(AK3="c",1,0)+IF(AK20="c",1,0)+IF(AK37="c",1,0)+IF(AK54="c",1,0)+IF(AK71="c",1,0)+IF(AK88="c",1,0)+IF(AK105="c",1,0))/4 -> 0 | AL128: 0 | AM128: 0 | AN128: 0 | AO128: 0 | AP128: 0 | AQ128: 0 | AR128: 0 | AS128: 0 | AT128: 0 | AU128: 0 | AV128: 0 | AW128: 0 | AX128: 0 | AY128: 0 | AZ128: 0 | BA128: 0 | BB128: 0 | BC128: 0 | BD128: 0 | BE128: =SUM(G128:BD128) -> 0
C129: =+C106 -> Bertrand | D129: B | E129: =(IF(E4="B",1,0)+IF(E21="B",1,0)+IF(E38="B",1,0)+IF(E55="B",1,0)+IF(E72="B",1,0)+IF(E89="B",1,0)+IF(E106="B",1,0))/4 -> 0 | F129: 0 | G129: 0 | H129: 0 | I129: 0 | J129: 0 | K129: 0 | L129: 0 | M129: 0 | N129: 0 | O129: 0 | P129: 0 | Q129: 0 | R129: 0 | S129: 0 | T129: 0 | U129: 0 | V129: 0 | W129: 0 | X129: 0 | Y129: 0 | Z129: 0 | AA129: 0 | AB129: 0 | AC129: 0 | AD129: 0 | AE129: 0 | AF129: 0 | AG129: 0 | AH129: 0 | AI129: 0 | AJ129: 0 | AK129: =(IF(AK4="B",1,0)+IF(AK21="B",1,0)+IF(AK38="B",1,0)+IF(AK55="B",1,0)+IF(AK72="B",1,0)+IF(AK89="B",1,0)+IF(AK106="B",1,0))/4 -> 0 | AL129: 0 | AM129: 0 | AN129: 0 | AO129: 0 | AP129: 0 | AQ129: 0 | AR129: 0 | AS129: 0 | AT129: 0 | AU129: 0 | AV129: 0 | AW129: 0 | AX129: 0 | AY129: 0 | AZ129: 0 | BA129: 0 | BB129: 0 | BC129: 0 | BD129: 0 | BE129: =SUM(E129:BD129) -> 0 | BF129: =SUM(BE129+BE130) -> 20
C130: =+C4 -> Bertrand | D130: S | E130: =(IF(E4="S",1,0)+IF(E21="S",1,0)+IF(E38="S",1,0)+IF(E55="S",1,0)+IF(E72="S",1,0)+IF(E89="S",1,0)+IF(E106="S",1,0))/4 -> 0 | F130: =(IF(F4="S",1,0)+IF(F21="S",1,0)+IF(F38="S",1,0)+IF(F55="S",1,0)+IF(F72="S",1,0)+IF(F89="S",1,0)+IF(F106="S",1,0))/4 -> 0 | G130: 0 | H130: 0 | I130: 0 | J130: 0 | K130: 0 | L130: 0 | M130: 0 | N130: 0 | O130: 0 | P130: 0 | Q130: 0.75 | R130: 0.75 | S130: 0.75 | T130: 0.75 | U130: 0.75 | V130: 0.75 | W130: 0.75 | X130: 0.75 | Y130: 0.75 | Z130: 0.75 | AA130: 0.75 | AB130: 0.75 | AC130: 0.5 | AD130: 0.5 | AE130: 0.75 | AF130: 0.75 | AG130: 0.75 | AH130: 0.75 | AI130: 0.5 | AJ130: 0.5 | AK130: 0.5 | AL130: 0.5 | AM130: 0.5 | AN130: 0.5 | AO130: 0.5 | AP130: 0.5 | AQ130: 0.5 | AR130: 0.5 | AS130: 0.5 | AT130: 0.5 | AU130: 0.5 | AV130: 0.5 | AW130: 0 | AX130: 0 | AY130: 0 | AZ130: 0 | BA130: 0 | BB130: 0 | BC130: 0 | BD130: 0 | BE130: =SUM(G130:BD130) -> 20
C131: =+C5 -> Corinne | D131: M | E131: =(IF(E4="M",1,0)+IF(E21="M",1,0)+IF(E38="M",1,0)+IF(E55="M",1,0)+IF(E72="M",1,0)+IF(E89="M",1,0)+IF(E106="M",1,0))/4 -> 0 | F131: 0 | G131: 0 | H131: 0 | I131: 0 | J131: 0 | K131: 0 | L131: 0 | M131: 0 | N131: 0 | O131: 0 | P131: 0 | Q131: 0 | R131: 0 | S131: 0 | T131: 0 | U131: 0 | V131: 0 | W131: 0 | X131: 0 | Y131: 0 | Z131: 0 | AA131: 0 | AB131: 0 | AC131: 0 | AD131: 0 | AE131: 0 | AF131: 0 | AG131: 0 | AH131: 0 | AI131: 0 | AJ131: 0 | AK131: =(IF(AK4="M",1,0)+IF(AK21="M",1,0)+IF(AK38="M",1,0)+IF(AK55="M",1,0)+IF(AK72="M",1,0)+IF(AK89="M",1,0)+IF(AK106="M",1,0))/4 -> 0 | AL131: 0 | AM131: 0 | AN131: 0 | AO131: 0 | AP131: 0 | AQ131: 0 | AR131: 0 | AS131: 0 | AT131: 0 | AU131: 0 | AV131: 0 | AW131: 0 | AX131: 0 | AY131: 0 | AZ131: 0 | BA131: 0 | BB131: 0 | BC131: 0 | BD131: 0 | BE131: =SUM(G131:BD131) -> 0 | BF131: =SUM(BE131+BE132) -> 36.75
D132: S | E132: =(IF(E5="S",1,0)+IF(E22="S",1,0)+IF(E39="S",1,0)+IF(E56="S",1,0)+IF(E73="S",1,0)+IF(E90="S",1,0)+IF(E107="S",1,0))/4 -> 0 | F132: =(IF(F5="S",1,0)+IF(F22="S",1,0)+IF(F39="S",1,0)+IF(F56="S",1,0)+IF(F73="S",1,0)+IF(F90="S",1,0)+IF(F107="S",1,0))/4 -> 0 | G132: 1 | H132: 1 | I132: 1.5 | J132: 1.5 | K132: 1.5 | L132: 1.5 | M132: 1.5 | N132: 1.5 | O132: 1.5 | P132: 1.5 | Q132: 1.5 | R132: 1.5 | S132: 1.5 | T132: 1.5 | U132: 1.5 | V132: 1.5 | W132: 1.5 | X132: 1.5 | Y132: 1.5 | Z132: 1.5 | AA132: 1.25 | AB132: 1 | AC132: 0.5 | AD132: 0.5 | AE132: 0.5 | AF132: 0.5 | AG132: 0 | AH132: 0 | AI132: 0 | AJ132: 0 | AK132: 0.25 | AL132: 0.25 | AM132: 0.25 | AN132: 0.25 | AO132: 0.25 | AP132: 0.25 | AQ132: 0.25 | AR132: 0.25 | AS132: 0.25 | AT132: 0.25 | AU132: 0.25 | AV132: 0.25 | AW132: 0.25 | AX132: 0.25 | AY132: 0 | AZ132: 0 | BA132: 0 | BB132: 0 | BC132: 0 | BD132: 0 | BE132: =SUM(G132:BD132) -> 36.75
C133: =+C6 -> Laura | E133: =(IF(E7="r",1,0)+IF(E23="r",1,0)+IF(E40="r",1,0)+IF(E57="r",1,0)+IF(E74="r",1,0)+IF(E91="r",1,0)+IF(E108="r",1,0))/4 -> 0 | F133: 0 | G133: 0 | H133: 0 | I133: 0 | J133: 0 | K133: 0 | L133: 0 | M133: 0 | N133: 0 | O133: 0 | P133: 0 | Q133: 0 | R133: 0 | S133: 0 | T133: 0 | U133: 0 | V133: 0 | W133: 0 | X133: 0 | Y133: 0 | Z133: 0 | AA133: 0 | AB133: 0 | AC133: 0 | AD133: 0 | AE133: 0 | AF133: 0 | AG133: 0 | AH133: 0 | AI133: 0 | AJ133: 0 | AK133: =(IF(AK7="r",1,0)+IF(AK23="r",1,0)+IF(AK40="r",1,0)+IF(AK57="r",1,0)+IF(AK74="r",1,0)+IF(AK91="r",1,0)+IF(AK108="r",1,0))/4 -> 0 | AL133: 0 | AM133: 0 | AN133: 0 | AO133: 0 | AP133: 0 | AQ133: 0 | AR133: 0 | AS133: 0 | AT133: 0 | AU133: 0 | AV133: 0 | AW133: 0 | AX133: 0 | AY133: 0 | AZ133: 0 | BA133: 0 | BB133: 0 | BC133: 0 | BD133: 0 | BE133: =SUM(G133:BD133) -> 0 | BF133: =SUM(BE133+BE134) -> 36.75
D134: S | E134: =(IF(E6="S",1,0)+IF(E23="S",1,0)+IF(E40="S",1,0)+IF(E57="S",1,0)+IF(E74="S",1,0)+IF(E91="S",1,0)+IF(E108="S",1,0))/4 -> 0.75 | F134: =(IF(F6="S",1,0)+IF(F23="S",1,0)+IF(F40="S",1,0)+IF(F57="S",1,0)+IF(F74="S",1,0)+IF(F91="S",1,0)+IF(F108="S",1,0))/4 -> 0.75 | G134: 1 | H134: 1 | I134: 1.5 | J134: 1.5 | K134: 1.5 | L134: 1.5 | M134: 1.5 | N134: 1.5 | O134: 1.5 | P134: 1.5 | Q134: 1.5 | R134: 1.5 | S134: 1.5 | T134: 1.5 | U134: 1.5 | V134: 1.5 | W134: 1.5 | X134: 1.5 | Y134: 1.5 | Z134: 1.5 | AA134: 1.25 | AB134: 1 | AC134: 0.25 | AD134: 0.25 | AE134: 0 | AF134: 0 | AG134: 0 | AH134: 0 | AI134: 0 | AJ134: 0 | AK134: 0.25 | AL134: 0.25 | AM134: 0.25 | AN134: 0.25 | AO134: 0.25 | AP134: 0.25 | AQ134: 0.25 | AR134: 0.25 | AS134: 0.25 | AT134: 0.25 | AU134: 0.25 | AV134: 0.25 | AW134: 0.25 | AX134: 0.25 | AY134: 0 | AZ134: 0 | BA134: 0 | BB134: 0 | BC134: 0 | BD134: 0 | BE134: =SUM(E134:BD134) -> 36.75
C135: =+C7 -> Ghislaine | E135: =(IF(#REF!="r",1,0)+IF(E24="r",1,0)+IF(E41="r",1,0)+IF(E58="r",1,0)+IF(E75="r",1,0)+IF(E92="r",1,0)+IF(E109="r",1,0))/4 ->  | F135: =(IF(#REF!="r",1,0)+IF(F24="r",1,0)+IF(F41="r",1,0)+IF(F58="r",1,0)+IF(F75="r",1,0)+IF(F92="r",1,0)+IF(F109="r",1,0))/4 ->  | G135: =(IF(#REF!="r",1,0)+IF(G24="r",1,0)+IF(G41="r",1,0)+IF(G58="r",1,0)+IF(G75="r",1,0)+IF(G92="r",1,0)+IF(G109="r",1,0))/4 ->  | H135: =(IF(#REF!="r",1,0)+IF(H24="r",1,0)+IF(H41="r",1,0)+IF(H58="r",1,0)+IF(H75="r",1,0)+IF(H92="r",1,0)+IF(H109="r",1,0))/4 ->  | I135: =(IF(#REF!="r",1,0)+IF(I24="r",1,0)+IF(I41="r",1,0)+IF(I58="r",1,0)+IF(I75="r",1,0)+IF(I92="r",1,0)+IF(I109="r",1,0))/4 ->  | J135: =(IF(#REF!="r",1,0)+IF(J24="r",1,0)+IF(J41="r",1,0)+IF(J58="r",1,0)+IF(J75="r",1,0)+IF(J92="r",1,0)+IF(J109="r",1,0))/4 ->  | K135: =(IF(#REF!="r",1,0)+IF(K24="r",1,0)+IF(K41="r",1,0)+IF(K58="r",1,0)+IF(K75="r",1,0)+IF(K92="r",1,0)+IF(K109="r",1,0))/4 ->  | L135: =(IF(#REF!="r",1,0)+IF(L24="r",1,0)+IF(L41="r",1,0)+IF(L58="r",1,0)+IF(L75="r",1,0)+IF(L92="r",1,0)+IF(L109="r",1,0))/4 ->  | M135: =(IF(#REF!="r",1,0)+IF(M24="r",1,0)+IF(M41="r",1,0)+IF(M58="r",1,0)+IF(M75="r",1,0)+IF(M92="r",1,0)+IF(M109="r",1,0))/4 ->  | N135: =(IF(#REF!="r",1,0)+IF(N24="r",1,0)+IF(N41="r",1,0)+IF(N58="r",1,0)+IF(N75="r",1,0)+IF(N92="r",1,0)+IF(N109="r",1,0))/4 ->  | O135: =(IF(#REF!="r",1,0)+IF(O24="r",1,0)+IF(O41="r",1,0)+IF(O58="r",1,0)+IF(O75="r",1,0)+IF(O92="r",1,0)+IF(O109="r",1,0))/4 ->  | P135: =(IF(#REF!="r",1,0)+IF(P24="r",1,0)+IF(P41="r",1,0)+IF(P58="r",1,0)+IF(P75="r",1,0)+IF(P92="r",1,0)+IF(P109="r",1,0))/4 ->  | Q135: =(IF(#REF!="r",1,0)+IF(Q24="r",1,0)+IF(Q41="r",1,0)+IF(Q58="r",1,0)+IF(Q75="r",1,0)+IF(Q92="r",1,0)+IF(Q109="r",1,0))/4 ->  | R135: =(IF(#REF!="r",1,0)+IF(R24="r",1,0)+IF(R41="r",1,0)+IF(R58="r",1,0)+IF(R75="r",1,0)+IF(R92="r",1,0)+IF(R109="r",1,0))/4 ->  | S135: =(IF(#REF!="r",1,0)+IF(S24="r",1,0)+IF(S41="r",1,0)+IF(S58="r",1,0)+IF(S75="r",1,0)+IF(S92="r",1,0)+IF(S109="r",1,0))/4 ->  | T135: =(IF(#REF!="r",1,0)+IF(T24="r",1,0)+IF(T41="r",1,0)+IF(T58="r",1,0)+IF(T75="r",1,0)+IF(T92="r",1,0)+IF(T109="r",1,0))/4 ->  | U135: =(IF(#REF!="r",1,0)+IF(U24="r",1,0)+IF(U41="r",1,0)+IF(U58="r",1,0)+IF(U75="r",1,0)+IF(U92="r",1,0)+IF(U109="r",1,0))/4 ->  | V135: =(IF(#REF!="r",1,0)+IF(V24="r",1,0)+IF(V41="r",1,0)+IF(V58="r",1,0)+IF(V75="r",1,0)+IF(V92="r",1,0)+IF(V109="r",1,0))/4 ->  | W135: =(IF(#REF!="r",1,0)+IF(W24="r",1,0)+IF(W41="r",1,0)+IF(W58="r",1,0)+IF(W75="r",1,0)+IF(W92="r",1,0)+IF(W109="r",1,0))/4 ->  | X135: =(IF(#REF!="r",1,0)+IF(X24="r",1,0)+IF(X41="r",1,0)+IF(X58="r",1,0)+IF(X75="r",1,0)+IF(X92="r",1,0)+IF(X109="r",1,0))/4 ->  | Y135: =(IF(#REF!="r",1,0)+IF(Y24="r",1,0)+IF(Y41="r",1,0)+IF(Y58="r",1,0)+IF(Y75="r",1,0)+IF(Y92="r",1,0)+IF(Y109="r",1,0))/4 ->  | Z135: =(IF(#REF!="r",1,0)+IF(Z24="r",1,0)+IF(Z41="r",1,0)+IF(Z58="r",1,0)+IF(Z75="r",1,0)+IF(Z92="r",1,0)+IF(Z109="r",1,0))/4 ->  | AA135: =(IF(#REF!="r",1,0)+IF(AA24="r",1,0)+IF(AA41="r",1,0)+IF(AA58="r",1,0)+IF(AA75="r",1,0)+IF(AA92="r",1,0)+IF(AA109="r",1,0))/4 ->  | AB135: =(IF(#REF!="r",1,0)+IF(AB24="r",1,0)+IF(AB41="r",1,0)+IF(AB58="r",1,0)+IF(AB75="r",1,0)+IF(AB92="r",1,0)+IF(AB109="r",1,0))/4 ->  | AC135: =(IF(#REF!="r",1,0)+IF(AC24="r",1,0)+IF(AC41="r",1,0)+IF(AC58="r",1,0)+IF(AC75="r",1,0)+IF(AC92="r",1,0)+IF(AC109="r",1,0))/4 ->  | AD135: =(IF(#REF!="r",1,0)+IF(AD24="r",1,0)+IF(AD41="r",1,0)+IF(AD58="r",1,0)+IF(AD75="r",1,0)+IF(AD92="r",1,0)+IF(AD109="r",1,0))/4 ->  | AE135: =(IF(#REF!="r",1,0)+IF(AE24="r",1,0)+IF(AE41="r",1,0)+IF(AE58="r",1,0)+IF(AE75="r",1,0)+IF(AE92="r",1,0)+IF(AE109="r",1,0))/4 ->  | AF135: =(IF(#REF!="r",1,0)+IF(AF24="r",1,0)+IF(AF41="r",1,0)+IF(AF58="r",1,0)+IF(AF75="r",1,0)+IF(AF92="r",1,0)+IF(AF109="r",1,0))/4 ->  | AG135: =(IF(#REF!="r",1,0)+IF(AG24="r",1,0)+IF(AG41="r",1,0)+IF(AG58="r",1,0)+IF(AG75="r",1,0)+IF(AG92="r",1,0)+IF(AG109="r",1,0))/4 ->  | AH135: =(IF(#REF!="r",1,0)+IF(AH24="r",1,0)+IF(AH41="r",1,0)+IF(AH58="r",1,0)+IF(AH75="r",1,0)+IF(AH92="r",1,0)+IF(AH109="r",1,0))/4 ->  | AI135: =(IF(#REF!="r",1,0)+IF(AI24="r",1,0)+IF(AI41="r",1,0)+IF(AI58="r",1,0)+IF(AI75="r",1,0)+IF(AI92="r",1,0)+IF(AI109="r",1,0))/4 ->  | AJ135: =(IF(#REF!="r",1,0)+IF(AJ24="r",1,0)+IF(AJ41="r",1,0)+IF(AJ58="r",1,0)+IF(AJ75="r",1,0)+IF(AJ92="r",1,0)+IF(AJ109="r",1,0))/4 ->  | AK135: =(IF(#REF!="r",1,0)+IF(AK24="r",1,0)+IF(AK41="r",1,0)+IF(AK58="r",1,0)+IF(AK75="r",1,0)+IF(AK92="r",1,0)+IF(AK109="r",1,0))/4 ->  | AL135: =(IF(#REF!="r",1,0)+IF(AL24="r",1,0)+IF(AL41="r",1,0)+IF(AL58="r",1,0)+IF(AL75="r",1,0)+IF(AL92="r",1,0)+IF(AL109="r",1,0))/4 ->  | AM135: =(IF(#REF!="r",1,0)+IF(AM24="r",1,0)+IF(AM41="r",1,0)+IF(AM58="r",1,0)+IF(AM75="r",1,0)+IF(AM92="r",1,0)+IF(AM109="r",1,0))/4 ->  | AN135: =(IF(#REF!="r",1,0)+IF(AN24="r",1,0)+IF(AN41="r",1,0)+IF(AN58="r",1,0)+IF(AN75="r",1,0)+IF(AN92="r",1,0)+IF(AN109="r",1,0))/4 ->  | AO135: =(IF(#REF!="r",1,0)+IF(AO24="r",1,0)+IF(AO41="r",1,0)+IF(AO58="r",1,0)+IF(AO75="r",1,0)+IF(AO92="r",1,0)+IF(AO109="r",1,0))/4 ->  | AP135: =(IF(#REF!="r",1,0)+IF(AP24="r",1,0)+IF(AP41="r",1,0)+IF(AP58="r",1,0)+IF(AP75="r",1,0)+IF(AP92="r",1,0)+IF(AP109="r",1,0))/4 ->  | AQ135: =(IF(#REF!="r",1,0)+IF(AQ24="r",1,0)+IF(AQ41="r",1,0)+IF(AQ58="r",1,0)+IF(AQ75="r",1,0)+IF(AQ92="r",1,0)+IF(AQ109="r",1,0))/4 ->  | AR135: =(IF(#REF!="r",1,0)+IF(AR24="r",1,0)+IF(AR41="r",1,0)+IF(AR58="r",1,0)+IF(AR75="r",1,0)+IF(AR92="r",1,0)+IF(AR109="r",1,0))/4 ->  | AS135: =(IF(#REF!="r",1,0)+IF(AS24="r",1,0)+IF(AS41="r",1,0)+IF(AS58="r",1,0)+IF(AS75="r",1,0)+IF(AS92="r",1,0)+IF(AS109="r",1,0))/4 ->  | AT135: =(IF(#REF!="r",1,0)+IF(AT24="r",1,0)+IF(AT41="r",1,0)+IF(AT58="r",1,0)+IF(AT75="r",1,0)+IF(AT92="r",1,0)+IF(AT109="r",1,0))/4 ->  | AU135: =(IF(#REF!="r",1,0)+IF(AU24="r",1,0)+IF(AU41="r",1,0)+IF(AU58="r",1,0)+IF(AU75="r",1,0)+IF(AU92="r",1,0)+IF(AU109="r",1,0))/4 ->  | AV135: =(IF(#REF!="r",1,0)+IF(AV24="r",1,0)+IF(AV41="r",1,0)+IF(AV58="r",1,0)+IF(AV75="r",1,0)+IF(AV92="r",1,0)+IF(AV109="r",1,0))/4 ->  | AW135: =(IF(#REF!="r",1,0)+IF(AW24="r",1,0)+IF(AW41="r",1,0)+IF(AW58="r",1,0)+IF(AW75="r",1,0)+IF(AW92="r",1,0)+IF(AW109="r",1,0))/4 ->  | AX135: =(IF(#REF!="r",1,0)+IF(AX24="r",1,0)+IF(AX41="r",1,0)+IF(AX58="r",1,0)+IF(AX75="r",1,0)+IF(AX92="r",1,0)+IF(AX109="r",1,0))/4 ->  | AY135: =(IF(#REF!="r",1,0)+IF(AY24="r",1,0)+IF(AY41="r",1,0)+IF(AY58="r",1,0)+IF(AY75="r",1,0)+IF(AY92="r",1,0)+IF(AY109="r",1,0))/4 ->  | AZ135: =(IF(#REF!="r",1,0)+IF(AZ24="r",1,0)+IF(AZ41="r",1,0)+IF(AZ58="r",1,0)+IF(AZ75="r",1,0)+IF(AZ92="r",1,0)+IF(AZ109="r",1,0))/4 ->  | BA135: =(IF(#REF!="r",1,0)+IF(BA24="r",1,0)+IF(BA41="r",1,0)+IF(BA58="r",1,0)+IF(BA75="r",1,0)+IF(BA92="r",1,0)+IF(BA109="r",1,0))/4 ->  | BB135: =(IF(#REF!="r",1,0)+IF(BB24="r",1,0)+IF(BB41="r",1,0)+IF(BB58="r",1,0)+IF(BB75="r",1,0)+IF(BB92="r",1,0)+IF(BB109="r",1,0))/4 ->  | BC135: =(IF(#REF!="r",1,0)+IF(BC24="r",1,0)+IF(BC41="r",1,0)+IF(BC58="r",1,0)+IF(BC75="r",1,0)+IF(BC92="r",1,0)+IF(BC109="r",1,0))/4 ->  | BD135: =(IF(#REF!="r",1,0)+IF(BD24="r",1,0)+IF(BD41="r",1,0)+IF(BD58="r",1,0)+IF(BD75="r",1,0)+IF(BD92="r",1,0)+IF(BD109="r",1,0))/4 ->  | BE135: =SUM(E135:BD135) ->  | BF135: =SUM(BE135+BE136) -> 
D136: DPH | E136: =(IF(E7="DPH",1,0)+IF(E24="DPH",1,0)+IF(E41="DPH",1,0)+IF(E58="DPH",1,0)+IF(E75="DPH",1,0)+IF(E92="DPH",1,0)+IF(E109="DPH",1,0))/4 -> 0.75 | F136: =(IF(F7="DPH",1,0)+IF(F24="DPH",1,0)+IF(F41="DPH",1,0)+IF(F58="DPH",1,0)+IF(F75="DPH",1,0)+IF(F92="DPH",1,0)+IF(F109="DPH",1,0))/4 -> 0.75 | G136: 1 | H136: 1 | I136: 1.5 | J136: 1.5 | K136: 1.5 | L136: 1.5 | M136: 1.5 | N136: 1.5 | O136: 1.5 | P136: 1.5 | Q136: 1.5 | R136: 1.5 | S136: 1.5 | T136: 1.5 | U136: 1.5 | V136: 1.5 | W136: 1.5 | X136: 1.5 | Y136: 1.5 | Z136: 1.5 | AA136: 1.25 | AB136: 1 | AC136: 0 | AD136: 0 | AE136: 0 | AF136: 0 | AG136: 0 | AH136: 0 | AI136: 0.25 | AJ136: 0.25 | AK136: 0.25 | AL136: 0.25 | AM136: 0.25 | AN136: 0.25 | AO136: 0.25 | AP136: 0.25 | AQ136: 0.25 | AR136: 0.25 | AS136: 0.25 | AT136: 0.25 | AU136: 0.25 | AV136: 0.25 | AW136: 0.25 | AX136: 0.25 | AY136: 0 | AZ136: 0 | BA136: 0 | BB136: 0 | BC136: 0 | BD136: 0 | BE136: 36.75
C137: =+C8 -> Thibaut | E137: =(IF(E8="r",1,0)+IF(E25="r",1,0)+IF(E42="r",1,0)+IF(E59="r",1,0)+IF(E76="r",1,0)+IF(E93="r",1,0)+IF(E110="r",1,0))/4 -> 0 | F137: 0 | G137: =(IF(G8="r",1,0)+IF(G25="r",1,0)+IF(G42="r",1,0)+IF(G59="r",1,0)+IF(G76="r",1,0)+IF(G93="r",1,0)+IF(G110="r",1,0))/4 -> 0 | H137: =(IF(H8="r",1,0)+IF(H25="r",1,0)+IF(H42="r",1,0)+IF(H59="r",1,0)+IF(H76="r",1,0)+IF(H93="r",1,0)+IF(H110="r",1,0))/4 -> 0 | I137: 0 | J137: 0 | K137: 0 | L137: 0 | M137: 0 | N137: 0 | O137: 0 | P137: 0 | Q137: 0 | R137: 0 | S137: 0 | T137: 0 | U137: 0 | V137: 0 | W137: 0 | X137: 0 | Y137: 0 | Z137: 0 | AA137: 0 | AB137: 0 | AC137: 0 | AD137: 0 | AE137: 0 | AF137: 0 | AG137: 0 | AH137: 0 | AI137: 0 | AJ137: 0 | AK137: 0 | AL137: 0 | AM137: 0 | AN137: 0 | AO137: 0 | AP137: 0 | AQ137: 0 | AR137: 0 | AS137: 0 | AT137: 0 | AU137: 0 | AV137: 0 | AW137: 0 | AX137: 0 | AY137: 0 | AZ137: 0 | BA137: 0 | BB137: 0 | BC137: 0 | BD137: 0 | BE137: 0 | BF137: =SUM(BE137+BE138) -> 36.75
D138: L | E138: =(IF(E8="L",1,0)+IF(E25="L",1,0)+IF(E42="L",1,0)+IF(E59="L",1,0)+IF(E76="L",1,0)+IF(E93="L",1,0)+IF(E110="L",1,0))/4 -> 0.75 | F138: =(IF(F8="L",1,0)+IF(F25="L",1,0)+IF(F42="L",1,0)+IF(F59="L",1,0)+IF(F76="L",1,0)+IF(F93="L",1,0)+IF(F110="L",1,0))/4 -> 0.75 | G138: 1 | H138: 1 | I138: 1.5 | J138: 1.5 | K138: 1.5 | L138: 1.5 | M138: 1.5 | N138: 1.5 | O138: 1.5 | P138: 1.5 | Q138: 1.5 | R138: 1.5 | S138: 1.5 | T138: 1.5 | U138: 1.5 | V138: 1.5 | W138: 1.5 | X138: 1.5 | Y138: 1.25 | Z138: 1.25 | AA138: 0.75 | AB138: 0.75 | AC138: 0.75 | AD138: 0.5 | AE138: 0 | AF138: 0 | AG138: 0 | AH138: 0 | AI138: 0.25 | AJ138: 0.25 | AK138: 0.25 | AL138: 0.25 | AM138: 0.25 | AN138: 0.25 | AO138: 0.25 | AP138: 0.25 | AQ138: 0.25 | AR138: 0.25 | AS138: 0.25 | AT138: 0.25 | AU138: 0.25 | AV138: 0.25 | AW138: 0.25 | AX138: 0.25 | AY138: 0 | AZ138: 0 | BA138: 0 | BB138: 0 | BC138: 0 | BD138: 0 | BE138: 36.75
C139: =+C9 -> Said | D139: L | E139: =(IF(E9="BCH",1,0)+IF(E26="BCH",1,0)+IF(E43="BCH",1,0)+IF(E60="BCH",1,0)+IF(E77="BCH",1,0)+IF(E94="BCH",1,0)+IF(E111="BCH",1,0))/4 -> 0 | F139: =(IF(F9="l",1,0)+IF(F26="l",1,0)+IF(F43="l",1,0)+IF(F60="l",1,0)+IF(F77="l",1,0)+IF(F94="l",1,0)+IF(F111="l",1,0))/4 -> 0 | G139: =(IF(G9="l",1,0)+IF(G26="l",1,0)+IF(G43="l",1,0)+IF(G60="l",1,0)+IF(G77="l",1,0)+IF(G94="l",1,0)+IF(G111="l",1,0))/4 -> 1.5 | H139: 1.5 | I139: 1.5 | J139: 1.5 | K139: 1.5 | L139: 1.5 | M139: 1.5 | N139: 1.5 | O139: 1.5 | P139: 1.5 | Q139: 1.5 | R139: 1.5 | S139: 1.5 | T139: 1.5 | U139: 1.5 | V139: 1.5 | W139: 1.5 | X139: 1.5 | Y139: 1.5 | Z139: 1.5 | AA139: 1.5 | AB139: 1.5 | AC139: 1 | AD139: 1 | AE139: 0.75 | AF139: 0.5 | AG139: 0.25 | AH139: 0.25 | AI139: 0 | AJ139: 0 | AK139: 0 | AL139: 0 | AM139: 0 | AN139: 0 | AO139: 0 | AP139: 0 | AQ139: 0 | AR139: 0 | AS139: 0 | AT139: 0 | AU139: 0 | AV139: 0 | AW139: 0 | AX139: 0 | AY139: 0 | AZ139: 0 | BA139: 0 | BB139: 0 | BC139: 0 | BD139: 0 | BE139: 36.75 | BF139: =SUM(BE139+BE140) -> 36.75
D140: BCH | E140: =(IF(E9="c",1,0)+IF(E26="c",1,0)+IF(E43="c",1,0)+IF(E60="c",1,0)+IF(E77="c",1,0)+IF(E94="c",1,0)+IF(E111="c",1,0))/4 -> 0 | F140: 0 | G140: =(IF(G9="c",1,0)+IF(G26="c",1,0)+IF(G43="c",1,0)+IF(G60="c",1,0)+IF(G77="c",1,0)+IF(G94="c",1,0)+IF(G111="c",1,0))/4 -> 0 | H140: =(IF(H9="c",1,0)+IF(H26="c",1,0)+IF(H43="c",1,0)+IF(H60="c",1,0)+IF(H77="c",1,0)+IF(H94="c",1,0)+IF(H111="c",1,0))/4 -> 0 | I140: 0 | J140: 0 | K140: 0 | L140: 0 | M140: 0 | N140: 0 | O140: 0 | P140: 0 | Q140: 0 | R140: 0 | S140: 0 | T140: 0 | U140: 0 | V140: 0 | W140: 0 | X140: 0 | Y140: 0 | Z140: 0 | AA140: 0 | AB140: 0 | AC140: 0 | AD140: 0 | AE140: 0 | AF140: 0 | AG140: 0 | AH140: 0 | AI140: 0 | AJ140: 0 | AK140: 0 | AL140: 0 | AM140: 0 | AN140: 0 | AO140: 0 | AP140: 0 | AQ140: 0 | AR140: 0 | AS140: 0 | AT140: 0 | AU140: 0 | AV140: 0 | AW140: 0 | AX140: 0 | AY140: 0 | AZ140: 0 | BA140: 0 | BB140: 0 | BC140: 0 | BD140: 0 | BE140: 0
C141: =+C10 -> Assiya | D141: F | E141: =(IF(E10="F",1,0)+IF(E27="F",1,0)+IF(E44="F",1,0)+IF(E61="F",1,0)+IF(E78="F",1,0)+IF(E95="F",1,0)+IF(E112="F",1,0))/4 -> 1.5 | F141: =(IF(F10="F",1,0)+IF(F27="F",1,0)+IF(F44="F",1,0)+IF(F61="F",1,0)+IF(F78="F",1,0)+IF(F95="F",1,0)+IF(F112="F",1,0))/4 -> 1.5 | G141: 1.5 | H141: 1.5 | I141: 1.5 | J141: 1.5 | K141: 1.5 | L141: 1.5 | M141: 1.5 | N141: 1.5 | O141: 1.5 | P141: 1.5 | Q141: 1.5 | R141: 1.5 | S141: 1.5 | T141: 1.5 | U141: 1.5 | V141: 1.5 | W141: 1.25 | X141: 1.25 | Y141: 1 | Z141: 1 | AA141: 0.75 | AB141: 0.75 | AC141: 0.5 | AD141: 0.25 | AE141: 0 | AF141: 0 | AG141: 0 | AH141: 0 | AI141: 0.25 | AJ141: 0.25 | AK141: 0.25 | AL141: 0.25 | AM141: 0.25 | AN141: 0.25 | AO141: 0.25 | AP141: 0.25 | AQ141: 0.25 | AR141: 0.25 | AS141: 0.25 | AT141: 0.25 | AU141: 0 | AV141: 0 | AW141: 0 | AX141: 0 | AY141: 0 | AZ141: 0 | BA141: 0 | BB141: 0 | BC141: 0 | BD141: 0 | BE141: =SUM(E141:BD141) -> 36.75 | BF141: =SUM(BE141+BE142) -> 36.75
D142: BCH | E142: =(IF(E10="c",1,0)+IF(E27="c",1,0)+IF(E44="c",1,0)+IF(E61="c",1,0)+IF(E78="c",1,0)+IF(E95="c",1,0)+IF(E112="c",1,0))/4 -> 0 | F142: 0 | G142: =(IF(G10="c",1,0)+IF(G27="c",1,0)+IF(G44="c",1,0)+IF(G61="c",1,0)+IF(G78="c",1,0)+IF(G95="c",1,0)+IF(G112="c",1,0))/4 -> 0 | H142: =(IF(H10="c",1,0)+IF(H27="c",1,0)+IF(H44="c",1,0)+IF(H61="c",1,0)+IF(H78="c",1,0)+IF(H95="c",1,0)+IF(H112="c",1,0))/4 -> 0 | I142: 0 | J142: 0 | K142: 0 | L142: 0 | M142: 0 | N142: 0 | O142: 0 | P142: 0 | Q142: 0 | R142: 0 | S142: 0 | T142: 0 | U142: 0 | V142: 0 | W142: 0 | X142: 0 | Y142: 0 | Z142: 0 | AA142: 0 | AB142: 0 | AC142: 0 | AD142: 0 | AE142: 0 | AF142: 0 | AG142: 0 | AH142: 0 | AI142: 0 | AJ142: 0 | AK142: 0 | AL142: 0 | AM142: 0 | AN142: 0 | AO142: 0 | AP142: 0 | AQ142: 0 | AR142: 0 | AS142: 0 | AT142: 0 | AU142: 0 | AV142: 0 | AW142: 0 | AX142: 0 | AY142: 0 | AZ142: 0 | BA142: 0 | BB142: 0 | BC142: 0 | BD142: 0 | BE142: 0
C143: =+C11 -> Francoise | D143: F | E143: =(IF(E11="F",1,0)+IF(E28="F",1,0)+IF(E45="F",1,0)+IF(E62="F",1,0)+IF(E79="F",1,0)+IF(E96="F",1,0)+IF(E113="F",1,0))/4 -> 0.25 | F143: =(IF(F11="F",1,0)+IF(F28="F",1,0)+IF(F45="F",1,0)+IF(F62="F",1,0)+IF(F79="F",1,0)+IF(F96="F",1,0)+IF(F113="F",1,0))/4 -> 1.5 | G143: 1.5 | H143: 1.5 | I143: 1.5 | J143: 1.5 | K143: 1.5 | L143: 1.5 | M143: 1.5 | N143: 1.5 | O143: 1.5 | P143: 1.5 | Q143: 1.5 | R143: 1.5 | S143: 1.5 | T143: 1.5 | U143: 1.5 | V143: 1.5 | W143: 1.5 | X143: 1.25 | Y143: 1.25 | Z143: 1.25 | AA143: 1 | AB143: 1 | AC143: 0.5 | AD143: 0.25 | AE143: 0 | AF143: 0 | AG143: 0 | AH143: 0 | AI143: 0.25 | AJ143: 0.25 | AK143: 0.25 | AL143: 0.25 | AM143: 0.25 | AN143: 0.25 | AO143: 0.25 | AP143: 0.25 | AQ143: 0.25 | AR143: 0.25 | AS143: 0.25 | AT143: 0.25 | AU143: 0 | AV143: 0 | AW143: 0 | AX143: 0 | AY143: 0 | AZ143: 0 | BA143: 0 | BB143: 0 | BC143: 0 | BD143: 0 | BE143: 36.75 | BF143: =SUM(BE143+BE144) -> 64.75
C144: =+C12 -> Vanessa | D144: D/MG | E144: =(IF(E12="D/MG",1,0)+IF(E29="D/MG",1,0)+IF(E46="D/MG",1,0)+IF(E63="D/MG",1,0)+IF(E80="D/MG",1,0)+IF(E97="D/MG",1,0)+IF(E114="D/MG",1,0))/4 -> 0 | F144: =(IF(F12="D/MG",1,0)+IF(F29="D/MG",1,0)+IF(F46="D/MG",1,0)+IF(F63="D/MG",1,0)+IF(F80="D/MG",1,0)+IF(F97="D/MG",1,0)+IF(F114="D/MG",1,0))/4 -> 0 | G144: 0 | H144: 0 | I144: 0.25 | J144: 0.25 | K144: 0.25 | L144: 0.25 | M144: 0.25 | N144: 0.25 | O144: 0.25 | P144: 0.25 | Q144: 1.25 | R144: 1.25 | S144: 1.25 | T144: 1.25 | U144: 1.25 | V144: 1.25 | W144: 1.25 | X144: 1.25 | Y144: 1.25 | Z144: 1.25 | AA144: 1.25 | AB144: 1.25 | AC144: 0.75 | AD144: 0.75 | AE144: 0.5 | AF144: 0.5 | AG144: 0.5 | AH144: 0.5 | AI144: 0.25 | AJ144: 0.25 | AK144: 0.75 | AL144: 0.75 | AM144: 0.75 | AN144: 0.5 | AO144: 0.5 | AP144: 0.5 | AQ144: 0.5 | AR144: 0.5 | AS144: 0.5 | AT144: 0.5 | AU144: 0.5 | AV144: 0.5 | AW144: 0.25 | AX144: 0 | AY144: 0 | AZ144: 0 | BA144: 0 | BB144: 0 | BC144: 0 | BD144: 0 | BE144: =+SUM(E144:BD144) -> 28
C145: =+C19 -> 0 | D145: R | G145: =(IF(G12="r",1,0)+IF(G29="r",1,0)+IF(G46="r",1,0)+IF(G63="r",1,0)+IF(G80="r",1,0)+IF(G97="r",1,0)+IF(G114="r",1,0))/4 -> 0 | H145: =(IF(H12="r",1,0)+IF(H29="r",1,0)+IF(H46="r",1,0)+IF(H63="r",1,0)+IF(H80="r",1,0)+IF(H97="r",1,0)+IF(H114="r",1,0))/4 -> 0 | I145: 0 | J145: 0 | K145: 0 | L145: 0 | M145: 0 | N145: 0 | O145: 0 | P145: 0 | Q145: 0 | R145: 0 | S145: 0 | T145: 0 | U145: 0 | V145: 0 | W145: 0 | X145: 0 | Y145: 0 | Z145: 0 | AA145: 0 | AB145: 0 | AC145: 0 | AD145: 0 | AE145: 0 | AF145: 0 | AG145: 0 | AH145: 0 | AI145: 0 | AJ145: 0 | AK145: 0 | AL145: 0 | AM145: 0 | AN145: 0 | AO145: 0 | AP145: 0 | AQ145: 0 | AR145: 0 | AS145: 0 | AT145: 0 | AU145: 0 | AV145: 0 | AW145: 0 | AX145: 0 | AY145: 0 | AZ145: 0 | BA145: 0 | BB145: 0 | BC145: 0 | BD145: 0 | BE145: 0 | BF145: =SUM(BE145+BE146) -> 0
D146: C | G146: =(IF(G12="c",1,0)+IF(G29="c",1,0)+IF(G46="c",1,0)+IF(G63="c",1,0)+IF(G80="c",1,0)+IF(G97="c",1,0)+IF(G114="c",1,0))/4 -> 0 | H146: =(IF(H12="c",1,0)+IF(H29="c",1,0)+IF(H46="c",1,0)+IF(H63="c",1,0)+IF(H80="c",1,0)+IF(H97="c",1,0)+IF(H114="c",1,0))/4 -> 0 | I146: 0 | J146: 0 | K146: 0 | L146: 0 | M146: 0 | N146: 0 | O146: 0 | P146: 0 | Q146: 0 | R146: 0 | S146: 0 | T146: 0 | U146: 0 | V146: 0 | W146: 0 | X146: 0 | Y146: 0 | Z146: 0 | AA146: 0 | AB146: 0 | AC146: 0 | AD146: 0 | AE146: 0 | AF146: 0 | AG146: 0 | AH146: 0 | AI146: 0 | AJ146: 0 | AK146: 0 | AL146: 0 | AM146: 0 | AN146: 0 | AO146: 0 | AP146: 0 | AQ146: 0 | AR146: 0 | AS146: 0 | AT146: 0 | AU146: 0 | AV146: 0 | AW146: 0 | AX146: 0 | AY146: 0 | AZ146: 0 | BA146: 0 | BB146: 0 | BC146: 0 | BD146: 0 | BE146: 0
C147: =+C21 -> Bertrand | D147: R | G147: =(IF(G13="r",1,0)+IF(G30="r",1,0)+IF(G47="r",1,0)+IF(G64="r",1,0)+IF(G81="r",1,0)+IF(G98="r",1,0)+IF(G115="r",1,0))/4 -> 0 | H147: =(IF(H13="r",1,0)+IF(H30="r",1,0)+IF(H47="r",1,0)+IF(H64="r",1,0)+IF(H81="r",1,0)+IF(H98="r",1,0)+IF(H115="r",1,0))/4 -> 0 | I147: 0 | J147: 0 | K147: 0 | L147: 0 | M147: 0 | N147: 0 | O147: 0 | P147: 0 | Q147: 0 | R147: 0 | S147: 0 | T147: 0 | U147: 0 | V147: 0 | W147: 0 | X147: 0 | Y147: 0 | Z147: 0 | AA147: 0 | AB147: 0 | AC147: 0 | AD147: 0 | AE147: 0 | AF147: 0 | AG147: 0 | AH147: 0 | AI147: 0 | AJ147: 0 | AK147: 0 | AL147: 0 | AM147: 0 | AN147: 0 | AO147: 0 | AP147: 0 | AQ147: 0 | AR147: 0 | AS147: 0 | AT147: 0 | AU147: 0 | AV147: 0 | AW147: 0 | AX147: 0 | AY147: 0 | AZ147: 0 | BA147: 0 | BB147: 0 | BC147: 0 | BD147: 0 | BE147: 0 | BF147: =SUM(BE147+BE148) -> 0
D148: C | G148: =(IF(G13="c",1,0)+IF(G30="c",1,0)+IF(G47="c",1,0)+IF(G64="c",1,0)+IF(G81="c",1,0)+IF(G98="c",1,0)+IF(G115="c",1,0))/4 -> 0 | H148: =(IF(H13="c",1,0)+IF(H30="c",1,0)+IF(H47="c",1,0)+IF(H64="c",1,0)+IF(H81="c",1,0)+IF(H98="c",1,0)+IF(H115="c",1,0))/4 -> 0 | I148: 0 | J148: 0 | K148: 0 | L148: 0 | M148: 0 | N148: 0 | O148: 0 | P148: 0 | Q148: 0 | R148: 0 | S148: 0 | T148: 0 | U148: 0 | V148: 0 | W148: 0 | X148: 0 | Y148: 0 | Z148: 0 | AA148: 0 | AB148: 0 | AC148: 0 | AD148: 0 | AE148: 0 | AF148: 0 | AG148: 0 | AH148: 0 | AI148: 0 | AJ148: 0 | AK148: 0 | AL148: 0 | AM148: 0 | AN148: 0 | AO148: 0 | AP148: 0 | AQ148: 0 | AR148: 0 | AS148: 0 | AT148: 0 | AU148: 0 | AV148: 0 | AW148: 0 | AX148: 0 | AY148: 0 | AZ148: 0 | BA148: 0 | BB148: 0 | BC148: 0 | BD148: 0 | BE148: 0
C149: =+C116 -> 0 | D149: R | G149: =(IF(G14="r",1,0)+IF(G31="r",1,0)+IF(G48="r",1,0)+IF(G65="r",1,0)+IF(G82="r",1,0)+IF(G99="r",1,0)+IF(G116="r",1,0))/4 -> 0 | H149: =(IF(H14="r",1,0)+IF(H31="r",1,0)+IF(H48="r",1,0)+IF(H65="r",1,0)+IF(H82="r",1,0)+IF(H99="r",1,0)+IF(H116="r",1,0))/4 -> 0 | I149: 0 | J149: 0 | K149: 0 | L149: 0 | M149: 0 | N149: 0 | O149: 0 | P149: 0 | Q149: 0 | R149: 0 | S149: 0 | T149: 0 | U149: 0 | V149: 0 | W149: 0 | X149: 0 | Y149: 0 | Z149: 0 | AA149: 0 | AB149: 0 | AC149: 0 | AD149: 0 | AE149: 0 | AF149: 0 | AG149: 0 | AH149: 0 | AI149: 0 | AJ149: 0 | AK149: 0 | AL149: 0 | AM149: 0 | AN149: 0 | AO149: 0 | AP149: 0 | AQ149: 0 | AR149: 0 | AS149: 0 | AT149: 0 | AU149: 0 | AV149: 0 | AW149: 0 | AX149: 0 | AY149: 0 | AZ149: 0 | BA149: 0 | BB149: 0 | BC149: 0 | BD149: 0 | BE149: 0 | BF149: =SUM(BE149+BE150) -> 0
D150: C | G150: =(IF(G14="c",1,0)+IF(G31="c",1,0)+IF(G48="c",1,0)+IF(G65="c",1,0)+IF(G82="c",1,0)+IF(G99="c",1,0)+IF(G116="c",1,0))/4 -> 0 | H150: =(IF(H14="c",1,0)+IF(H31="c",1,0)+IF(H48="c",1,0)+IF(H65="c",1,0)+IF(H82="c",1,0)+IF(H99="c",1,0)+IF(H116="c",1,0))/4 -> 0 | I150: 0 | J150: 0 | K150: 0 | L150: 0 | M150: 0 | N150: 0 | O150: 0 | P150: 0 | Q150: 0 | R150: 0 | S150: 0 | T150: 0 | U150: 0 | V150: 0 | W150: 0 | X150: 0 | Y150: 0 | Z150: 0 | AA150: 0 | AB150: 0 | AC150: 0 | AD150: 0 | AE150: 0 | AF150: 0 | AG150: 0 | AH150: 0 | AI150: 0 | AJ150: 0 | AK150: 0 | AL150: 0 | AM150: 0 | AN150: 0 | AO150: 0 | AP150: 0 | AQ150: 0 | AR150: 0 | AS150: 0 | AT150: 0 | AU150: 0 | AV150: 0 | AW150: 0 | AX150: 0 | AY150: 0 | AZ150: 0 | BA150: 0 | BB150: 0 | BC150: 0 | BD150: 0 | BE150: 0
C151: =+C117 -> 0 | D151: R | G151: =(IF(G15="r",1,0)+IF(G32="r",1,0)+IF(G49="r",1,0)+IF(G66="r",1,0)+IF(G83="r",1,0)+IF(G100="r",1,0)+IF(G117="r",1,0))/4 -> 0 | H151: =(IF(H15="r",1,0)+IF(H32="r",1,0)+IF(H49="r",1,0)+IF(H66="r",1,0)+IF(H83="r",1,0)+IF(H100="r",1,0)+IF(H117="r",1,0))/4 -> 0 | I151: 0 | J151: 0 | K151: 0 | L151: 0 | M151: 0 | N151: 0 | O151: 0 | P151: 0 | Q151: 0 | R151: 0 | S151: 0 | T151: 0 | U151: 0 | V151: 0 | W151: 0 | X151: 0 | Y151: 0 | Z151: 0 | AA151: 0 | AB151: 0 | AC151: 0 | AD151: 0 | AE151: 0 | AF151: 0 | AG151: 0 | AH151: 0 | AI151: 0 | AJ151: 0 | AK151: 0 | AL151: 0 | AM151: 0 | AN151: 0 | AO151: 0 | AP151: 0 | AQ151: 0 | AR151: 0 | AS151: 0 | AT151: 0 | AU151: 0 | AV151: 0 | AW151: 0 | AX151: 0 | AY151: 0 | AZ151: 0 | BA151: 0 | BB151: 0 | BC151: 0 | BD151: 0 | BE151: 0 | BF151: =SUM(BE151+BE152) -> 0
D152: C | G152: =(IF(G15="c",1,0)+IF(G32="c",1,0)+IF(G49="c",1,0)+IF(G66="c",1,0)+IF(G83="c",1,0)+IF(G100="c",1,0)+IF(G117="c",1,0))/4 -> 0 | H152: =(IF(H15="c",1,0)+IF(H32="c",1,0)+IF(H49="c",1,0)+IF(H66="c",1,0)+IF(H83="c",1,0)+IF(H100="c",1,0)+IF(H117="c",1,0))/4 -> 0 | I152: 0 | J152: 0 | K152: 0 | L152: 0 | M152: 0 | N152: 0 | O152: 0 | P152: 0 | Q152: 0 | R152: 0 | S152: 0 | T152: 0 | U152: 0 | V152: 0 | W152: 0 | X152: 0 | Y152: 0 | Z152: 0 | AA152: 0 | AB152: 0 | AC152: 0 | AD152: 0 | AE152: 0 | AF152: 0 | AG152: 0 | AH152: 0 | AI152: 0 | AJ152: 0 | AK152: 0 | AL152: 0 | AM152: 0 | AN152: 0 | AO152: 0 | AP152: 0 | AQ152: 0 | AR152: 0 | AS152: 0 | AT152: 0 | AU152: 0 | AV152: 0 | AW152: 0 | AX152: 0 | AY152: 0 | AZ152: 0 | BA152: 0 | BB152: 0 | BC152: 0 | BD152: 0 | BE152: 0
C153: =+C118 -> 0 | D153: R | G153: =(IF(G16="r",1,0)+IF(G33="r",1,0)+IF(G50="r",1,0)+IF(G67="r",1,0)+IF(G84="r",1,0)+IF(G101="r",1,0)+IF(G118="r",1,0))/4 -> 0 | H153: =(IF(H16="r",1,0)+IF(H33="r",1,0)+IF(H50="r",1,0)+IF(H67="r",1,0)+IF(H84="r",1,0)+IF(H101="r",1,0)+IF(H118="r",1,0))/4 -> 0 | I153: 0 | J153: 0 | K153: 0 | L153: 0 | M153: 0 | N153: 0 | O153: 0 | P153: 0 | Q153: 0 | R153: 0 | S153: 0 | T153: 0 | U153: 0 | V153: 0 | W153: 0 | X153: 0 | Y153: 0 | Z153: 0 | AA153: 0 | AB153: 0 | AC153: 0 | AD153: 0 | AE153: 0 | AF153: 0 | AG153: 0 | AH153: 0 | AI153: 0 | AJ153: 0 | AK153: 0 | AL153: 0 | AM153: 0 | AN153: 0 | AO153: 0 | AP153: 0 | AQ153: 0 | AR153: 0 | AS153: 0 | AT153: 0 | AU153: 0 | AV153: 0 | AW153: 0 | AX153: 0 | AY153: 0 | AZ153: 0 | BA153: 0 | BB153: 0 | BC153: 0 | BD153: 0 | BE153: 0 | BF153: 0
D154: C | G154: =(IF(G16="c",1,0)+IF(G33="c",1,0)+IF(G50="c",1,0)+IF(G67="c",1,0)+IF(G84="c",1,0)+IF(G101="c",1,0)+IF(G118="c",1,0))/4 -> 0 | H154: =(IF(H16="c",1,0)+IF(H33="c",1,0)+IF(H50="c",1,0)+IF(H67="c",1,0)+IF(H84="c",1,0)+IF(H101="c",1,0)+IF(H118="c",1,0))/4 -> 0 | I154: 0 | J154: 0 | K154: 0 | L154: 0 | M154: 0 | N154: 0 | O154: 0 | P154: 0 | Q154: 0 | R154: 0 | S154: 0 | T154: 0 | U154: 0 | V154: 0 | W154: 0 | X154: 0 | Y154: 0 | Z154: 0 | AA154: 0 | AB154: 0 | AC154: 0 | AD154: 0 | AE154: 0 | AF154: 0 | AG154: 0 | AH154: 0 | AI154: 0 | AJ154: 0 | AK154: 0 | AL154: 0 | AM154: 0 | AN154: 0 | AO154: 0 | AP154: 0 | AQ154: 0 | AR154: 0 | AS154: 0 | AT154: 0 | AU154: 0 | AV154: 0 | AW154: 0 | AX154: 0 | AY154: 0 | AZ154: 0 | BA154: 0 | BB154: 0 | BC154: 0 | BD154: 0 | BE154: 0
C155: SOUS-TOTAL | D155: R | G155: =G127+G129+G131+G133+G135+G137+G139+G141+G143+G145+G147+G151+G153 ->  | H155: =H127+H129+H131+H133+H135+H137+H139+H141+H143+H145+H147+H151+H153 -> 
D156: C | G156: =G128+G130+G132+G134+G136+G138+G140+G142+G144+G146+G148+G152+G150+G154 -> 4 | H156: =H128+H130+H132+H134+H136+H138+H140+H142+H144+H146+H148+H152+H150+H154 -> 4 | I156: 6.25 | J156: 6.25 | K156: 6.25 | L156: 6.25 | M156: 6.25 | N156: 6.25 | O156: 6.25 | P156: 6.25 | Q156: 8 | R156: 8 | S156: 8 | T156: 8 | U156: 8 | V156: 8 | W156: 8 | X156: 8 | Y156: 7.75 | Z156: 7.75 | AA156: 6.5 | AB156: 5.75 | AC156: 2.75 | AD156: 2.5 | AE156: 1.75 | AF156: 1.75 | AG156: 1.25 | AH156: 1.25 | AI156: 1.25 | AJ156: 1.25 | AK156: 2.25 | AL156: 2.25 | AM156: 2.25 | AN156: 2 | AO156: 2 | AP156: 2 | AQ156: 2 | AR156: 2 | AS156: 2 | AT156: 2 | AU156: 2 | AV156: 2 | AW156: 1.25 | AX156: 1 | AY156: 0 | AZ156: 0 | BA156: 0 | BB156: 0 | BC156: 0 | BD156: 0 | BE156: 190.5
C157: TOTAL | E157: =SUM(E127:E147) ->  | F157: =+F155+F156 -> 0 | G157: =SUM(G127:G144) ->  | H157: =+H155+H156 ->  | I157: =+I155+I156 ->  | J157: =+J155+J156 ->  | K157: =+K155+K156 ->  | BE157: =SUM(G157:BD157) -> 
AP160: =6.5+5.5+6.5+7.75+6.5+6.5 -> 39.25

Sheet semaine impaire (ac samedi pm)
B2: LUNDI | E2: 6h30-6h45 | F2: 6h45-7h | G2: 7h-7h15 | H2: 7h15-7h30 | I2: 7h30-7h45 | J2: 7h45-8h | K2: 8h-8h15 | L2: 8h15-8h30 | M2: 8h30-8h45 | N2: 8h45-9h | O2: 9h-9h15 | P2: 9h15-9H30 | Q2: 9h30-9H45 | R2: 9h45-10H | S2: 10h-10H15 | T2: 10h15-10H30 | U2: 10h30-10h45 | V2: 10h45-11H | W2: 11h-11H15 | X2: 11h15-11H30 | Y2: 11h30-11H45 | Z2: 11h45-12H | AA2: 12h-12H15 | AB2: 12h15-12H30 | AC2: 12h30-12H45 | AD2: 12h45-13H | AE2: 13h-13H15 | AF2: 13h15-13H30 | AG2: 13h30-13H45 | AH2: 13H45-14H | AI2: 14H-14H15 | AJ2: 14h15-14H30 | AK2: 14h30-14H45 | AL2: 14H45-15H | AM2: 15H-15H15 | AN2: 15h15-15h30 | AO2: 15h30-15h45 | AP2: 15h45-16h | AQ2: 16h-16h15 | AR2: 16h15-16h30 | AS2: 16h30-16h45 | AT2: 16h45-17h | AU2: 17h-17h15 | AV2: 17h15-17h30 | AW2: 17h30-17h45 | AX2: 17h45-18h | AY2: 18h-18h15 | AZ2: 18h15-18h30 | BA2: 18h30-18h45 | BB2: 18h45-19h | BC2: 19h-19h15 | BD2: 19h15-19h30 | BE2: total
B3: sec | C3: Aurore | G3: S | H3: S | I3: S | J3: S | K3: S | L3: S | M3: S | N3: S | O3: S | P3: S | Q3: S | R3: S | S3: S | T3: S | U3: S | V3: S | W3: S | X3: S | Y3: S | Z3: S | AA3: S | AB3: S | AC3: S | AD3: S | BE3: =COUNTA(E3:BD3)*0.25 -> 6
B4: frais | C4: Bertrand | Q4: S | R4: S | S4: S | T4: S | U4: S | V4: S | W4: S | X4: S | Y4: S | Z4: S | AA4: S | AB4: S | AC4: S | AD4: S | AE4: S | AF4: S | AG4: S | AH4: S | BE4: 4.5
B5: LIQUIDE | C5: Corinne | G5: S | H5: S | I5: S | J5: S | K5: S | L5: S | M5: S | N5: S | O5: S | P5: S | Q5: S | R5: S | S5: S | T5: S | U5: S | V5: S | W5: S | X5: S | Y5: S | Z5: S | AA5: S | AB5: S | AC5: S | AD5: S | AE5: S | AF5: S | BE5: 6.5
C6: Laura | E6: S | F6: S | G6: S | H6: S | I6: S | J6: S | K6: S | L6: S | M6: S | N6: S | O6: S | P6: S | Q6: S | R6: S | S6: S | T6: S | U6: S | V6: S | W6: S | X6: S | Y6: S | Z6: S | AA6: S | AB6: S | AK6: S | AL6: S | AM6: S | AN6: S | AO6: S | AP6: S | AQ6: S | AR6: S | AS6: S | AT6: S | AU6: S | AV6: S | AW6: S | AX6: S | BE6: 9.5
B7: DPH | C7: Ghislaine | E7: DPH | F7: DPH | G7: DPH | H7: DPH | I7: DPH | J7: DPH | K7: DPH | L7: DPH | M7: DPH | N7: DPH | O7: DPH | P7: DPH | Q7: DPH | R7: DPH | S7: DPH | T7: DPH | U7: DPH | V7: DPH | W7: DPH | X7: DPH | Y7: DPH | Z7: DPH | AA7: DPH | AB7: DPH | BE7: 6
C8: Thibaut | E8: L | F8: L | G8: L | H8: L | I8: L | J8: L | K8: L | L8: L | M8: L | N8: L | O8: L | P8: L | Q8: L | R8: L | S8: L | T8: L | U8: L | V8: L | W8: L | X8: L | Y8: L | Z8: L | AA8: L | AB8: L | AC8: L | AD8: L | BE8: 6.5
C9: Said | G9: L | H9: L | I9: L | J9: L | K9: L | L9: L | M9: L | N9: L | O9: L | P9: L | Q9: L | R9: L | S9: L | T9: L | U9: L | V9: L | W9: L | X9: L | Y9: L | Z9: L | AA9: L | AB9: L | AC9: L | AD9: L | AE9: L | AF9: L | BE9: 6.5
C10: Assiya | E10: F | F10: F | G10: F | H10: F | I10: F | J10: F | K10: F | L10: F | M10: F | N10: F | O10: F | P10: F | Q10: F | R10: F | S10: F | T10: F | U10: F | V10: F | W10: F | X10: F | Y10: F | Z10: F | AA10: F | AB10: F | AC10: F | BE10: 6.25
C11: Francoise | F11: F | G11: F | H11: F | I11: F | J11: F | K11: F | L11: F | M11: F | N11: F | O11: F | P11: F | Q11: F | R11: F | S11: F | T11: F | U11: F | V11: F | W11: F | X11: F | Y11: F | Z11: F | AA11: F | AB11: F | AC11: F | BE11: 6
C12: Vanessa | Q12: D/MG | R12: D/MG | S12: D/MG | T12: D/MG | U12: D/MG | V12: D/MG | W12: D/MG | X12: D/MG | Y12: D/MG | Z12: D/MG | AA12: D/MG | AB12: D/MG | AC12: D/MG | AD12: D/MG | AE12: D/MG | AF12: D/MG | AG12: D/MG | AH12: D/MG | BE12: 4.5
BE13: 0
BE14: 0
BE15: 0
BE16: 0
C17: TOTAL | E17: =COUNTA(E3:E15)*0.25 -> 1 | F17: 1.25 | G17: =COUNTA(G3:G15)*0.25 -> 2 | H17: =COUNTA(H3:H15)*0.25 -> 2 | I17: 2 | J17: 2 | K17: 2 | L17: 2 | M17: 2 | N17: 2 | O17: 2 | P17: 2 | Q17: 2.5 | R17: 2.5 | S17: 2.5 | T17: 2.5 | U17: 2.5 | V17: 2.5 | W17: 2.5 | X17: 2.5 | Y17: 2.5 | Z17: 2.5 | AA17: 2.5 | AB17: 2.5 | AC17: 2 | AD17: 1.5 | AE17: 1 | AF17: 1 | AG17: 0.5 | AH17: 0.5 | AI17: 0 | AJ17: 0 | AK17: 0.25 | AL17: 0.25 | AM17: 0.25 | AN17: 0.25 | AO17: 0.25 | AP17: 0.25 | AQ17: 0.25 | AR17: 0.25 | AS17: 0.25 | AT17: 0.25 | AU17: 0.25 | AV17: 0.25 | AW17: 0.25 | AX17: 0.25 | AY17: 0 | AZ17: 0 | BA17: 0 | BB17: 0 | BC17: 0 | BD17: 0 | BE17: =SUM(E17:BD17) -> 62.25
B19: MARDI | E19: 6h30-6h45 | F19: 6h45-7h | G19: 7h-7h15 | H19: 7h15-7h30 | I19: 7h30-7h45 | J19: 7h45-8h | K19: 8h-8h15 | L19: 8h15-8h30 | M19: 8h30-8h45 | N19: 8h45-9h | O19: 9h-9h15 | P19: 9h15-9H30 | Q19: 9h30-9H45 | R19: 9h45-10H | S19: 10h-10H15 | T19: 10h15-10H30 | U19: 10h30-10h45 | V19: 10h45-11H | W19: 11h-11H15 | X19: 11h15-11H30 | Y19: 11h30-11H45 | Z19: 11h45-12H | AA19: 12h-12H15 | AB19: 12h15-12H30 | AC19: 12h30-12H45 | AD19: 12h45-13H | AE19: 13h-13H15 | AF19: 13h15-13H30 | AG19: 13h30-13H45 | AH19: 13H45-14H | AI19: 14H-14H15 | AJ19: 14h15-14H30 | AK19: 14h30-14H45 | AL19: 14H45-15H | AM19: 15H-15H15 | AN19: 15h15-15h30 | AO19: 15h30-15h45 | AP19: 15h45-16h | AQ19: 16h-16h15 | AR19: 16h15-16h30 | AS19: 16h30-16h45 | AT19: 16h45-17h | AU19: 17h-17h15 | AV19: 17h15-17h30 | AW19: 17h30-17h45 | AX19: 17h45-18h | AY19: 18h-18h15 | AZ19: 18h15-18h30 | BA19: 18h30-18h45 | BB19: 18h45-19h | BC19: 19h-19h15 | BD19: 19h15-19h30 | BE19: total
B20: sec | C20: Aurore | G20: S | H20: S | I20: S | J20: S | K20: S | L20: S | M20: S | N20: S | O20: S | P20: S | Q20: S | R20: S | S20: S | T20: S | U20: S | V20: S | W20: S | X20: S | Y20: S | Z20: S | BE20: =COUNTA(E20:BD20)*0.25 -> 5
B21: frais | C21: Bertrand | BE21: 0
B22: LIQUIDE | C22: Corinne | G22: S | H22: S | I22: S | J22: S | K22: S | L22: S | M22: S | N22: S | O22: S | P22: S | Q22: S | R22: S | S22: S | T22: S | U22: S | V22: S | W22: S | X22: S | Y22: S | Z22: S | AA22: S | AB22: S | AK22: S | AL22: S | AM22: S | AN22: S | AO22: S | AP22: S | AQ22: S | AR22: S | AS22: S | AT22: S | AU22: S | AV22: S | AW22: S | AX22: S | BE22: 9
B23: DPH | C23: Laura | E23: S | F23: S | G23: S | H23: S | I23: S | J23: S | K23: S | L23: S | M23: S | N23: S | O23: S | P23: S | Q23: S | R23: S | S23: S | T23: S | U23: S | V23: S | W23: S | X23: S | Y23: S | Z23: S | AA23: S | AB23: S | BE23: 6
C24: Ghislaine | I24: DPH | J24: DPH | K24: DPH | L24: DPH | M24: DPH | N24: DPH | O24: DPH | P24: DPH | Q24: DPH | R24: DPH | S24: DPH | T24: DPH | U24: DPH | V24: DPH | W24: DPH | X24: DPH | Y24: DPH | Z24: DPH | AA24: DPH | AB24: DPH | BE24: 5
C25: Thibaut | E25: L | F25: L | G25: L | H25: L | I25: L | J25: L | K25: L | L25: L | M25: L | N25: L | O25: L | P25: L | Q25: L | R25: L | S25: L | T25: L | U25: L | V25: L | W25: L | X25: L | Y25: L | Z25: L | BE25: 5.5
C26: Said | G26: L | H26: L | I26: L | J26: L | K26: L | L26: L | M26: L | N26: L | O26: L | P26: L | Q26: L | R26: L | S26: L | T26: L | U26: L | V26: L | W26: L | X26: L | Y26: L | Z26: L | AA26: L | AB26: L | AC26: L | AD26: L | BE26: 6
C27: Assiya | E27: F | F27: F | G27: F | H27: F | I27: F | J27: F | K27: F | L27: F | M27: F | N27: F | O27: F | P27: F | Q27: F | R27: F | S27: F | T27: F | U27: F | V27: F | W27: F | X27: F | Y27: F | Z27: F | AA27: F | BE27: 5.75
C28: Francoise | F28: F | G28: F | H28: F | I28: F | J28: F | K28: F | L28: F | M28: F | N28: F | O28: F | P28: F | Q28: F | R28: F | S28: F | T28: F | U28: F | V28: F | W28: F | X28: F | Y28: F | Z28: F | AA28: F | AB28: F | BE28: 5.75
C29: Vanessa | I29: D/MG | J29: D/MG | K29: D/MG | L29: D/MG | M29: D/MG | N29: D/MG | O29: D/MG | P29: D/MG | Q29: D/MG | R29: D/MG | S29: D/MG | T29: D/MG | U29: D/MG | V29: D/MG | W29: D/MG | X29: D/MG | Y29: D/MG | Z29: D/MG | AA29: D/MG | AB29: D/MG | AK29: D/MG | AL29: D/MG | AM29: D/MG | AN29: D/MG | AO29: D/MG | AP29: D/MG | AQ29: D/MG | AR29: D/MG | AS29: D/MG | AT29: D/MG | AU29: D/MG | AV29: D/MG | AW29: D/MG | BE29: 8.25
BE30: 0
BE31: 0
BE32: 0
BE33: 0
C34: TOTAL | E34: =COUNTA(E20:E33)*0.25 -> 0.75 | F34: 1 | G34: =COUNTA(G20:G33)*0.25 -> 1.75 | H34: =COUNTA(H20:H33)*0.25 -> 1.75 | I34: 2.25 | J34: 2.25 | K34: 2.25 | L34: 2.25 | M34: 2.25 | N34: 2.25 | O34: 2.25 | P34: 2.25 | Q34: 2.25 | R34: 2.25 | S34: 2.25 | T34: 2.25 | U34: 2.25 | V34: 2.25 | W34: 2.25 | X34: 2.25 | Y34: 2.25 | Z34: 2.25 | AA34: 1.75 | AB34: 1.5 | AC34: 0.25 | AD34: 0.25 | AE34: 0 | AF34: 0 | AG34: 0 | AH34: 0 | AI34: 0 | AJ34: 0 | AK34: 0.5 | AL34: 0.5 | AM34: 0.5 | AN34: 0.5 | AO34: 0.5 | AP34: 0.5 | AQ34: 0.5 | AR34: 0.5 | AS34: 0.5 | AT34: 0.5 | AU34: 0.5 | AV34: 0.5 | AW34: 0.5 | AX34: 0.25 | AY34: 0 | AZ34: 0 | BA34: 0 | BB34: 0 | BC34: 0 | BD34: 0 | BE34: =SUM(E34:BD34) -> 56.25
B36: MERCREDI | E36: 6h30-6h45 | F36: 6h45-7h | G36: 7h-7h15 | H36: 7h15-7h30 | I36: 7h30-7h45 | J36: 7h45-8h | K36: 8h-8h15 | L36: 8h15-8h30 | M36: 8h30-8h45 | N36: 8h45-9h | O36: 9h-9h15 | P36: 9h15-9H30 | Q36: 9h30-9H45 | R36: 9h45-10H | S36: 10h-10H15 | T36: 10h15-10H30 | U36: 10h30-10h45 | V36: 10h45-11H | W36: 11h-11H15 | X36: 11h15-11H30 | Y36: 11h30-11H45 | Z36: 11h45-12H | AA36: 12h-12H15 | AB36: 12h15-12H30 | AC36: 12h30-12H45 | AD36: 12h45-13H | AE36: 13h-13H15 | AF36: 13h15-13H30 | AG36: 13h30-13H45 | AH36: 13H45-14H | AI36: 14H-14H15 | AJ36: 14h15-14H30 | AK36: 14h30-14H45 | AL36: 14H45-15H | AM36: 15H-15H15 | AN36: 15h15-15h30 | AO36: 15h30-15h45 | AP36: 15h45-16h | AQ36: 16h-16h15 | AR36: 16h15-16h30 | AS36: 16h30-16h45 | AT36: 16h45-17h | AU36: 17h-17h15 | AV36: 17h15-17h30 | AW36: 17h30-17h45 | AX36: 17h45-18h | AY36: 18h-18h15 | AZ36: 18h15-18h30 | BA36: 18h30-18h45 | BB36: 18h45-19h | BC36: 19h-19h15 | BD36: 19h15-19h30 | BE36: total
B37: sec | C37: Aurore | G37: S | H37: S | I37: S | J37: S | K37: S | L37: S | M37: S | N37: S | O37: S | P37: S | Q37: S | R37: S | BE37: =COUNTA(G37:BD37)*0.25 -> 3
B38: frais | C38: Bertrand | AI38: S | AJ38: S | AK38: S | AL38: S | AM38: S | AN38: S | AO38: S | AP38: S | AQ38: S | AR38: S | AS38: S | AT38: S | AU38: S | AV38: S | BE38: =COUNTA(E38:BD38)*0.25 -> 3.5
B39: LIQUIDE | C39: Corinne | I39: S | J39: S | K39: S | L39: S | M39: S | N39: S | O39: S | P39: S | Q39: S | R39: S | S39: S | T39: S | U39: S | V39: S | W39: S | X39: S | Y39: S | Z39: S | BE39: =COUNTA(G39:BD39)*0.25 -> 4.5
B40: DPH | C40: Laura | I40: S | J40: S | K40: S | L40: S | M40: S | N40: S | O40: S | P40: S | Q40: S | R40: S | S40: S | T40: S | U40: S | V40: S | W40: S | X40: S | Y40: S | Z40: S | AA40: S | BE40: =COUNTA(E40:BD40)*0.25 -> 4.75
C41: Ghislaine | I41: DPH | J41: DPH | K41: DPH | L41: DPH | M41: DPH | N41: DPH | O41: DPH | P41: DPH | Q41: DPH | R41: DPH | S41: DPH | T41: DPH | U41: DPH | V41: DPH | W41: DPH | X41: DPH | Y41: DPH | Z41: DPH | AA41: DPH | BE41: =COUNTA(G41:BD41)*0.25 -> 4.75
C42: Thibaut | I42: L | J42: L | K42: L | L42: L | M42: L | N42: L | O42: L | P42: L | Q42: L | R42: L | S42: L | T42: L | U42: L | V42: L | W42: L | X42: L | Y42: L | Z42: L | BE42: 4.5
C43: Said | G43: L | H43: L | I43: L | J43: L | K43: L | L43: L | M43: L | N43: L | O43: L | P43: L | Q43: L | R43: L | S43: L | T43: L | U43: L | V43: L | W43: L | X43: L | Y43: L | Z43: L | AA43: L | AB43: L | BE43: 5.5
C44: Assiya | E44: F | F44: F | G44: F | H44: F | I44: F | J44: F | K44: F | L44: F | M44: F | N44: F | O44: F | P44: F | Q44: F | R44: F | S44: F | T44: F | U44: F | V44: F | W44: F | X44: F | BE44: 4.5
C45: Francoise | F45: F | G45: F | H45: F | I45: F | J45: F | K45: F | L45: F | M45: F | N45: F | O45: F | P45: F | Q45: F | R45: F | S45: F | T45: F | U45: F | V45: F | W45: F | BE45: 4.25
C46: Vanessa | BE46: 0
BE47: 0
BE48: 0
BE49: 0
BE50: 0
C51: TOTAL | E51: =COUNTA(E37:E50)*0.25 -> 0.25 | F51: 0.5 | G51: =COUNTA(G37:G50)*0.25 -> 1 | H51: =COUNTA(H37:H50)*0.25 -> 1 | I51: 2 | J51: 2 | K51: 2 | L51: 2 | M51: 2 | N51: 2 | O51: 2 | P51: 2 | Q51: 2 | R51: 2 | S51: 1.75 | T51: 1.75 | U51: 1.75 | V51: 1.75 | W51: 1.75 | X51: 1.5 | Y51: 1.25 | Z51: 1.25 | AA51: 0.75 | AB51: 0.25 | AC51: 0 | AD51: 0 | AE51: 0 | AF51: 0 | AG51: 0 | AH51: 0 | AI51: 0.25 | AJ51: 0.25 | AK51: 0.25 | AL51: 0.25 | AM51: 0.25 | AN51: 0.25 | AO51: 0.25 | AP51: 0.25 | AQ51: 0.25 | AR51: 0.25 | AS51: 0.25 | AT51: 0.25 | AU51: 0.25 | AV51: 0.25 | AW51: 0 | AX51: 0 | AY51: 0 | AZ51: 0 | BA51: 0 | BB51: 0 | BC51: 0 | BD51: 0 | BE51: =SUM(E51:BD51) -> 40
B53: JEUDI | E53: 6h30-6h45 | F53: 6h45-7h | G53: 7h-7h15 | H53: 7h15-7h30 | I53: 7h30-7h45 | J53: 7h45-8h | K53: 8h-8h15 | L53: 8h15-8h30 | M53: 8h30-8h45 | N53: 8h45-9h | O53: 9h-9h15 | P53: 9h15-9H30 | Q53: 9h30-9H45 | R53: 9h45-10H | S53: 10h-10H15 | T53: 10h15-10H30 | U53: 10h30-10h45 | V53: 10h45-11H | W53: 11h-11H15 | X53: 11h15-11H30 | Y53: 11h30-11H45 | Z53: 11h45-12H | AA53: 12h-12H15 | AB53: 12h15-12H30 | AC53: 12h30-12H45 | AD53: 12h45-13H | AE53: 13h-13H15 | AF53: 13h15-13H30 | AG53: 13h30-13H45 | AH53: 13H45-14H | AI53: 14H-14H15 | AJ53: 14h15-14H30 | AK53: 14h30-14H45 | AL53: 14H45-15H | AM53: 15H-15H15 | AN53: 15h15-15h30 | AO53: 15h30-15h45 | AP53: 15h45-16h | AQ53: 16h-16h15 | AR53: 16h15-16h30 | AS53: 16h30-16h45 | AT53: 16h45-17h | AU53: 17h-17h15 | AV53: 17h15-17h30 | AW53: 17h30-17h45 | AX53: 17h45-18h | AY53: 18h-18h15 | AZ53: 18h15-18h30 | BA53: 18h30-18h45 | BB53: 18h45-19h | BC53: 19h-19h15 | BD53: 19h15-19h30 | BE53: total
B54: sec | C54: Aurore | G54: S | H54: S | I54: S | J54: S | K54: S | L54: S | M54: S | N54: S | O54: S | P54: S | Q54: S | R54: S | S54: S | T54: S | U54: S | V54: S | W54: S | X54: S | Y54: S | Z54: S | AA54: S | AB54: S | AC54: S | AD54: S | BE54: =COUNTA(E54:BD54)*0.25 -> 6
B55: frais | C55: Bertrand | Q55: S | R55: S | S55: S | T55: S | U55: S | V55: S | W55: S | X55: S | Y55: S | Z55: S | AA55: S | AB55: S | AC55: S | AD55: S | AE55: S | AF55: S | AG55: S | AH55: S | BE55: =COUNTA(G55:BD55)*0.25 -> 4.5
B56: LIQUIDE | C56: Corinne | G56: S | H56: S | I56: S | J56: S | K56: S | L56: S | M56: S | N56: S | O56: S | P56: S | Q56: S | R56: S | S56: S | T56: S | U56: S | V56: S | W56: S | X56: S | Y56: S | Z56: S | AA56: S | AB56: S | AC56: S | AD56: S | AE56: S | AF56: S | BE56: 6.5
B57: DPH | C57: Laura | E57: S | F57: S | G57: S | H57: S | I57: S | J57: S | K57: S | L57: S | M57: S | N57: S | O57: S | P57: S | Q57: S | R57: S | S57: S | T57: S | U57: S | V57: S | W57: S | X57: S | Y57: S | Z57: S | AA57: S | AB57: S | AC57: S | AD57: S | BE57: =COUNTA(E57:BD57)*0.25 -> 6.5
C58: Ghislaine | E58: DPH | F58: DPH | G58: DPH | H58: DPH | I58: DPH | J58: DPH | K58: DPH | L58: DPH | M58: DPH | N58: DPH | O58: DPH | P58: DPH | Q58: DPH | R58: DPH | S58: DPH | T58: DPH | U58: DPH | V58: DPH | W58: DPH | X58: DPH | Y58: DPH | Z58: DPH | AI58: DPH | AJ58: DPH | AK58: DPH | AL58: DPH | AM58: DPH | AN58: DPH | AO58: DPH | AP58: DPH | AQ58: DPH | AR58: DPH | AS58: DPH | AT58: DPH | AU58: DPH | BE58: =COUNTA(E58:BD58)*0.25 -> 8.75
C59: Thibaut | E59: L | F59: L | G59: L | H59: L | I59: L | J59: L | K59: L | L59: L | M59: L | N59: L | O59: L | P59: L | Q59: L | R59: L | S59: L | T59: L | U59: L | V59: L | W59: L | X59: L | Y59: L | Z59: L | AA59: L | AB59: L | AC59: L | BE59: 6.25
C60: Said | G60: L | H60: L | I60: L | J60: L | K60: L | L60: L | M60: L | N60: L | O60: L | P60: L | Q60: L | R60: L | S60: L | T60: L | U60: L | V60: L | W60: L | X60: L | Y60: L | Z60: L | AA60: L | AB60: L | AC60: L | AD60: L | AE60: L | AF60: L | AG60: L | AH60: L | BE60: 7
C61: Assiya | E61: F | F61: F | G61: F | H61: F | I61: F | J61: F | K61: F | L61: F | M61: F | N61: F | O61: F | P61: F | Q61: F | R61: F | S61: F | T61: F | U61: F | V61: F | W61: F | X61: F | Y61: F | Z61: F | AA61: F | AB61: F | AC61: F | AD61: F | BE61: 6.5
C62: Francoise | F62: F | G62: F | H62: F | I62: F | J62: F | K62: F | L62: F | M62: F | N62: F | O62: F | P62: F | Q62: F | R62: F | S62: F | T62: F | U62: F | V62: F | W62: F | X62: F | Y62: F | Z62: F | AA62: F | AB62: F | AC62: F | BE62: 6
C63: Vanessa | Q63: D/MG | R63: D/MG | S63: D/MG | T63: D/MG | U63: D/MG | V63: D/MG | W63: D/MG | X63: D/MG | Y63: D/MG | Z63: D/MG | AA63: D/MG | AB63: D/MG | AK63: D/MG | AL63: D/MG | AM63: D/MG | AN63: D/MG | AO63: D/MG | AP63: D/MG | AQ63: D/MG | AR63: D/MG | AS63: D/MG | AT63: D/MG | AU63: D/MG | AV63: D/MG | BE63: 6
BE64: 0
BE65: 0
BE66: 0
BE67: 0
C68: TOTAL | E68: =COUNTA(E54:E67)*0.25 -> 1 | F68: 1.25 | G68: =COUNTA(G54:G67)*0.25 -> 2 | H68: =COUNTA(H54:H67)*0.25 -> 2 | I68: 2 | J68: 2 | K68: 2 | L68: 2 | M68: 2 | N68: 2 | O68: 2 | P68: 2 | Q68: 2.5 | R68: 2.5 | S68: 2.5 | T68: 2.5 | U68: 2.5 | V68: 2.5 | W68: 2.5 | X68: 2.5 | Y68: 2.5 | Z68: 2.5 | AA68: 2.25 | AB68: 2.25 | AC68: 2 | AD68: 1.5 | AE68: 0.75 | AF68: 0.75 | AG68: 0.5 | AH68: 0.5 | AI68: 0.25 | AJ68: 0.25 | AK68: 0.5 | AL68: 0.5 | AM68: 0.5 | AN68: 0.5 | AO68: 0.5 | AP68: 0.5 | AQ68: 0.5 | AR68: 0.5 | AS68: 0.5 | AT68: 0.5 | AU68: 0.5 | AV68: 0.25 | AW68: 0 | AX68: 0 | AY68: 0 | AZ68: 0 | BA68: 0 | BB68: 0 | BC68: 0 | BD68: 0 | BE68: =SUM(E68:BD68) -> 64
B70: VENDREDI | E70: 6h30-6h45 | F70: 6h45-7h | G70: 7h-7h15 | H70: 7h15-7h30 | I70: 7h30-7h45 | J70: 7h45-8h | K70: 8h-8h15 | L70: 8h15-8h30 | M70: 8h30-8h45 | N70: 8h45-9h | O70: 9h-9h15 | P70: 9h15-9H30 | Q70: 9h30-9H45 | R70: 9h45-10H | S70: 10h-10H15 | T70: 10h15-10H30 | U70: 10h30-10h45 | V70: 10h45-11H | W70: 11h-11H15 | X70: 11h15-11H30 | Y70: 11h30-11H45 | Z70: 11h45-12H | AA70: 12h-12H15 | AB70: 12h15-12H30 | AC70: 12h30-12H45 | AD70: 12h45-13H | AE70: 13h-13H15 | AF70: 13h15-13H30 | AG70: 13h30-13H45 | AH70: 13H45-14H | AI70: 14H-14H15 | AJ70: 14h15-14H30 | AK70: 14h30-14H45 | AL70: 14H45-15H | AM70: 15H-15H15 | AN70: 15h15-15h30 | AO70: 15h30-15h45 | AP70: 15h45-16h | AQ70: 16h-16h15 | AR70: 16h15-16h30 | AS70: 16h30-16h45 | AT70: 16h45-17h | AU70: 17h-17h15 | AV70: 17h15-17h30 | AW70: 17h30-17h45 | AX70: 17h45-18h | AY70: 18h-18h15 | AZ70: 18h15-18h30 | BA70: 18h30-18h45 | BB70: 18h45-19h | BC70: 19h-19h15 | BD70: 19h15-19h30 | BE70: total
B71: sec | C71: Aurore | G71: S | H71: S | I71: S | J71: S | K71: S | L71: S | M71: S | N71: S | O71: S | P71: S | Q71: S | R71: S | S71: S | T71: S | U71: S | V71: S | W71: S | X71: S | Y71: S | Z71: S | BE71: =COUNTA(E71:BD71)*0.25 -> 5
B72: frais | C72: Bertrand | AE72: S | AF72: S | AG72: S | AH72: S | AI72: S | AJ72: S | AK72: S | AL72: S | AM72: S | AN72: S | AO72: S | AP72: S | AQ72: S | AR72: S | AS72: S | AT72: S | AU72: S | AV72: S | BE72: =COUNTA(G72:BD72)*0.25 -> 4.5
B73: LIQUIDE | C73: Corinne | I73: S | J73: S | K73: S | L73: S | M73: S | N73: S | O73: S | P73: S | Q73: S | R73: S | S73: S | T73: S | U73: S | V73: S | W73: S | X73: S | Y73: S | Z73: S | AA73: S | BE73: =COUNTA(G73:BD73)*0.25 -> 4.75
B74: DPH | C74: Laura | I74: S | J74: S | K74: S | L74: S | M74: S | N74: S | O74: S | P74: S | Q74: S | R74: S | S74: S | T74: S | U74: S | V74: S | W74: S | X74: S | Y74: S | Z74: S | BE74: =COUNTA(E74:BD74)*0.25 -> 4.5
C75: Ghislaine | I75: DPH | J75: DPH | K75: DPH | L75: DPH | M75: DPH | N75: DPH | O75: DPH | P75: DPH | Q75: DPH | R75: DPH | S75: DPH | T75: DPH | U75: DPH | V75: DPH | W75: DPH | X75: DPH | Y75: DPH | Z75: DPH | AA75: DPH | AB75: DPH | BE75: =COUNTA(G75:BD75)*0.25 -> 5
C76: Thibaut | I76: L | J76: L | K76: L | L76: L | M76: L | N76: L | O76: L | P76: L | Q76: L | R76: L | S76: L | T76: L | U76: L | V76: L | W76: l | X76: l | AI76: L | AJ76: L | AK76: L | AL76: L | AM76: L | AN76: L | AO76: L | AP76: L | AQ76: L | AR76: L | AS76: L | AT76: L | AU76: L | AV76: L | AW76: L | AX76: L | BE76: 8
C77: Said | G77: L | H77: L | I77: L | J77: L | K77: L | L77: L | M77: L | N77: L | O77: L | P77: L | Q77: L | R77: L | S77: L | T77: L | U77: L | V77: L | W77: L | X77: L | Y77: L | Z77: L | AA77: L | AB77: L | AC77: L | AD77: L | AE77: L | BE77: 6.25
C78: Assiya | E78: F | F78: F | G78: F | H78: F | I78: F | J78: F | K78: F | L78: F | M78: F | N78: F | O78: F | P78: F | Q78: F | R78: F | S78: F | T78: F | U78: F | V78: F | BE78: 4
C79: Francoise | F79: F | G79: F | H79: F | I79: F | J79: F | K79: F | L79: F | M79: F | N79: F | O79: F | P79: F | Q79: F | R79: F | S79: F | T79: F | U79: F | V79: F | W79: F | X79: F | Y79: F | Z79: F | AA79: F | BE79: 5.25
C80: Vanessa | Q80: D/MG | R80: D/MG | S80: D/MG | T80: D/MG | U80: D/MG | V80: D/MG | W80: D/MG | X80: D/MG | Y80: D/MG | Z80: D/MG | AA80: D/MG | AB80: D/MG | AC80: D/MG | AD80: D/MG | AE80: D/MG | AF80: D/MG | AG80: D/MG | AH80: D/MG | AI80: D/MG | AJ80: D/MG | AK80: D/MG | AL80: D/MG | AM80: D/MG | BE80: 5.75
BE81: 0
BE82: 0
BE83: 0
BE84: 0
C85: TOTAL | E85: =COUNTA(E71:E84)*0.25 -> 0.25 | F85: 0.5 | G85: =COUNTA(G71:G84)*0.25 -> 1 | H85: =COUNTA(H71:H84)*0.25 -> 1 | I85: 2 | J85: 2 | K85: 2 | L85: 2 | M85: 2 | N85: 2 | O85: 2 | P85: 2 | Q85: 2.25 | R85: 2.25 | S85: 2.25 | T85: 2.25 | U85: 2.25 | V85: 2.25 | W85: 2 | X85: 2 | Y85: 1.75 | Z85: 1.75 | AA85: 1.25 | AB85: 0.75 | AC85: 0.5 | AD85: 0.5 | AE85: 0.75 | AF85: 0.5 | AG85: 0.5 | AH85: 0.5 | AI85: 0.75 | AJ85: 0.75 | AK85: 0.75 | AL85: 0.75 | AM85: 0.75 | AN85: 0.5 | AO85: 0.5 | AP85: 0.5 | AQ85: 0.5 | AR85: 0.5 | AS85: 0.5 | AT85: 0.5 | AU85: 0.5 | AV85: 0.5 | AW85: 0.25 | AX85: 0.25 | AY85: 0 | AZ85: 0 | BA85: 0 | BB85: 0 | BC85: 0 | BD85: 0 | BE85: =SUM(E85:BD85) -> 53.75
B87: SAMEDI | E87: 6h30-6h45 | F87: 6h45-7h | G87: 7h-7h15 | H87: 7h15-7h30 | I87: 7h30-7h45 | J87: 7h45-8h | K87: 8h-8h15 | L87: 8h15-8h30 | M87: 8h30-8h45 | N87: 8h45-9h | O87: 9h-9h15 | P87: 9h15-9H30 | Q87: 9h30-9H45 | R87: 9h45-10H | S87: 10h-10H15 | T87: 10h15-10H30 | U87: 10h30-10h45 | V87: 10h45-11H | W87: 11h-11H15 | X87: 11h15-11H30 | Y87: 11h30-11H45 | Z87: 11h45-12H | AA87: 12h-12H15 | AB87: 12h15-12H30 | AC87: 12h30-12H45 | AD87: 12h45-13H | AE87: 13h-13H15 | AF87: 13h15-13H30 | AG87: 13h30-13H45 | AH87: 13H45-14H | AI87: 14H-14H15 | AJ87: 14h15-14H30 | AK87: 14h30-14H45 | AL87: 14H45-15H | AM87: 15H-15H15 | AN87: 15h15-15h30 | AO87: 15h30-15h45 | AP87: 15h45-16h | AQ87: 16h-16h15 | AR87: 16h15-16h30 | AS87: 16h30-16h45 | AT87: 16h45-17h | AU87: 17h-17h15 | AV87: 17h15-17h30 | AW87: 17h30-17h45 | AX87: 17h45-18h | AY87: 18h-18h15 | AZ87: 18h15-18h30 | BA87: 18h30-18h45 | BB87: 18h45-19h | BC87: 19h-19h15 | BD87: 19h15-19h30 | BE87: total
B88: sec | C88: Aurore | AI88: S | AJ88: S | AK88: S | AL88: S | AM88: S | AN88: S | AO88: S | AP88: S | AQ88: S | AR88: S | AS88: S | AT88: S | AU88: S | AV88: S | AW88: S | AX88: S | AY88: S | AZ88: S | BA88: S | BB88: S | BE88: =COUNTA(E88:BD88)*0.25 -> 5
B89: frais | C89: Bertrand | Q89: S | R89: S | S89: S | T89: S | U89: S | V89: S | W89: S | X89: S | Y89: S | Z89: S | AA89: S | AB89: S | BE89: 3
B90: LIQUIDE | C90: Corinne | AG90: s | AH90: s | AI90: s | AJ90: s | AK90: s | AL90: s | AM90: s | AN90: s | AO90: s | AP90: s | AQ90: s | AR90: s | AS90: s | AT90: s | AU90: s | AV90: s | AW90: s | AX90: s | AY90: s | AZ90: s | BA90: s | BB90: s | BE90: 5.5
B91: DPH | C91: Laura | AG91: s | AH91: s | AI91: s | AJ91: s | AK91: s | AL91: s | AM91: s | AN91: s | AO91: s | AP91: s | AQ91: s | AR91: s | AS91: s | AT91: s | AU91: s | AV91: s | AW91: s | AX91: s | AY91: s | AZ91: s | BA91: s | BB91: s | BE91: 5.5
C92: Ghislaine | M92: DPH | N92: DPH | O92: DPH | P92: DPH | Q92: DPH | R92: DPH | S92: DPH | T92: DPH | U92: DPH | V92: DPH | W92: DPH | X92: DPH | AG92: dph | AH92: dph | AI92: dph | AJ92: dph | AK92: dph | AL92: dph | AM92: dph | AN92: dph | AO92: dph | AP92: dph | AQ92: dph | AR92: dph | AS92: dph | AT92: dph | AU92: dph | AV92: dph | AW92: dph | BE92: 7.25
C93: Thibaut | AE93: L | AF93: L | AG93: L | AH93: L | AI93: L | AJ93: L | AK93: L | AL93: L | AM93: L | AN93: L | AO93: L | AP93: L | AQ93: L | AR93: L | AS93: L | AT93: L | AU93: L | AV93: L | AW93: L | AX93: L | AY93: L | AZ93: L | BA93: L | BB93: L | BE93: 6
C94: Said | AG94: L | AH94: L | AI94: L | AJ94: L | AK94: L | AL94: L | AM94: L | AN94: L | AO94: L | AP94: L | AQ94: L | AR94: L | AS94: L | AT94: L | AU94: L | AV94: L | AW94: L | AX94: L | AY94: L | AZ94: L | BA94: L | BB94: L | BE94: 5.5
C95: Assiya | E95: F | F95: F | G95: F | H95: F | I95: F | J95: F | K95: F | L95: F | M95: F | N95: F | O95: F | P95: F | Q95: F | R95: F | S95: F | T95: F | U95: F | V95: F | W95: F | X95: F | Y95: F | AI95: F | AJ95: F | AK95: F | AL95: F | AM95: F | AN95: F | AO95: F | AP95: F | AQ95: F | AR95: F | AS95: F | AT95: F | AU95: F | AV95: F | BE95: 8.75
C96: Francoise | E96: F | F96: F | G96: F | H96: F | I96: F | J96: F | K96: F | L96: F | M96: F | N96: F | O96: F | P96: F | Q96: F | R96: F | S96: F | T96: F | U96: F | V96: F | W96: F | X96: F | Y96: F | Z96: F | AI96: F | AJ96: F | AK96: F | AL96: F | AM96: F | AN96: F | AO96: F | AP96: F | AQ96: F | AR96: F | AS96: F | AT96: F | AU96: F | AV96: F | BE96: 9
C97: Vanessa | Q97: D/MG | R97: D/MG | S97: D/MG | T97: D/MG | U97: D/MG | V97: D/MG | W97: D/MG | X97: D/MG | Y97: D/MG | Z97: D/MG | AA97: D/MG | AB97: D/MG | AC97: D/MG | AD97: D/MG | BE97: 3.5
BE98: 0
BE99: 0
BE100: 0
BE101: 0
C102: TOTAL | E102: =COUNTA(E88:E101)*0.25 -> 0.5 | F102: 0.5 | G102: =COUNTA(G88:G101)*0.25 -> 0.5 | H102: =COUNTA(H88:H101)*0.25 -> 0.5 | I102: 0.5 | J102: 0.5 | K102: 0.5 | L102: 0.5 | M102: 0.75 | N102: 0.75 | O102: 0.75 | P102: 0.75 | Q102: 1.25 | R102: 1.25 | S102: 1.25 | T102: 1.25 | U102: 1.25 | V102: 1.25 | W102: 1.25 | X102: 1.25 | Y102: 1 | Z102: 0.75 | AA102: 0.5 | AB102: 0.5 | AC102: 0.25 | AD102: 0.25 | AE102: 0.25 | AF102: 0.25 | AG102: 1.25 | AH102: 1.25 | AI102: 2 | AJ102: 2 | AK102: 2 | AL102: 2 | AM102: 2 | AN102: 2 | AO102: 2 | AP102: 2 | AQ102: 2 | AR102: 2 | AS102: 2 | AT102: 2 | AU102: 2 | AV102: 2 | AW102: 1.5 | AX102: 1.25 | AY102: 1.25 | AZ102: 1.25 | BA102: 1.25 | BB102: 1.25 | BC102: 0 | BD102: 0 | BE102: =SUM(BE88:BE101) -> 59
B104: Dimanche | E104: 6h30-6h45 | F104: 6h45-7h | G104: 7h-7h15 | H104: 7h15-7h30 | I104: 7h30-7h45 | J104: 7h45-8h | K104: 8h-8h15 | L104: 8h15-8h30 | M104: 8h30-8h45 | N104: 8h45-9h | O104: 9h-9h15 | P104: 9h15-9H30 | Q104: 9h30-9H45 | R104: 9h45-10H | S104: 10h-10H15 | T104: 10h15-10H30 | U104: 10h30-10h45 | V104: 10h45-11H | W104: 11h-11H15 | X104: 11h15-11H30 | Y104: 11h30-11H45 | Z104: 11h45-12H | AA104: 12h-12H15 | AB104: 12h15-12H30 | AC104: 12h30-12H45 | AD104: 12h45-13H | AE104: 13h-13H15 | AF104: 13h15-13H30 | AG104: 13h30-13H45 | AH104: 13H45-14H | AI104: 14H-14H15 | AJ104: 14h15-14H30 | AK104: 14h30-14H45 | AL104: 14H45-15H | AM104: 15H-15H15 | AN104: 15h15-15h30 | AO104: 15h30-15h45 | AP104: 15h45-16h | AQ104: 16h-16h15 | AR104: 16h15-16h30 | AS104: 16h30-16h45 | AT104: 16h45-17h | AU104: 17h-17h15 | AV104: 17h15-17h30 | AW104: 17h30-17h45 | AX104: 17h45-18h | AY104: 18h-18h15 | AZ104: 18h15-18h30 | BA104: 18h30-18h45 | BB104: 18h45-19h | BC104: 19h-19h15 | BD104: 19h15-19h30 | BE104: total
B105: sec | C105: Aurore | BE105: =COUNTA(G105:BD105)*0.25 -> 0
B106: frais | C106: Bertrand | BE106: 0
B107: LIQUIDE | C107: Corinne | BE107: 0
B108: DPH | C108: Laura | BE108: 0
C109: Ghislaine | BE109: 0
C110: Thibaut | BE110: 0
C111: Said | BE111: 0
C112: Assiya | BE112: 0
C113: Francoise | BE113: 0
C114: Vanessa | BE114: 0
BE115: 0
BE116: 0
BE117: 0
BE118: 0
C119: TOTAL | G119: =COUNTA(G105:G118)*0.25 -> 0 | H119: =COUNTA(H105:H118)*0.25 -> 0 | I119: 0 | J119: 0 | K119: 0 | L119: 0 | M119: 0 | N119: 0 | O119: 0 | P119: 0 | Q119: 0 | R119: 0 | S119: 0 | T119: 0 | U119: 0 | V119: 0 | W119: 0 | X119: 0 | Y119: 0 | Z119: 0 | AA119: 0 | AB119: 0 | AC119: 0 | AD119: 0 | AE119: 0 | AF119: 0 | AG119: 0 | AH119: 0 | AI119: 0 | AJ119: 0 | AK119: 0 | AL119: 0 | AM119: 0 | AN119: 0 | AO119: 0 | AP119: 0 | AQ119: 0 | AR119: 0 | AS119: 0 | AT119: 0 | AU119: 0 | AV119: 0 | AW119: 0 | AX119: 0 | AY119: 0 | AZ119: 0 | BA119: 0 | BB119: 0 | BC119: 0 | BD119: 0 | BE119: =SUM(G119:BD119) -> 0
B121: Signatures OBLIGATOIRES
B126: Planning | E126: 6h30-6h45 | F126: 6h45-7h | G126: 7h-7h15 | H126: 7h15-7h30 | I126: 7h30-7h45 | J126: 7h45-8h | K126: 8h-8h15 | L126: 8h15-8h30 | M126: 8h30-8h45 | N126: 8h45-9h | O126: 9h-9h15 | P126: 9h15-9H30 | Q126: 9h30-9H45 | R126: 9h45-10H | S126: 10h-10H15 | T126: 10h15-10H30 | U126: 10h30-10h45 | V126: 10h45-11H | W126: 11h-11H15 | X126: 11h15-11H30 | Y126: 11h30-11H45 | Z126: 11h45-12H | AA126: 12h-12H15 | AB126: 12h15-12H30 | AC126: 12h30-12H45 | AD126: 12h45-13H | AE126: 13h-13H15 | AF126: 13h15-13H30 | AG126: 13h30-13H45 | AH126: 13H45-14H | AI126: 14H-14H15 | AJ126: 14h15-14H30 | AK126: 14h30-14H45 | AL126: 14H45-15H | AM126: 15H-15H15 | AN126: 15h15-15h30 | AO126: 15h30-15h45 | AP126: 15h45-16h | AQ126: 16h-16h15 | AR126: 16h15-16h30 | AS126: 16h30-16h45 | AT126: 16h45-17h | AU126: 17h-17h15 | AV126: 17h15-17h30 | AW126: 17h30-17h45 | AX126: 17h45-18h | AY126: 18h-18h15 | AZ126: 18h15-18h30 | BA126: 18h30-18h45 | BB126: 18h45-19h | BC126: 19h-19h15 | BD126: 19h15-19h30
B127: TOTAL Semaine | C127: =+C105 -> Aurore | D127: S | E127: =(IF(E3="S",1,0)+IF(E20="S",1,0)+IF(E37="S",1,0)+IF(E54="S",1,0)+IF(E71="S",1,0)+IF(E88="S",1,0)+IF(E105="S",1,0))/4 -> 0 | F127: =(IF(F3="S",1,0)+IF(F20="S",1,0)+IF(F37="S",1,0)+IF(F54="S",1,0)+IF(F71="S",1,0)+IF(F88="S",1,0)+IF(F105="S",1,0))/4 -> 0 | G127: 1.25 | H127: 1.25 | I127: 1.25 | J127: 1.25 | K127: 1.25 | L127: 1.25 | M127: 1.25 | N127: 1.25 | O127: 1.25 | P127: 1.25 | Q127: 1.25 | R127: 1.25 | S127: 1 | T127: 1 | U127: 1 | V127: 1 | W127: 1 | X127: 1 | Y127: 1 | Z127: 1 | AA127: 0.5 | AB127: 0.5 | AC127: 0.5 | AD127: 0.5 | AE127: 0 | AF127: 0 | AG127: 0 | AH127: 0 | AI127: 0.25 | AJ127: 0.25 | AK127: 0.25 | AL127: 0.25 | AM127: 0.25 | AN127: 0.25 | AO127: 0.25 | AP127: 0.25 | AQ127: 0.25 | AR127: 0.25 | AS127: 0.25 | AT127: 0.25 | AU127: 0.25 | AV127: 0.25 | AW127: 0.25 | AX127: 0.25 | AY127: 0.25 | AZ127: 0.25 | BA127: 0.25 | BB127: 0.25 | BC127: 0 | BD127: 0 | BE127: =SUM(E127:BD127) -> 30 | BF127: =SUM(BE127+BE128) -> 30
E128: =(IF(E3="c",1,0)+IF(E20="c",1,0)+IF(E37="c",1,0)+IF(E54="c",1,0)+IF(E71="c",1,0)+IF(E88="c",1,0)+IF(E105="c",1,0))/4 -> 0 | F128: 0 | G128: 0 | H128: 0 | I128: 0 | J128: 0 | K128: 0 | L128: 0 | M128: 0 | N128: 0 | O128: 0 | P128: 0 | Q128: 0 | R128: 0 | S128: 0 | T128: 0 | U128: 0 | V128: 0 | W128: 0 | X128: 0 | Y128: 0 | Z128: 0 | AA128: 0 | AB128: 0 | AC128: 0 | AD128: 0 | AE128: 0 | AF128: 0 | AG128: 0 | AH128: 0 | AI128: 0 | AJ128: 0 | AK128: =(IF(AK3="c",1,0)+IF(AK20="c",1,0)+IF(AK37="c",1,0)+IF(AK54="c",1,0)+IF(AK71="c",1,0)+IF(AK88="c",1,0)+IF(AK105="c",1,0))/4 -> 0 | AL128: 0 | AM128: 0 | AN128: 0 | AO128: 0 | AP128: 0 | AQ128: 0 | AR128: 0 | AS128: 0 | AT128: 0 | AU128: 0 | AV128: 0 | AW128: 0 | AX128: 0 | AY128: 0 | AZ128: 0 | BA128: 0 | BB128: 0 | BC128: 0 | BD128: 0 | BE128: =SUM(G128:BD128) -> 0
C129: =+C106 -> Bertrand | D129: B | E129: =(IF(E4="B",1,0)+IF(E21="B",1,0)+IF(E38="B",1,0)+IF(E55="B",1,0)+IF(E72="B",1,0)+IF(E89="B",1,0)+IF(E106="B",1,0))/4 -> 0 | F129: 0 | G129: 0 | H129: 0 | I129: 0 | J129: 0 | K129: 0 | L129: 0 | M129: 0 | N129: 0 | O129: 0 | P129: 0 | Q129: 0 | R129: 0 | S129: 0 | T129: 0 | U129: 0 | V129: 0 | W129: 0 | X129: 0 | Y129: 0 | Z129: 0 | AA129: 0 | AB129: 0 | AC129: 0 | AD129: 0 | AE129: 0 | AF129: 0 | AG129: 0 | AH129: 0 | AI129: 0 | AJ129: 0 | AK129: =(IF(AK4="B",1,0)+IF(AK21="B",1,0)+IF(AK38="B",1,0)+IF(AK55="B",1,0)+IF(AK72="B",1,0)+IF(AK89="B",1,0)+IF(AK106="B",1,0))/4 -> 0 | AL129: 0 | AM129: 0 | AN129: 0 | AO129: 0 | AP129: 0 | AQ129: 0 | AR129: 0 | AS129: 0 | AT129: 0 | AU129: 0 | AV129: 0 | AW129: 0 | AX129: 0 | AY129: 0 | AZ129: 0 | BA129: 0 | BB129: 0 | BC129: 0 | BD129: 0 | BE129: =SUM(E129:BD129) -> 0 | BF129: =SUM(BE129+BE130) -> 20
C130: =+C4 -> Bertrand | D130: S | E130: =(IF(E4="S",1,0)+IF(E21="S",1,0)+IF(E38="S",1,0)+IF(E55="S",1,0)+IF(E72="S",1,0)+IF(E89="S",1,0)+IF(E106="S",1,0))/4 -> 0 | F130: =(IF(F4="S",1,0)+IF(F21="S",1,0)+IF(F38="S",1,0)+IF(F55="S",1,0)+IF(F72="S",1,0)+IF(F89="S",1,0)+IF(F106="S",1,0))/4 -> 0 | G130: 0 | H130: 0 | I130: 0 | J130: 0 | K130: 0 | L130: 0 | M130: 0 | N130: 0 | O130: 0 | P130: 0 | Q130: 0.75 | R130: 0.75 | S130: 0.75 | T130: 0.75 | U130: 0.75 | V130: 0.75 | W130: 0.75 | X130: 0.75 | Y130: 0.75 | Z130: 0.75 | AA130: 0.75 | AB130: 0.75 | AC130: 0.5 | AD130: 0.5 | AE130: 0.75 | AF130: 0.75 | AG130: 0.75 | AH130: 0.75 | AI130: 0.5 | AJ130: 0.5 | AK130: 0.5 | AL130: 0.5 | AM130: 0.5 | AN130: 0.5 | AO130: 0.5 | AP130: 0.5 | AQ130: 0.5 | AR130: 0.5 | AS130: 0.5 | AT130: 0.5 | AU130: 0.5 | AV130: 0.5 | AW130: 0 | AX130: 0 | AY130: 0 | AZ130: 0 | BA130: 0 | BB130: 0 | BC130: 0 | BD130: 0 | BE130: =SUM(G130:BD130) -> 20
C131: =+C5 -> Corinne | D131: M | E131: =(IF(E4="M",1,0)+IF(E21="M",1,0)+IF(E38="M",1,0)+IF(E55="M",1,0)+IF(E72="M",1,0)+IF(E89="M",1,0)+IF(E106="M",1,0))/4 -> 0 | F131: 0 | G131: 0 | H131: 0 | I131: 0 | J131: 0 | K131: 0 | L131: 0 | M131: 0 | N131: 0 | O131: 0 | P131: 0 | Q131: 0 | R131: 0 | S131: 0 | T131: 0 | U131: 0 | V131: 0 | W131: 0 | X131: 0 | Y131: 0 | Z131: 0 | AA131: 0 | AB131: 0 | AC131: 0 | AD131: 0 | AE131: 0 | AF131: 0 | AG131: 0 | AH131: 0 | AI131: 0 | AJ131: 0 | AK131: =(IF(AK4="M",1,0)+IF(AK21="M",1,0)+IF(AK38="M",1,0)+IF(AK55="M",1,0)+IF(AK72="M",1,0)+IF(AK89="M",1,0)+IF(AK106="M",1,0))/4 -> 0 | AL131: 0 | AM131: 0 | AN131: 0 | AO131: 0 | AP131: 0 | AQ131: 0 | AR131: 0 | AS131: 0 | AT131: 0 | AU131: 0 | AV131: 0 | AW131: 0 | AX131: 0 | AY131: 0 | AZ131: 0 | BA131: 0 | BB131: 0 | BC131: 0 | BD131: 0 | BE131: =SUM(G131:BD131) -> 0 | BF131: =SUM(BE131+BE132) -> 36.75
D132: S | E132: =(IF(E5="S",1,0)+IF(E22="S",1,0)+IF(E39="S",1,0)+IF(E56="S",1,0)+IF(E73="S",1,0)+IF(E90="S",1,0)+IF(E107="S",1,0))/4 -> 0 | F132: =(IF(F5="S",1,0)+IF(F22="S",1,0)+IF(F39="S",1,0)+IF(F56="S",1,0)+IF(F73="S",1,0)+IF(F90="S",1,0)+IF(F107="S",1,0))/4 -> 0 | G132: 0.75 | H132: 0.75 | I132: 1.25 | J132: 1.25 | K132: 1.25 | L132: 1.25 | M132: 1.25 | N132: 1.25 | O132: 1.25 | P132: 1.25 | Q132: 1.25 | R132: 1.25 | S132: 1.25 | T132: 1.25 | U132: 1.25 | V132: 1.25 | W132: 1.25 | X132: 1.25 | Y132: 1.25 | Z132: 1.25 | AA132: 1 | AB132: 0.75 | AC132: 0.5 | AD132: 0.5 | AE132: 0.5 | AF132: 0.5 | AG132: 0.25 | AH132: 0.25 | AI132: 0.25 | AJ132: 0.25 | AK132: 0.5 | AL132: 0.5 | AM132: 0.5 | AN132: 0.5 | AO132: 0.5 | AP132: 0.5 | AQ132: 0.5 | AR132: 0.5 | AS132: 0.5 | AT132: 0.5 | AU132: 0.5 | AV132: 0.5 | AW132: 0.5 | AX132: 0.5 | AY132: 0.25 | AZ132: 0.25 | BA132: 0.25 | BB132: 0.25 | BC132: 0 | BD132: 0 | BE132: =SUM(E132:BD132) -> 36.75
C133: =+C6 -> Laura | E133: =(IF(E7="r",1,0)+IF(E23="r",1,0)+IF(E40="r",1,0)+IF(E57="r",1,0)+IF(E74="r",1,0)+IF(E91="r",1,0)+IF(E108="r",1,0))/4 -> 0 | F133: 0 | G133: 0 | H133: 0 | I133: 0 | J133: 0 | K133: 0 | L133: 0 | M133: 0 | N133: 0 | O133: 0 | P133: 0 | Q133: 0 | R133: 0 | S133: 0 | T133: 0 | U133: 0 | V133: 0 | W133: 0 | X133: 0 | Y133: 0 | Z133: 0 | AA133: 0 | AB133: 0 | AC133: 0 | AD133: 0 | AE133: 0 | AF133: 0 | AG133: 0 | AH133: 0 | AI133: 0 | AJ133: 0 | AK133: =(IF(AK7="r",1,0)+IF(AK23="r",1,0)+IF(AK40="r",1,0)+IF(AK57="r",1,0)+IF(AK74="r",1,0)+IF(AK91="r",1,0)+IF(AK108="r",1,0))/4 -> 0 | AL133: 0 | AM133: 0 | AN133: 0 | AO133: 0 | AP133: 0 | AQ133: 0 | AR133: 0 | AS133: 0 | AT133: 0 | AU133: 0 | AV133: 0 | AW133: 0 | AX133: 0 | AY133: 0 | AZ133: 0 | BA133: 0 | BB133: 0 | BC133: 0 | BD133: 0 | BE133: =SUM(G133:BD133) -> 0 | BF133: =SUM(BE133+BE134) -> 36.75
D134: S | E134: =(IF(E6="S",1,0)+IF(E23="S",1,0)+IF(E40="S",1,0)+IF(E57="S",1,0)+IF(E74="S",1,0)+IF(E91="S",1,0)+IF(E108="S",1,0))/4 -> 0.75 | F134: =(IF(F6="S",1,0)+IF(F23="S",1,0)+IF(F40="S",1,0)+IF(F57="S",1,0)+IF(F74="S",1,0)+IF(F91="S",1,0)+IF(F108="S",1,0))/4 -> 0.75 | G134: 0.75 | H134: 0.75 | I134: 1.25 | J134: 1.25 | K134: 1.25 | L134: 1.25 | M134: 1.25 | N134: 1.25 | O134: 1.25 | P134: 1.25 | Q134: 1.25 | R134: 1.25 | S134: 1.25 | T134: 1.25 | U134: 1.25 | V134: 1.25 | W134: 1.25 | X134: 1.25 | Y134: 1.25 | Z134: 1.25 | AA134: 1 | AB134: 0.75 | AC134: 0.25 | AD134: 0.25 | AE134: 0 | AF134: 0 | AG134: 0.25 | AH134: 0.25 | AI134: 0.25 | AJ134: 0.25 | AK134: 0.5 | AL134: 0.5 | AM134: 0.5 | AN134: 0.5 | AO134: 0.5 | AP134: 0.5 | AQ134: 0.5 | AR134: 0.5 | AS134: 0.5 | AT134: 0.5 | AU134: 0.5 | AV134: 0.5 | AW134: 0.5 | AX134: 0.5 | AY134: 0.25 | AZ134: 0.25 | BA134: 0.25 | BB134: 0.25 | BC134: 0 | BD134: 0 | BE134: =SUM(E134:BD134) -> 36.75
C135: =+C7 -> Ghislaine | E135: =(IF(#REF!="r",1,0)+IF(E24="r",1,0)+IF(E41="r",1,0)+IF(E58="r",1,0)+IF(E75="r",1,0)+IF(E92="r",1,0)+IF(E109="r",1,0))/4 ->  | F135: =(IF(#REF!="r",1,0)+IF(F24="r",1,0)+IF(F41="r",1,0)+IF(F58="r",1,0)+IF(F75="r",1,0)+IF(F92="r",1,0)+IF(F109="r",1,0))/4 ->  | G135: =(IF(#REF!="r",1,0)+IF(G24="r",1,0)+IF(G41="r",1,0)+IF(G58="r",1,0)+IF(G75="r",1,0)+IF(G92="r",1,0)+IF(G109="r",1,0))/4 ->  | H135: =(IF(#REF!="r",1,0)+IF(H24="r",1,0)+IF(H41="r",1,0)+IF(H58="r",1,0)+IF(H75="r",1,0)+IF(H92="r",1,0)+IF(H109="r",1,0))/4 ->  | I135: =(IF(#REF!="r",1,0)+IF(I24="r",1,0)+IF(I41="r",1,0)+IF(I58="r",1,0)+IF(I75="r",1,0)+IF(I92="r",1,0)+IF(I109="r",1,0))/4 ->  | J135: =(IF(#REF!="r",1,0)+IF(J24="r",1,0)+IF(J41="r",1,0)+IF(J58="r",1,0)+IF(J75="r",1,0)+IF(J92="r",1,0)+IF(J109="r",1,0))/4 ->  | K135: =(IF(#REF!="r",1,0)+IF(K24="r",1,0)+IF(K41="r",1,0)+IF(K58="r",1,0)+IF(K75="r",1,0)+IF(K92="r",1,0)+IF(K109="r",1,0))/4 ->  | L135: =(IF(#REF!="r",1,0)+IF(L24="r",1,0)+IF(L41="r",1,0)+IF(L58="r",1,0)+IF(L75="r",1,0)+IF(L92="r",1,0)+IF(L109="r",1,0))/4 ->  | M135: =(IF(#REF!="r",1,0)+IF(M24="r",1,0)+IF(M41="r",1,0)+IF(M58="r",1,0)+IF(M75="r",1,0)+IF(M92="r",1,0)+IF(M109="r",1,0))/4 ->  | N135: =(IF(#REF!="r",1,0)+IF(N24="r",1,0)+IF(N41="r",1,0)+IF(N58="r",1,0)+IF(N75="r",1,0)+IF(N92="r",1,0)+IF(N109="r",1,0))/4 ->  | O135: =(IF(#REF!="r",1,0)+IF(O24="r",1,0)+IF(O41="r",1,0)+IF(O58="r",1,0)+IF(O75="r",1,0)+IF(O92="r",1,0)+IF(O109="r",1,0))/4 ->  | P135: =(IF(#REF!="r",1,0)+IF(P24="r",1,0)+IF(P41="r",1,0)+IF(P58="r",1,0)+IF(P75="r",1,0)+IF(P92="r",1,0)+IF(P109="r",1,0))/4 ->  | Q135: =(IF(#REF!="r",1,0)+IF(Q24="r",1,0)+IF(Q41="r",1,0)+IF(Q58="r",1,0)+IF(Q75="r",1,0)+IF(Q92="r",1,0)+IF(Q109="r",1,0))/4 ->  | R135: =(IF(#REF!="r",1,0)+IF(R24="r",1,0)+IF(R41="r",1,0)+IF(R58="r",1,0)+IF(R75="r",1,0)+IF(R92="r",1,0)+IF(R109="r",1,0))/4 ->  | S135: =(IF(#REF!="r",1,0)+IF(S24="r",1,0)+IF(S41="r",1,0)+IF(S58="r",1,0)+IF(S75="r",1,0)+IF(S92="r",1,0)+IF(S109="r",1,0))/4 ->  | T135: =(IF(#REF!="r",1,0)+IF(T24="r",1,0)+IF(T41="r",1,0)+IF(T58="r",1,0)+IF(T75="r",1,0)+IF(T92="r",1,0)+IF(T109="r",1,0))/4 ->  | U135: =(IF(#REF!="r",1,0)+IF(U24="r",1,0)+IF(U41="r",1,0)+IF(U58="r",1,0)+IF(U75="r",1,0)+IF(U92="r",1,0)+IF(U109="r",1,0))/4 ->  | V135: =(IF(#REF!="r",1,0)+IF(V24="r",1,0)+IF(V41="r",1,0)+IF(V58="r",1,0)+IF(V75="r",1,0)+IF(V92="r",1,0)+IF(V109="r",1,0))/4 ->  | W135: =(IF(#REF!="r",1,0)+IF(W24="r",1,0)+IF(W41="r",1,0)+IF(W58="r",1,0)+IF(W75="r",1,0)+IF(W92="r",1,0)+IF(W109="r",1,0))/4 ->  | X135: =(IF(#REF!="r",1,0)+IF(X24="r",1,0)+IF(X41="r",1,0)+IF(X58="r",1,0)+IF(X75="r",1,0)+IF(X92="r",1,0)+IF(X109="r",1,0))/4 ->  | Y135: =(IF(#REF!="r",1,0)+IF(Y24="r",1,0)+IF(Y41="r",1,0)+IF(Y58="r",1,0)+IF(Y75="r",1,0)+IF(Y92="r",1,0)+IF(Y109="r",1,0))/4 ->  | Z135: =(IF(#REF!="r",1,0)+IF(Z24="r",1,0)+IF(Z41="r",1,0)+IF(Z58="r",1,0)+IF(Z75="r",1,0)+IF(Z92="r",1,0)+IF(Z109="r",1,0))/4 ->  | AA135: =(IF(#REF!="r",1,0)+IF(AA24="r",1,0)+IF(AA41="r",1,0)+IF(AA58="r",1,0)+IF(AA75="r",1,0)+IF(AA92="r",1,0)+IF(AA109="r",1,0))/4 ->  | AB135: =(IF(#REF!="r",1,0)+IF(AB24="r",1,0)+IF(AB41="r",1,0)+IF(AB58="r",1,0)+IF(AB75="r",1,0)+IF(AB92="r",1,0)+IF(AB109="r",1,0))/4 ->  | AC135: =(IF(#REF!="r",1,0)+IF(AC24="r",1,0)+IF(AC41="r",1,0)+IF(AC58="r",1,0)+IF(AC75="r",1,0)+IF(AC92="r",1,0)+IF(AC109="r",1,0))/4 ->  | AD135: =(IF(#REF!="r",1,0)+IF(AD24="r",1,0)+IF(AD41="r",1,0)+IF(AD58="r",1,0)+IF(AD75="r",1,0)+IF(AD92="r",1,0)+IF(AD109="r",1,0))/4 ->  | AE135: =(IF(#REF!="r",1,0)+IF(AE24="r",1,0)+IF(AE41="r",1,0)+IF(AE58="r",1,0)+IF(AE75="r",1,0)+IF(AE92="r",1,0)+IF(AE109="r",1,0))/4 ->  | AF135: =(IF(#REF!="r",1,0)+IF(AF24="r",1,0)+IF(AF41="r",1,0)+IF(AF58="r",1,0)+IF(AF75="r",1,0)+IF(AF92="r",1,0)+IF(AF109="r",1,0))/4 ->  | AG135: =(IF(#REF!="r",1,0)+IF(AG24="r",1,0)+IF(AG41="r",1,0)+IF(AG58="r",1,0)+IF(AG75="r",1,0)+IF(AG92="r",1,0)+IF(AG109="r",1,0))/4 ->  | AH135: =(IF(#REF!="r",1,0)+IF(AH24="r",1,0)+IF(AH41="r",1,0)+IF(AH58="r",1,0)+IF(AH75="r",1,0)+IF(AH92="r",1,0)+IF(AH109="r",1,0))/4 ->  | AI135: =(IF(#REF!="r",1,0)+IF(AI24="r",1,0)+IF(AI41="r",1,0)+IF(AI58="r",1,0)+IF(AI75="r",1,0)+IF(AI92="r",1,0)+IF(AI109="r",1,0))/4 ->  | AJ135: =(IF(#REF!="r",1,0)+IF(AJ24="r",1,0)+IF(AJ41="r",1,0)+IF(AJ58="r",1,0)+IF(AJ75="r",1,0)+IF(AJ92="r",1,0)+IF(AJ109="r",1,0))/4 ->  | AK135: =(IF(#REF!="r",1,0)+IF(AK24="r",1,0)+IF(AK41="r",1,0)+IF(AK58="r",1,0)+IF(AK75="r",1,0)+IF(AK92="r",1,0)+IF(AK109="r",1,0))/4 ->  | AL135: =(IF(#REF!="r",1,0)+IF(AL24="r",1,0)+IF(AL41="r",1,0)+IF(AL58="r",1,0)+IF(AL75="r",1,0)+IF(AL92="r",1,0)+IF(AL109="r",1,0))/4 ->  | AM135: =(IF(#REF!="r",1,0)+IF(AM24="r",1,0)+IF(AM41="r",1,0)+IF(AM58="r",1,0)+IF(AM75="r",1,0)+IF(AM92="r",1,0)+IF(AM109="r",1,0))/4 ->  | AN135: =(IF(#REF!="r",1,0)+IF(AN24="r",1,0)+IF(AN41="r",1,0)+IF(AN58="r",1,0)+IF(AN75="r",1,0)+IF(AN92="r",1,0)+IF(AN109="r",1,0))/4 ->  | AO135: =(IF(#REF!="r",1,0)+IF(AO24="r",1,0)+IF(AO41="r",1,0)+IF(AO58="r",1,0)+IF(AO75="r",1,0)+IF(AO92="r",1,0)+IF(AO109="r",1,0))/4 ->  | AP135: =(IF(#REF!="r",1,0)+IF(AP24="r",1,0)+IF(AP41="r",1,0)+IF(AP58="r",1,0)+IF(AP75="r",1,0)+IF(AP92="r",1,0)+IF(AP109="r",1,0))/4 ->  | AQ135: =(IF(#REF!="r",1,0)+IF(AQ24="r",1,0)+IF(AQ41="r",1,0)+IF(AQ58="r",1,0)+IF(AQ75="r",1,0)+IF(AQ92="r",1,0)+IF(AQ109="r",1,0))/4 ->  | AR135: =(IF(#REF!="r",1,0)+IF(AR24="r",1,0)+IF(AR41="r",1,0)+IF(AR58="r",1,0)+IF(AR75="r",1,0)+IF(AR92="r",1,0)+IF(AR109="r",1,0))/4 ->  | AS135: =(IF(#REF!="r",1,0)+IF(AS24="r",1,0)+IF(AS41="r",1,0)+IF(AS58="r",1,0)+IF(AS75="r",1,0)+IF(AS92="r",1,0)+IF(AS109="r",1,0))/4 ->  | AT135: =(IF(#REF!="r",1,0)+IF(AT24="r",1,0)+IF(AT41="r",1,0)+IF(AT58="r",1,0)+IF(AT75="r",1,0)+IF(AT92="r",1,0)+IF(AT109="r",1,0))/4 ->  | AU135: =(IF(#REF!="r",1,0)+IF(AU24="r",1,0)+IF(AU41="r",1,0)+IF(AU58="r",1,0)+IF(AU75="r",1,0)+IF(AU92="r",1,0)+IF(AU109="r",1,0))/4 ->  | AV135: =(IF(#REF!="r",1,0)+IF(AV24="r",1,0)+IF(AV41="r",1,0)+IF(AV58="r",1,0)+IF(AV75="r",1,0)+IF(AV92="r",1,0)+IF(AV109="r",1,0))/4 ->  | AW135: =(IF(#REF!="r",1,0)+IF(AW24="r",1,0)+IF(AW41="r",1,0)+IF(AW58="r",1,0)+IF(AW75="r",1,0)+IF(AW92="r",1,0)+IF(AW109="r",1,0))/4 ->  | AX135: =(IF(#REF!="r",1,0)+IF(AX24="r",1,0)+IF(AX41="r",1,0)+IF(AX58="r",1,0)+IF(AX75="r",1,0)+IF(AX92="r",1,0)+IF(AX109="r",1,0))/4 ->  | AY135: =(IF(#REF!="r",1,0)+IF(AY24="r",1,0)+IF(AY41="r",1,0)+IF(AY58="r",1,0)+IF(AY75="r",1,0)+IF(AY92="r",1,0)+IF(AY109="r",1,0))/4 ->  | AZ135: =(IF(#REF!="r",1,0)+IF(AZ24="r",1,0)+IF(AZ41="r",1,0)+IF(AZ58="r",1,0)+IF(AZ75="r",1,0)+IF(AZ92="r",1,0)+IF(AZ109="r",1,0))/4 ->  | BA135: =(IF(#REF!="r",1,0)+IF(BA24="r",1,0)+IF(BA41="r",1,0)+IF(BA58="r",1,0)+IF(BA75="r",1,0)+IF(BA92="r",1,0)+IF(BA109="r",1,0))/4 ->  | BB135: =(IF(#REF!="r",1,0)+IF(BB24="r",1,0)+IF(BB41="r",1,0)+IF(BB58="r",1,0)+IF(BB75="r",1,0)+IF(BB92="r",1,0)+IF(BB109="r",1,0))/4 ->  | BC135: =(IF(#REF!="r",1,0)+IF(BC24="r",1,0)+IF(BC41="r",1,0)+IF(BC58="r",1,0)+IF(BC75="r",1,0)+IF(BC92="r",1,0)+IF(BC109="r",1,0))/4 ->  | BD135: =(IF(#REF!="r",1,0)+IF(BD24="r",1,0)+IF(BD41="r",1,0)+IF(BD58="r",1,0)+IF(BD75="r",1,0)+IF(BD92="r",1,0)+IF(BD109="r",1,0))/4 ->  | BE135: =SUM(E135:BD135) ->  | BF135: =SUM(BE135+BE136) -> 
D136: DPH | E136: =(IF(E7="DPH",1,0)+IF(E24="DPH",1,0)+IF(E41="DPH",1,0)+IF(E58="DPH",1,0)+IF(E75="DPH",1,0)+IF(E92="DPH",1,0)+IF(E109="DPH",1,0))/4 -> 0.5 | F136: =(IF(F7="DPH",1,0)+IF(F24="DPH",1,0)+IF(F41="DPH",1,0)+IF(F58="DPH",1,0)+IF(F75="DPH",1,0)+IF(F92="DPH",1,0)+IF(F109="DPH",1,0))/4 -> 0.5 | G136: 0.5 | H136: 0.5 | I136: 1.25 | J136: 1.25 | K136: 1.25 | L136: 1.25 | M136: 1.5 | N136: 1.5 | O136: 1.5 | P136: 1.5 | Q136: 1.5 | R136: 1.5 | S136: 1.5 | T136: 1.5 | U136: 1.5 | V136: 1.5 | W136: 1.5 | X136: 1.5 | Y136: 1.25 | Z136: 1.25 | AA136: 1 | AB136: 0.75 | AC136: 0 | AD136: 0 | AE136: 0 | AF136: 0 | AG136: 0.25 | AH136: 0.25 | AI136: 0.5 | AJ136: 0.5 | AK136: 0.5 | AL136: 0.5 | AM136: 0.5 | AN136: 0.5 | AO136: 0.5 | AP136: 0.5 | AQ136: 0.5 | AR136: 0.5 | AS136: 0.5 | AT136: 0.5 | AU136: 0.5 | AV136: 0.25 | AW136: 0.25 | AX136: 0 | AY136: 0 | AZ136: 0 | BA136: 0 | BB136: 0 | BC136: 0 | BD136: 0 | BE136: =SUM(E136:BD136) -> 36.75
C137: =+C8 -> Thibaut | E137: =(IF(E8="r",1,0)+IF(E25="r",1,0)+IF(E42="r",1,0)+IF(E59="r",1,0)+IF(E76="r",1,0)+IF(E93="r",1,0)+IF(E110="r",1,0))/4 -> 0 | F137: 0 | G137: =(IF(G8="r",1,0)+IF(G25="r",1,0)+IF(G42="r",1,0)+IF(G59="r",1,0)+IF(G76="r",1,0)+IF(G93="r",1,0)+IF(G110="r",1,0))/4 -> 0 | H137: =(IF(H8="r",1,0)+IF(H25="r",1,0)+IF(H42="r",1,0)+IF(H59="r",1,0)+IF(H76="r",1,0)+IF(H93="r",1,0)+IF(H110="r",1,0))/4 -> 0 | I137: 0 | J137: 0 | K137: 0 | L137: 0 | M137: 0 | N137: 0 | O137: 0 | P137: 0 | Q137: 0 | R137: 0 | S137: 0 | T137: 0 | U137: 0 | V137: 0 | W137: 0 | X137: 0 | Y137: 0 | Z137: 0 | AA137: 0 | AB137: 0 | AC137: 0 | AD137: 0 | AE137: 0 | AF137: 0 | AG137: 0 | AH137: 0 | AI137: 0 | AJ137: 0 | AK137: 0 | AL137: 0 | AM137: 0 | AN137: 0 | AO137: 0 | AP137: 0 | AQ137: 0 | AR137: 0 | AS137: 0 | AT137: 0 | AU137: 0 | AV137: 0 | AW137: 0 | AX137: 0 | AY137: 0 | AZ137: 0 | BA137: 0 | BB137: 0 | BC137: 0 | BD137: 0 | BE137: 0 | BF137: =SUM(BE137+BE138) -> 36.75
D138: L | E138: =(IF(E8="L",1,0)+IF(E25="L",1,0)+IF(E42="L",1,0)+IF(E59="L",1,0)+IF(E76="L",1,0)+IF(E93="L",1,0)+IF(E110="L",1,0))/4 -> 0.75 | F138: =(IF(F8="L",1,0)+IF(F25="L",1,0)+IF(F42="L",1,0)+IF(F59="L",1,0)+IF(F76="L",1,0)+IF(F93="L",1,0)+IF(F110="L",1,0))/4 -> 0.75 | G138: 0.75 | H138: 0.75 | I138: 1.25 | J138: 1.25 | K138: 1.25 | L138: 1.25 | M138: 1.25 | N138: 1.25 | O138: 1.25 | P138: 1.25 | Q138: 1.25 | R138: 1.25 | S138: 1.25 | T138: 1.25 | U138: 1.25 | V138: 1.25 | W138: 1.25 | X138: 1.25 | Y138: 1 | Z138: 1 | AA138: 0.5 | AB138: 0.5 | AC138: 0.5 | AD138: 0.25 | AE138: 0.25 | AF138: 0.25 | AG138: 0.25 | AH138: 0.25 | AI138: 0.5 | AJ138: 0.5 | AK138: 0.5 | AL138: 0.5 | AM138: 0.5 | AN138: 0.5 | AO138: 0.5 | AP138: 0.5 | AQ138: 0.5 | AR138: 0.5 | AS138: 0.5 | AT138: 0.5 | AU138: 0.5 | AV138: 0.5 | AW138: 0.5 | AX138: 0.5 | AY138: 0.25 | AZ138: 0.25 | BA138: 0.25 | BB138: 0.25 | BC138: 0 | BD138: 0 | BE138: 36.75
C139: =+C9 -> Said | D139: L | E139: =(IF(E9="BCH",1,0)+IF(E26="BCH",1,0)+IF(E43="BCH",1,0)+IF(E60="BCH",1,0)+IF(E77="BCH",1,0)+IF(E94="BCH",1,0)+IF(E111="BCH",1,0))/4 -> 0 | F139: =(IF(F9="l",1,0)+IF(F26="l",1,0)+IF(F43="l",1,0)+IF(F60="l",1,0)+IF(F77="l",1,0)+IF(F94="l",1,0)+IF(F111="l",1,0))/4 -> 0 | G139: =(IF(G9="l",1,0)+IF(G26="l",1,0)+IF(G43="l",1,0)+IF(G60="l",1,0)+IF(G77="l",1,0)+IF(G94="l",1,0)+IF(G111="l",1,0))/4 -> 1.25 | H139: 1.25 | I139: 1.25 | J139: 1.25 | K139: 1.25 | L139: 1.25 | M139: 1.25 | N139: 1.25 | O139: 1.25 | P139: 1.25 | Q139: 1.25 | R139: 1.25 | S139: 1.25 | T139: 1.25 | U139: 1.25 | V139: 1.25 | W139: 1.25 | X139: 1.25 | Y139: 1.25 | Z139: 1.25 | AA139: 1.25 | AB139: 1.25 | AC139: 1 | AD139: 1 | AE139: 0.75 | AF139: 0.5 | AG139: 0.5 | AH139: 0.5 | AI139: 0.25 | AJ139: 0.25 | AK139: 0.25 | AL139: 0.25 | AM139: 0.25 | AN139: 0.25 | AO139: 0.25 | AP139: 0.25 | AQ139: 0.25 | AR139: 0.25 | AS139: 0.25 | AT139: 0.25 | AU139: 0.25 | AV139: 0.25 | AW139: 0.25 | AX139: 0.25 | AY139: 0.25 | AZ139: 0.25 | BA139: 0.25 | BB139: 0.25 | BC139: 0 | BD139: 0 | BE139: 36.75 | BF139: =SUM(BE139+BE140) -> 36.75
D140: BCH | E140: =(IF(E9="c",1,0)+IF(E26="c",1,0)+IF(E43="c",1,0)+IF(E60="c",1,0)+IF(E77="c",1,0)+IF(E94="c",1,0)+IF(E111="c",1,0))/4 -> 0 | F140: 0 | G140: =(IF(G9="c",1,0)+IF(G26="c",1,0)+IF(G43="c",1,0)+IF(G60="c",1,0)+IF(G77="c",1,0)+IF(G94="c",1,0)+IF(G111="c",1,0))/4 -> 0 | H140: =(IF(H9="c",1,0)+IF(H26="c",1,0)+IF(H43="c",1,0)+IF(H60="c",1,0)+IF(H77="c",1,0)+IF(H94="c",1,0)+IF(H111="c",1,0))/4 -> 0 | I140: 0 | J140: 0 | K140: 0 | L140: 0 | M140: 0 | N140: 0 | O140: 0 | P140: 0 | Q140: 0 | R140: 0 | S140: 0 | T140: 0 | U140: 0 | V140: 0 | W140: 0 | X140: 0 | Y140: 0 | Z140: 0 | AA140: 0 | AB140: 0 | AC140: 0 | AD140: 0 | AE140: 0 | AF140: 0 | AG140: 0 | AH140: 0 | AI140: 0 | AJ140: 0 | AK140: 0 | AL140: 0 | AM140: 0 | AN140: 0 | AO140: 0 | AP140: 0 | AQ140: 0 | AR140: 0 | AS140: 0 | AT140: 0 | AU140: 0 | AV140: 0 | AW140: 0 | AX140: 0 | AY140: 0 | AZ140: 0 | BA140: 0 | BB140: 0 | BC140: 0 | BD140: 0 | BE140: 0
C141: =+C10 -> Assiya | D141: F | E141: =(IF(E10="F",1,0)+IF(E27="F",1,0)+IF(E44="F",1,0)+IF(E61="F",1,0)+IF(E78="F",1,0)+IF(E95="F",1,0)+IF(E112="F",1,0))/4 -> 1.5 | F141: =(IF(F10="F",1,0)+IF(F27="F",1,0)+IF(F44="F",1,0)+IF(F61="F",1,0)+IF(F78="F",1,0)+IF(F95="F",1,0)+IF(F112="F",1,0))/4 -> 1.5 | G141: 1.5 | H141: 1.5 | I141: 1.5 | J141: 1.5 | K141: 1.5 | L141: 1.5 | M141: 1.5 | N141: 1.5 | O141: 1.5 | P141: 1.5 | Q141: 1.5 | R141: 1.5 | S141: 1.5 | T141: 1.5 | U141: 1.5 | V141: 1.5 | W141: 1.25 | X141: 1.25 | Y141: 1 | Z141: 0.75 | AA141: 0.75 | AB141: 0.5 | AC141: 0.5 | AD141: 0.25 | AE141: 0 | AF141: 0 | AG141: 0 | AH141: 0 | AI141: 0.25 | AJ141: 0.25 | AK141: 0.25 | AL141: 0.25 | AM141: 0.25 | AN141: 0.25 | AO141: 0.25 | AP141: 0.25 | AQ141: 0.25 | AR141: 0.25 | AS141: 0.25 | AT141: 0.25 | AU141: 0.25 | AV141: 0.25 | AW141: 0 | AX141: 0 | AY141: 0 | AZ141: 0 | BA141: 0 | BB141: 0 | BC141: 0 | BD141: 0 | BE141: =SUM(E141:BD141) -> 36.75 | BF141: =SUM(BE141+BE142) -> 36.75
D142: BCH | E142: =(IF(E10="c",1,0)+IF(E27="c",1,0)+IF(E44="c",1,0)+IF(E61="c",1,0)+IF(E78="c",1,0)+IF(E95="c",1,0)+IF(E112="c",1,0))/4 -> 0 | F142: 0 | G142: =(IF(G10="c",1,0)+IF(G27="c",1,0)+IF(G44="c",1,0)+IF(G61="c",1,0)+IF(G78="c",1,0)+IF(G95="c",1,0)+IF(G112="c",1,0))/4 -> 0 | H142: =(IF(H10="c",1,0)+IF(H27="c",1,0)+IF(H44="c",1,0)+IF(H61="c",1,0)+IF(H78="c",1,0)+IF(H95="c",1,0)+IF(H112="c",1,0))/4 -> 0 | I142: 0 | J142: 0 | K142: 0 | L142: 0 | M142: 0 | N142: 0 | O142: 0 | P142: 0 | Q142: 0 | R142: 0 | S142: 0 | T142: 0 | U142: 0 | V142: 0 | W142: 0 | X142: 0 | Y142: 0 | Z142: 0 | AA142: 0 | AB142: 0 | AC142: 0 | AD142: 0 | AE142: 0 | AF142: 0 | AG142: 0 | AH142: 0 | AI142: 0 | AJ142: 0 | AK142: 0 | AL142: 0 | AM142: 0 | AN142: 0 | AO142: 0 | AP142: 0 | AQ142: 0 | AR142: 0 | AS142: 0 | AT142: 0 | AU142: 0 | AV142: 0 | AW142: 0 | AX142: 0 | AY142: 0 | AZ142: 0 | BA142: 0 | BB142: 0 | BC142: 0 | BD142: 0 | BE142: 0
C143: =+C11 -> Francoise | D143: F | E143: =(IF(E11="F",1,0)+IF(E28="F",1,0)+IF(E45="F",1,0)+IF(E62="F",1,0)+IF(E79="F",1,0)+IF(E96="F",1,0)+IF(E113="F",1,0))/4 -> 0.25 | F143: =(IF(F11="F",1,0)+IF(F28="F",1,0)+IF(F45="F",1,0)+IF(F62="F",1,0)+IF(F79="F",1,0)+IF(F96="F",1,0)+IF(F113="F",1,0))/4 -> 1.5 | G143: 1.5 | H143: 1.5 | I143: 1.5 | J143: 1.5 | K143: 1.5 | L143: 1.5 | M143: 1.5 | N143: 1.5 | O143: 1.5 | P143: 1.5 | Q143: 1.5 | R143: 1.5 | S143: 1.5 | T143: 1.5 | U143: 1.5 | V143: 1.5 | W143: 1.5 | X143: 1.25 | Y143: 1.25 | Z143: 1.25 | AA143: 1 | AB143: 0.75 | AC143: 0.5 | AD143: 0 | AE143: 0 | AF143: 0 | AG143: 0 | AH143: 0 | AI143: 0.25 | AJ143: 0.25 | AK143: 0.25 | AL143: 0.25 | AM143: 0.25 | AN143: 0.25 | AO143: 0.25 | AP143: 0.25 | AQ143: 0.25 | AR143: 0.25 | AS143: 0.25 | AT143: 0.25 | AU143: 0.25 | AV143: 0.25 | AW143: 0 | AX143: 0 | AY143: 0 | AZ143: 0 | BA143: 0 | BB143: 0 | BC143: 0 | BD143: 0 | BE143: 36.75 | BF143: =SUM(BE143+BE144) -> 64.75
C144: =+C12 -> Vanessa | D144: D/MG | E144: =(IF(E12="D/MG",1,0)+IF(E29="D/MG",1,0)+IF(E46="D/MG",1,0)+IF(E63="D/MG",1,0)+IF(E80="D/MG",1,0)+IF(E97="D/MG",1,0)+IF(E114="D/MG",1,0))/4 -> 0 | F144: =(IF(F12="D/MG",1,0)+IF(F29="D/MG",1,0)+IF(F46="D/MG",1,0)+IF(F63="D/MG",1,0)+IF(F80="D/MG",1,0)+IF(F97="D/MG",1,0)+IF(F114="D/MG",1,0))/4 -> 0 | G144: 0 | H144: 0 | I144: 0.25 | J144: 0.25 | K144: 0.25 | L144: 0.25 | M144: 0.25 | N144: 0.25 | O144: 0.25 | P144: 0.25 | Q144: 1.25 | R144: 1.25 | S144: 1.25 | T144: 1.25 | U144: 1.25 | V144: 1.25 | W144: 1.25 | X144: 1.25 | Y144: 1.25 | Z144: 1.25 | AA144: 1.25 | AB144: 1.25 | AC144: 0.75 | AD144: 0.75 | AE144: 0.5 | AF144: 0.5 | AG144: 0.5 | AH144: 0.5 | AI144: 0.25 | AJ144: 0.25 | AK144: 0.75 | AL144: 0.75 | AM144: 0.75 | AN144: 0.5 | AO144: 0.5 | AP144: 0.5 | AQ144: 0.5 | AR144: 0.5 | AS144: 0.5 | AT144: 0.5 | AU144: 0.5 | AV144: 0.5 | AW144: 0.25 | AX144: 0 | AY144: 0 | AZ144: 0 | BA144: 0 | BB144: 0 | BC144: 0 | BD144: 0 | BE144: =+SUM(E144:BD144) -> 28
C145: =+C19 -> 0 | D145: R | G145: =(IF(G12="r",1,0)+IF(G29="r",1,0)+IF(G46="r",1,0)+IF(G63="r",1,0)+IF(G80="r",1,0)+IF(G97="r",1,0)+IF(G114="r",1,0))/4 -> 0 | H145: =(IF(H12="r",1,0)+IF(H29="r",1,0)+IF(H46="r",1,0)+IF(H63="r",1,0)+IF(H80="r",1,0)+IF(H97="r",1,0)+IF(H114="r",1,0))/4 -> 0 | I145: 0 | J145: 0 | K145: 0 | L145: 0 | M145: 0 | N145: 0 | O145: 0 | P145: 0 | Q145: 0 | R145: 0 | S145: 0 | T145: 0 | U145: 0 | V145: 0 | W145: 0 | X145: 0 | Y145: 0 | Z145: 0 | AA145: 0 | AB145: 0 | AC145: 0 | AD145: 0 | AE145: 0 | AF145: 0 | AG145: 0 | AH145: 0 | AI145: 0 | AJ145: 0 | AK145: 0 | AL145: 0 | AM145: 0 | AN145: 0 | AO145: 0 | AP145: 0 | AQ145: 0 | AR145: 0 | AS145: 0 | AT145: 0 | AU145: 0 | AV145: 0 | AW145: 0 | AX145: 0 | AY145: 0 | AZ145: 0 | BA145: 0 | BB145: 0 | BC145: 0 | BD145: 0 | BE145: 0 | BF145: =SUM(BE145+BE146) -> 0
D146: C | G146: =(IF(G12="c",1,0)+IF(G29="c",1,0)+IF(G46="c",1,0)+IF(G63="c",1,0)+IF(G80="c",1,0)+IF(G97="c",1,0)+IF(G114="c",1,0))/4 -> 0 | H146: =(IF(H12="c",1,0)+IF(H29="c",1,0)+IF(H46="c",1,0)+IF(H63="c",1,0)+IF(H80="c",1,0)+IF(H97="c",1,0)+IF(H114="c",1,0))/4 -> 0 | I146: 0 | J146: 0 | K146: 0 | L146: 0 | M146: 0 | N146: 0 | O146: 0 | P146: 0 | Q146: 0 | R146: 0 | S146: 0 | T146: 0 | U146: 0 | V146: 0 | W146: 0 | X146: 0 | Y146: 0 | Z146: 0 | AA146: 0 | AB146: 0 | AC146: 0 | AD146: 0 | AE146: 0 | AF146: 0 | AG146: 0 | AH146: 0 | AI146: 0 | AJ146: 0 | AK146: 0 | AL146: 0 | AM146: 0 | AN146: 0 | AO146: 0 | AP146: 0 | AQ146: 0 | AR146: 0 | AS146: 0 | AT146: 0 | AU146: 0 | AV146: 0 | AW146: 0 | AX146: 0 | AY146: 0 | AZ146: 0 | BA146: 0 | BB146: 0 | BC146: 0 | BD146: 0 | BE146: 0
C147: =+C21 -> Bertrand | D147: R | G147: =(IF(G13="r",1,0)+IF(G30="r",1,0)+IF(G47="r",1,0)+IF(G64="r",1,0)+IF(G81="r",1,0)+IF(G98="r",1,0)+IF(G115="r",1,0))/4 -> 0 | H147: =(IF(H13="r",1,0)+IF(H30="r",1,0)+IF(H47="r",1,0)+IF(H64="r",1,0)+IF(H81="r",1,0)+IF(H98="r",1,0)+IF(H115="r",1,0))/4 -> 0 | I147: 0 | J147: 0 | K147: 0 | L147: 0 | M147: 0 | N147: 0 | O147: 0 | P147: 0 | Q147: 0 | R147: 0 | S147: 0 | T147: 0 | U147: 0 | V147: 0 | W147: 0 | X147: 0 | Y147: 0 | Z147: 0 | AA147: 0 | AB147: 0 | AC147: 0 | AD147: 0 | AE147: 0 | AF147: 0 | AG147: 0 | AH147: 0 | AI147: 0 | AJ147: 0 | AK147: 0 | AL147: 0 | AM147: 0 | AN147: 0 | AO147: 0 | AP147: 0 | AQ147: 0 | AR147: 0 | AS147: 0 | AT147: 0 | AU147: 0 | AV147: 0 | AW147: 0 | AX147: 0 | AY147: 0 | AZ147: 0 | BA147: 0 | BB147: 0 | BC147: 0 | BD147: 0 | BE147: 0 | BF147: =SUM(BE147+BE148) -> 0
D148: C | G148: =(IF(G13="c",1,0)+IF(G30="c",1,0)+IF(G47="c",1,0)+IF(G64="c",1,0)+IF(G81="c",1,0)+IF(G98="c",1,0)+IF(G115="c",1,0))/4 -> 0 | H148: =(IF(H13="c",1,0)+IF(H30="c",1,0)+IF(H47="c",1,0)+IF(H64="c",1,0)+IF(H81="c",1,0)+IF(H98="c",1,0)+IF(H115="c",1,0))/4 -> 0 | I148: 0 | J148: 0 | K148: 0 | L148: 0 | M148: 0 | N148: 0 | O148: 0 | P148: 0 | Q148: 0 | R148: 0 | S148: 0 | T148: 0 | U148: 0 | V148: 0 | W148: 0 | X148: 0 | Y148: 0 | Z148: 0 | AA148: 0 | AB148: 0 | AC148: 0 | AD148: 0 | AE148: 0 | AF148: 0 | AG148: 0 | AH148: 0 | AI148: 0 | AJ148: 0 | AK148: 0 | AL148: 0 | AM148: 0 | AN148: 0 | AO148: 0 | AP148: 0 | AQ148: 0 | AR148: 0 | AS148: 0 | AT148: 0 | AU148: 0 | AV148: 0 | AW148: 0 | AX148: 0 | AY148: 0 | AZ148: 0 | BA148: 0 | BB148: 0 | BC148: 0 | BD148: 0 | BE148: 0
C149: =+C116 -> 0 | D149: R | G149: =(IF(G14="r",1,0)+IF(G31="r",1,0)+IF(G48="r",1,0)+IF(G65="r",1,0)+IF(G82="r",1,0)+IF(G99="r",1,0)+IF(G116="r",1,0))/4 -> 0 | H149: =(IF(H14="r",1,0)+IF(H31="r",1,0)+IF(H48="r",1,0)+IF(H65="r",1,0)+IF(H82="r",1,0)+IF(H99="r",1,0)+IF(H116="r",1,0))/4 -> 0 | I149: 0 | J149: 0 | K149: 0 | L149: 0 | M149: 0 | N149: 0 | O149: 0 | P149: 0 | Q149: 0 | R149: 0 | S149: 0 | T149: 0 | U149: 0 | V149: 0 | W149: 0 | X149: 0 | Y149: 0 | Z149: 0 | AA149: 0 | AB149: 0 | AC149: 0 | AD149: 0 | AE149: 0 | AF149: 0 | AG149: 0 | AH149: 0 | AI149: 0 | AJ149: 0 | AK149: 0 | AL149: 0 | AM149: 0 | AN149: 0 | AO149: 0 | AP149: 0 | AQ149: 0 | AR149: 0 | AS149: 0 | AT149: 0 | AU149: 0 | AV149: 0 | AW149: 0 | AX149: 0 | AY149: 0 | AZ149: 0 | BA149: 0 | BB149: 0 | BC149: 0 | BD149: 0 | BE149: 0 | BF149: =SUM(BE149+BE150) -> 0
D150: C | G150: =(IF(G14="c",1,0)+IF(G31="c",1,0)+IF(G48="c",1,0)+IF(G65="c",1,0)+IF(G82="c",1,0)+IF(G99="c",1,0)+IF(G116="c",1,0))/4 -> 0 | H150: =(IF(H14="c",1,0)+IF(H31="c",1,0)+IF(H48="c",1,0)+IF(H65="c",1,0)+IF(H82="c",1,0)+IF(H99="c",1,0)+IF(H116="c",1,0))/4 -> 0 | I150: 0 | J150: 0 | K150: 0 | L150: 0 | M150: 0 | N150: 0 | O150: 0 | P150: 0 | Q150: 0 | R150: 0 | S150: 0 | T150: 0 | U150: 0 | V150: 0 | W150: 0 | X150: 0 | Y150: 0 | Z150: 0 | AA150: 0 | AB150: 0 | AC150: 0 | AD150: 0 | AE150: 0 | AF150: 0 | AG150: 0 | AH150: 0 | AI150: 0 | AJ150: 0 | AK150: 0 | AL150: 0 | AM150: 0 | AN150: 0 | AO150: 0 | AP150: 0 | AQ150: 0 | AR150: 0 | AS150: 0 | AT150: 0 | AU150: 0 | AV150: 0 | AW150: 0 | AX150: 0 | AY150: 0 | AZ150: 0 | BA150: 0 | BB150: 0 | BC150: 0 | BD150: 0 | BE150: 0
C151: =+C117 -> 0 | D151: R | G151: =(IF(G15="r",1,0)+IF(G32="r",1,0)+IF(G49="r",1,0)+IF(G66="r",1,0)+IF(G83="r",1,0)+IF(G100="r",1,0)+IF(G117="r",1,0))/4 -> 0 | H151: =(IF(H15="r",1,0)+IF(H32="r",1,0)+IF(H49="r",1,0)+IF(H66="r",1,0)+IF(H83="r",1,0)+IF(H100="r",1,0)+IF(H117="r",1,0))/4 -> 0 | I151: 0 | J151: 0 | K151: 0 | L151: 0 | M151: 0 | N151: 0 | O151: 0 | P151: 0 | Q151: 0 | R151: 0 | S151: 0 | T151: 0 | U151: 0 | V151: 0 | W151: 0 | X151: 0 | Y151: 0 | Z151: 0 | AA151: 0 | AB151: 0 | AC151: 0 | AD151: 0 | AE151: 0 | AF151: 0 | AG151: 0 | AH151: 0 | AI151: 0 | AJ151: 0 | AK151: 0 | AL151: 0 | AM151: 0 | AN151: 0 | AO151: 0 | AP151: 0 | AQ151: 0 | AR151: 0 | AS151: 0 | AT151: 0 | AU151: 0 | AV151: 0 | AW151: 0 | AX151: 0 | AY151: 0 | AZ151: 0 | BA151: 0 | BB151: 0 | BC151: 0 | BD151: 0 | BE151: 0 | BF151: =SUM(BE151+BE152) -> 0
D152: C | G152: =(IF(G15="c",1,0)+IF(G32="c",1,0)+IF(G49="c",1,0)+IF(G66="c",1,0)+IF(G83="c",1,0)+IF(G100="c",1,0)+IF(G117="c",1,0))/4 -> 0 | H152: =(IF(H15="c",1,0)+IF(H32="c",1,0)+IF(H49="c",1,0)+IF(H66="c",1,0)+IF(H83="c",1,0)+IF(H100="c",1,0)+IF(H117="c",1,0))/4 -> 0 | I152: 0 | J152: 0 | K152: 0 | L152: 0 | M152: 0 | N152: 0 | O152: 0 | P152: 0 | Q152: 0 | R152: 0 | S152: 0 | T152: 0 | U152: 0 | V152: 0 | W152: 0 | X152: 0 | Y152: 0 | Z152: 0 | AA152: 0 | AB152: 0 | AC152: 0 | AD152: 0 | AE152: 0 | AF152: 0 | AG152: 0 | AH152: 0 | AI152: 0 | AJ152: 0 | AK152: 0 | AL152: 0 | AM152: 0 | AN152: 0 | AO152: 0 | AP152: 0 | AQ152: 0 | AR152: 0 | AS152: 0 | AT152: 0 | AU152: 0 | AV152: 0 | AW152: 0 | AX152: 0 | AY152: 0 | AZ152: 0 | BA152: 0 | BB152: 0 | BC152: 0 | BD152: 0 | BE152: 0
C153: =+C118 -> 0 | D153: R | G153: =(IF(G16="r",1,0)+IF(G33="r",1,0)+IF(G50="r",1,0)+IF(G67="r",1,0)+IF(G84="r",1,0)+IF(G101="r",1,0)+IF(G118="r",1,0))/4 -> 0 | H153: =(IF(H16="r",1,0)+IF(H33="r",1,0)+IF(H50="r",1,0)+IF(H67="r",1,0)+IF(H84="r",1,0)+IF(H101="r",1,0)+IF(H118="r",1,0))/4 -> 0 | I153: 0 | J153: 0 | K153: 0 | L153: 0 | M153: 0 | N153: 0 | O153: 0 | P153: 0 | Q153: 0 | R153: 0 | S153: 0 | T153: 0 | U153: 0 | V153: 0 | W153: 0 | X153: 0 | Y153: 0 | Z153: 0 | AA153: 0 | AB153: 0 | AC153: 0 | AD153: 0 | AE153: 0 | AF153: 0 | AG153: 0 | AH153: 0 | AI153: 0 | AJ153: 0 | AK153: 0 | AL153: 0 | AM153: 0 | AN153: 0 | AO153: 0 | AP153: 0 | AQ153: 0 | AR153: 0 | AS153: 0 | AT153: 0 | AU153: 0 | AV153: 0 | AW153: 0 | AX153: 0 | AY153: 0 | AZ153: 0 | BA153: 0 | BB153: 0 | BC153: 0 | BD153: 0 | BE153: 0 | BF153: 0
D154: C | G154: =(IF(G16="c",1,0)+IF(G33="c",1,0)+IF(G50="c",1,0)+IF(G67="c",1,0)+IF(G84="c",1,0)+IF(G101="c",1,0)+IF(G118="c",1,0))/4 -> 0 | H154: =(IF(H16="c",1,0)+IF(H33="c",1,0)+IF(H50="c",1,0)+IF(H67="c",1,0)+IF(H84="c",1,0)+IF(H101="c",1,0)+IF(H118="c",1,0))/4 -> 0 | I154: 0 | J154: 0 | K154: 0 | L154: 0 | M154: 0 | N154: 0 | O154: 0 | P154: 0 | Q154: 0 | R154: 0 | S154: 0 | T154: 0 | U154: 0 | V154: 0 | W154: 0 | X154: 0 | Y154: 0 | Z154: 0 | AA154: 0 | AB154: 0 | AC154: 0 | AD154: 0 | AE154: 0 | AF154: 0 | AG154: 0 | AH154: 0 | AI154: 0 | AJ154: 0 | AK154: 0 | AL154: 0 | AM154: 0 | AN154: 0 | AO154: 0 | AP154: 0 | AQ154: 0 | AR154: 0 | AS154: 0 | AT154: 0 | AU154: 0 | AV154: 0 | AW154: 0 | AX154: 0 | AY154: 0 | AZ154: 0 | BA154: 0 | BB154: 0 | BC154: 0 | BD154: 0 | BE154: 0
C155: SOUS-TOTAL | D155: R | G155: =G127+G129+G131+G133+G135+G137+G139+G141+G143+G145+G147+G151+G153 ->  | H155: =H127+H129+H131+H133+H135+H137+H139+H141+H143+H145+H147+H151+H153 -> 
D156: C | G156: =G128+G130+G132+G134+G136+G138+G140+G142+G144+G146+G148+G152+G150+G154 -> 2.75 | H156: =H128+H130+H132+H134+H136+H138+H140+H142+H144+H146+H148+H152+H150+H154 -> 2.75 | I156: 5.25 | J156: 5.25 | K156: 5.25 | L156: 5.25 | M156: 5.5 | N156: 5.5 | O156: 5.5 | P156: 5.5 | Q156: 7.25 | R156: 7.25 | S156: 7.25 | T156: 7.25 | U156: 7.25 | V156: 7.25 | W156: 7.25 | X156: 7.25 | Y156: 6.75 | Z156: 6.75 | AA156: 5.5 | AB156: 4.75 | AC156: 2.5 | AD156: 2.25 | AE156: 2 | AF156: 2 | AG156: 2.25 | AH156: 2.25 | AI156: 2.25 | AJ156: 2.25 | AK156: 3.25 | AL156: 3.25 | AM156: 3.25 | AN156: 3 | AO156: 3 | AP156: 3 | AQ156: 3 | AR156: 3 | AS156: 3 | AT156: 3 | AU156: 3 | AV156: 2.75 | AW156: 2 | AX156: 1.5 | AY156: 0.75 | AZ156: 0.75 | BA156: 0.75 | BB156: 0.75 | BC156: 0 | BD156: 0 | BE156: 191
C157: TOTAL | E157: =SUM(E127:E147) ->  | F157: =+F155+F156 -> 0 | G157: =SUM(G127:G144) ->  | H157: =+H155+H156 ->  | BE157: =SUM(G157:BD157) -> 
AP160: =6.5+5.5+6.5+7.75+6.5+6.5 -> 39.25

Sheet horaires employés
B1: Horaires employés semaine paire (sans samedi pm)
B2: LUNDI | G2: MARDI | L2: MERCREDI | Q2: JEUDI | V2: VENDREDI | AA2: SAMEDI | AF2: DIMANCHE
A3: Assiya | B3: =IFERROR(HLOOKUP("z^z",OFFSET('semaine paire (sans samedi pm)'!$B$1, MATCH($A3,OFFSET('semaine paire (sans samedi pm)'!$B$1,MATCH(B$2,'semaine paire (sans samedi pm)'!$B$1:$B$120,0)-1,1,12,1),0)-1+MATCH(B$2,'semaine paire (sans samedi pm)'!$B$1:$B$120,0)-1,3,1,52),1,1),"") -> F | C3: =IFERROR(OFFSET('semaine paire (sans samedi pm)'!$D$2,,MATCH(B3,OFFSET('semaine paire (sans samedi pm)'!$B$1, MATCH($A3,OFFSET('semaine paire (sans samedi pm)'!$B$1,MATCH(B$2,'semaine paire (sans samedi pm)'!$B$1:$B$120,0)-1,1,12,1),0)-1+MATCH(B$2,'semaine paire (sans samedi pm)'!$B$1:$B$120,0)-1,3,1,52),0)),"") -> 6h30-6h45 | D3: =IF(C3<>"",VALUE(SUBSTITUTE(LEFT(C3,FIND("-",C3)-1),"h",":")),"") -> 06:30:00 | E3: =IFERROR(OFFSET('semaine paire (sans samedi pm)'!$D$2,,MATCH("z^z",OFFSET('semaine paire (sans samedi pm)'!$B$1, MATCH($A3,OFFSET('semaine paire (sans samedi pm)'!$B$1,MATCH(B$2,'semaine paire (sans samedi pm)'!$B$1:$B$120,0)-1,1,12,1),0)-1+MATCH(B$2,'semaine paire (sans samedi pm)'!$B$1:$B$120,0)-1,3,1,52), 1)),"") -> 12h30-12H45 | F3: =IF(E3<>"",VALUE(SUBSTITUTE(MID(E3,FIND("-",E3)+1,10),"H",":")),"") -> 12:45:00 | G3: =IFERROR(HLOOKUP("z^z",OFFSET('semaine paire (sans samedi pm)'!$B$1, MATCH($A3,OFFSET('semaine paire (sans samedi pm)'!$B$1,MATCH(G$2,'semaine paire (sans samedi pm)'!$B$1:$B$120,0)-1,1,12,1),0)-1+MATCH(G$2,'semaine paire (sans samedi pm)'!$B$1:$B$120,0)-1,3,1,52),1,1),"") -> F | H3: =IFERROR(OFFSET('semaine paire (sans samedi pm)'!$D$2,,MATCH(G3,OFFSET('semaine paire (sans samedi pm)'!$B$1, MATCH($A3,OFFSET('semaine paire (sans samedi pm)'!$B$1,MATCH(G$2,'semaine paire (sans samedi pm)'!$B$1:$B$120,0)-1,1,12,1),0)-1+MATCH(G$2,'semaine paire (sans samedi pm)'!$B$1:$B$120,0)-1,3,1,52),0)),"") -> 6h30-6h45 | I3: =IF(H3<>"",LEFT(H3,FIND("-",H3)-1),"") -> 6h30 | J3: =IFERROR(OFFSET('semaine paire (sans samedi pm)'!$D$2,,MATCH("z^z",OFFSET('semaine paire (sans samedi pm)'!$B$1, MATCH($A3,OFFSET('semaine paire (sans samedi pm)'!$B$1,MATCH(G$2,'semaine paire (sans samedi pm)'!$B$1:$B$120,0)-1,1,12,1),0)-1+MATCH(G$2,'semaine paire (sans samedi pm)'!$B$1:$B$120,0)-1,3,1,52), 1)),"") -> 11h45-12H | K3: =IF(J3<>"",MID(J3,FIND("-",J3)+1,10),"") -> 12H | L3: =IFERROR(HLOOKUP("z^z",OFFSET('semaine paire (sans samedi pm)'!$B$1, MATCH($A3,OFFSET('semaine paire (sans samedi pm)'!$B$1,MATCH(L$2,'semaine paire (sans samedi pm)'!$B$1:$B$120,0)-1,1,12,1),0)-1+MATCH(L$2,'semaine paire (sans samedi pm)'!$B$1:$B$120,0)-1,3,1,52),1,1),"") -> F | M3: =IFERROR(OFFSET('semaine paire (sans samedi pm)'!$D$2,,MATCH(L3,OFFSET('semaine paire (sans samedi pm)'!$B$1, MATCH($A3,OFFSET('semaine paire (sans samedi pm)'!$B$1,MATCH(L$2,'semaine paire (sans samedi pm)'!$B$1:$B$120,0)-1,1,12,1),0)-1+MATCH(L$2,'semaine paire (sans samedi pm)'!$B$1:$B$120,0)-1,3,1,52),0)),"") -> 6h30-6h45 | N3: =IF(M3<>"",LEFT(M3,FIND("-",M3)-1),"") -> 6h30 | O3: =IFERROR(OFFSET('semaine paire (sans samedi pm)'!$D$2,,MATCH("z^z",OFFSET('semaine paire (sans samedi pm)'!$B$1, MATCH($A3,OFFSET('semaine paire (sans samedi pm)'!$B$1,MATCH(L$2,'semaine paire (sans samedi pm)'!$B$1:$B$120,0)-1,1,12,1),0)-1+MATCH(L$2,'semaine paire (sans samedi pm)'!$B$1:$B$120,0)-1,3,1,52), 1)),"") -> 11h15-11H30 | P3: =IF(O3<>"",MID(O3,FIND("-",O3)+1,10),"") -> 11H30 | Q3: =IFERROR(HLOOKUP("z^z",OFFSET('semaine paire (sans samedi pm)'!$B$1, MATCH($A3,OFFSET('semaine paire (sans samedi pm)'!$B$1,MATCH(Q$2,'semaine paire (sans samedi pm)'!$B$1:$B$120,0)-1,1,12,1),0)-1+MATCH(Q$2,'semaine paire (sans samedi pm)'!$B$1:$B$120,0)-1,3,1,52),1,1),"") -> F | R3: =IFERROR(OFFSET('semaine paire (sans samedi pm)'!$D$2,,MATCH(Q3,OFFSET('semaine paire (sans samedi pm)'!$B$1, MATCH($A3,OFFSET('semaine paire (sans samedi pm)'!$B$1,MATCH(Q$2,'semaine paire (sans samedi pm)'!$B$1:$B$120,0)-1,1,12,1),0)-1+MATCH(Q$2,'semaine paire (sans samedi pm)'!$B$1:$B$120,0)-1,3,1,52),0)),"") -> 6h30-6h45 | S3: =IF(R3<>"",LEFT(R3,FIND("-",R3)-1),"") -> 6h30 | T3: =IFERROR(OFFSET('semaine paire (sans samedi pm)'!$D$2,,MATCH("z^z",OFFSET('semaine paire (sans samedi pm)'!$B$1, MATCH($A3,OFFSET('semaine paire (sans samedi pm)'!$B$1,MATCH(Q$2,'semaine paire (sans samedi pm)'!$B$1:$B$120,0)-1,1,12,1),0)-1+MATCH(Q$2,'semaine paire (sans samedi pm)'!$B$1:$B$120,0)-1,3,1,52), 1)),"") -> 12h45-13H | U3: =IF(T3<>"",MID(T3,FIND("-",T3)+1,10),"") -> 13H | V3: =IFERROR(HLOOKUP("z^z",OFFSET('semaine paire (sans samedi pm)'!$B$1, MATCH($A3,OFFSET('semaine paire (sans samedi pm)'!$B$1,MATCH(V$2,'semaine paire (sans samedi pm)'!$B$1:$B$120,0)-1,1,12,1),0)-1+MATCH(V$2,'semaine paire (sans samedi pm)'!$B$1:$B$120,0)-1,3,1,52),1,1),"") -> F | W3: =IFERROR(OFFSET('semaine paire (sans samedi pm)'!$D$2,,MATCH(V3,OFFSET('semaine paire (sans samedi pm)'!$B$1, MATCH($A3,OFFSET('semaine paire (sans samedi pm)'!$B$1,MATCH(V$2,'semaine paire (sans samedi pm)'!$B$1:$B$120,0)-1,1,12,1),0)-1+MATCH(V$2,'semaine paire (sans samedi pm)'!$B$1:$B$120,0)-1,3,1,52),0)),"") -> 6h30-6h45 | X3: =IF(W3<>"",LEFT(W3,FIND("-",W3)-1),"") -> 6h30 | Y3: =IFERROR(OFFSET('semaine paire (sans samedi pm)'!$D$2,,MATCH("z^z",OFFSET('semaine paire (sans samedi pm)'!$B$1, MATCH($A3,OFFSET('semaine paire (sans samedi pm)'!$B$1,MATCH(V$2,'semaine paire (sans samedi pm)'!$B$1:$B$120,0)-1,1,12,1),0)-1+MATCH(V$2,'semaine paire (sans samedi pm)'!$B$1:$B$120,0)-1,3,1,52), 1)),"") -> 16h45-17h | Z3: =IF(Y3<>"",MID(Y3,FIND("-",Y3)+1,10),"") -> 17h | AA3: =IFERROR(HLOOKUP("z^z",OFFSET('semaine paire (sans samedi pm)'!$B$1, MATCH($A3,OFFSET('semaine paire (sans samedi pm)'!$B$1,MATCH(AA$2,'semaine paire (sans samedi pm)'!$B$1:$B$120,0)-1,1,12,1),0)-1+MATCH(AA$2,'semaine paire (sans samedi pm)'!$B$1:$B$120,0)-1,3,1,52),1,1),"") -> F | AB3: =IFERROR(OFFSET('semaine paire (sans samedi pm)'!$D$2,,MATCH(AA3,OFFSET('semaine paire (sans samedi pm)'!$B$1, MATCH($A3,OFFSET('semaine paire (sans samedi pm)'!$B$1,MATCH(AA$2,'semaine paire (sans samedi pm)'!$B$1:$B$120,0)-1,1,12,1),0)-1+MATCH(AA$2,'semaine paire (sans samedi pm)'!$B$1:$B$120,0)-1,3,1,52),0)),"") -> 6h30-6h45 | AC3: =IF(AB3<>"",LEFT(AB3,FIND("-",AB3)-1),"") -> 6h30 | AD3: =IFERROR(OFFSET('semaine paire (sans samedi pm)'!$D$2,,MATCH("z^z",OFFSET('semaine paire (sans samedi pm)'!$B$1, MATCH($A3,OFFSET('semaine paire (sans samedi pm)'!$B$1,MATCH(AA$2,'semaine paire (sans samedi pm)'!$B$1:$B$120,0)-1,1,12,1),0)-1+MATCH(AA$2,'semaine paire (sans samedi pm)'!$B$1:$B$120,0)-1,3,1,52), 1)),"") -> 12h15-12H30 | AE3: =IF(AD3<>"",MID(AD3,FIND("-",AD3)+1,10),"") -> 12H30 | AF3: =IFERROR(HLOOKUP("z^z",OFFSET('semaine paire (sans samedi pm)'!$B$1, MATCH($A3,OFFSET('semaine paire (sans samedi pm)'!$B$1,MATCH(AF$2,'semaine paire (sans samedi pm)'!$B$1:$B$120,0)-1,1,12,1),0)-1+MATCH(AF$2,'semaine paire (sans samedi pm)'!$B$1:$B$120,0)-1,3,1,52),1,1),"") ->  | AG3: =IFERROR(OFFSET('semaine paire (sans samedi pm)'!$D$2,,MATCH(AF3,OFFSET('semaine paire (sans samedi pm)'!$B$1, MATCH($A3,OFFSET('semaine paire (sans samedi pm)'!$B$1,MATCH(AF$2,'semaine paire (sans samedi pm)'!$B$1:$B$120,0)-1,1,12,1),0)-1+MATCH(AF$2,'semaine paire (sans samedi pm)'!$B$1:$B$120,0)-1,3,1,52),0)),"") ->  | AH3: =IF(AG3<>"",LEFT(AG3,FIND("-",AG3)-1),"") ->  | AI3: =IFERROR(OFFSET('semaine paire (sans samedi pm)'!$D$2,,MATCH("z^z",OFFSET('semaine paire (sans samedi pm)'!$B$1, MATCH($A3,OFFSET('semaine paire (sans samedi pm)'!$B$1,MATCH(AF$2,'semaine paire (sans samedi pm)'!$B$1:$B$120,0)-1,1,12,1),0)-1+MATCH(AF$2,'semaine paire (sans samedi pm)'!$B$1:$B$120,0)-1,3,1,52), 1)),"") ->  | AJ3: =IF(AI3<>"",MID(AI3,FIND("-",AI3)+1,10),"") -> 
A4: Aurore | B4: =IFERROR(HLOOKUP("z^z",OFFSET('semaine paire (sans samedi pm)'!$B$1, MATCH($A4,OFFSET('semaine paire (sans samedi pm)'!$B$1,MATCH(B$2,'semaine paire (sans samedi pm)'!$B$1:$B$120,0)-1,1,12,1),0)-1+MATCH(B$2,'semaine paire (sans samedi pm)'!$B$1:$B$120,0)-1,3,1,52),1,1),"") -> S | C4: =IFERROR(OFFSET('semaine paire (sans samedi pm)'!$D$2,,MATCH(B4,OFFSET('semaine paire (sans samedi pm)'!$B$1, MATCH($A4,OFFSET('semaine paire (sans samedi pm)'!$B$1,MATCH(B$2,'semaine paire (sans samedi pm)'!$B$1:$B$120,0)-1,1,12,1),0)-1+MATCH(B$2,'semaine paire (sans samedi pm)'!$B$1:$B$120,0)-1,3,1,52),0)),"") -> 7h-7h15 | D4: =IF(C4<>"",VALUE(SUBSTITUTE(LEFT(C4,FIND("-",C4)-1),"h",":")),"") -> 07:00:00 | E4: =IFERROR(OFFSET('semaine paire (sans samedi pm)'!$D$2,,MATCH("z^z",OFFSET('semaine paire (sans samedi pm)'!$B$1, MATCH($A4,OFFSET('semaine paire (sans samedi pm)'!$B$1,MATCH(B$2,'semaine paire (sans samedi pm)'!$B$1:$B$120,0)-1,1,12,1),0)-1+MATCH(B$2,'semaine paire (sans samedi pm)'!$B$1:$B$120,0)-1,3,1,52), 1)),"") -> 12h45-13H | F4: =IF(E4<>"",VALUE(SUBSTITUTE(MID(E4,FIND("-",E4)+1,10),"H",":")),"") -> 13:00:00 | G4: =IFERROR(HLOOKUP("z^z",OFFSET('semaine paire (sans samedi pm)'!$B$1, MATCH($A4,OFFSET('semaine paire (sans samedi pm)'!$B$1,MATCH(G$2,'semaine paire (sans samedi pm)'!$B$1:$B$120,0)-1,1,12,1),0)-1+MATCH(G$2,'semaine paire (sans samedi pm)'!$B$1:$B$120,0)-1,3,1,52),1,1),"") -> S | H4: =IFERROR(OFFSET('semaine paire (sans samedi pm)'!$D$2,,MATCH(G4,OFFSET('semaine paire (sans samedi pm)'!$B$1, MATCH($A4,OFFSET('semaine paire (sans samedi pm)'!$B$1,MATCH(G$2,'semaine paire (sans samedi pm)'!$B$1:$B$120,0)-1,1,12,1),0)-1+MATCH(G$2,'semaine paire (sans samedi pm)'!$B$1:$B$120,0)-1,3,1,52),0)),"") -> 7h-7h15 | I4: =IF(H4<>"",LEFT(H4,FIND("-",H4)-1),"") -> 7h | J4: =IFERROR(OFFSET('semaine paire (sans samedi pm)'!$D$2,,MATCH("z^z",OFFSET('semaine paire (sans samedi pm)'!$B$1, MATCH($A4,OFFSET('semaine paire (sans samedi pm)'!$B$1,MATCH(G$2,'semaine paire (sans samedi pm)'!$B$1:$B$120,0)-1,1,12,1),0)-1+MATCH(G$2,'semaine paire (sans samedi pm)'!$B$1:$B$120,0)-1,3,1,52), 1)),"") -> 11h45-12H | K4: =IF(J4<>"",MID(J4,FIND("-",J4)+1,10),"") -> 12H | L4: =IFERROR(HLOOKUP("z^z",OFFSET('semaine paire (sans samedi pm)'!$B$1, MATCH($A4,OFFSET('semaine paire (sans samedi pm)'!$B$1,MATCH(L$2,'semaine paire (sans samedi pm)'!$B$1:$B$120,0)-1,1,12,1),0)-1+MATCH(L$2,'semaine paire (sans samedi pm)'!$B$1:$B$120,0)-1,3,1,52),1,1),"") -> S | M4: =IFERROR(OFFSET('semaine paire (sans samedi pm)'!$D$2,,MATCH(L4,OFFSET('semaine paire (sans samedi pm)'!$B$1, MATCH($A4,OFFSET('semaine paire (sans samedi pm)'!$B$1,MATCH(L$2,'semaine paire (sans samedi pm)'!$B$1:$B$120,0)-1,1,12,1),0)-1+MATCH(L$2,'semaine paire (sans samedi pm)'!$B$1:$B$120,0)-1,3,1,52),0)),"") -> 7h-7h15 | N4: =IF(M4<>"",LEFT(M4,FIND("-",M4)-1),"") -> 7h | O4: =IFERROR(OFFSET('semaine paire (sans samedi pm)'!$D$2,,MATCH("z^z",OFFSET('semaine paire (sans samedi pm)'!$B$1, MATCH($A4,OFFSET('semaine paire (sans samedi pm)'!$B$1,MATCH(L$2,'semaine paire (sans samedi pm)'!$B$1:$B$120,0)-1,1,12,1),0)-1+MATCH(L$2,'semaine paire (sans samedi pm)'!$B$1:$B$120,0)-1,3,1,52), 1)),"") -> 9h45-10H | P4: =IF(O4<>"",MID(O4,FIND("-",O4)+1,10),"") -> 10H | Q4: =IFERROR(HLOOKUP("z^z",OFFSET('semaine paire (sans samedi pm)'!$B$1, MATCH($A4,OFFSET('semaine paire (sans samedi pm)'!$B$1,MATCH(Q$2,'semaine paire (sans samedi pm)'!$B$1:$B$120,0)-1,1,12,1),0)-1+MATCH(Q$2,'semaine paire (sans samedi pm)'!$B$1:$B$120,0)-1,3,1,52),1,1),"") -> S | R4: =IFERROR(OFFSET('semaine paire (sans samedi pm)'!$D$2,,MATCH(Q4,OFFSET('semaine paire (sans samedi pm)'!$B$1, MATCH($A4,OFFSET('semaine paire (sans samedi pm)'!$B$1,MATCH(Q$2,'semaine paire (sans samedi pm)'!$B$1:$B$120,0)-1,1,12,1),0)-1+MATCH(Q$2,'semaine paire (sans samedi pm)'!$B$1:$B$120,0)-1,3,1,52),0)),"") -> 7h-7h15 | S4: =IF(R4<>"",LEFT(R4,FIND("-",R4)-1),"") -> 7h | T4: =IFERROR(OFFSET('semaine paire (sans samedi pm)'!$D$2,,MATCH("z^z",OFFSET('semaine paire (sans samedi pm)'!$B$1, MATCH($A4,OFFSET('semaine paire (sans samedi pm)'!$B$1,MATCH(Q$2,'semaine paire (sans samedi pm)'!$B$1:$B$120,0)-1,1,12,1),0)-1+MATCH(Q$2,'semaine paire (sans samedi pm)'!$B$1:$B$120,0)-1,3,1,52), 1)),"") -> 12h45-13H | U4: =IF(T4<>"",MID(T4,FIND("-",T4)+1,10),"") -> 13H | V4: =IFERROR(HLOOKUP("z^z",OFFSET('semaine paire (sans samedi pm)'!$B$1, MATCH($A4,OFFSET('semaine paire (sans samedi pm)'!$B$1,MATCH(V$2,'semaine paire (sans samedi pm)'!$B$1:$B$120,0)-1,1,12,1),0)-1+MATCH(V$2,'semaine paire (sans samedi pm)'!$B$1:$B$120,0)-1,3,1,52),1,1),"") -> S | W4: =IFERROR(OFFSET('semaine paire (sans samedi pm)'!$D$2,,MATCH(V4,OFFSET('semaine paire (sans samedi pm)'!$B$1, MATCH($A4,OFFSET('semaine paire (sans samedi pm)'!$B$1,MATCH(V$2,'semaine paire (sans samedi pm)'!$B$1:$B$120,0)-1,1,12,1),0)-1+MATCH(V$2,'semaine paire (sans samedi pm)'!$B$1:$B$120,0)-1,3,1,52),0)),"") -> 7h-7h15 | X4: =IF(W4<>"",LEFT(W4,FIND("-",W4)-1),"") -> 7h | Y4: =IFERROR(OFFSET('semaine paire (sans samedi pm)'!$D$2,,MATCH("z^z",OFFSET('semaine paire (sans samedi pm)'!$B$1, MATCH($A4,OFFSET('semaine paire (sans samedi pm)'!$B$1,MATCH(V$2,'semaine paire (sans samedi pm)'!$B$1:$B$120,0)-1,1,12,1),0)-1+MATCH(V$2,'semaine paire (sans samedi pm)'!$B$1:$B$120,0)-1,3,1,52), 1)),"") -> 11h45-12H | Z4: =IF(Y4<>"",MID(Y4,FIND("-",Y4)+1,10),"") -> 12H | AA4: =IFERROR(HLOOKUP("z^z",OFFSET('semaine paire (sans samedi pm)'!$B$1, MATCH($A4,OFFSET('semaine paire (sans samedi pm)'!$B$1,MATCH(AA$2,'semaine paire (sans samedi pm)'!$B$1:$B$120,0)-1,1,12,1),0)-1+MATCH(AA$2,'semaine paire (sans samedi pm)'!$B$1:$B$120,0)-1,3,1,52),1,1),"") -> B | AB4: =IFERROR(OFFSET('semaine paire (sans samedi pm)'!$D$2,,MATCH(AA4,OFFSET('semaine paire (sans samedi pm)'!$B$1, MATCH($A4,OFFSET('semaine paire (sans samedi pm)'!$B$1,MATCH(AA$2,'semaine paire (sans samedi pm)'!$B$1:$B$120,0)-1,1,12,1),0)-1+MATCH(AA$2,'semaine paire (sans samedi pm)'!$B$1:$B$120,0)-1,3,1,52),0)),"") -> 15H-15H15 | AC4: =IF(AB4<>"",LEFT(AB4,FIND("-",AB4)-1),"") -> 15H | AD4: =IFERROR(OFFSET('semaine paire (sans samedi pm)'!$D$2,,MATCH("z^z",OFFSET('semaine paire (sans samedi pm)'!$B$1, MATCH($A4,OFFSET('semaine paire (sans samedi pm)'!$B$1,MATCH(AA$2,'semaine paire (sans samedi pm)'!$B$1:$B$120,0)-1,1,12,1),0)-1+MATCH(AA$2,'semaine paire (sans samedi pm)'!$B$1:$B$120,0)-1,3,1,52), 1)),"") -> 17h45-18H | AE4: =IF(AD4<>"",MID(AD4,FIND("-",AD4)+1,10),"") -> 18H | AF4: =IFERROR(HLOOKUP("z^z",OFFSET('semaine paire (sans samedi pm)'!$B$1, MATCH($A4,OFFSET('semaine paire (sans samedi pm)'!$B$1,MATCH(AF$2,'semaine paire (sans samedi pm)'!$B$1:$B$120,0)-1,1,12,1),0)-1+MATCH(AF$2,'semaine paire (sans samedi pm)'!$B$1:$B$120,0)-1,3,1,52),1,1),"") ->  | AG4: =IFERROR(OFFSET('semaine paire (sans samedi pm)'!$D$2,,MATCH(AF4,OFFSET('semaine paire (sans samedi pm)'!$B$1, MATCH($A4,OFFSET('semaine paire (sans samedi pm)'!$B$1,MATCH(AF$2,'semaine paire (sans samedi pm)'!$B$1:$B$120,0)-1,1,12,1),0)-1+MATCH(AF$2,'semaine paire (sans samedi pm)'!$B$1:$B$120,0)-1,3,1,52),0)),"") ->  | AH4: =IF(AG4<>"",LEFT(AG4,FIND("-",AG4)-1),"") ->  | AI4: =IFERROR(OFFSET('semaine paire (sans samedi pm)'!$D$2,,MATCH("z^z",OFFSET('semaine paire (sans samedi pm)'!$B$1, MATCH($A4,OFFSET('semaine paire (sans samedi pm)'!$B$1,MATCH(AF$2,'semaine paire (sans samedi pm)'!$B$1:$B$120,0)-1,1,12,1),0)-1+MATCH(AF$2,'semaine paire (sans samedi pm)'!$B$1:$B$120,0)-1,3,1,52), 1)),"") ->  | AJ4: =IF(AI4<>"",MID(AI4,FIND("-",AI4)+1,10),"") -> 
